Workbook

Sheet START
F11: =INDIRECT("START!I25") -> START | I11: =INDIRECT("START!K25") -> Описание методологии финмодели
I13: лист | K13: описание листа/столбца/строки/ячейки/блока ячеек
D14: =INDIRECT("Cntrl!M17") -> 0 | E14: =SUM($F14:$PL14) -> 0 | F14: =IFERROR(_xlfn.SHEET($A$1)-SUMIFS(Cntrl!O$15:O$100000,Cntrl!I$15:I$100000,$F$11),1) -> 0
A15: =ROW() -> 15 | I15: разработка финмоделей: https://mngmnt.ru/
A16: =ROW() -> 16 | H16: ФИНАНСОВАЯ МОДЕЛЬ
A17: =ROW() -> 17
A18: =ROW() -> 18
A19: =ROW() -> 19 | H19: ИНВЕСТИЦИОННЫЙ ПРОЕКТ: ДОБЫЧА ГАЗА В АКВАТОРИИ ЮЖНО-КУРИЛЬСКОГО ПРОЛИВА
A20: =ROW() -> 20
A21: =ROW() -> 21
A22: =ROW() -> 22
A23: =ROW() -> 23 | H23: Методология. Список и предназначение листов настоящей финансовой модели
A24: =ROW() -> 24
A25: =ROW() -> 25 | I25: START | K25: Описание методологии финмодели
A26: =ROW() -> 26 | I26: Cntrl | K26: Общий контроль финансовой модели
A27: =ROW() -> 27 | I27: Periods | K27: Периоды и горизонты моделирования фактических и прогнозных данных
A28: =ROW() -> 28 | I28: Lists | K28: Выпадающие списки финансовой модели
A29: =ROW() -> 29 | I29: Macro | K29: Макропоказатели внешней среды
A30: =ROW() -> 30 | I30: Items | K30: Справочники статей доходов и расходов и т.д.
A31: =ROW() -> 31 | I31: KPI | K31: Справочники ключевых показателей эффективности
A32: =ROW() -> 32 | I32: Mrkting | K32: Маркетинг. Параметры рынков сбыта и каналов привлечения клиентов
A33: =ROW() -> 33 | I33: CapEx | K33: Календарный план-график капитальных затрат
A34: =ROW() -> 34 | I34: Sales | K34: Параметры бюджета продаж
A35: =ROW() -> 35 | I35: Prdction | K35: Технологическая карта производственного процесса
A36: =ROW() -> 36 | I36: HR | K36: Штатное расписание
A37: =ROW() -> 37 | I37: Exp | K37: Прочие расходы бизнес-проекта
A38: =ROW() -> 38 | I38: Credits | K38: Источники финансирования и их условия
A39: =ROW() -> 39 | I39: PL | K39: Итоговый отчет о прибылях и убытках
A40: =ROW() -> 40 | I40: CF | K40: Итоговый отчет о движении денежных средств
A41: =ROW() -> 41 | I41: BS | K41: Итоговый баланс
A42: =ROW() -> 42 | I42: MAIN | K42: Ключевые параметры управления и результаты финансовой модели
A43: =ROW() -> 43 | I43: PLd | K43: Детализированный отчет о прибылях и убытках
A44: =ROW() -> 44 | I44: CFd | K44: Детализированный отчет о движении денежных средств
A45: =ROW() -> 45 | I45: BSd | K45: Детализированный баланс
A46: =ROW() -> 46 | I46: Sens | K46: Анализ чувствительности финмодели
A47: =ROW() -> 47 | I47: UnitEc | K47: Расчет юнит-экономики бизнес-проекта
A48: =ROW() -> 48 | I48: CFind | K48: Анализ финансового потока косвенным методом
A49: =ROW() -> 49 | I49: FinEcAn | K49: Финансово-экономический анализ проекта
A50: =ROW() -> 50 | I50: InvAn | K50: Инвестиционный анализ проекта
A51: =ROW() -> 51 | I51: EBITDA | K51: Анализ собственной операционной деят-сти. Точки безубыточности
A52: =ROW() -> 52 | I52: Rep | K52: Укрупненное формирование всей отчетности финмодели
A53: =ROW() -> 53 | I53: Repd | K53: Детализированное формирование всей отчетности финмодели
A54: =ROW() -> 54 | I54: Calc | K54: Функционал финансовой модели. Все расчеты
A55: =ROW() -> 55 | I55: Fact | K55: Учет фактических операций
A56: =ROW() -> 56 | I56: 1S | K56: Выгрузки из 1С карточек с оборотами по счетам бухучета
A57: =ROW() -> 57 | I57: Rules | K57: Правила сопоставления статей для выгрузок из 1С
A58: =ROW() -> 58 | I58: Res1 | K58: Резервная вкладка 1
A59: =ROW() -> 59 | I59: Res2 | K59: Резервная вкладка 2
A60: =ROW() -> 60 | I60: Res3 | K60: Резервная вкладка 3
A61: =ROW() -> 61 | I61: Res4 | K61: Резервная вкладка 4
A62: =ROW() -> 62 | I62: Res5 | K62: Резервная вкладка 5
A63: =ROW() -> 63
A64: =ROW() -> 64 | H64: Обозначение ячеек для задания исходных данных
A65: =ROW() -> 65
A66: =ROW() -> 66 | H66: * | K66: Ячейки для задания исходных данных финмодели вручную
A67: =ROW() -> 67
A68: =ROW() -> 68 | H68: * | J68: ^ | K68: Ячейки для задания исходных данных финмодели из выпадающих списков вкладки "Lists"
A69: =ROW() -> 69
A70: =ROW() -> 70 | H70: Ячейка F11 | K70: Для каждого листа в этой ячейке отображается название (ярлычка) листа
A71: =ROW() -> 71
A72: =ROW() -> 72 | H72: Ячейка I11 | K72: Для каждого листа в этой ячейке отображается заголовок листа
A73: =ROW() -> 73
A74: =ROW() -> 74 | H74: Ячейка E14 | K74: Для каждого листа в этой ячейке суммируются все контроли листа по 14-той строке
A75: =ROW() -> 75
A76: =ROW() -> 76 | H76: Ячейка D14 | K76: Для каждого листа в этой ячейке отображается общий контроль финмодели из листа "Cntrl"
A77: =ROW() -> 77
A78: =ROW() -> 78 | H78: Ячейка F14 | K78: Для каждого листа в этой ячейке проверяется соответствие названия листа их списку из "START"
A79: =ROW() -> 79
A80: =ROW() -> 80 | H80: Строка 13 | K80: Для каждого листа в этой строке отображаются заголовки столбцов
A81: =ROW() -> 81
A82: =ROW() -> 82 | I82: =$I$26 -> Cntrl | K82: =$K$26 -> Общий контроль финансовой модели
A83: =ROW() -> 83
A84: =ROW() -> 84 | I84: столбец M | K84: Со строки 19 здесь подтягиваются контроли всех листов из ячеек E14
A85: =ROW() -> 85
A86: =ROW() -> 86 | I86: M17 | K86: Общий контроль финмодели - сумма всех контрлей листов в столбце M
A87: =ROW() -> 87
A88: =ROW() -> 88 | I88: столбец O | K88: Со строки 19 здесь рассчитываются порядковые номера ярлычков листов в нижней панели
A89: =ROW() -> 89
A90: =ROW() -> 90 | I90: столбец Q | K90: Со строки 19 здесь из выпадающего списка пользователь выбирает тип листов
A91: =ROW() -> 91
A92: =ROW() -> 92 | I92: столбец S | K92: Со строки 19 здесь проверяется наличие значений из столбца Q в списке столбца U листа "Lists"
A93: =ROW() -> 93
A94: =ROW() -> 94 | I94: столбец G | K94: Со строки 19 здесь проверяется наличие названия из столбца H в заголовках списков листа "Lists"
A95: =ROW() -> 95
A96: =ROW() -> 96 | I96: =$I$27 -> Periods | K96: =$K$27 -> Периоды и горизонты моделирования фактических и прогнозных данных
A97: =ROW() -> 97
A98: =ROW() -> 98 | I98: Q16 | K98: Пользователь задает, выбирая из выпадающего списка, минимальный период шкалы времени
A99: =ROW() -> 99
A100: =ROW() -> 100 | I100: Q17 | K100: Пользователь задает вручную дату, с которой начинаются расчеты моделирования - старт
A101: =ROW() -> 101
A102: =ROW() -> 102 | I102: Q18 | K102: Пользователь задает вручную (от 1 до 400) количество периодов в шкале расчетов - горизонт
A103: =ROW() -> 103
A104: =ROW() -> 104 | I104: строки 20,21 | K104: По данным из ячеек Q16,Q17,Q18 рассчитываются даты начала и окончания периодов шкалы расчетов
A105: =ROW() -> 105
A106: =ROW() -> 106 | I106: строка 22 | K106: Формируются названия периодов шкалы расчетов
A107: =ROW() -> 107
A108: =ROW() -> 108 | I108: Q25 | K108: Пользователь указывает на необходимость отражения фактически проведенных операций
A109: =ROW() -> 109
A110: =ROW() -> 110 | I110: Q26 | K110: В случае выбора "да" в ячейке Q25, пользователь выбирает вариант задания фактического периода
A111: =ROW() -> 111
A112: =ROW() -> 112 | I112: Q30 | K112: Если в ячейках Q25 и Q26 "да", то здесь отображается текущая дата - окончание фактического периода
A113: =ROW() -> 113
A114: =ROW() -> 114 | I114: Q31 | K114: Если в ячейке Q25 "да" и в Q26 "нет", то здесь вручную задаем дату окончания фактического периода
A115: =ROW() -> 115
A116: =ROW() -> 116 | I116: строки 28,29 | K116: По данным из ячеек Q25,Q26,Q30,Q31 рассчитываются даты начала и окончания фактических периодов
A117: =ROW() -> 117
A118: =ROW() -> 118 | I118: Q33 | K118: Пользователь задает, выбирая из выпадающего списка, период шкалы времени для отчетности
A119: =ROW() -> 119
A120: =ROW() -> 120 | I120: строки 35,36 | K120: Рассчитываются даты начала и окончания периодов шкалы отчетности
A121: =ROW() -> 121
A122: =ROW() -> 122 | I122: строка 37 | K122: Формируются названия периодов шкалы отчетности
A123: =ROW() -> 123
A124: =ROW() -> 124 | I124: Q12 | K124: Отображается тип листа
A125: =ROW() -> 125
A126: =ROW() -> 126 | I126: строки 11,12 | K126: В зависимости от типа листа отображаются соответствующие даты начала и окончания периодов
A127: =ROW() -> 127
A128: =ROW() -> 128 | I128: строки 1-10 | K128: Строки носят технический характер, в них рассчитываются следующие параметры:
A129: =ROW() -> 129
A130: =ROW() -> 130 | K130: номер столбца:
A131: =ROW() -> 131 | K131: номер периода модели:
A132: =ROW() -> 132 | K132: номер факт-периода:
A133: =ROW() -> 133 | K133: номер план-периода:
A134: =ROW() -> 134 | K134: число даты начала:
A135: =ROW() -> 135 | K135: номер месяца даты начала:
A136: =ROW() -> 136 | K136: год даты начала:
A137: =ROW() -> 137 | K137: число даты окончания:
A138: =ROW() -> 138 | K138: номер месяца даты окончания:
A139: =ROW() -> 139 | K139: год даты окончания:
A140: =ROW() -> 140
A141: =ROW() -> 141 | I141: столбцы G,S | K141: Производится контроль за корректностью работы выпадающих списков
A142: =ROW() -> 142
A143: =ROW() -> 143 | I143: Lists | K143: Выпадающие списки финансовой модели
A144: =ROW() -> 144
A145: =ROW() -> 145 | I145: строка 1 | K145: Для технических нужд отображаются номера столбцов, в которых находятся выпадающие списки
A146: =ROW() -> 146
A147: =ROW() -> 147 | I147: строка 2 | K147: Для технических нужд отображаются названия столбцов, в которых находятся выпадающие списки
A148: =ROW() -> 148
A149: =ROW() -> 149 | I149: строка 15 | K149: Для технических нужд рассчитываются адреса блоков ячеек с выпадающими списками
A150: =ROW() -> 150
A151: =ROW() -> 151 | I151: столбец Q | K151: Значения выпадающего списка зависят от значения ячейки Q16 листа "Periods" и столбца I
A152: =ROW() -> 152
A153: =ROW() -> 153 | I153: справа от списков | K153: В 1-ом столбце справа от вып.списков производится нумерация актуальных значений вып.списков
A154: =ROW() -> 154
A155: =ROW() -> 155 | I155: справа от списков | K155: Во 2-ом столбце справа от вып.списков производится контроль за неповторяемостью значений
A156: =ROW() -> 156
A157: =ROW() -> 157
A158: =ROW() -> 158
A159: =ROW() -> 159
A160: =ROW() -> 160
A161: =ROW() -> 161
A162: =ROW() -> 162
A163: =ROW() -> 163
A164: =ROW() -> 164
A165: =ROW() -> 165
A166: =ROW() -> 166
A167: =ROW() -> 167
A168: =ROW() -> 168
A169: =ROW() -> 169
A170: =ROW() -> 170
A171: =ROW() -> 171
A172: =ROW() -> 172
A173: =ROW() -> 173
A174: =ROW() -> 174
A175: =ROW() -> 175
A176: =ROW() -> 176

Sheet Cntrl
F11: Cntrl | I11: Общий контроль финансовой модели
I13: лист | K13: ячейка с контролем | M13: контроль | O13: номер листа | Q13: тип листа | V13: точность
D14: 0 | E14: 0 | F14: 0 | G14: 0 | S14: 0
A15: 15 | I15: разработка финмоделей: https://mngmnt.ru/
A16: 16
A17: 17 | G17: 0 | H17: Общий контроль | M17: 0
A18: 18
A19: 19 | G19: 0 | H19: тип листа | I19: START | K19: E14 | M19: 0 | O19: 1 | P19: * | Q19: технический | R19: ^ | S19: 0 | U19: * | V19: 0
A20: 20 | G20: 0 | H20: тип листа | I20: Cntrl | K20: E14 | M20: 0 | O20: 2 | P20: * | Q20: технический | R20: ^ | S20: 0 | U20: * | V20: 0
A21: 21 | G21: 0 | H21: тип листа | I21: Periods | K21: E14 | M21: 0 | O21: 3 | P21: * | Q21: расчетный | R21: ^ | S21: 0 | U21: * | V21: 0
A22: 22 | G22: 0 | H22: тип листа | I22: Lists | K22: E14 | M22: 0 | O22: 4 | P22: * | Q22: технический | R22: ^ | S22: 0 | U22: * | V22: 0
A23: 23 | G23: 0 | H23: тип листа | I23: Macro | K23: E14 | M23: 0 | O23: 5 | P23: * | Q23: расчетный | R23: ^ | S23: 0 | U23: * | V23: 0
A24: 24 | G24: 0 | H24: тип листа | I24: Items | K24: E14 | M24: 0 | O24: 6 | P24: * | Q24: технический | R24: ^ | S24: 0 | U24: * | V24: 0
A25: 25 | G25: 0 | H25: тип листа | I25: KPI | K25: E14 | M25: 0 | O25: 7 | P25: * | Q25: технический | R25: ^ | S25: 0 | U25: * | V25: 0
A26: 26 | G26: 0 | H26: тип листа | I26: Mrkting | K26: E14 | M26: 0 | O26: 8 | P26: * | Q26: расчетный | R26: ^ | S26: 0 | U26: * | V26: 0.001
A27: 27 | G27: 0 | H27: тип листа | I27: CapEx | K27: E14 | M27: 0 | O27: 9 | P27: * | Q27: расчетный | R27: ^ | S27: 0 | U27: * | V27: 0.001
A28: 28 | G28: 0 | H28: тип листа | I28: Sales | K28: E14 | M28: 0 | O28: 10 | P28: * | Q28: расчетный | R28: ^ | S28: 0 | U28: * | V28: 0.001
A29: 29 | G29: 0 | H29: тип листа | I29: Prdction | K29: E14 | M29: 0 | O29: 11 | P29: * | Q29: расчетный | R29: ^ | S29: 0 | U29: * | V29: 0.001
A30: 30 | G30: 0 | H30: тип листа | I30: HR | K30: E14 | M30: 0 | O30: 12 | P30: * | Q30: расчетный | R30: ^ | S30: 0 | U30: * | V30: 0.001
A31: 31 | G31: 0 | H31: тип листа | I31: Exp | K31: E14 | M31: 0 | O31: 13 | P31: * | Q31: расчетный | R31: ^ | S31: 0 | U31: * | V31: 0.001
A32: 32 | G32: 0 | H32: тип листа | I32: Credits | K32: E14 | M32: 0 | O32: 14 | P32: * | Q32: расчетный | R32: ^ | S32: 0 | U32: * | V32: 0.001
A33: 33 | G33: 0 | H33: тип листа | I33: PL | K33: E14 | M33: 0 | O33: 16 | P33: * | Q33: отчетный | R33: ^ | S33: 0 | U33: * | V33: 0.001
A34: 34 | G34: 0 | H34: тип листа | I34: CF | K34: E14 | M34: 0 | O34: 17 | P34: * | Q34: отчетный | R34: ^ | S34: 0 | U34: * | V34: 0.001
A35: 35 | G35: 0 | H35: тип листа | I35: BS | K35: E14 | M35: 0 | O35: 18 | P35: * | Q35: отчетный | R35: ^ | S35: 0 | U35: * | V35: 0.01
A36: 36 | G36: 0 | H36: тип листа | I36: MAIN | K36: E14 | M36: 0 | O36: 19 | P36: * | Q36: отчетный | R36: ^ | S36: 0 | U36: * | V36: 0.001
A37: 37 | G37: 0 | H37: тип листа | I37: PLd | K37: E14 | M37: 0 | O37: 20 | P37: * | Q37: расчетный | R37: ^ | S37: 0 | U37: * | V37: 0.001
A38: 38 | G38: 0 | H38: тип листа | I38: CFd | K38: E14 | M38: 0 | O38: 21 | P38: * | Q38: расчетный | R38: ^ | S38: 0 | U38: * | V38: 0.001
A39: 39 | G39: 0 | H39: тип листа | I39: BSd | K39: E14 | M39: 0 | O39: 22 | P39: * | Q39: расчетный | R39: ^ | S39: 0 | U39: * | V39: 0.1
A40: 40 | G40: 0 | H40: тип листа | I40: Sens | K40: E14 | M40: 0 | O40: 23 | P40: * | Q40: отчетный | R40: ^ | S40: 0 | U40: * | V40: 0.001
A41: 41 | G41: 0 | H41: тип листа | I41: UnitEc | K41: E14 | M41: 0 | O41: 24 | P41: * | Q41: отчетный | R41: ^ | S41: 0 | U41: * | V41: 0.001
A42: 42 | G42: 0 | H42: тип листа | I42: CFind | K42: E14 | M42: 0 | O42: 25 | P42: * | Q42: отчетный | R42: ^ | S42: 0 | U42: * | V42: 0.01
A43: 43 | G43: 0 | H43: тип листа | I43: FinEcAn | K43: E14 | M43: 0 | O43: 26 | P43: * | Q43: отчетный | R43: ^ | S43: 0 | U43: * | V43: 0.001
A44: 44 | G44: 0 | H44: тип листа | I44: InvAn | K44: E14 | M44: 0 | O44: 27 | P44: * | Q44: отчетный | R44: ^ | S44: 0 | U44: * | V44: 0.001
A45: 45 | G45: 0 | H45: тип листа | I45: EBITDA | K45: E14 | M45: 0 | O45: 28 | P45: * | Q45: отчетный | R45: ^ | S45: 0 | U45: * | V45: 0.001
A46: 46 | G46: 0 | H46: тип листа | I46: Rep | K46: E14 | M46: 0 | O46: 29 | P46: * | Q46: отчетный | R46: ^ | S46: 0 | U46: * | V46: 0.01
A47: 47 | G47: 0 | H47: тип листа | I47: Repd | K47: E14 | M47: 0 | O47: 30 | P47: * | Q47: расчетный | R47: ^ | S47: 0 | U47: * | V47: 0.1
A48: 48 | G48: 0 | H48: тип листа | I48: Calc | K48: E14 | M48: 0 | O48: 31 | P48: * | Q48: расчетный | R48: ^ | S48: 0 | U48: * | V48: 0.1
A49: 49 | G49: 0 | H49: тип листа | I49: Fact | K49: E14 | P49: * | Q49: расчетный | R49: ^ | S49: 0 | U49: * | V49: 0
A50: 50 | G50: 0 | H50: тип листа | I50: 1S | K50: E14 | P50: * | Q50: расчетный | R50: ^ | S50: 0 | U50: * | V50: 0
A51: 51 | G51: 0 | H51: тип листа | I51: Rules | K51: E14 | P51: * | Q51: расчетный | R51: ^ | S51: 0 | U51: * | V51: 0
A52: 52 | G52: 0 | H52: тип листа | I52: Res1 | K52: E14 | P52: * | Q52: расчетный | R52: ^ | S52: 0 | U52: * | V52: 0
A53: 53 | G53: 0 | H53: тип листа | I53: Res2 | K53: E14 | P53: * | Q53: расчетный | R53: ^ | S53: 0 | U53: * | V53: 0
A54: 54 | G54: 0 | H54: тип листа | I54: Res3 | K54: E14 | P54: * | Q54: расчетный | R54: ^ | S54: 0 | U54: * | V54: 0
A55: 55 | G55: 0 | H55: тип листа | I55: Res4 | K55: E14 | P55: * | Q55: расчетный | R55: ^ | S55: 0 | U55: * | V55: 0
A56: 56 | G56: 0 | H56: тип листа | I56: Res5 | K56: E14 | P56: * | Q56: расчетный | R56: ^ | S56: 0 | U56: * | V56: 0
A57: 57
A58: 58
A59: 59
A60: 60
A61: 61
A62: 62
A63: 63
A64: 64
A65: 65
A66: 66
A67: 67
A68: 68
A69: 69
A70: 70

Sheet Periods
Y1: номер столбца: | AA1: 27 | AB1: 28 | AC1: 29 | AD1: 30 | AE1: 31 | AF1: 32 | AG1: 33 | AH1: 34 | AI1: 35 | AJ1: 36 | AK1: 37 | AL1: 38 | AM1: 39 | AN1: 40 | AO1: 41 | AP1: 42 | AQ1: 43 | AR1: 44 | AS1: 45 | AT1: 46 | AU1: 47 | AV1: 48 | AW1: 49 | AX1: 50 | AY1: 51 | AZ1: 52 | BA1: 53 | BB1: 54 | BC1: 55 | BD1: 56 | BE1: 57 | BF1: 58 | BG1: 59 | BH1: 60 | BI1: 61 | BJ1: 62 | BK1: 63 | BL1: 64 | BM1: 65 | BN1: 66 | BO1: 67 | BP1: 68 | BQ1: 69 | BR1: 70 | BS1: 71 | BT1: 72 | BU1: 73 | BV1: 74 | BW1: 75 | BX1: 76 | BY1: 77 | BZ1: 78 | CA1: 79 | CB1: 80 | CC1: 81 | CD1: 82 | CE1: 83 | CF1: 84 | CG1: 85 | CH1: 86 | CI1: 87 | CJ1: 88 | CK1: 89 | CL1: 90 | CM1: 91 | CN1: 92 | CO1: 93 | CP1: 94 | CQ1: 95 | CR1: 96 | CS1: 97 | CT1: 98 | CU1: 99 | CV1: 100 | CW1: 101 | CX1: 102 | CY1: 103 | CZ1: 104 | DA1: 105 | DB1: 106 | DC1: 107 | DD1: 108 | DE1: 109 | DF1: 110 | DG1: 111 | DH1: 112 | DI1: 113 | DJ1: 114 | DK1: 115 | DL1: 116 | DM1: 117 | DN1: 118 | DO1: 119 | DP1: 120 | DQ1: 121 | DR1: 122 | DS1: 123 | DT1: 124 | DU1: 125 | DV1: 126 | DW1: 127 | DX1: 128 | DY1: 129 | DZ1: 130 | EA1: 131 | EB1: 132 | EC1: 133 | ED1: 134 | EE1: 135 | EF1: 136 | EG1: 137 | EH1: 138 | EI1: 139 | EJ1: 140 | EK1: 141 | EL1: 142 | EM1: 143 | EN1: 144 | EO1: 145 | EP1: 146 | EQ1: 147 | ER1: 148 | ES1: 149 | ET1: 150 | EU1: 151 | EV1: 152 | EW1: 153 | EX1: 154 | EY1: 155 | EZ1: 156 | FA1: 157 | FB1: 158 | FC1: 159
Y2: номер периода модели: | AA2: 1 | AB2: 2 | AC2: 3 | AD2: 4 | AE2: 5 | AF2: 6 | AG2: 7 | AH2: 8 | AI2: 9 | AJ2: 10 | AK2: 11 | AL2: 12 | AM2: 13 | AN2: 14 | AO2: 15 | AP2: 16 | AQ2: 17 | AR2: 18 | AS2: 19 | AT2: 20 | AU2: 21 | AV2: 22 | AW2: 23 | AX2: 24 | AY2: 25 | AZ2: 26 | BA2: 27 | BB2: 28 | BC2: 29 | BD2: 30 | BE2: 31 | BF2: 32 | BG2: 33 | BH2: 34 | BI2: 35 | BJ2: 36 | BK2: 37 | BL2: 38 | BM2: 39 | BN2: 40 | BO2: 41 | BP2: 42 | BQ2: 43 | BR2: 44 | BS2: 45 | BT2: 46 | BU2: 47 | BV2: 48 | BW2: 49 | BX2: 50 | BY2: 51 | BZ2: 52 | CA2: 53 | CB2: 54 | CC2: 55 | CD2: 56 | CE2: 57 | CF2: 58 | CG2: 59 | CH2: 60 | CI2: 61 | CJ2: 62 | CK2: 63 | CL2: 64 | CM2: 65 | CN2: 66 | CO2: 67 | CP2: 68 | CQ2: 69 | CR2: 70 | CS2: 71 | CT2: 72 | CU2: 73 | CV2: 74 | CW2: 75 | CX2: 76 | CY2: 77 | CZ2: 78 | DA2: 79 | DB2: 80 | DC2: 81 | DD2: 82 | DE2: 83 | DF2: 84 | DG2: 85 | DH2: 86 | DI2: 87 | DJ2: 88 | DK2: 89 | DL2: 90 | DM2: 91 | DN2: 92 | DO2: 93 | DP2: 94 | DQ2: 95 | DR2: 96 | DS2: 97 | DT2: 98 | DU2: 99 | DV2: 100 | DW2: 101 | DX2: 102 | DY2: 103 | DZ2: 104 | EA2: 105 | EB2: 106 | EC2: 107 | ED2: 108 | EE2: 109 | EF2: 110 | EG2: 111 | EH2: 112 | EI2: 113 | EJ2: 114 | EK2: 115 | EL2: 116 | EM2: 117 | EN2: 118 | EO2: 119 | EP2: 120 | EQ2: 121 | ER2: 122 | ES2: 123 | ET2: 124 | EU2: 125 | EV2: 126 | EW2: 127 | EX2: 128 | EY2: 129 | EZ2: 130 | FA2: 131 | FB2: 132 | FC2: 133
Y3: номер факт-периода:
Y4: номер план-периода: | AA4: 1 | AB4: 2 | AC4: 3 | AD4: 4 | AE4: 5 | AF4: 6 | AG4: 7 | AH4: 8 | AI4: 9 | AJ4: 10 | AK4: 11 | AL4: 12 | AM4: 13 | AN4: 14 | AO4: 15 | AP4: 16 | AQ4: 17 | AR4: 18 | AS4: 19 | AT4: 20 | AU4: 21 | AV4: 22 | AW4: 23 | AX4: 24 | AY4: 25 | AZ4: 26 | BA4: 27 | BB4: 28 | BC4: 29 | BD4: 30 | BE4: 31 | BF4: 32 | BG4: 33 | BH4: 34 | BI4: 35 | BJ4: 36 | BK4: 37 | BL4: 38 | BM4: 39 | BN4: 40 | BO4: 41 | BP4: 42 | BQ4: 43 | BR4: 44 | BS4: 45 | BT4: 46 | BU4: 47 | BV4: 48 | BW4: 49 | BX4: 50 | BY4: 51 | BZ4: 52 | CA4: 53 | CB4: 54 | CC4: 55 | CD4: 56 | CE4: 57 | CF4: 58 | CG4: 59 | CH4: 60 | CI4: 61 | CJ4: 62 | CK4: 63 | CL4: 64 | CM4: 65 | CN4: 66 | CO4: 67 | CP4: 68 | CQ4: 69 | CR4: 70 | CS4: 71 | CT4: 72 | CU4: 73 | CV4: 74 | CW4: 75 | CX4: 76 | CY4: 77 | CZ4: 78 | DA4: 79 | DB4: 80
Y5: число даты начала: | AA5: 1 | AB5: 1 | AC5: 1 | AD5: 1 | AE5: 1 | AF5: 1 | AG5: 1 | AH5: 1 | AI5: 1 | AJ5: 1 | AK5: 1 | AL5: 1 | AM5: 1 | AN5: 1 | AO5: 1 | AP5: 1 | AQ5: 1 | AR5: 1 | AS5: 1 | AT5: 1 | AU5: 1 | AV5: 1 | AW5: 1 | AX5: 1 | AY5: 1 | AZ5: 1 | BA5: 1 | BB5: 1 | BC5: 1 | BD5: 1 | BE5: 1 | BF5: 1 | BG5: 1 | BH5: 1 | BI5: 1 | BJ5: 1 | BK5: 1 | BL5: 1 | BM5: 1 | BN5: 1 | BO5: 1 | BP5: 1 | BQ5: 1 | BR5: 1 | BS5: 1 | BT5: 1 | BU5: 1 | BV5: 1 | BW5: 1 | BX5: 1 | BY5: 1 | BZ5: 1 | CA5: 1 | CB5: 1 | CC5: 1 | CD5: 1 | CE5: 1 | CF5: 1 | CG5: 1 | CH5: 1 | CI5: 1 | CJ5: 1 | CK5: 1 | CL5: 1 | CM5: 1 | CN5: 1 | CO5: 1 | CP5: 1 | CQ5: 1 | CR5: 1 | CS5: 1 | CT5: 1 | CU5: 1 | CV5: 1 | CW5: 1 | CX5: 1 | CY5: 1 | CZ5: 1 | DA5: 1 | DB5: 1
Y6: номер месяца даты начала: | AA6: 7 | AB6: 10 | AC6: 1 | AD6: 4 | AE6: 7 | AF6: 10 | AG6: 1 | AH6: 4 | AI6: 7 | AJ6: 10 | AK6: 1 | AL6: 4 | AM6: 7 | AN6: 10 | AO6: 1 | AP6: 4 | AQ6: 7 | AR6: 10 | AS6: 1 | AT6: 4 | AU6: 7 | AV6: 10 | AW6: 1 | AX6: 4 | AY6: 7 | AZ6: 10 | BA6: 1 | BB6: 4 | BC6: 7 | BD6: 10 | BE6: 1 | BF6: 4 | BG6: 7 | BH6: 10 | BI6: 1 | BJ6: 4 | BK6: 7 | BL6: 10 | BM6: 1 | BN6: 4 | BO6: 7 | BP6: 10 | BQ6: 1 | BR6: 4 | BS6: 7 | BT6: 10 | BU6: 1 | BV6: 4 | BW6: 7 | BX6: 10 | BY6: 1 | BZ6: 4 | CA6: 7 | CB6: 10 | CC6: 1 | CD6: 4 | CE6: 7 | CF6: 10 | CG6: 1 | CH6: 4 | CI6: 7 | CJ6: 10 | CK6: 1 | CL6: 4 | CM6: 7 | CN6: 10 | CO6: 1 | CP6: 4 | CQ6: 7 | CR6: 10 | CS6: 1 | CT6: 4 | CU6: 7 | CV6: 10 | CW6: 1 | CX6: 4 | CY6: 7 | CZ6: 10 | DA6: 1 | DB6: 4
Y7: год даты начала: | AA7: 21 | AB7: 21 | AC7: 22 | AD7: 22 | AE7: 22 | AF7: 22 | AG7: 23 | AH7: 23 | AI7: 23 | AJ7: 23 | AK7: 24 | AL7: 24 | AM7: 24 | AN7: 24 | AO7: 25 | AP7: 25 | AQ7: 25 | AR7: 25 | AS7: 26 | AT7: 26 | AU7: 26 | AV7: 26 | AW7: 27 | AX7: 27 | AY7: 27 | AZ7: 27 | BA7: 28 | BB7: 28 | BC7: 28 | BD7: 28 | BE7: 29 | BF7: 29 | BG7: 29 | BH7: 29 | BI7: 30 | BJ7: 30 | BK7: 30 | BL7: 30 | BM7: 31 | BN7: 31 | BO7: 31 | BP7: 31 | BQ7: 32 | BR7: 32 | BS7: 32 | BT7: 32 | BU7: 33 | BV7: 33 | BW7: 33 | BX7: 33 | BY7: 34 | BZ7: 34 | CA7: 34 | CB7: 34 | CC7: 35 | CD7: 35 | CE7: 35 | CF7: 35 | CG7: 36 | CH7: 36 | CI7: 36 | CJ7: 36 | CK7: 37 | CL7: 37 | CM7: 37 | CN7: 37 | CO7: 38 | CP7: 38 | CQ7: 38 | CR7: 38 | CS7: 39 | CT7: 39 | CU7: 39 | CV7: 39 | CW7: 40 | CX7: 40 | CY7: 40 | CZ7: 40 | DA7: 41 | DB7: 41
Y8: число даты окончания: | AA8: 30 | AB8: 31 | AC8: 31 | AD8: 30 | AE8: 30 | AF8: 31 | AG8: 31 | AH8: 30 | AI8: 30 | AJ8: 31 | AK8: 31 | AL8: 30 | AM8: 30 | AN8: 31 | AO8: 31 | AP8: 30 | AQ8: 30 | AR8: 31 | AS8: 31 | AT8: 30 | AU8: 30 | AV8: 31 | AW8: 31 | AX8: 30 | AY8: 30 | AZ8: 31 | BA8: 31 | BB8: 30 | BC8: 30 | BD8: 31 | BE8: 31 | BF8: 30 | BG8: 30 | BH8: 31 | BI8: 31 | BJ8: 30 | BK8: 30 | BL8: 31 | BM8: 31 | BN8: 30 | BO8: 30 | BP8: 31 | BQ8: 31 | BR8: 30 | BS8: 30 | BT8: 31 | BU8: 31 | BV8: 30 | BW8: 30 | BX8: 31 | BY8: 31 | BZ8: 30 | CA8: 30 | CB8: 31 | CC8: 31 | CD8: 30 | CE8: 30 | CF8: 31 | CG8: 31 | CH8: 30 | CI8: 30 | CJ8: 31 | CK8: 31 | CL8: 30 | CM8: 30 | CN8: 31 | CO8: 31 | CP8: 30 | CQ8: 30 | CR8: 31 | CS8: 31 | CT8: 30 | CU8: 30 | CV8: 31 | CW8: 31 | CX8: 30 | CY8: 30 | CZ8: 31 | DA8: 31 | DB8: 30
Y9: номер месяца даты окончания: | AA9: 9 | AB9: 12 | AC9: 3 | AD9: 6 | AE9: 9 | AF9: 12 | AG9: 3 | AH9: 6 | AI9: 9 | AJ9: 12 | AK9: 3 | AL9: 6 | AM9: 9 | AN9: 12 | AO9: 3 | AP9: 6 | AQ9: 9 | AR9: 12 | AS9: 3 | AT9: 6 | AU9: 9 | AV9: 12 | AW9: 3 | AX9: 6 | AY9: 9 | AZ9: 12 | BA9: 3 | BB9: 6 | BC9: 9 | BD9: 12 | BE9: 3 | BF9: 6 | BG9: 9 | BH9: 12 | BI9: 3 | BJ9: 6 | BK9: 9 | BL9: 12 | BM9: 3 | BN9: 6 | BO9: 9 | BP9: 12 | BQ9: 3 | BR9: 6 | BS9: 9 | BT9: 12 | BU9: 3 | BV9: 6 | BW9: 9 | BX9: 12 | BY9: 3 | BZ9: 6 | CA9: 9 | CB9: 12 | CC9: 3 | CD9: 6 | CE9: 9 | CF9: 12 | CG9: 3 | CH9: 6 | CI9: 9 | CJ9: 12 | CK9: 3 | CL9: 6 | CM9: 9 | CN9: 12 | CO9: 3 | CP9: 6 | CQ9: 9 | CR9: 12 | CS9: 3 | CT9: 6 | CU9: 9 | CV9: 12 | CW9: 3 | CX9: 6 | CY9: 9 | CZ9: 12 | DA9: 3 | DB9: 6
Y10: год даты окончания: | AA10: 21 | AB10: 21 | AC10: 22 | AD10: 22 | AE10: 22 | AF10: 22 | AG10: 23 | AH10: 23 | AI10: 23 | AJ10: 23 | AK10: 24 | AL10: 24 | AM10: 24 | AN10: 24 | AO10: 25 | AP10: 25 | AQ10: 25 | AR10: 25 | AS10: 26 | AT10: 26 | AU10: 26 | AV10: 26 | AW10: 27 | AX10: 27 | AY10: 27 | AZ10: 27 | BA10: 28 | BB10: 28 | BC10: 28 | BD10: 28 | BE10: 29 | BF10: 29 | BG10: 29 | BH10: 29 | BI10: 30 | BJ10: 30 | BK10: 30 | BL10: 30 | BM10: 31 | BN10: 31 | BO10: 31 | BP10: 31 | BQ10: 32 | BR10: 32 | BS10: 32 | BT10: 32 | BU10: 33 | BV10: 33 | BW10: 33 | BX10: 33 | BY10: 34 | BZ10: 34 | CA10: 34 | CB10: 34 | CC10: 35 | CD10: 35 | CE10: 35 | CF10: 35 | CG10: 36 | CH10: 36 | CI10: 36 | CJ10: 36 | CK10: 37 | CL10: 37 | CM10: 37 | CN10: 37 | CO10: 38 | CP10: 38 | CQ10: 38 | CR10: 38 | CS10: 39 | CT10: 39 | CU10: 39 | CV10: 39 | CW10: 40 | CX10: 40 | CY10: 40 | CZ10: 40 | DA10: 41 | DB10: 41
F11: Periods | I11: Периоды и горизонты моделирования фактических и прогнозных данных | X11: 2021-07-01 | AA11: 2021-07-01 | AB11: 2021-10-01 | AC11: 2022-01-01 | AD11: 2022-04-01 | AE11: 2022-07-01 | AF11: 2022-10-01 | AG11: 2023-01-01 | AH11: 2023-04-01 | AI11: 2023-07-01 | AJ11: 2023-10-01 | AK11: 2024-01-01 | AL11: 2024-04-01 | AM11: 2024-07-01 | AN11: 2024-10-01 | AO11: 2025-01-01 | AP11: 2025-04-01 | AQ11: 2025-07-01 | AR11: 2025-10-01 | AS11: 2026-01-01 | AT11: 2026-04-01 | AU11: 2026-07-01 | AV11: 2026-10-01 | AW11: 2027-01-01 | AX11: 2027-04-01 | AY11: 2027-07-01 | AZ11: 2027-10-01 | BA11: 2028-01-01 | BB11: 2028-04-01 | BC11: 2028-07-01 | BD11: 2028-10-01 | BE11: 2029-01-01 | BF11: 2029-04-01 | BG11: 2029-07-01 | BH11: 2029-10-01 | BI11: 2030-01-01 | BJ11: 2030-04-01 | BK11: 2030-07-01 | BL11: 2030-10-01 | BM11: 2031-01-01 | BN11: 2031-04-01 | BO11: 2031-07-01 | BP11: 2031-10-01 | BQ11: 2032-01-01 | BR11: 2032-04-01 | BS11: 2032-07-01 | BT11: 2032-10-01 | BU11: 2033-01-01 | BV11: 2033-04-01 | BW11: 2033-07-01 | BX11: 2033-10-01 | BY11: 2034-01-01 | BZ11: 2034-04-01 | CA11: 2034-07-01 | CB11: 2034-10-01 | CC11: 2035-01-01 | CD11: 2035-04-01 | CE11: 2035-07-01 | CF11: 2035-10-01 | CG11: 2036-01-01 | CH11: 2036-04-01 | CI11: 2036-07-01 | CJ11: 2036-10-01 | CK11: 2037-01-01 | CL11: 2037-04-01 | CM11: 2037-07-01 | CN11: 2037-10-01 | CO11: 2038-01-01 | CP11: 2038-04-01 | CQ11: 2038-07-01 | CR11: 2038-10-01 | CS11: 2039-01-01 | CT11: 2039-04-01 | CU11: 2039-07-01 | CV11: 2039-10-01 | CW11: 2040-01-01 | CX11: 2040-04-01 | CY11: 2040-07-01 | CZ11: 2040-10-01 | DA11: 2041-01-01 | DB11: 2041-04-01
H12: тип листа | Q12: расчетный | X12: 2041-06-30 | AA12: 2021-09-30 | AB12: 2021-12-31 | AC12: 2022-03-31 | AD12: 2022-06-30 | AE12: 2022-09-30 | AF12: 2022-12-31 | AG12: 2023-03-31 | AH12: 2023-06-30 | AI12: 2023-09-30 | AJ12: 2023-12-31 | AK12: 2024-03-31 | AL12: 2024-06-30 | AM12: 2024-09-30 | AN12: 2024-12-31 | AO12: 2025-03-31 | AP12: 2025-06-30 | AQ12: 2025-09-30 | AR12: 2025-12-31 | AS12: 2026-03-31 | AT12: 2026-06-30 | AU12: 2026-09-30 | AV12: 2026-12-31 | AW12: 2027-03-31 | AX12: 2027-06-30 | AY12: 2027-09-30 | AZ12: 2027-12-31 | BA12: 2028-03-31 | BB12: 2028-06-30 | BC12: 2028-09-30 | BD12: 2028-12-31 | BE12: 2029-03-31 | BF12: 2029-06-30 | BG12: 2029-09-30 | BH12: 2029-12-31 | BI12: 2030-03-31 | BJ12: 2030-06-30 | BK12: 2030-09-30 | BL12: 2030-12-31 | BM12: 2031-03-31 | BN12: 2031-06-30 | BO12: 2031-09-30 | BP12: 2031-12-31 | BQ12: 2032-03-31 | BR12: 2032-06-30 | BS12: 2032-09-30 | BT12: 2032-12-31 | BU12: 2033-03-31 | BV12: 2033-06-30 | BW12: 2033-09-30 | BX12: 2033-12-31 | BY12: 2034-03-31 | BZ12: 2034-06-30 | CA12: 2034-09-30 | CB12: 2034-12-31 | CC12: 2035-03-31 | CD12: 2035-06-30 | CE12: 2035-09-30 | CF12: 2035-12-31 | CG12: 2036-03-31 | CH12: 2036-06-30 | CI12: 2036-09-30 | CJ12: 2036-12-31 | CK12: 2037-03-31 | CL12: 2037-06-30 | CM12: 2037-09-30 | CN12: 2037-12-31 | CO12: 2038-03-31 | CP12: 2038-06-30 | CQ12: 2038-09-30 | CR12: 2038-12-31 | CS12: 2039-03-31 | CT12: 2039-06-30 | CU12: 2039-09-30 | CV12: 2039-12-31 | CW12: 2040-03-31 | CX12: 2040-06-30 | CY12: 2040-09-30 | CZ12: 2040-12-31 | DA12: 2041-03-31 | DB12: 2041-06-30
H13: показатель | Q13: значение | X13: итого | AA13: 3кв21г | AB13: 4кв21г | AC13: 1кв22г | AD13: 2кв22г | AE13: 3кв22г | AF13: 4кв22г | AG13: 1кв23г | AH13: 2кв23г | AI13: 3кв23г | AJ13: 4кв23г | AK13: 1кв24г | AL13: 2кв24г | AM13: 3кв24г | AN13: 4кв24г | AO13: 1кв25г | AP13: 2кв25г | AQ13: 3кв25г | AR13: 4кв25г | AS13: 1кв26г | AT13: 2кв26г | AU13: 3кв26г | AV13: 4кв26г | AW13: 1кв27г | AX13: 2кв27г | AY13: 3кв27г | AZ13: 4кв27г | BA13: 1кв28г | BB13: 2кв28г | BC13: 3кв28г | BD13: 4кв28г | BE13: 1кв29г | BF13: 2кв29г | BG13: 3кв29г | BH13: 4кв29г | BI13: 1кв30г | BJ13: 2кв30г | BK13: 3кв30г | BL13: 4кв30г | BM13: 1кв31г | BN13: 2кв31г | BO13: 3кв31г | BP13: 4кв31г | BQ13: 1кв32г | BR13: 2кв32г | BS13: 3кв32г | BT13: 4кв32г | BU13: 1кв33г | BV13: 2кв33г | BW13: 3кв33г | BX13: 4кв33г | BY13: 1кв34г | BZ13: 2кв34г | CA13: 3кв34г | CB13: 4кв34г | CC13: 1кв35г | CD13: 2кв35г | CE13: 3кв35г | CF13: 4кв35г | CG13: 1кв36г | CH13: 2кв36г | CI13: 3кв36г | CJ13: 4кв36г | CK13: 1кв37г | CL13: 2кв37г | CM13: 3кв37г | CN13: 4кв37г | CO13: 1кв38г | CP13: 2кв38г | CQ13: 3кв38г | CR13: 4кв38г | CS13: 1кв39г | CT13: 2кв39г | CU13: 3кв39г | CV13: 4кв39г | CW13: 1кв40г | CX13: 2кв40г | CY13: 3кв40г | CZ13: 4кв40г | DA13: 1кв41г | DB13: 2кв41г
D14: 0 | E14: 0 | F14: 0 | G14: 0 | S14: 0
A15: 15 | H15: разработка финмоделей: https://mngmnt.ru/
A16: 16 | G16: 0 | H16: минимальный период расчетов | P16: * | Q16: квартал | R16: ^ | S16: 0 | Y16: номер периода модели: | AA16: 1 | AB16: 2 | AC16: 3 | AD16: 4 | AE16: 5 | AF16: 6 | AG16: 7 | AH16: 8 | AI16: 9 | AJ16: 10 | AK16: 11 | AL16: 12 | AM16: 13 | AN16: 14 | AO16: 15 | AP16: 16 | AQ16: 17 | AR16: 18 | AS16: 19 | AT16: 20 | AU16: 21 | AV16: 22 | AW16: 23 | AX16: 24 | AY16: 25 | AZ16: 26 | BA16: 27 | BB16: 28 | BC16: 29 | BD16: 30 | BE16: 31 | BF16: 32 | BG16: 33 | BH16: 34 | BI16: 35 | BJ16: 36 | BK16: 37 | BL16: 38 | BM16: 39 | BN16: 40 | BO16: 41 | BP16: 42 | BQ16: 43 | BR16: 44 | BS16: 45 | BT16: 46 | BU16: 47 | BV16: 48 | BW16: 49 | BX16: 50 | BY16: 51 | BZ16: 52 | CA16: 53 | CB16: 54 | CC16: 55 | CD16: 56 | CE16: 57 | CF16: 58 | CG16: 59 | CH16: 60 | CI16: 61 | CJ16: 62 | CK16: 63 | CL16: 64 | CM16: 65 | CN16: 66 | CO16: 67 | CP16: 68 | CQ16: 69 | CR16: 70 | CS16: 71 | CT16: 72 | CU16: 73 | CV16: 74 | CW16: 75 | CX16: 76 | CY16: 77 | CZ16: 78 | DA16: 79 | DB16: 80 | DC16: 81 | DD16: 82 | DE16: 83 | DF16: 84 | DG16: 85 | DH16: 86 | DI16: 87 | DJ16: 88 | DK16: 89 | DL16: 90 | DM16: 91 | DN16: 92 | DO16: 93 | DP16: 94 | DQ16: 95 | DR16: 96 | DS16: 97 | DT16: 98 | DU16: 99 | DV16: 100 | DW16: 101 | DX16: 102 | DY16: 103 | DZ16: 104 | EA16: 105 | EB16: 106 | EC16: 107 | ED16: 108 | EE16: 109 | EF16: 110 | EG16: 111 | EH16: 112 | EI16: 113 | EJ16: 114 | EK16: 115 | EL16: 116 | EM16: 117 | EN16: 118 | EO16: 119 | EP16: 120 | EQ16: 121 | ER16: 122 | ES16: 123 | ET16: 124 | EU16: 125 | EV16: 126 | EW16: 127 | EX16: 128 | EY16: 129 | EZ16: 130 | FA16: 131 | FB16: 132 | FC16: 133
A17: 17 | G17: 0 | H17: дата старта проекта | P17: * | Q17: 2021-07-01 | S17: 0 | Y17: номер месяца даты начала: | AA17: 7 | AB17: 10 | AC17: 1 | AD17: 4 | AE17: 7 | AF17: 10 | AG17: 1 | AH17: 4 | AI17: 7 | AJ17: 10 | AK17: 1 | AL17: 4 | AM17: 7 | AN17: 10 | AO17: 1 | AP17: 4 | AQ17: 7 | AR17: 10 | AS17: 1 | AT17: 4 | AU17: 7 | AV17: 10 | AW17: 1 | AX17: 4 | AY17: 7 | AZ17: 10 | BA17: 1 | BB17: 4 | BC17: 7 | BD17: 10 | BE17: 1 | BF17: 4 | BG17: 7 | BH17: 10 | BI17: 1 | BJ17: 4 | BK17: 7 | BL17: 10 | BM17: 1 | BN17: 4 | BO17: 7 | BP17: 10 | BQ17: 1 | BR17: 4 | BS17: 7 | BT17: 10 | BU17: 1 | BV17: 4 | BW17: 7 | BX17: 10 | BY17: 1 | BZ17: 4 | CA17: 7 | CB17: 10 | CC17: 1 | CD17: 4 | CE17: 7 | CF17: 10 | CG17: 1 | CH17: 4 | CI17: 7 | CJ17: 10 | CK17: 1 | CL17: 4 | CM17: 7 | CN17: 10 | CO17: 1 | CP17: 4 | CQ17: 7 | CR17: 10 | CS17: 1 | CT17: 4 | CU17: 7 | CV17: 10 | CW17: 1 | CX17: 4 | CY17: 7 | CZ17: 10 | DA17: 1 | DB17: 4
A18: 18 | G18: 0 | H18: горизонт моделирования в кол-ве периодов | P18: * | Q18: 80 | S18: 0 | Y18: год даты начала: | AA18: 21 | AB18: 21 | AC18: 22 | AD18: 22 | AE18: 22 | AF18: 22 | AG18: 23 | AH18: 23 | AI18: 23 | AJ18: 23 | AK18: 24 | AL18: 24 | AM18: 24 | AN18: 24 | AO18: 25 | AP18: 25 | AQ18: 25 | AR18: 25 | AS18: 26 | AT18: 26 | AU18: 26 | AV18: 26 | AW18: 27 | AX18: 27 | AY18: 27 | AZ18: 27 | BA18: 28 | BB18: 28 | BC18: 28 | BD18: 28 | BE18: 29 | BF18: 29 | BG18: 29 | BH18: 29 | BI18: 30 | BJ18: 30 | BK18: 30 | BL18: 30 | BM18: 31 | BN18: 31 | BO18: 31 | BP18: 31 | BQ18: 32 | BR18: 32 | BS18: 32 | BT18: 32 | BU18: 33 | BV18: 33 | BW18: 33 | BX18: 33 | BY18: 34 | BZ18: 34 | CA18: 34 | CB18: 34 | CC18: 35 | CD18: 35 | CE18: 35 | CF18: 35 | CG18: 36 | CH18: 36 | CI18: 36 | CJ18: 36 | CK18: 37 | CL18: 37 | CM18: 37 | CN18: 37 | CO18: 38 | CP18: 38 | CQ18: 38 | CR18: 38 | CS18: 39 | CT18: 39 | CU18: 39 | CV18: 39 | CW18: 40 | CX18: 40 | CY18: 40 | CZ18: 40 | DA18: 41 | DB18: 41
A19: 19
A20: 20 | G20: 0 | H20: дата старта периода расчетов модели | X20: 2021-07-01 | AA20: 2021-07-01 | AB20: 2021-10-01 | AC20: 2022-01-01 | AD20: 2022-04-01 | AE20: 2022-07-01 | AF20: 2022-10-01 | AG20: 2023-01-01 | AH20: 2023-04-01 | AI20: 2023-07-01 | AJ20: 2023-10-01 | AK20: 2024-01-01 | AL20: 2024-04-01 | AM20: 2024-07-01 | AN20: 2024-10-01 | AO20: 2025-01-01 | AP20: 2025-04-01 | AQ20: 2025-07-01 | AR20: 2025-10-01 | AS20: 2026-01-01 | AT20: 2026-04-01 | AU20: 2026-07-01 | AV20: 2026-10-01 | AW20: 2027-01-01 | AX20: 2027-04-01 | AY20: 2027-07-01 | AZ20: 2027-10-01 | BA20: 2028-01-01 | BB20: 2028-04-01 | BC20: 2028-07-01 | BD20: 2028-10-01 | BE20: 2029-01-01 | BF20: 2029-04-01 | BG20: 2029-07-01 | BH20: 2029-10-01 | BI20: 2030-01-01 | BJ20: 2030-04-01 | BK20: 2030-07-01 | BL20: 2030-10-01 | BM20: 2031-01-01 | BN20: 2031-04-01 | BO20: 2031-07-01 | BP20: 2031-10-01 | BQ20: 2032-01-01 | BR20: 2032-04-01 | BS20: 2032-07-01 | BT20: 2032-10-01 | BU20: 2033-01-01 | BV20: 2033-04-01 | BW20: 2033-07-01 | BX20: 2033-10-01 | BY20: 2034-01-01 | BZ20: 2034-04-01 | CA20: 2034-07-01 | CB20: 2034-10-01 | CC20: 2035-01-01 | CD20: 2035-04-01 | CE20: 2035-07-01 | CF20: 2035-10-01 | CG20: 2036-01-01 | CH20: 2036-04-01 | CI20: 2036-07-01 | CJ20: 2036-10-01 | CK20: 2037-01-01 | CL20: 2037-04-01 | CM20: 2037-07-01 | CN20: 2037-10-01 | CO20: 2038-01-01 | CP20: 2038-04-01 | CQ20: 2038-07-01 | CR20: 2038-10-01 | CS20: 2039-01-01 | CT20: 2039-04-01 | CU20: 2039-07-01 | CV20: 2039-10-01 | CW20: 2040-01-01 | CX20: 2040-04-01 | CY20: 2040-07-01 | CZ20: 2040-10-01 | DA20: 2041-01-01 | DB20: 2041-04-01
A21: 21 | G21: 0 | H21: дата завершения периода расчетов модели | X21: 2041-06-30 | AA21: 2021-09-30 | AB21: 2021-12-31 | AC21: 2022-03-31 | AD21: 2022-06-30 | AE21: 2022-09-30 | AF21: 2022-12-31 | AG21: 2023-03-31 | AH21: 2023-06-30 | AI21: 2023-09-30 | AJ21: 2023-12-31 | AK21: 2024-03-31 | AL21: 2024-06-30 | AM21: 2024-09-30 | AN21: 2024-12-31 | AO21: 2025-03-31 | AP21: 2025-06-30 | AQ21: 2025-09-30 | AR21: 2025-12-31 | AS21: 2026-03-31 | AT21: 2026-06-30 | AU21: 2026-09-30 | AV21: 2026-12-31 | AW21: 2027-03-31 | AX21: 2027-06-30 | AY21: 2027-09-30 | AZ21: 2027-12-31 | BA21: 2028-03-31 | BB21: 2028-06-30 | BC21: 2028-09-30 | BD21: 2028-12-31 | BE21: 2029-03-31 | BF21: 2029-06-30 | BG21: 2029-09-30 | BH21: 2029-12-31 | BI21: 2030-03-31 | BJ21: 2030-06-30 | BK21: 2030-09-30 | BL21: 2030-12-31 | BM21: 2031-03-31 | BN21: 2031-06-30 | BO21: 2031-09-30 | BP21: 2031-12-31 | BQ21: 2032-03-31 | BR21: 2032-06-30 | BS21: 2032-09-30 | BT21: 2032-12-31 | BU21: 2033-03-31 | BV21: 2033-06-30 | BW21: 2033-09-30 | BX21: 2033-12-31 | BY21: 2034-03-31 | BZ21: 2034-06-30 | CA21: 2034-09-30 | CB21: 2034-12-31 | CC21: 2035-03-31 | CD21: 2035-06-30 | CE21: 2035-09-30 | CF21: 2035-12-31 | CG21: 2036-03-31 | CH21: 2036-06-30 | CI21: 2036-09-30 | CJ21: 2036-12-31 | CK21: 2037-03-31 | CL21: 2037-06-30 | CM21: 2037-09-30 | CN21: 2037-12-31 | CO21: 2038-03-31 | CP21: 2038-06-30 | CQ21: 2038-09-30 | CR21: 2038-12-31 | CS21: 2039-03-31 | CT21: 2039-06-30 | CU21: 2039-09-30 | CV21: 2039-12-31 | CW21: 2040-03-31 | CX21: 2040-06-30 | CY21: 2040-09-30 | CZ21: 2040-12-31 | DA21: 2041-03-31 | DB21: 2041-06-30
A22: 22 | G22: 0 | H22: названия периодов расчета | AA22: 3кв21г | AB22: 4кв21г | AC22: 1кв22г | AD22: 2кв22г | AE22: 3кв22г | AF22: 4кв22г | AG22: 1кв23г | AH22: 2кв23г | AI22: 3кв23г | AJ22: 4кв23г | AK22: 1кв24г | AL22: 2кв24г | AM22: 3кв24г | AN22: 4кв24г | AO22: 1кв25г | AP22: 2кв25г | AQ22: 3кв25г | AR22: 4кв25г | AS22: 1кв26г | AT22: 2кв26г | AU22: 3кв26г | AV22: 4кв26г | AW22: 1кв27г | AX22: 2кв27г | AY22: 3кв27г | AZ22: 4кв27г | BA22: 1кв28г | BB22: 2кв28г | BC22: 3кв28г | BD22: 4кв28г | BE22: 1кв29г | BF22: 2кв29г | BG22: 3кв29г | BH22: 4кв29г | BI22: 1кв30г | BJ22: 2кв30г | BK22: 3кв30г | BL22: 4кв30г | BM22: 1кв31г | BN22: 2кв31г | BO22: 3кв31г | BP22: 4кв31г | BQ22: 1кв32г | BR22: 2кв32г | BS22: 3кв32г | BT22: 4кв32г | BU22: 1кв33г | BV22: 2кв33г | BW22: 3кв33г | BX22: 4кв33г | BY22: 1кв34г | BZ22: 2кв34г | CA22: 3кв34г | CB22: 4кв34г | CC22: 1кв35г | CD22: 2кв35г | CE22: 3кв35г | CF22: 4кв35г | CG22: 1кв36г | CH22: 2кв36г | CI22: 3кв36г | CJ22: 4кв36г | CK22: 1кв37г | CL22: 2кв37г | CM22: 3кв37г | CN22: 4кв37г | CO22: 1кв38г | CP22: 2кв38г | CQ22: 3кв38г | CR22: 4кв38г | CS22: 1кв39г | CT22: 2кв39г | CU22: 3кв39г | CV22: 4кв39г | CW22: 1кв40г | CX22: 2кв40г | CY22: 3кв40г | CZ22: 4кв40г | DA22: 1кв41г | DB22: 2кв41г
A23: 23
A24: 24 | G24: 0 | H24: ответ "да/нет"
A25: 25 | G25: 0 | H25: ответ "да/нет" | I25: учесть фактические данные? | P25: * | Q25: нет | R25: ^ | S25: 0
A26: 26 | G26: 0 | H26: ответ "да/нет" | I26: фактический период выбрать по умолчанию? | Q26: да | R26: ^ | S26: 0
A27: 27
A28: 28 | G28: 0 | H28: дата начала фактического периода
A29: 29 | G29: 0 | H29: дата окончания фактического периода
A30: 30 | G30: 0 | H30: дата окончания фактического периода | I30: по умолчанию - сегодняшний день | Q30: 2022-02-08
A31: 31 | G31: 0 | H31: дата окончания фактического периода | I31: задать вручную дату окончания периода | Q31: 2020-10-31 | Y31: номер периода модели: | AA31: 1 | AB31: 2 | AC31: 3 | AD31: 4 | AE31: 5 | AF31: 6 | AG31: 7 | AH31: 8 | AI31: 9 | AJ31: 10 | AK31: 11 | AL31: 12 | AM31: 13 | AN31: 14 | AO31: 15 | AP31: 16 | AQ31: 17 | AR31: 18 | AS31: 19 | AT31: 20 | AU31: 21 | AV31: 22 | AW31: 23 | AX31: 24 | AY31: 25 | AZ31: 26 | BA31: 27 | BB31: 28 | BC31: 29 | BD31: 30 | BE31: 31 | BF31: 32 | BG31: 33 | BH31: 34 | BI31: 35 | BJ31: 36 | BK31: 37 | BL31: 38 | BM31: 39 | BN31: 40 | BO31: 41 | BP31: 42 | BQ31: 43 | BR31: 44 | BS31: 45 | BT31: 46 | BU31: 47 | BV31: 48 | BW31: 49 | BX31: 50 | BY31: 51 | BZ31: 52 | CA31: 53 | CB31: 54 | CC31: 55 | CD31: 56 | CE31: 57 | CF31: 58 | CG31: 59 | CH31: 60 | CI31: 61 | CJ31: 62 | CK31: 63 | CL31: 64 | CM31: 65 | CN31: 66 | CO31: 67 | CP31: 68 | CQ31: 69 | CR31: 70 | CS31: 71 | CT31: 72 | CU31: 73 | CV31: 74 | CW31: 75 | CX31: 76 | CY31: 77 | CZ31: 78 | DA31: 79 | DB31: 80 | DC31: 81 | DD31: 82 | DE31: 83 | DF31: 84 | DG31: 85 | DH31: 86 | DI31: 87 | DJ31: 88 | DK31: 89 | DL31: 90 | DM31: 91 | DN31: 92 | DO31: 93 | DP31: 94 | DQ31: 95 | DR31: 96 | DS31: 97 | DT31: 98 | DU31: 99 | DV31: 100 | DW31: 101 | DX31: 102 | DY31: 103 | DZ31: 104 | EA31: 105 | EB31: 106 | EC31: 107 | ED31: 108 | EE31: 109 | EF31: 110 | EG31: 111 | EH31: 112 | EI31: 113 | EJ31: 114 | EK31: 115 | EL31: 116 | EM31: 117 | EN31: 118 | EO31: 119 | EP31: 120 | EQ31: 121 | ER31: 122 | ES31: 123 | ET31: 124 | EU31: 125 | EV31: 126 | EW31: 127 | EX31: 128 | EY31: 129 | EZ31: 130 | FA31: 131 | FB31: 132 | FC31: 133
A32: 32 | Y32: номер месяца даты начала: | AA32: 7 | AB32: 7 | AC32: 7 | AD32: 7 | AE32: 7 | AF32: 7 | AG32: 7 | AH32: 7 | AI32: 7 | AJ32: 7 | AK32: 7 | AL32: 7 | AM32: 7 | AN32: 7 | AO32: 7 | AP32: 7 | AQ32: 7 | AR32: 7 | AS32: 7 | AT32: 7
A33: 33 | G33: 0 | H33: период отчетности | P33: * | Q33: год текущий | R33: ^ | S33: 0 | Y33: год даты начала: | AA33: 21 | AB33: 22 | AC33: 23 | AD33: 24 | AE33: 25 | AF33: 26 | AG33: 27 | AH33: 28 | AI33: 29 | AJ33: 30 | AK33: 31 | AL33: 32 | AM33: 33 | AN33: 34 | AO33: 35 | AP33: 36 | AQ33: 37 | AR33: 38 | AS33: 39 | AT33: 40
A34: 34
A35: 35 | G35: 0 | H35: дата старта отчетности модели | X35: 2021-07-01 | AA35: 2021-07-01 | AB35: 2022-07-01 | AC35: 2023-07-01 | AD35: 2024-07-01 | AE35: 2025-07-01 | AF35: 2026-07-01 | AG35: 2027-07-01 | AH35: 2028-07-01 | AI35: 2029-07-01 | AJ35: 2030-07-01 | AK35: 2031-07-01 | AL35: 2032-07-01 | AM35: 2033-07-01 | AN35: 2034-07-01 | AO35: 2035-07-01 | AP35: 2036-07-01 | AQ35: 2037-07-01 | AR35: 2038-07-01 | AS35: 2039-07-01 | AT35: 2040-07-01
A36: 36 | G36: 0 | H36: дата завершения отчетности модели | X36: 2041-06-30 | AA36: 2022-06-30 | AB36: 2023-06-30 | AC36: 2024-06-30 | AD36: 2025-06-30 | AE36: 2026-06-30 | AF36: 2027-06-30 | AG36: 2028-06-30 | AH36: 2029-06-30 | AI36: 2030-06-30 | AJ36: 2031-06-30 | AK36: 2032-06-30 | AL36: 2033-06-30 | AM36: 2034-06-30 | AN36: 2035-06-30 | AO36: 2036-06-30 | AP36: 2037-06-30 | AQ36: 2038-06-30 | AR36: 2039-06-30 | AS36: 2040-06-30 | AT36: 2041-06-30
A37: 37 | G37: 0 | H37: названия периодов отчетности | AA37: 1 год | AB37: 2 год | AC37: 3 год | AD37: 4 год | AE37: 5 год | AF37: 6 год | AG37: 7 год | AH37: 8 год | AI37: 9 год | AJ37: 10 год | AK37: 11 год | AL37: 12 год | AM37: 13 год | AN37: 14 год | AO37: 15 год | AP37: 16 год | AQ37: 17 год | AR37: 18 год | AS37: 19 год | AT37: 20 год
A38: 38
A39: 39
A40: 40
A41: 41
A42: 42 | H42: разработка финмоделей: https://mngmnt.ru/
A43: 43
A44: 44
A45: 45
A46: 46
A47: 47
A48: 48
A49: 49
A50: 50
A51: 51
A52: 52
A53: 53
A54: 54
A55: 55
A56: 56
A57: 57
A58: 58
A59: 59
A60: 60
A61: 61
A62: 62
A63: 63
A64: 64
A65: 65
A66: 66
A67: 67
A68: 68
A69: 69
A70: 70

Sheet Lists
I1: =COLUMN() -> 9 | M1: =COLUMN() -> 13 | Q1: =COLUMN() -> 17 | U1: =COLUMN() -> 21 | AB1: =COLUMN() -> 28 | AF1: =COLUMN() -> 32 | AI1: =COLUMN() -> 35 | AM1: =COLUMN() -> 39 | AQ1: =COLUMN() -> 43 | AU1: =COLUMN() -> 47 | AY1: =COLUMN() -> 51 | BC1: =COLUMN() -> 55 | BG1: =COLUMN() -> 59 | BK1: =COLUMN() -> 63 | BO1: =COLUMN() -> 67 | BS1: =COLUMN() -> 71 | BW1: =COLUMN() -> 75 | CA1: =COLUMN() -> 79 | CE1: =COLUMN() -> 83 | CI1: =COLUMN() -> 87 | CM1: =COLUMN() -> 91 | CQ1: =COLUMN() -> 95 | CU1: =COLUMN() -> 99 | CY1: =COLUMN() -> 103
I2: =LEFT(ADDRESS(1,COLUMN(),4),LEN(ADDRESS(1,COLUMN(),4))-1) -> I | M2: =LEFT(ADDRESS(1,COLUMN(),4),LEN(ADDRESS(1,COLUMN(),4))-1) -> M | Q2: =LEFT(ADDRESS(1,COLUMN(),4),LEN(ADDRESS(1,COLUMN(),4))-1) -> Q | U2: =LEFT(ADDRESS(1,COLUMN(),4),LEN(ADDRESS(1,COLUMN(),4))-1) -> U | AB2: =LEFT(ADDRESS(1,COLUMN(),4),LEN(ADDRESS(1,COLUMN(),4))-1) -> AB | AF2: =LEFT(ADDRESS(1,COLUMN(),4),LEN(ADDRESS(1,COLUMN(),4))-1) -> AF | AI2: =LEFT(ADDRESS(1,COLUMN(),4),LEN(ADDRESS(1,COLUMN(),4))-1) -> AI | AM2: =LEFT(ADDRESS(1,COLUMN(),4),LEN(ADDRESS(1,COLUMN(),4))-1) -> AM | AQ2: =LEFT(ADDRESS(1,COLUMN(),4),LEN(ADDRESS(1,COLUMN(),4))-1) -> AQ | AU2: =LEFT(ADDRESS(1,COLUMN(),4),LEN(ADDRESS(1,COLUMN(),4))-1) -> AU | AY2: =LEFT(ADDRESS(1,COLUMN(),4),LEN(ADDRESS(1,COLUMN(),4))-1) -> AY | BC2: =LEFT(ADDRESS(1,COLUMN(),4),LEN(ADDRESS(1,COLUMN(),4))-1) -> BC | BG2: =LEFT(ADDRESS(1,COLUMN(),4),LEN(ADDRESS(1,COLUMN(),4))-1) -> BG | BK2: =LEFT(ADDRESS(1,COLUMN(),4),LEN(ADDRESS(1,COLUMN(),4))-1) -> BK | BO2: =LEFT(ADDRESS(1,COLUMN(),4),LEN(ADDRESS(1,COLUMN(),4))-1) -> BO | BS2: =LEFT(ADDRESS(1,COLUMN(),4),LEN(ADDRESS(1,COLUMN(),4))-1) -> BS | BW2: =LEFT(ADDRESS(1,COLUMN(),4),LEN(ADDRESS(1,COLUMN(),4))-1) -> BW | CA2: =LEFT(ADDRESS(1,COLUMN(),4),LEN(ADDRESS(1,COLUMN(),4))-1) -> CA | CE2: =LEFT(ADDRESS(1,COLUMN(),4),LEN(ADDRESS(1,COLUMN(),4))-1) -> CE | CI2: =LEFT(ADDRESS(1,COLUMN(),4),LEN(ADDRESS(1,COLUMN(),4))-1) -> CI | CM2: =LEFT(ADDRESS(1,COLUMN(),4),LEN(ADDRESS(1,COLUMN(),4))-1) -> CM | CQ2: =LEFT(ADDRESS(1,COLUMN(),4),LEN(ADDRESS(1,COLUMN(),4))-1) -> CQ | CU2: =LEFT(ADDRESS(1,COLUMN(),4),LEN(ADDRESS(1,COLUMN(),4))-1) -> CU | CY2: =LEFT(ADDRESS(1,COLUMN(),4),LEN(ADDRESS(1,COLUMN(),4))-1) -> CY
F11: =INDIRECT("START!I28") -> Lists | I11: =INDIRECT("START!K28") -> Выпадающие списки финансовой модели
AI12: =START!$I$32 -> Mrkting | AY12: =START!$I$32 -> Mrkting | BC12: =START!$I$32 -> Mrkting | BK12: =START!$I$34 -> Sales | BO12: =START!$I$35 -> Prdction | BS12: =START!$I$33 -> CapEx | BW12: =START!$I$33 -> CapEx | CA12: =START!$I$36 -> HR | CI12: =START!$I$36 -> HR | CM12: =START!$I$29 -> Macro | CQ12: =START!$I$29 -> Macro | CU12: =START!$I$54 -> Calc | CY12: =START!$I$42 -> MAIN
I13: минимальный период расчетов | M13: ответ "да/нет" | Q13: период отчетности | U13: тип листа | AB13: тип прогрессии | AF13: кол-во дней в периоде | AI13: каналы привлечения клиентов | AM13: продукция | AQ13: дата старта | AU13: тип учета | AY13: натуральные факторы переменных расходов маркетинга | BC13: денежные факторы переменных расходов маркетинга | BG13: тип зависимости переменных расходов | BK13: типы деятельности сотрудников отдела продаж | BO13: типы деятельности производственных сотрудников | BS13: Ввод в эксплуатацию | BW13: Налоги на внеоборотные активы | CA13: Типы и должности персонала | CE13: Типы оплаты | CI13: Потребность в р/месте | CM13: Система налогообложения | CQ13: Налоги и сборы | CU13: Метки расчетов | CY13: Организация сбыта
D14: =INDIRECT("Cntrl!M17") -> 0 | E14: =SUM($F14:$PH14) -> 0 | F14: =IFERROR(_xlfn.SHEET($A$1)-SUMIFS(Cntrl!O$15:O$100000,Cntrl!I$15:I$100000,$F$11),1) -> 0 | I14: =IF(OR(I13=0,I13=""),1,IF(COUNTIF(13:13,I13)=1,0,1)) -> 0 | K14: =SUM(K$15:K$100000) -> 0 | M14: =IF(OR(M13=0,M13=""),1,IF(COUNTIF(13:13,M13)=1,0,1)) -> 0 | O14: =SUM(O$15:O$100000) -> 0 | Q14: =IF(OR(Q13=0,Q13=""),1,IF(COUNTIF(13:13,Q13)=1,0,1)) -> 0 | S14: =SUM(S$15:S$100000) -> 0 | U14: =IF(OR(U13=0,U13=""),1,IF(COUNTIF(13:13,U13)=1,0,1)) -> 0 | W14: =SUM(W$15:W$100000) -> 0 | AD14: =SUM(AD$15:AD$100000) -> 0 | AF14: =IF(OR(AF13=0,AF13=""),1,IF(COUNTIF(13:13,AF13)=1,0,1)) -> 0 | AI14: =IF(OR(AI13=0,AI13=""),1,IF(COUNTIF(13:13,AI13)=1,0,1)) -> 0 | AK14: =SUM(AK$15:AK$100000) -> 0 | AM14: =IF(OR(AM13=0,AM13=""),1,IF(COUNTIF(13:13,AM13)=1,0,1)) -> 0 | AO14: =SUM(AO$15:AO$100000) -> 0 | AQ14: =IF(OR(AQ13=0,AQ13=""),1,IF(COUNTIF(13:13,AQ13)=1,0,1)) -> 0 | AS14: =SUM(AS$15:AS$100000) -> 0 | AU14: =IF(OR(AU13=0,AU13=""),1,IF(COUNTIF(13:13,AU13)=1,0,1)) -> 0 | AW14: =SUM(AW$15:AW$100000) -> 0 | AY14: =IF(OR(AY13=0,AY13=""),1,IF(COUNTIF(13:13,AY13)=1,0,1)) -> 0 | BA14: =SUM(BA$15:BA$100000) -> 0 | BC14: =IF(OR(BC13=0,BC13=""),1,IF(COUNTIF(13:13,BC13)=1,0,1)) -> 0 | BE14: =SUM(BE$15:BE$100000) -> 0 | BG14: =IF(OR(BG13=0,BG13=""),1,IF(COUNTIF(13:13,BG13)=1,0,1)) -> 0 | BI14: =SUM(BI$15:BI$100000) -> 0 | BK14: =IF(OR(BK13=0,BK13=""),1,IF(COUNTIF(13:13,BK13)=1,0,1)) -> 0 | BM14: =SUM(BM$15:BM$100000) -> 0 | BO14: =IF(OR(BO13=0,BO13=""),1,IF(COUNTIF(13:13,BO13)=1,0,1)) -> 0 | BQ14: =SUM(BQ$15:BQ$100000) -> 0 | BS14: =IF(OR(BS13=0,BS13=""),1,IF(COUNTIF(13:13,BS13)=1,0,1)) -> 0 | BU14: =SUM(BU$15:BU$100000) -> 0 | BW14: =IF(OR(BW13=0,BW13=""),1,IF(COUNTIF(13:13,BW13)=1,0,1)) -> 0 | BY14: =SUM(BY$15:BY$100000) -> 0 | CA14: =IF(OR(CA13=0,CA13=""),1,IF(COUNTIF(13:13,CA13)=1,0,1)) -> 0 | CC14: =SUM(CC$15:CC$100000) -> 0 | CE14: =IF(OR(CE13=0,CE13=""),1,IF(COUNTIF(13:13,CE13)=1,0,1)) -> 0 | CG14: =SUM(CG$15:CG$100000) -> 0 | CI14: =IF(OR(CI13=0,CI13=""),1,IF(COUNTIF(13:13,CI13)=1,0,1)) -> 0 | CK14: =SUM(CK$15:CK$100000) -> 0 | CM14: =IF(OR(CM13=0,CM13=""),1,IF(COUNTIF(13:13,CM13)=1,0,1)) -> 0 | CO14: =SUM(CO$15:CO$100000) -> 0 | CQ14: =IF(OR(CQ13=0,CQ13=""),1,IF(COUNTIF(13:13,CQ13)=1,0,1)) -> 0 | CS14: =SUM(CS$15:CS$100000) -> 0 | CU14: =IF(OR(CU13=0,CU13=""),1,IF(COUNTIF(13:13,CU13)=1,0,1)) -> 0 | CW14: =SUM(CW$15:CW$100000) -> 0 | CY14: =IF(OR(CY13=0,CY13=""),1,IF(COUNTIF(13:13,CY13)=1,0,1)) -> 0 | DA14: =SUM(DA$15:DA$100000) -> 0
A15: =ROW() -> 15 | I15: =$F$11&"!"&I$2&$A16&":"&I$2&($A15+MAX(J$15:J$100000)) -> Lists!I16:I22 | M15: =$F$11&"!"&M$2&$A16&":"&M$2&($A15+MAX(N$15:N$100000)) -> Lists!M16:M17 | Q15: =$F$11&"!"&Q$2&$A16&":"&Q$2&($A15+MAX(R$15:R$100000)) -> Lists!Q16:Q17 | U15: =$F$11&"!"&U$2&$A16&":"&U$2&($A15+MAX(V$15:V$100000)) -> Lists!U16:U18 | AB15: =$F$11&"!"&AB$2&$A16&":"&AB$2&($A15+MAX(AC$15:AC$100000)) -> Lists!AB16:AB17 | AF15: =$F$11&"!"&AF$2&$A16&":"&AF$2&($A15+MAX(AG$15:AG$100000)) -> Lists!AF16:AF22 | AI15: =$F$11&"!"&AI$2&$A16&":"&AI$2&($A15+MAX(AJ$15:AJ$100000)) -> Lists!AI16:AI17 | AM15: =$F$11&"!"&AM$2&$A16&":"&AM$2&($A15+MAX(AN$15:AN$100000)) -> Lists!AM16:AM18 | AQ15: =$F$11&"!"&AQ$2&$A16&":"&AQ$2&($A15+MAX(AR$15:AR$100000)) -> Lists!AQ16:AQ95 | AU15: =$F$11&"!"&AU$2&$A16&":"&AU$2&($A15+MAX(AV$15:AV$100000)) -> Lists!AU16:AU20 | AY15: =$F$11&"!"&AY$2&$A16&":"&AY$2&($A15+MAX(AZ$15:AZ$100000)) -> Lists!AY16:AY19 | BC15: =$F$11&"!"&BC$2&$A16&":"&BC$2&($A15+MAX(BD$15:BD$100000)) -> Lists!BC16:BC17 | BG15: =$F$11&"!"&BG$2&$A16&":"&BG$2&($A15+MAX(BH$15:BH$100000)) -> Lists!BG16:BG17 | BK15: =$F$11&"!"&BK$2&$A16&":"&BK$2&($A15+MAX(BL$15:BL$100000)) -> Lists!BK16:BK18 | BO15: =$F$11&"!"&BO$2&$A16&":"&BO$2&($A15+MAX(BP$15:BP$100000)) -> Lists!BO16:BO18 | BS15: =$F$11&"!"&BS$2&$A16&":"&BS$2&($A15+MAX(BT$15:BT$100000)) -> Lists!BS16:BS18 | BW15: =$F$11&"!"&BW$2&$A16&":"&BW$2&($A15+MAX(BX$15:BX$100000)) -> Lists!BW16:BW18 | CA15: =$F$11&"!"&CA$2&$A16&":"&CA$2&($A15+MAX(CB$15:CB$100000)) -> Lists!CA16:CA25 | CE15: =$F$11&"!"&CE$2&$A16&":"&CE$2&($A15+MAX(CF$15:CF$100000)) -> Lists!CE16:CE18 | CI15: =$F$11&"!"&CI$2&$A16&":"&CI$2&($A15+MAX(CJ$15:CJ$100000)) -> Lists!CI16:CI17 | CM15: =$F$11&"!"&CM$2&$A16&":"&CM$2&($A15+MAX(CN$15:CN$100000)) -> Lists!CM16:CM19 | CQ15: =$F$11&"!"&CQ$2&$A16&":"&CQ$2&($A15+MAX(CR$15:CR$100000)) -> Lists!CQ16:CQ19 | CU15: =$F$11&"!"&CU$2&$A16&":"&CU$2&($A15+MAX(CV$15:CV$100000)) -> Lists!CU16:CU29 | CY15: =$F$11&"!"&CY$2&$A16&":"&CY$2&($A15+MAX(CZ$15:CZ$100000)) -> Lists!CY16:CY17
A16: =ROW() -> 16 | I16: день | J16: =MAX(J$15:J15)+1 -> 1 | K16: =IF(OR(I16=0,I16=""),0,IF(COUNTIF(I$15:I$100000,I16)=1,0,1)) -> 0 | M16: да | N16: =MAX(N$15:N15)+1 -> 1 | O16: =IF(OR(M16=0,M16=""),0,IF(COUNTIF(M$15:M$100000,M16)=1,0,1)) -> 0 | Q16: =IF(Periods!$Q$16=$I$16,$I17,IF(OR(Periods!$Q$16=$I$17,Periods!$Q$16=$I$18),$I19,IF(Periods!$Q$16=$I$19,$I20,IF(Periods!$Q$16=$I$20,$I21,IF(Periods!$Q$16=$I$21,$I22,""))))) -> год текущий | R16: =IF(OR(Q16="",Q16=0),"",MAX(R$15:R15)+1) -> 1 | S16: =IF(OR(Q16=0,Q16=""),0,IF(COUNTIF(Q$15:Q$100000,Q16)=1,0,1)) -> 0 | U16: расчетный | V16: =MAX(V$15:V15)+1 -> 1 | W16: =IF(OR(U16=0,U16=""),0,IF(COUNTIF(U$15:U$100000,U16)=1,0,1)) -> 0 | AB16: линейная | AC16: =MAX(AC$15:AC15)+1 -> 1 | AD16: =IF(OR(AB16=0,AB16=""),0,IF(COUNTIF(AB$15:AB$100000,AB16)=1,0,1)) -> 0 | AF16: 1 | AG16: =MAX(AG$15:AG15)+1 -> 1 | AH16: =MAX(AH$15:AH15)+1 -> 1 | AI16: =IF(SUMIFS(Mrkting!$A:$A,Mrkting!$K:$K,AH16)=0,"",INDEX(Mrkting!$L:$L,SUMIFS(Mrkting!$A:$A,Mrkting!$K:$K,AH16))) -> Канал добычи и сбыта - 1 | AJ16: =IF(OR(AI16="",AI16=0),"",MAX(AJ$15:AJ15)+1) -> 1 | AK16: =IF(OR(AI16=0,AI16=""),0,IF(COUNTIF(AI$15:AI$100000,AI16)=1,0,1)) -> 0 | AL16: * | AM16: Природный газ | AN16: =MAX(AN$15:AN15)+1 -> 1 | AO16: =IF(OR(AM16=0,AM16=""),0,IF(COUNTIF(AM$15:AM$100000,AM16)=1,0,1)) -> 0 | AP16: =MAX(AP$15:AP15)+1 -> 1 | AQ16: =SUMIFS(Periods!$11:$11,Periods!$2:$2,AP16) -> 2021-07-01 | AR16: =IF(OR(AQ16="",AQ16=0),"",MAX(AR$15:AR15)+1) -> 1 | AS16: =IF(OR(AQ16=0,AQ16=""),0,IF(COUNTIF(AQ$15:AQ$100000,AQ16)=1,0,1)) -> 0 | AU16: начисление | AV16: =MAX(AV$15:AV15)+1 -> 1 | AW16: =IF(OR(AU16=0,AU16=""),0,IF(COUNTIF(AU$15:AU$100000,AU16)=1,0,1)) -> 0 | AY16: =Mrkting!$H$19 -> Поток запусков бурения скважин | AZ16: =MAX(AZ$15:AZ15)+1 -> 1 | BA16: =IF(OR(AY16=0,AY16=""),0,IF(COUNTIF(AY$15:AY$100000,AY16)=1,0,1)) -> 0 | BC16: =Mrkting!$H$97 -> Общий оборот (GMV) | BD16: =MAX(BD$15:BD15)+1 -> 1 | BE16: =IF(OR(BC16=0,BC16=""),0,IF(COUNTIF(BC$15:BC$100000,BC16)=1,0,1)) -> 0 | BG16: натуральные факторы | BH16: =MAX(BH$15:BH15)+1 -> 1 | BI16: =IF(OR(BG16=0,BG16=""),0,IF(COUNTIF(BG$15:BG$100000,BG16)=1,0,1)) -> 0 | BJ16: * | BK16: информирование об услугах | BL16: =MAX(BL$15:BL15)+1 -> 1 | BM16: =IF(OR(BK16=0,BK16=""),0,IF(COUNTIF(BK$15:BK$100000,BK16)=1,0,1)) -> 0 | BN16: * | BO16: Производственные работы - 1 | BP16: =MAX(BP$15:BP15)+1 -> 1 | BQ16: =IF(OR(BO16=0,BO16=""),0,IF(COUNTIF(BO$15:BO$100000,BO16)=1,0,1)) -> 0 | BS16: в последний период всех капзатрат | BT16: =MAX(BT$15:BT15)+1 -> 1 | BU16: =IF(OR(BS16=0,BS16=""),0,IF(COUNTIF(BS$15:BS$100000,BS16)=1,0,1)) -> 0 | BW16: земельный налог | BX16: =MAX(BX$15:BX15)+1 -> 1 | BY16: =IF(OR(BW16=0,BW16=""),0,IF(COUNTIF(BW$15:BW$100000,BW16)=1,0,1)) -> 0 | CA16: Сотрудники маркетинга | CB16: =MAX(CB$15:CB15)+1 -> 1 | CC16: =IF(OR(CA16=0,CA16=""),0,IF(COUNTIF(CA$15:CA$100000,CA16)=1,0,1)) -> 0 | CE16: аванс-доплата | CF16: =MAX(CF$15:CF15)+1 -> 1 | CG16: =IF(OR(CE16=0,CE16=""),0,IF(COUNTIF(CE$15:CE$100000,CE16)=1,0,1)) -> 0 | CI16: нужно обустр-во | CJ16: =MAX(CJ$15:CJ15)+1 -> 1 | CK16: =IF(OR(CI16=0,CI16=""),0,IF(COUNTIF(CI$15:CI$100000,CI16)=1,0,1)) -> 0 | CM16: ОСНО | CN16: =MAX(CN$15:CN15)+1 -> 1 | CO16: =IF(OR(CM16=0,CM16=""),0,IF(COUNTIF(CM$15:CM$100000,CM16)=1,0,1)) -> 0 | CQ16: НДС | CR16: =MAX(CR$15:CR15)+1 -> 1 | CS16: =IF(OR(CQ16=0,CQ16=""),0,IF(COUNTIF(CQ$15:CQ$100000,CQ16)=1,0,1)) -> 0 | CU16: ндс(+) | CV16: =MAX(CV$15:CV15)+1 -> 1 | CW16: =IF(OR(CU16=0,CU16=""),0,IF(COUNTIF(CU$15:CU$100000,CU16)=1,0,1)) -> 0 | CX16: * | CY16: Завод СПГ | CZ16: =MAX(CZ$15:CZ15)+1 -> 1 | DA16: =IF(OR(CY16=0,CY16=""),0,IF(COUNTIF(CY$15:CY$100000,CY16)=1,0,1)) -> 0
A17: =ROW() -> 17 | I17: неделя | J17: =MAX(J$15:J16)+1 -> 2 | K17: =IF(OR(I17=0,I17=""),0,IF(COUNTIF(I$15:I$100000,I17)=1,0,1)) -> 0 | M17: нет | N17: =MAX(N$15:N16)+1 -> 2 | O17: =IF(OR(M17=0,M17=""),0,IF(COUNTIF(M$15:M$100000,M17)=1,0,1)) -> 0 | Q17: =IF(Periods!$Q$16=$I$16,$I18,IF(OR(Periods!$Q$16=$I$17,Periods!$Q$16=$I$18),$I20,IF(Periods!$Q$16=$I$19,$I21,IF(Periods!$Q$16=$I$20,$I22,IF(Periods!$Q$16=$I$21,$I23,""))))) -> год календ. | R17: =IF(OR(Q17="",Q17=0),"",MAX(R$15:R16)+1) -> 2 | S17: =IF(OR(Q17=0,Q17=""),0,IF(COUNTIF(Q$15:Q$100000,Q17)=1,0,1)) -> 0 | U17: отчетный | V17: =MAX(V$15:V16)+1 -> 2 | W17: =IF(OR(U17=0,U17=""),0,IF(COUNTIF(U$15:U$100000,U17)=1,0,1)) -> 0 | AB17: геометрическая | AC17: =MAX(AC$15:AC16)+1 -> 2 | AD17: =IF(OR(AB17=0,AB17=""),0,IF(COUNTIF(AB$15:AB$100000,AB17)=1,0,1)) -> 0 | AF17: 7 | AG17: =MAX(AG$15:AG16)+1 -> 2 | AH17: =MAX(AH$15:AH16)+1 -> 2 | AI17: =IF(SUMIFS(Mrkting!$A:$A,Mrkting!$K:$K,AH17)=0,"",INDEX(Mrkting!$L:$L,SUMIFS(Mrkting!$A:$A,Mrkting!$K:$K,AH17))) -> Канал добычи и сбыта - 2 | AJ17: =IF(OR(AI17="",AI17=0),"",MAX(AJ$15:AJ16)+1) -> 2 | AK17: =IF(OR(AI17=0,AI17=""),0,IF(COUNTIF(AI$15:AI$100000,AI17)=1,0,1)) -> 0 | AL17: * | AM17: Продукт - 2 | AN17: =MAX(AN$15:AN16)+1 -> 2 | AO17: =IF(OR(AM17=0,AM17=""),0,IF(COUNTIF(AM$15:AM$100000,AM17)=1,0,1)) -> 0 | AP17: =MAX(AP$15:AP16)+1 -> 2 | AQ17: =SUMIFS(Periods!$11:$11,Periods!$2:$2,AP17) -> 2021-10-01 | AR17: =IF(OR(AQ17="",AQ17=0),"",MAX(AR$15:AR16)+1) -> 2 | AS17: =IF(OR(AQ17=0,AQ17=""),0,IF(COUNTIF(AQ$15:AQ$100000,AQ17)=1,0,1)) -> 0 | AU17: учет | AV17: =MAX(AV$15:AV16)+1 -> 2 | AW17: =IF(OR(AU17=0,AU17=""),0,IF(COUNTIF(AU$15:AU$100000,AU17)=1,0,1)) -> 0 | AY17: =Mrkting!$H$65 -> Итоговый дебит газа | AZ17: =MAX(AZ$15:AZ16)+1 -> 2 | BA17: =IF(OR(AY17=0,AY17=""),0,IF(COUNTIF(AY$15:AY$100000,AY17)=1,0,1)) -> 0 | BC17: =Mrkting!$H$131 -> Общий оборот (GMV) с учетом скидок | BD17: =MAX(BD$15:BD16)+1 -> 2 | BE17: =IF(OR(BC17=0,BC17=""),0,IF(COUNTIF(BC$15:BC$100000,BC17)=1,0,1)) -> 0 | BG17: денежные факторы | BH17: =MAX(BH$15:BH16)+1 -> 2 | BI17: =IF(OR(BG17=0,BG17=""),0,IF(COUNTIF(BG$15:BG$100000,BG17)=1,0,1)) -> 0 | BJ17: * | BK17: информирование о ценах и условиях | BL17: =MAX(BL$15:BL16)+1 -> 2 | BM17: =IF(OR(BK17=0,BK17=""),0,IF(COUNTIF(BK$15:BK$100000,BK17)=1,0,1)) -> 0 | BN17: * | BO17: Производственные работы - 2 | BP17: =MAX(BP$15:BP16)+1 -> 2 | BQ17: =IF(OR(BO17=0,BO17=""),0,IF(COUNTIF(BO$15:BO$100000,BO17)=1,0,1)) -> 0 | BS17: в последний период данной статьи | BT17: =MAX(BT$15:BT16)+1 -> 2 | BU17: =IF(OR(BS17=0,BS17=""),0,IF(COUNTIF(BS$15:BS$100000,BS17)=1,0,1)) -> 0 | BW17: транспортный налог | BX17: =MAX(BX$15:BX16)+1 -> 2 | BY17: =IF(OR(BW17=0,BW17=""),0,IF(COUNTIF(BW$15:BW$100000,BW17)=1,0,1)) -> 0 | CA17: Менеджеры по продажам | CB17: =MAX(CB$15:CB16)+1 -> 2 | CC17: =IF(OR(CA17=0,CA17=""),0,IF(COUNTIF(CA$15:CA$100000,CA17)=1,0,1)) -> 0 | CE17: аванс-платеж | CF17: =MAX(CF$15:CF16)+1 -> 2 | CG17: =IF(OR(CE17=0,CE17=""),0,IF(COUNTIF(CE$15:CE$100000,CE17)=1,0,1)) -> 0 | CI17: не нужно обустр-во | CJ17: =MAX(CJ$15:CJ16)+1 -> 2 | CK17: =IF(OR(CI17=0,CI17=""),0,IF(COUNTIF(CI$15:CI$100000,CI17)=1,0,1)) -> 0 | CM17: УСН(6%) | CN17: =MAX(CN$15:CN16)+1 -> 2 | CO17: =IF(OR(CM17=0,CM17=""),0,IF(COUNTIF(CM$15:CM$100000,CM17)=1,0,1)) -> 0 | CQ17: Соцсборы | CR17: =MAX(CR$15:CR16)+1 -> 2 | CS17: =IF(OR(CQ17=0,CQ17=""),0,IF(COUNTIF(CQ$15:CQ$100000,CQ17)=1,0,1)) -> 0 | CU17: ндс(-) | CV17: =MAX(CV$15:CV16)+1 -> 2 | CW17: 0 | CX17: * | CY17: Трубопровод | CZ17: =MAX(CZ$15:CZ16)+1 -> 2 | DA17: =IF(OR(CY17=0,CY17=""),0,IF(COUNTIF(CY$15:CY$100000,CY17)=1,0,1)) -> 0
A18: =ROW() -> 18 | I18: декада | J18: =MAX(J$15:J17)+1 -> 3 | K18: 0 | Q18: =IF(Periods!$Q$16=$I$16,$I19,IF(OR(Periods!$Q$16=$I$17,Periods!$Q$16=$I$18),$I21,IF(Periods!$Q$16=$I$19,$I22,IF(Periods!$Q$16=$I$20,$I23,IF(Periods!$Q$16=$I$21,$I24,""))))) -> 0 | R18: =IF(OR(Q18="",Q18=0),"",MAX(R$15:R17)+1) ->  | S18: 0 | U18: технический | V18: =MAX(V$15:V17)+1 -> 3 | W18: =IF(OR(U18=0,U18=""),0,IF(COUNTIF(U$15:U$100000,U18)=1,0,1)) -> 0 | AF18: 10 | AG18: =MAX(AG$15:AG17)+1 -> 3 | AH18: =MAX(AH$15:AH17)+1 -> 3 | AI18: =IF(SUMIFS(Mrkting!$A:$A,Mrkting!$K:$K,AH18)=0,"",INDEX(Mrkting!$L:$L,SUMIFS(Mrkting!$A:$A,Mrkting!$K:$K,AH18))) ->  | AJ18: =IF(OR(AI18="",AI18=0),"",MAX(AJ$15:AJ17)+1) ->  | AK18: 0 | AL18: * | AM18: Продукт - 3 | AN18: =MAX(AN$15:AN17)+1 -> 3 | AO18: =IF(OR(AM18=0,AM18=""),0,IF(COUNTIF(AM$15:AM$100000,AM18)=1,0,1)) -> 0 | AP18: =MAX(AP$15:AP17)+1 -> 3 | AQ18: =SUMIFS(Periods!$11:$11,Periods!$2:$2,AP18) -> 2022-01-01 | AR18: =IF(OR(AQ18="",AQ18=0),"",MAX(AR$15:AR17)+1) -> 3 | AS18: 0 | AU18: оплата | AV18: =MAX(AV$15:AV17)+1 -> 3 | AW18: =IF(OR(AU18=0,AU18=""),0,IF(COUNTIF(AU$15:AU$100000,AU18)=1,0,1)) -> 0 | AY18: =Mrkting!$H$67 -> КПД | AZ18: =MAX(AZ$15:AZ17)+1 -> 3 | BA18: =IF(OR(AY18=0,AY18=""),0,IF(COUNTIF(AY$15:AY$100000,AY18)=1,0,1)) -> 0 | BJ18: * | BK18: представительская деятельность | BL18: =MAX(BL$15:BL17)+1 -> 3 | BM18: =IF(OR(BK18=0,BK18=""),0,IF(COUNTIF(BK$15:BK$100000,BK18)=1,0,1)) -> 0 | BN18: * | BO18: Производственные работы - 3 | BP18: =MAX(BP$15:BP17)+1 -> 3 | BQ18: =IF(OR(BO18=0,BO18=""),0,IF(COUNTIF(BO$15:BO$100000,BO18)=1,0,1)) -> 0 | BS18: в каждый период начисления | BT18: =MAX(BT$15:BT17)+1 -> 3 | BU18: =IF(OR(BS18=0,BS18=""),0,IF(COUNTIF(BS$15:BS$100000,BS18)=1,0,1)) -> 0 | BW18: налог на имущество организаций | BX18: =MAX(BX$15:BX17)+1 -> 3 | BY18: =IF(OR(BW18=0,BW18=""),0,IF(COUNTIF(BW$15:BW$100000,BW18)=1,0,1)) -> 0 | CA18: Производственные рабочие | CB18: =MAX(CB$15:CB17)+1 -> 3 | CC18: =IF(OR(CA18=0,CA18=""),0,IF(COUNTIF(CA$15:CA$100000,CA18)=1,0,1)) -> 0 | CE18: ретро-платеж | CF18: =MAX(CF$15:CF17)+1 -> 3 | CG18: =IF(OR(CE18=0,CE18=""),0,IF(COUNTIF(CE$15:CE$100000,CE18)=1,0,1)) -> 0 | CM18: УСН(15%) | CN18: =MAX(CN$15:CN17)+1 -> 3 | CO18: =IF(OR(CM18=0,CM18=""),0,IF(COUNTIF(CM$15:CM$100000,CM18)=1,0,1)) -> 0 | CQ18: Налог на прибыль | CR18: =MAX(CR$15:CR17)+1 -> 3 | CS18: =IF(OR(CQ18=0,CQ18=""),0,IF(COUNTIF(CQ$15:CQ$100000,CQ18)=1,0,1)) -> 0 | CU18: PL(+) | CV18: =MAX(CV$15:CV17)+1 -> 3 | CW18: 0
A19: =ROW() -> 19 | I19: месяц | J19: =MAX(J$15:J18)+1 -> 4 | K19: 0 | Q19: =IF(Periods!$Q$16=$I$16,$I20,IF(OR(Periods!$Q$16=$I$17,Periods!$Q$16=$I$18),$I22,IF(Periods!$Q$16=$I$19,$I23,IF(Periods!$Q$16=$I$20,$I24,IF(Periods!$Q$16=$I$21,$I25,""))))) -> 0 | R19: =IF(OR(Q19="",Q19=0),"",MAX(R$15:R18)+1) ->  | S19: 0 | AF19: 30 | AG19: =MAX(AG$15:AG18)+1 -> 4 | AH19: =MAX(AH$15:AH18)+1 -> 4 | AI19: =IF(SUMIFS(Mrkting!$A:$A,Mrkting!$K:$K,AH19)=0,"",INDEX(Mrkting!$L:$L,SUMIFS(Mrkting!$A:$A,Mrkting!$K:$K,AH19))) ->  | AJ19: =IF(OR(AI19="",AI19=0),"",MAX(AJ$15:AJ18)+1) ->  | AK19: 0 | AP19: =MAX(AP$15:AP18)+1 -> 4 | AQ19: =SUMIFS(Periods!$11:$11,Periods!$2:$2,AP19) -> 2022-04-01 | AR19: =IF(OR(AQ19="",AQ19=0),"",MAX(AR$15:AR18)+1) -> 4 | AS19: 0 | AU19: списание | AV19: =MAX(AV$15:AV18)+1 -> 4 | AW19: =IF(OR(AU19=0,AU19=""),0,IF(COUNTIF(AU$15:AU$100000,AU19)=1,0,1)) -> 0 | AY19: =Mrkting!$H$76 -> Валовый объем добычи газа | AZ19: =MAX(AZ$15:AZ18)+1 -> 4 | BA19: =IF(OR(AY19=0,AY19=""),0,IF(COUNTIF(AY$15:AY$100000,AY19)=1,0,1)) -> 0 | BZ19: * | CA19: Генеральный директор | CB19: =MAX(CB$15:CB18)+1 -> 4 | CC19: =IF(OR(CA19=0,CA19=""),0,IF(COUNTIF(CA$15:CA$100000,CA19)=1,0,1)) -> 0 | CM19: ТОСЭР | CN19: =MAX(CN$15:CN18)+1 -> 4 | CO19: =IF(OR(CM19=0,CM19=""),0,IF(COUNTIF(CM$15:CM$100000,CM19)=1,0,1)) -> 0 | CQ19: ТОСЭР | CR19: =MAX(CR$15:CR18)+1 -> 4 | CS19: =IF(OR(CQ19=0,CQ19=""),0,IF(COUNTIF(CQ$15:CQ$100000,CQ19)=1,0,1)) -> 0 | CU19: PL(-) | CV19: =MAX(CV$15:CV18)+1 -> 4 | CW19: 0
A20: =ROW() -> 20 | I20: квартал | J20: =MAX(J$15:J19)+1 -> 5 | K20: 0 | Q20: =IF(Periods!$Q$16=$I$16,$I21,IF(OR(Periods!$Q$16=$I$17,Periods!$Q$16=$I$18),$I23,IF(Periods!$Q$16=$I$19,$I24,IF(Periods!$Q$16=$I$20,$I25,IF(Periods!$Q$16=$I$21,$I26,""))))) -> 0 | R20: =IF(OR(Q20="",Q20=0),"",MAX(R$15:R19)+1) ->  | S20: 0 | AF20: 90 | AG20: =MAX(AG$15:AG19)+1 -> 5 | AH20: =MAX(AH$15:AH19)+1 -> 5 | AI20: =IF(SUMIFS(Mrkting!$A:$A,Mrkting!$K:$K,AH20)=0,"",INDEX(Mrkting!$L:$L,SUMIFS(Mrkting!$A:$A,Mrkting!$K:$K,AH20))) ->  | AJ20: =IF(OR(AI20="",AI20=0),"",MAX(AJ$15:AJ19)+1) ->  | AK20: 0 | AP20: =MAX(AP$15:AP19)+1 -> 5 | AQ20: =SUMIFS(Periods!$11:$11,Periods!$2:$2,AP20) -> 2022-07-01 | AR20: =IF(OR(AQ20="",AQ20=0),"",MAX(AR$15:AR19)+1) -> 5 | AS20: 0 | AU20: калькуляция | AV20: =MAX(AV$15:AV19)+1 -> 5 | AW20: =IF(OR(AU20=0,AU20=""),0,IF(COUNTIF(AU$15:AU$100000,AU20)=1,0,1)) -> 0 | BZ20: * | CA20: Операционный директор | CB20: =MAX(CB$15:CB19)+1 -> 5 | CC20: 0 | CU20: PL | CV20: =MAX(CV$15:CV19)+1 -> 5 | CW20: 0
A21: =ROW() -> 21 | I21: год текущий | J21: =MAX(J$15:J20)+1 -> 6 | K21: 0 | Q21: =IF(Periods!$Q$16=$I$16,$I22,IF(OR(Periods!$Q$16=$I$17,Periods!$Q$16=$I$18),$I24,IF(Periods!$Q$16=$I$19,$I25,IF(Periods!$Q$16=$I$20,$I26,IF(Periods!$Q$16=$I$21,$I27,""))))) -> 0 | R21: =IF(OR(Q21="",Q21=0),"",MAX(R$15:R20)+1) ->  | S21: 0 | AF21: 360 | AG21: =MAX(AG$15:AG20)+1 -> 6 | AH21: =MAX(AH$15:AH20)+1 -> 6 | AI21: =IF(SUMIFS(Mrkting!$A:$A,Mrkting!$K:$K,AH21)=0,"",INDEX(Mrkting!$L:$L,SUMIFS(Mrkting!$A:$A,Mrkting!$K:$K,AH21))) ->  | AJ21: =IF(OR(AI21="",AI21=0),"",MAX(AJ$15:AJ20)+1) ->  | AK21: 0 | AP21: =MAX(AP$15:AP20)+1 -> 6 | AQ21: =SUMIFS(Periods!$11:$11,Periods!$2:$2,AP21) -> 2022-10-01 | AR21: =IF(OR(AQ21="",AQ21=0),"",MAX(AR$15:AR20)+1) -> 6 | AS21: 0 | BZ21: * | CA21: Главный бухгалтер | CB21: =MAX(CB$15:CB20)+1 -> 6 | CC21: 0 | CU21: CF(+) | CV21: =MAX(CV$15:CV20)+1 -> 6 | CW21: 0
A22: =ROW() -> 22 | I22: год календ. | J22: =MAX(J$15:J21)+1 -> 7 | K22: 0 | Q22: =IF(Periods!$Q$16=$I$16,$I23,IF(OR(Periods!$Q$16=$I$17,Periods!$Q$16=$I$18),$I25,IF(Periods!$Q$16=$I$19,$I26,IF(Periods!$Q$16=$I$20,$I27,IF(Periods!$Q$16=$I$21,$I28,""))))) -> 0 | R22: =IF(OR(Q22="",Q22=0),"",MAX(R$15:R21)+1) ->  | S22: 0 | AF22: 360 | AG22: =MAX(AG$15:AG21)+1 -> 7 | AH22: =MAX(AH$15:AH21)+1 -> 7 | AI22: =IF(SUMIFS(Mrkting!$A:$A,Mrkting!$K:$K,AH22)=0,"",INDEX(Mrkting!$L:$L,SUMIFS(Mrkting!$A:$A,Mrkting!$K:$K,AH22))) ->  | AJ22: =IF(OR(AI22="",AI22=0),"",MAX(AJ$15:AJ21)+1) ->  | AK22: 0 | AP22: =MAX(AP$15:AP21)+1 -> 7 | AQ22: =SUMIFS(Periods!$11:$11,Periods!$2:$2,AP22) -> 2023-01-01 | AR22: =IF(OR(AQ22="",AQ22=0),"",MAX(AR$15:AR21)+1) -> 7 | AS22: 0 | BZ22: * | CA22: ИТ-специалисты | CB22: =MAX(CB$15:CB21)+1 -> 7 | CC22: 0 | CU22: CF(-) | CV22: =MAX(CV$15:CV21)+1 -> 7 | CW22: 0
A23: =ROW() -> 23 | AH23: =MAX(AH$15:AH22)+1 -> 8 | AI23: =IF(SUMIFS(Mrkting!$A:$A,Mrkting!$K:$K,AH23)=0,"",INDEX(Mrkting!$L:$L,SUMIFS(Mrkting!$A:$A,Mrkting!$K:$K,AH23))) ->  | AJ23: =IF(OR(AI23="",AI23=0),"",MAX(AJ$15:AJ22)+1) ->  | AK23: =IF(OR(AI23=0,AI23=""),0,IF(COUNTIF(AI$15:AI$100000,AI23)=1,0,1)) -> 0 | AP23: =MAX(AP$15:AP22)+1 -> 8 | AQ23: =SUMIFS(Periods!$11:$11,Periods!$2:$2,AP23) -> 2023-04-01 | AR23: =IF(OR(AQ23="",AQ23=0),"",MAX(AR$15:AR22)+1) -> 8 | AS23: =IF(OR(AQ23=0,AQ23=""),0,IF(COUNTIF(AQ$15:AQ$100000,AQ23)=1,0,1)) -> 0 | BZ23: * | CA23: Финансовые менеджеры | CB23: =MAX(CB$15:CB22)+1 -> 8 | CC23: 0 | CU23: CF | CV23: =MAX(CV$15:CV22)+1 -> 8 | CW23: 0
A24: =ROW() -> 24 | AH24: =MAX(AH$15:AH23)+1 -> 9 | AI24: =IF(SUMIFS(Mrkting!$A:$A,Mrkting!$K:$K,AH24)=0,"",INDEX(Mrkting!$L:$L,SUMIFS(Mrkting!$A:$A,Mrkting!$K:$K,AH24))) ->  | AJ24: =IF(OR(AI24="",AI24=0),"",MAX(AJ$15:AJ23)+1) ->  | AK24: 0 | AP24: =MAX(AP$15:AP23)+1 -> 9 | AQ24: =SUMIFS(Periods!$11:$11,Periods!$2:$2,AP24) -> 2023-07-01 | AR24: =IF(OR(AQ24="",AQ24=0),"",MAX(AR$15:AR23)+1) -> 9 | AS24: 0 | BZ24: * | CA24: Бухгалтера | CB24: =MAX(CB$15:CB23)+1 -> 9 | CC24: 0 | CU24: BS | CV24: =MAX(CV$15:CV23)+1 -> 9 | CW24: 0
A25: =ROW() -> 25 | AH25: =MAX(AH$15:AH24)+1 -> 10 | AI25: =IF(SUMIFS(Mrkting!$A:$A,Mrkting!$K:$K,AH25)=0,"",INDEX(Mrkting!$L:$L,SUMIFS(Mrkting!$A:$A,Mrkting!$K:$K,AH25))) ->  | AJ25: =IF(OR(AI25="",AI25=0),"",MAX(AJ$15:AJ24)+1) ->  | AK25: 0 | AP25: =MAX(AP$15:AP24)+1 -> 10 | AQ25: =SUMIFS(Periods!$11:$11,Periods!$2:$2,AP25) -> 2023-10-01 | AR25: =IF(OR(AQ25="",AQ25=0),"",MAX(AR$15:AR24)+1) -> 10 | AS25: 0 | BZ25: * | CA25: Прочие сотрудники | CB25: =MAX(CB$15:CB24)+1 -> 10 | CC25: 0 | CU25: BS(+) | CV25: =MAX(CV$15:CV24)+1 -> 10 | CW25: 0
A26: =ROW() -> 26 | AH26: =MAX(AH$15:AH25)+1 -> 11 | AI26: =IF(SUMIFS(Mrkting!$A:$A,Mrkting!$K:$K,AH26)=0,"",INDEX(Mrkting!$L:$L,SUMIFS(Mrkting!$A:$A,Mrkting!$K:$K,AH26))) ->  | AJ26: =IF(OR(AI26="",AI26=0),"",MAX(AJ$15:AJ25)+1) ->  | AK26: 0 | AP26: =MAX(AP$15:AP25)+1 -> 11 | AQ26: =SUMIFS(Periods!$11:$11,Periods!$2:$2,AP26) -> 2024-01-01 | AR26: =IF(OR(AQ26="",AQ26=0),"",MAX(AR$15:AR25)+1) -> 11 | AS26: 0 | CU26: BS(-) | CV26: =MAX(CV$15:CV25)+1 -> 11 | CW26: 0
A27: =ROW() -> 27 | AH27: =MAX(AH$15:AH26)+1 -> 12 | AI27: =IF(SUMIFS(Mrkting!$A:$A,Mrkting!$K:$K,AH27)=0,"",INDEX(Mrkting!$L:$L,SUMIFS(Mrkting!$A:$A,Mrkting!$K:$K,AH27))) ->  | AJ27: =IF(OR(AI27="",AI27=0),"",MAX(AJ$15:AJ26)+1) ->  | AK27: 0 | AP27: =MAX(AP$15:AP26)+1 -> 12 | AQ27: =SUMIFS(Periods!$11:$11,Periods!$2:$2,AP27) -> 2024-04-01 | AR27: =IF(OR(AQ27="",AQ27=0),"",MAX(AR$15:AR26)+1) -> 12 | AS27: 0 | CU27: SF(+) | CV27: =MAX(CV$15:CV26)+1 -> 12 | CW27: 0
A28: =ROW() -> 28 | AH28: =MAX(AH$15:AH27)+1 -> 13 | AI28: =IF(SUMIFS(Mrkting!$A:$A,Mrkting!$K:$K,AH28)=0,"",INDEX(Mrkting!$L:$L,SUMIFS(Mrkting!$A:$A,Mrkting!$K:$K,AH28))) ->  | AJ28: =IF(OR(AI28="",AI28=0),"",MAX(AJ$15:AJ27)+1) ->  | AK28: 0 | AP28: =MAX(AP$15:AP27)+1 -> 13 | AQ28: =SUMIFS(Periods!$11:$11,Periods!$2:$2,AP28) -> 2024-07-01 | AR28: =IF(OR(AQ28="",AQ28=0),"",MAX(AR$15:AR27)+1) -> 13 | AS28: 0 | CU28: SF(-) | CV28: =MAX(CV$15:CV27)+1 -> 13 | CW28: 0
A29: =ROW() -> 29 | AH29: =MAX(AH$15:AH28)+1 -> 14 | AI29: =IF(SUMIFS(Mrkting!$A:$A,Mrkting!$K:$K,AH29)=0,"",INDEX(Mrkting!$L:$L,SUMIFS(Mrkting!$A:$A,Mrkting!$K:$K,AH29))) ->  | AJ29: =IF(OR(AI29="",AI29=0),"",MAX(AJ$15:AJ28)+1) ->  | AK29: =IF(OR(AI29=0,AI29=""),0,IF(COUNTIF(AI$15:AI$100000,AI29)=1,0,1)) -> 0 | AP29: =MAX(AP$15:AP28)+1 -> 14 | AQ29: =SUMIFS(Periods!$11:$11,Periods!$2:$2,AP29) -> 2024-10-01 | AR29: =IF(OR(AQ29="",AQ29=0),"",MAX(AR$15:AR28)+1) -> 14 | AS29: 0 | CU29: SF | CV29: =MAX(CV$15:CV28)+1 -> 14 | CW29: 0
A30: =ROW() -> 30 | AH30: =MAX(AH$15:AH29)+1 -> 15 | AI30: =IF(SUMIFS(Mrkting!$A:$A,Mrkting!$K:$K,AH30)=0,"",INDEX(Mrkting!$L:$L,SUMIFS(Mrkting!$A:$A,Mrkting!$K:$K,AH30))) ->  | AJ30: =IF(OR(AI30="",AI30=0),"",MAX(AJ$15:AJ29)+1) ->  | AK30: =IF(OR(AI30=0,AI30=""),0,IF(COUNTIF(AI$15:AI$100000,AI30)=1,0,1)) -> 0 | AP30: =MAX(AP$15:AP29)+1 -> 15 | AQ30: =SUMIFS(Periods!$11:$11,Periods!$2:$2,AP30) -> 2025-01-01 | AR30: =IF(OR(AQ30="",AQ30=0),"",MAX(AR$15:AR29)+1) -> 15 | AS30: 0
A31: =ROW() -> 31 | AP31: =MAX(AP$15:AP30)+1 -> 16 | AQ31: =SUMIFS(Periods!$11:$11,Periods!$2:$2,AP31) -> 2025-04-01 | AR31: =IF(OR(AQ31="",AQ31=0),"",MAX(AR$15:AR30)+1) -> 16 | AS31: =IF(OR(AQ31=0,AQ31=""),0,IF(COUNTIF(AQ$15:AQ$100000,AQ31)=1,0,1)) -> 0
A32: =ROW() -> 32 | AP32: =MAX(AP$15:AP31)+1 -> 17 | AQ32: =SUMIFS(Periods!$11:$11,Periods!$2:$2,AP32) -> 2025-07-01 | AR32: =IF(OR(AQ32="",AQ32=0),"",MAX(AR$15:AR31)+1) -> 17 | AS32: 0
A33: =ROW() -> 33 | AP33: =MAX(AP$15:AP32)+1 -> 18 | AQ33: =SUMIFS(Periods!$11:$11,Periods!$2:$2,AP33) -> 2025-10-01 | AR33: =IF(OR(AQ33="",AQ33=0),"",MAX(AR$15:AR32)+1) -> 18 | AS33: 0
A34: =ROW() -> 34 | AP34: =MAX(AP$15:AP33)+1 -> 19 | AQ34: =SUMIFS(Periods!$11:$11,Periods!$2:$2,AP34) -> 2026-01-01 | AR34: =IF(OR(AQ34="",AQ34=0),"",MAX(AR$15:AR33)+1) -> 19 | AS34: 0
A35: =ROW() -> 35 | AP35: =MAX(AP$15:AP34)+1 -> 20 | AQ35: =SUMIFS(Periods!$11:$11,Periods!$2:$2,AP35) -> 2026-04-01 | AR35: =IF(OR(AQ35="",AQ35=0),"",MAX(AR$15:AR34)+1) -> 20 | AS35: 0
A36: =ROW() -> 36 | AP36: =MAX(AP$15:AP35)+1 -> 21 | AQ36: =SUMIFS(Periods!$11:$11,Periods!$2:$2,AP36) -> 2026-07-01 | AR36: =IF(OR(AQ36="",AQ36=0),"",MAX(AR$15:AR35)+1) -> 21 | AS36: 0
A37: =ROW() -> 37 | AP37: =MAX(AP$15:AP36)+1 -> 22 | AQ37: =SUMIFS(Periods!$11:$11,Periods!$2:$2,AP37) -> 2026-10-01 | AR37: =IF(OR(AQ37="",AQ37=0),"",MAX(AR$15:AR36)+1) -> 22 | AS37: 0
A38: =ROW() -> 38 | AP38: =MAX(AP$15:AP37)+1 -> 23 | AQ38: =SUMIFS(Periods!$11:$11,Periods!$2:$2,AP38) -> 2027-01-01 | AR38: =IF(OR(AQ38="",AQ38=0),"",MAX(AR$15:AR37)+1) -> 23 | AS38: 0
A39: =ROW() -> 39 | AP39: =MAX(AP$15:AP38)+1 -> 24 | AQ39: =SUMIFS(Periods!$11:$11,Periods!$2:$2,AP39) -> 2027-04-01 | AR39: =IF(OR(AQ39="",AQ39=0),"",MAX(AR$15:AR38)+1) -> 24 | AS39: 0
A40: =ROW() -> 40 | AP40: =MAX(AP$15:AP39)+1 -> 25 | AQ40: =SUMIFS(Periods!$11:$11,Periods!$2:$2,AP40) -> 2027-07-01 | AR40: =IF(OR(AQ40="",AQ40=0),"",MAX(AR$15:AR39)+1) -> 25 | AS40: 0
A41: =ROW() -> 41 | AP41: =MAX(AP$15:AP40)+1 -> 26 | AQ41: =SUMIFS(Periods!$11:$11,Periods!$2:$2,AP41) -> 2027-10-01 | AR41: =IF(OR(AQ41="",AQ41=0),"",MAX(AR$15:AR40)+1) -> 26 | AS41: 0
A42: =ROW() -> 42 | AP42: =MAX(AP$15:AP41)+1 -> 27 | AQ42: =SUMIFS(Periods!$11:$11,Periods!$2:$2,AP42) -> 2028-01-01 | AR42: =IF(OR(AQ42="",AQ42=0),"",MAX(AR$15:AR41)+1) -> 27 | AS42: 0
A43: =ROW() -> 43 | I43: разработка финмоделей: https://mngmnt.ru/ | AP43: =MAX(AP$15:AP42)+1 -> 28 | AQ43: =SUMIFS(Periods!$11:$11,Periods!$2:$2,AP43) -> 2028-04-01 | AR43: =IF(OR(AQ43="",AQ43=0),"",MAX(AR$15:AR42)+1) -> 28 | AS43: 0
A44: =ROW() -> 44 | AP44: =MAX(AP$15:AP43)+1 -> 29 | AQ44: =SUMIFS(Periods!$11:$11,Periods!$2:$2,AP44) -> 2028-07-01 | AR44: =IF(OR(AQ44="",AQ44=0),"",MAX(AR$15:AR43)+1) -> 29 | AS44: 0
A45: =ROW() -> 45 | AP45: =MAX(AP$15:AP44)+1 -> 30 | AQ45: =SUMIFS(Periods!$11:$11,Periods!$2:$2,AP45) -> 2028-10-01 | AR45: =IF(OR(AQ45="",AQ45=0),"",MAX(AR$15:AR44)+1) -> 30 | AS45: 0
A46: =ROW() -> 46 | AP46: =MAX(AP$15:AP45)+1 -> 31 | AQ46: =SUMIFS(Periods!$11:$11,Periods!$2:$2,AP46) -> 2029-01-01 | AR46: =IF(OR(AQ46="",AQ46=0),"",MAX(AR$15:AR45)+1) -> 31 | AS46: 0
A47: =ROW() -> 47 | AP47: =MAX(AP$15:AP46)+1 -> 32 | AQ47: =SUMIFS(Periods!$11:$11,Periods!$2:$2,AP47) -> 2029-04-01 | AR47: =IF(OR(AQ47="",AQ47=0),"",MAX(AR$15:AR46)+1) -> 32 | AS47: 0
A48: =ROW() -> 48 | AP48: =MAX(AP$15:AP47)+1 -> 33 | AQ48: =SUMIFS(Periods!$11:$11,Periods!$2:$2,AP48) -> 2029-07-01 | AR48: =IF(OR(AQ48="",AQ48=0),"",MAX(AR$15:AR47)+1) -> 33 | AS48: 0
A49: =ROW() -> 49 | AP49: =MAX(AP$15:AP48)+1 -> 34 | AQ49: =SUMIFS(Periods!$11:$11,Periods!$2:$2,AP49) -> 2029-10-01 | AR49: =IF(OR(AQ49="",AQ49=0),"",MAX(AR$15:AR48)+1) -> 34 | AS49: 0
A50: =ROW() -> 50 | AP50: =MAX(AP$15:AP49)+1 -> 35 | AQ50: =SUMIFS(Periods!$11:$11,Periods!$2:$2,AP50) -> 2030-01-01 | AR50: =IF(OR(AQ50="",AQ50=0),"",MAX(AR$15:AR49)+1) -> 35 | AS50: 0
A51: =ROW() -> 51 | AP51: =MAX(AP$15:AP50)+1 -> 36 | AQ51: =SUMIFS(Periods!$11:$11,Periods!$2:$2,AP51) -> 2030-04-01 | AR51: =IF(OR(AQ51="",AQ51=0),"",MAX(AR$15:AR50)+1) -> 36 | AS51: 0
A52: =ROW() -> 52 | AP52: =MAX(AP$15:AP51)+1 -> 37 | AQ52: =SUMIFS(Periods!$11:$11,Periods!$2:$2,AP52) -> 2030-07-01 | AR52: =IF(OR(AQ52="",AQ52=0),"",MAX(AR$15:AR51)+1) -> 37 | AS52: 0
A53: =ROW() -> 53 | AP53: =MAX(AP$15:AP52)+1 -> 38 | AQ53: =SUMIFS(Periods!$11:$11,Periods!$2:$2,AP53) -> 2030-10-01 | AR53: =IF(OR(AQ53="",AQ53=0),"",MAX(AR$15:AR52)+1) -> 38 | AS53: 0
A54: =ROW() -> 54 | AP54: =MAX(AP$15:AP53)+1 -> 39 | AQ54: =SUMIFS(Periods!$11:$11,Periods!$2:$2,AP54) -> 2031-01-01 | AR54: =IF(OR(AQ54="",AQ54=0),"",MAX(AR$15:AR53)+1) -> 39 | AS54: 0
A55: =ROW() -> 55 | AP55: =MAX(AP$15:AP54)+1 -> 40 | AQ55: =SUMIFS(Periods!$11:$11,Periods!$2:$2,AP55) -> 2031-04-01 | AR55: =IF(OR(AQ55="",AQ55=0),"",MAX(AR$15:AR54)+1) -> 40 | AS55: 0
A56: =ROW() -> 56 | AP56: =MAX(AP$15:AP55)+1 -> 41 | AQ56: =SUMIFS(Periods!$11:$11,Periods!$2:$2,AP56) -> 2031-07-01 | AR56: =IF(OR(AQ56="",AQ56=0),"",MAX(AR$15:AR55)+1) -> 41 | AS56: 0
A57: =ROW() -> 57 | AP57: =MAX(AP$15:AP56)+1 -> 42 | AQ57: =SUMIFS(Periods!$11:$11,Periods!$2:$2,AP57) -> 2031-10-01 | AR57: =IF(OR(AQ57="",AQ57=0),"",MAX(AR$15:AR56)+1) -> 42 | AS57: 0
A58: =ROW() -> 58 | AP58: =MAX(AP$15:AP57)+1 -> 43 | AQ58: =SUMIFS(Periods!$11:$11,Periods!$2:$2,AP58) -> 2032-01-01 | AR58: =IF(OR(AQ58="",AQ58=0),"",MAX(AR$15:AR57)+1) -> 43 | AS58: 0
A59: =ROW() -> 59 | AP59: =MAX(AP$15:AP58)+1 -> 44 | AQ59: =SUMIFS(Periods!$11:$11,Periods!$2:$2,AP59) -> 2032-04-01 | AR59: =IF(OR(AQ59="",AQ59=0),"",MAX(AR$15:AR58)+1) -> 44 | AS59: 0
A60: =ROW() -> 60 | AP60: =MAX(AP$15:AP59)+1 -> 45 | AQ60: =SUMIFS(Periods!$11:$11,Periods!$2:$2,AP60) -> 2032-07-01 | AR60: =IF(OR(AQ60="",AQ60=0),"",MAX(AR$15:AR59)+1) -> 45 | AS60: 0
A61: =ROW() -> 61 | AP61: =MAX(AP$15:AP60)+1 -> 46 | AQ61: =SUMIFS(Periods!$11:$11,Periods!$2:$2,AP61) -> 2032-10-01 | AR61: =IF(OR(AQ61="",AQ61=0),"",MAX(AR$15:AR60)+1) -> 46 | AS61: 0
A62: =ROW() -> 62 | AP62: =MAX(AP$15:AP61)+1 -> 47 | AQ62: =SUMIFS(Periods!$11:$11,Periods!$2:$2,AP62) -> 2033-01-01 | AR62: =IF(OR(AQ62="",AQ62=0),"",MAX(AR$15:AR61)+1) -> 47 | AS62: 0
A63: =ROW() -> 63 | AP63: =MAX(AP$15:AP62)+1 -> 48 | AQ63: =SUMIFS(Periods!$11:$11,Periods!$2:$2,AP63) -> 2033-04-01 | AR63: =IF(OR(AQ63="",AQ63=0),"",MAX(AR$15:AR62)+1) -> 48 | AS63: 0
A64: =ROW() -> 64 | AP64: =MAX(AP$15:AP63)+1 -> 49 | AQ64: =SUMIFS(Periods!$11:$11,Periods!$2:$2,AP64) -> 2033-07-01 | AR64: =IF(OR(AQ64="",AQ64=0),"",MAX(AR$15:AR63)+1) -> 49 | AS64: 0
A65: =ROW() -> 65 | AP65: =MAX(AP$15:AP64)+1 -> 50 | AQ65: =SUMIFS(Periods!$11:$11,Periods!$2:$2,AP65) -> 2033-10-01 | AR65: =IF(OR(AQ65="",AQ65=0),"",MAX(AR$15:AR64)+1) -> 50 | AS65: 0
A66: =ROW() -> 66 | AP66: =MAX(AP$15:AP65)+1 -> 51 | AQ66: =SUMIFS(Periods!$11:$11,Periods!$2:$2,AP66) -> 2034-01-01 | AR66: =IF(OR(AQ66="",AQ66=0),"",MAX(AR$15:AR65)+1) -> 51 | AS66: 0
A67: =ROW() -> 67 | AP67: =MAX(AP$15:AP66)+1 -> 52 | AQ67: =SUMIFS(Periods!$11:$11,Periods!$2:$2,AP67) -> 2034-04-01 | AR67: =IF(OR(AQ67="",AQ67=0),"",MAX(AR$15:AR66)+1) -> 52 | AS67: 0
A68: =ROW() -> 68 | AP68: =MAX(AP$15:AP67)+1 -> 53 | AQ68: =SUMIFS(Periods!$11:$11,Periods!$2:$2,AP68) -> 2034-07-01 | AR68: =IF(OR(AQ68="",AQ68=0),"",MAX(AR$15:AR67)+1) -> 53 | AS68: 0
A69: =ROW() -> 69 | AP69: =MAX(AP$15:AP68)+1 -> 54 | AQ69: =SUMIFS(Periods!$11:$11,Periods!$2:$2,AP69) -> 2034-10-01 | AR69: =IF(OR(AQ69="",AQ69=0),"",MAX(AR$15:AR68)+1) -> 54 | AS69: 0
A70: =ROW() -> 70 | AP70: =MAX(AP$15:AP69)+1 -> 55 | AQ70: =SUMIFS(Periods!$11:$11,Periods!$2:$2,AP70) -> 2035-01-01 | AR70: =IF(OR(AQ70="",AQ70=0),"",MAX(AR$15:AR69)+1) -> 55 | AS70: 0
AP71: =MAX(AP$15:AP70)+1 -> 56 | AQ71: =SUMIFS(Periods!$11:$11,Periods!$2:$2,AP71) -> 2035-04-01 | AR71: =IF(OR(AQ71="",AQ71=0),"",MAX(AR$15:AR70)+1) -> 56 | AS71: 0
AP72: =MAX(AP$15:AP71)+1 -> 57 | AQ72: =SUMIFS(Periods!$11:$11,Periods!$2:$2,AP72) -> 2035-07-01 | AR72: =IF(OR(AQ72="",AQ72=0),"",MAX(AR$15:AR71)+1) -> 57 | AS72: 0
AP73: =MAX(AP$15:AP72)+1 -> 58 | AQ73: =SUMIFS(Periods!$11:$11,Periods!$2:$2,AP73) -> 2035-10-01 | AR73: =IF(OR(AQ73="",AQ73=0),"",MAX(AR$15:AR72)+1) -> 58 | AS73: 0
AP74: =MAX(AP$15:AP73)+1 -> 59 | AQ74: =SUMIFS(Periods!$11:$11,Periods!$2:$2,AP74) -> 2036-01-01 | AR74: =IF(OR(AQ74="",AQ74=0),"",MAX(AR$15:AR73)+1) -> 59 | AS74: 0
AP75: =MAX(AP$15:AP74)+1 -> 60 | AQ75: =SUMIFS(Periods!$11:$11,Periods!$2:$2,AP75) -> 2036-04-01 | AR75: =IF(OR(AQ75="",AQ75=0),"",MAX(AR$15:AR74)+1) -> 60 | AS75: 0
AP76: =MAX(AP$15:AP75)+1 -> 61 | AQ76: =SUMIFS(Periods!$11:$11,Periods!$2:$2,AP76) -> 2036-07-01 | AR76: =IF(OR(AQ76="",AQ76=0),"",MAX(AR$15:AR75)+1) -> 61 | AS76: 0
AP77: =MAX(AP$15:AP76)+1 -> 62 | AQ77: =SUMIFS(Periods!$11:$11,Periods!$2:$2,AP77) -> 2036-10-01 | AR77: =IF(OR(AQ77="",AQ77=0),"",MAX(AR$15:AR76)+1) -> 62 | AS77: 0
AP78: =MAX(AP$15:AP77)+1 -> 63 | AQ78: =SUMIFS(Periods!$11:$11,Periods!$2:$2,AP78) -> 2037-01-01 | AR78: =IF(OR(AQ78="",AQ78=0),"",MAX(AR$15:AR77)+1) -> 63 | AS78: 0
AP79: =MAX(AP$15:AP78)+1 -> 64 | AQ79: =SUMIFS(Periods!$11:$11,Periods!$2:$2,AP79) -> 2037-04-01 | AR79: =IF(OR(AQ79="",AQ79=0),"",MAX(AR$15:AR78)+1) -> 64 | AS79: 0
AP80: =MAX(AP$15:AP79)+1 -> 65 | AQ80: =SUMIFS(Periods!$11:$11,Periods!$2:$2,AP80) -> 2037-07-01 | AR80: =IF(OR(AQ80="",AQ80=0),"",MAX(AR$15:AR79)+1) -> 65 | AS80: 0
AP81: =MAX(AP$15:AP80)+1 -> 66 | AQ81: =SUMIFS(Periods!$11:$11,Periods!$2:$2,AP81) -> 2037-10-01 | AR81: =IF(OR(AQ81="",AQ81=0),"",MAX(AR$15:AR80)+1) -> 66 | AS81: 0
AP82: =MAX(AP$15:AP81)+1 -> 67 | AQ82: =SUMIFS(Periods!$11:$11,Periods!$2:$2,AP82) -> 2038-01-01 | AR82: =IF(OR(AQ82="",AQ82=0),"",MAX(AR$15:AR81)+1) -> 67 | AS82: 0
AP83: =MAX(AP$15:AP82)+1 -> 68 | AQ83: =SUMIFS(Periods!$11:$11,Periods!$2:$2,AP83) -> 2038-04-01 | AR83: =IF(OR(AQ83="",AQ83=0),"",MAX(AR$15:AR82)+1) -> 68 | AS83: 0
AP84: =MAX(AP$15:AP83)+1 -> 69 | AQ84: =SUMIFS(Periods!$11:$11,Periods!$2:$2,AP84) -> 2038-07-01 | AR84: =IF(OR(AQ84="",AQ84=0),"",MAX(AR$15:AR83)+1) -> 69 | AS84: 0
AP85: =MAX(AP$15:AP84)+1 -> 70 | AQ85: =SUMIFS(Periods!$11:$11,Periods!$2:$2,AP85) -> 2038-10-01 | AR85: =IF(OR(AQ85="",AQ85=0),"",MAX(AR$15:AR84)+1) -> 70 | AS85: 0
AP86: =MAX(AP$15:AP85)+1 -> 71 | AQ86: =SUMIFS(Periods!$11:$11,Periods!$2:$2,AP86) -> 2039-01-01 | AR86: =IF(OR(AQ86="",AQ86=0),"",MAX(AR$15:AR85)+1) -> 71 | AS86: 0
AP87: =MAX(AP$15:AP86)+1 -> 72 | AQ87: =SUMIFS(Periods!$11:$11,Periods!$2:$2,AP87) -> 2039-04-01 | AR87: =IF(OR(AQ87="",AQ87=0),"",MAX(AR$15:AR86)+1) -> 72 | AS87: 0
AP88: =MAX(AP$15:AP87)+1 -> 73 | AQ88: =SUMIFS(Periods!$11:$11,Periods!$2:$2,AP88) -> 2039-07-01 | AR88: =IF(OR(AQ88="",AQ88=0),"",MAX(AR$15:AR87)+1) -> 73 | AS88: 0
AP89: =MAX(AP$15:AP88)+1 -> 74 | AQ89: =SUMIFS(Periods!$11:$11,Periods!$2:$2,AP89) -> 2039-10-01 | AR89: =IF(OR(AQ89="",AQ89=0),"",MAX(AR$15:AR88)+1) -> 74 | AS89: 0
AP90: =MAX(AP$15:AP89)+1 -> 75 | AQ90: =SUMIFS(Periods!$11:$11,Periods!$2:$2,AP90) -> 2040-01-01 | AR90: =IF(OR(AQ90="",AQ90=0),"",MAX(AR$15:AR89)+1) -> 75 | AS90: 0
AP91: =MAX(AP$15:AP90)+1 -> 76 | AQ91: =SUMIFS(Periods!$11:$11,Periods!$2:$2,AP91) -> 2040-04-01 | AR91: =IF(OR(AQ91="",AQ91=0),"",MAX(AR$15:AR90)+1) -> 76 | AS91: 0
AP92: =MAX(AP$15:AP91)+1 -> 77 | AQ92: =SUMIFS(Periods!$11:$11,Periods!$2:$2,AP92) -> 2040-07-01 | AR92: =IF(OR(AQ92="",AQ92=0),"",MAX(AR$15:AR91)+1) -> 77 | AS92: 0
AP93: =MAX(AP$15:AP92)+1 -> 78 | AQ93: =SUMIFS(Periods!$11:$11,Periods!$2:$2,AP93) -> 2040-10-01 | AR93: =IF(OR(AQ93="",AQ93=0),"",MAX(AR$15:AR92)+1) -> 78 | AS93: 0
AP94: =MAX(AP$15:AP93)+1 -> 79 | AQ94: =SUMIFS(Periods!$11:$11,Periods!$2:$2,AP94) -> 2041-01-01 | AR94: =IF(OR(AQ94="",AQ94=0),"",MAX(AR$15:AR93)+1) -> 79 | AS94: 0
AP95: =MAX(AP$15:AP94)+1 -> 80 | AQ95: =SUMIFS(Periods!$11:$11,Periods!$2:$2,AP95) -> 2041-04-01 | AR95: =IF(OR(AQ95="",AQ95=0),"",MAX(AR$15:AR94)+1) -> 80 | AS95: =IF(OR(AQ95=0,AQ95=""),0,IF(COUNTIF(AQ$15:AQ$100000,AQ95)=1,0,1)) -> 0
AP96: =MAX(AP$15:AP95)+1 -> 81 | AQ96: =SUMIFS(Periods!$11:$11,Periods!$2:$2,AP96) -> 00:00:00 | AR96: =IF(OR(AQ96="",AQ96=0),"",MAX(AR$15:AR95)+1) ->  | AS96: 0
AP97: =MAX(AP$15:AP96)+1 -> 82 | AQ97: =SUMIFS(Periods!$11:$11,Periods!$2:$2,AP97) -> 00:00:00 | AR97: =IF(OR(AQ97="",AQ97=0),"",MAX(AR$15:AR96)+1) ->  | AS97: 0
AP98: =MAX(AP$15:AP97)+1 -> 83 | AQ98: =SUMIFS(Periods!$11:$11,Periods!$2:$2,AP98) -> 00:00:00 | AR98: =IF(OR(AQ98="",AQ98=0),"",MAX(AR$15:AR97)+1) ->  | AS98: 0
AP99: =MAX(AP$15:AP98)+1 -> 84 | AQ99: =SUMIFS(Periods!$11:$11,Periods!$2:$2,AP99) -> 00:00:00 | AR99: =IF(OR(AQ99="",AQ99=0),"",MAX(AR$15:AR98)+1) ->  | AS99: 0
AP100: =MAX(AP$15:AP99)+1 -> 85 | AQ100: =SUMIFS(Periods!$11:$11,Periods!$2:$2,AP100) -> 00:00:00 | AR100: =IF(OR(AQ100="",AQ100=0),"",MAX(AR$15:AR99)+1) ->  | AS100: 0
AP101: =MAX(AP$15:AP100)+1 -> 86 | AQ101: =SUMIFS(Periods!$11:$11,Periods!$2:$2,AP101) -> 00:00:00 | AR101: =IF(OR(AQ101="",AQ101=0),"",MAX(AR$15:AR100)+1) ->  | AS101: 0
AP102: =MAX(AP$15:AP101)+1 -> 87 | AQ102: =SUMIFS(Periods!$11:$11,Periods!$2:$2,AP102) -> 00:00:00 | AR102: =IF(OR(AQ102="",AQ102=0),"",MAX(AR$15:AR101)+1) ->  | AS102: 0
AP103: =MAX(AP$15:AP102)+1 -> 88 | AQ103: =SUMIFS(Periods!$11:$11,Periods!$2:$2,AP103) -> 00:00:00 | AR103: =IF(OR(AQ103="",AQ103=0),"",MAX(AR$15:AR102)+1) ->  | AS103: 0
AP104: =MAX(AP$15:AP103)+1 -> 89 | AQ104: =SUMIFS(Periods!$11:$11,Periods!$2:$2,AP104) -> 00:00:00 | AR104: =IF(OR(AQ104="",AQ104=0),"",MAX(AR$15:AR103)+1) ->  | AS104: 0
AP105: =MAX(AP$15:AP104)+1 -> 90 | AQ105: =SUMIFS(Periods!$11:$11,Periods!$2:$2,AP105) -> 00:00:00 | AR105: =IF(OR(AQ105="",AQ105=0),"",MAX(AR$15:AR104)+1) ->  | AS105: 0
AP106: =MAX(AP$15:AP105)+1 -> 91 | AQ106: =SUMIFS(Periods!$11:$11,Periods!$2:$2,AP106) -> 00:00:00 | AR106: =IF(OR(AQ106="",AQ106=0),"",MAX(AR$15:AR105)+1) ->  | AS106: 0
AP107: =MAX(AP$15:AP106)+1 -> 92 | AQ107: =SUMIFS(Periods!$11:$11,Periods!$2:$2,AP107) -> 00:00:00 | AR107: =IF(OR(AQ107="",AQ107=0),"",MAX(AR$15:AR106)+1) ->  | AS107: 0
AP108: =MAX(AP$15:AP107)+1 -> 93 | AQ108: =SUMIFS(Periods!$11:$11,Periods!$2:$2,AP108) -> 00:00:00 | AR108: =IF(OR(AQ108="",AQ108=0),"",MAX(AR$15:AR107)+1) ->  | AS108: 0
AP109: =MAX(AP$15:AP108)+1 -> 94 | AQ109: =SUMIFS(Periods!$11:$11,Periods!$2:$2,AP109) -> 00:00:00 | AR109: =IF(OR(AQ109="",AQ109=0),"",MAX(AR$15:AR108)+1) ->  | AS109: 0
AP110: =MAX(AP$15:AP109)+1 -> 95 | AQ110: =SUMIFS(Periods!$11:$11,Periods!$2:$2,AP110) -> 00:00:00 | AR110: =IF(OR(AQ110="",AQ110=0),"",MAX(AR$15:AR109)+1) ->  | AS110: 0
AP111: =MAX(AP$15:AP110)+1 -> 96 | AQ111: =SUMIFS(Periods!$11:$11,Periods!$2:$2,AP111) -> 00:00:00 | AR111: =IF(OR(AQ111="",AQ111=0),"",MAX(AR$15:AR110)+1) ->  | AS111: 0
AP112: =MAX(AP$15:AP111)+1 -> 97 | AQ112: =SUMIFS(Periods!$11:$11,Periods!$2:$2,AP112) -> 00:00:00 | AR112: =IF(OR(AQ112="",AQ112=0),"",MAX(AR$15:AR111)+1) ->  | AS112: 0
AP113: =MAX(AP$15:AP112)+1 -> 98 | AQ113: =SUMIFS(Periods!$11:$11,Periods!$2:$2,AP113) -> 00:00:00 | AR113: =IF(OR(AQ113="",AQ113=0),"",MAX(AR$15:AR112)+1) ->  | AS113: 0
AP114: =MAX(AP$15:AP113)+1 -> 99 | AQ114: =SUMIFS(Periods!$11:$11,Periods!$2:$2,AP114) -> 00:00:00 | AR114: =IF(OR(AQ114="",AQ114=0),"",MAX(AR$15:AR113)+1) ->  | AS114: 0
AP115: =MAX(AP$15:AP114)+1 -> 100 | AQ115: =SUMIFS(Periods!$11:$11,Periods!$2:$2,AP115) -> 00:00:00 | AR115: =IF(OR(AQ115="",AQ115=0),"",MAX(AR$15:AR114)+1) ->  | AS115: 0
AP116: =MAX(AP$15:AP115)+1 -> 101 | AQ116: =SUMIFS(Periods!$11:$11,Periods!$2:$2,AP116) -> 00:00:00 | AR116: =IF(OR(AQ116="",AQ116=0),"",MAX(AR$15:AR115)+1) ->  | AS116: 0
AP117: =MAX(AP$15:AP116)+1 -> 102 | AQ117: =SUMIFS(Periods!$11:$11,Periods!$2:$2,AP117) -> 00:00:00 | AR117: =IF(OR(AQ117="",AQ117=0),"",MAX(AR$15:AR116)+1) ->  | AS117: 0
AP118: =MAX(AP$15:AP117)+1 -> 103 | AQ118: =SUMIFS(Periods!$11:$11,Periods!$2:$2,AP118) -> 00:00:00 | AR118: =IF(OR(AQ118="",AQ118=0),"",MAX(AR$15:AR117)+1) ->  | AS118: 0
AP119: =MAX(AP$15:AP118)+1 -> 104 | AQ119: =SUMIFS(Periods!$11:$11,Periods!$2:$2,AP119) -> 00:00:00 | AR119: =IF(OR(AQ119="",AQ119=0),"",MAX(AR$15:AR118)+1) ->  | AS119: 0
AP120: =MAX(AP$15:AP119)+1 -> 105 | AQ120: =SUMIFS(Periods!$11:$11,Periods!$2:$2,AP120) -> 00:00:00 | AR120: =IF(OR(AQ120="",AQ120=0),"",MAX(AR$15:AR119)+1) ->  | AS120: 0
AP121: =MAX(AP$15:AP120)+1 -> 106 | AQ121: =SUMIFS(Periods!$11:$11,Periods!$2:$2,AP121) -> 00:00:00 | AR121: =IF(OR(AQ121="",AQ121=0),"",MAX(AR$15:AR120)+1) ->  | AS121: 0
AP122: =MAX(AP$15:AP121)+1 -> 107 | AQ122: =SUMIFS(Periods!$11:$11,Periods!$2:$2,AP122) -> 00:00:00 | AR122: =IF(OR(AQ122="",AQ122=0),"",MAX(AR$15:AR121)+1) ->  | AS122: 0
AP123: =MAX(AP$15:AP122)+1 -> 108 | AQ123: =SUMIFS(Periods!$11:$11,Periods!$2:$2,AP123) -> 00:00:00 | AR123: =IF(OR(AQ123="",AQ123=0),"",MAX(AR$15:AR122)+1) ->  | AS123: 0
AP124: =MAX(AP$15:AP123)+1 -> 109 | AQ124: =SUMIFS(Periods!$11:$11,Periods!$2:$2,AP124) -> 00:00:00 | AR124: =IF(OR(AQ124="",AQ124=0),"",MAX(AR$15:AR123)+1) ->  | AS124: 0
AP125: =MAX(AP$15:AP124)+1 -> 110 | AQ125: =SUMIFS(Periods!$11:$11,Periods!$2:$2,AP125) -> 00:00:00 | AR125: =IF(OR(AQ125="",AQ125=0),"",MAX(AR$15:AR124)+1) ->  | AS125: 0
AP126: =MAX(AP$15:AP125)+1 -> 111 | AQ126: =SUMIFS(Periods!$11:$11,Periods!$2:$2,AP126) -> 00:00:00 | AR126: =IF(OR(AQ126="",AQ126=0),"",MAX(AR$15:AR125)+1) ->  | AS126: 0
AP127: =MAX(AP$15:AP126)+1 -> 112 | AQ127: =SUMIFS(Periods!$11:$11,Periods!$2:$2,AP127) -> 00:00:00 | AR127: =IF(OR(AQ127="",AQ127=0),"",MAX(AR$15:AR126)+1) ->  | AS127: 0
AP128: =MAX(AP$15:AP127)+1 -> 113 | AQ128: =SUMIFS(Periods!$11:$11,Periods!$2:$2,AP128) -> 00:00:00 | AR128: =IF(OR(AQ128="",AQ128=0),"",MAX(AR$15:AR127)+1) ->  | AS128: 0
AP129: =MAX(AP$15:AP128)+1 -> 114 | AQ129: =SUMIFS(Periods!$11:$11,Periods!$2:$2,AP129) -> 00:00:00 | AR129: =IF(OR(AQ129="",AQ129=0),"",MAX(AR$15:AR128)+1) ->  | AS129: 0
AP130: =MAX(AP$15:AP129)+1 -> 115 | AQ130: =SUMIFS(Periods!$11:$11,Periods!$2:$2,AP130) -> 00:00:00 | AR130: =IF(OR(AQ130="",AQ130=0),"",MAX(AR$15:AR129)+1) ->  | AS130: 0
AP131: =MAX(AP$15:AP130)+1 -> 116 | AQ131: =SUMIFS(Periods!$11:$11,Periods!$2:$2,AP131) -> 00:00:00 | AR131: =IF(OR(AQ131="",AQ131=0),"",MAX(AR$15:AR130)+1) ->  | AS131: 0
AP132: =MAX(AP$15:AP131)+1 -> 117 | AQ132: =SUMIFS(Periods!$11:$11,Periods!$2:$2,AP132) -> 00:00:00 | AR132: =IF(OR(AQ132="",AQ132=0),"",MAX(AR$15:AR131)+1) ->  | AS132: 0
AP133: =MAX(AP$15:AP132)+1 -> 118 | AQ133: =SUMIFS(Periods!$11:$11,Periods!$2:$2,AP133) -> 00:00:00 | AR133: =IF(OR(AQ133="",AQ133=0),"",MAX(AR$15:AR132)+1) ->  | AS133: 0
AP134: =MAX(AP$15:AP133)+1 -> 119 | AQ134: =SUMIFS(Periods!$11:$11,Periods!$2:$2,AP134) -> 00:00:00 | AR134: =IF(OR(AQ134="",AQ134=0),"",MAX(AR$15:AR133)+1) ->  | AS134: 0
AP135: =MAX(AP$15:AP134)+1 -> 120 | AQ135: =SUMIFS(Periods!$11:$11,Periods!$2:$2,AP135) -> 00:00:00 | AR135: =IF(OR(AQ135="",AQ135=0),"",MAX(AR$15:AR134)+1) ->  | AS135: 0
AP136: =MAX(AP$15:AP135)+1 -> 121 | AQ136: =SUMIFS(Periods!$11:$11,Periods!$2:$2,AP136) -> 00:00:00 | AR136: =IF(OR(AQ136="",AQ136=0),"",MAX(AR$15:AR135)+1) ->  | AS136: 0
AP137: =MAX(AP$15:AP136)+1 -> 122 | AQ137: =SUMIFS(Periods!$11:$11,Periods!$2:$2,AP137) -> 00:00:00 | AR137: =IF(OR(AQ137="",AQ137=0),"",MAX(AR$15:AR136)+1) ->  | AS137: 0
AP138: =MAX(AP$15:AP137)+1 -> 123 | AQ138: =SUMIFS(Periods!$11:$11,Periods!$2:$2,AP138) -> 00:00:00 | AR138: =IF(OR(AQ138="",AQ138=0),"",MAX(AR$15:AR137)+1) ->  | AS138: 0
AP139: =MAX(AP$15:AP138)+1 -> 124 | AQ139: =SUMIFS(Periods!$11:$11,Periods!$2:$2,AP139) -> 00:00:00 | AR139: =IF(OR(AQ139="",AQ139=0),"",MAX(AR$15:AR138)+1) ->  | AS139: 0
AP140: =MAX(AP$15:AP139)+1 -> 125 | AQ140: =SUMIFS(Periods!$11:$11,Periods!$2:$2,AP140) -> 00:00:00 | AR140: =IF(OR(AQ140="",AQ140=0),"",MAX(AR$15:AR139)+1) ->  | AS140: 0
AP141: =MAX(AP$15:AP140)+1 -> 126 | AQ141: =SUMIFS(Periods!$11:$11,Periods!$2:$2,AP141) -> 00:00:00 | AR141: =IF(OR(AQ141="",AQ141=0),"",MAX(AR$15:AR140)+1) ->  | AS141: 0
AP142: =MAX(AP$15:AP141)+1 -> 127 | AQ142: =SUMIFS(Periods!$11:$11,Periods!$2:$2,AP142) -> 00:00:00 | AR142: =IF(OR(AQ142="",AQ142=0),"",MAX(AR$15:AR141)+1) ->  | AS142: 0
AP143: =MAX(AP$15:AP142)+1 -> 128 | AQ143: =SUMIFS(Periods!$11:$11,Periods!$2:$2,AP143) -> 00:00:00 | AR143: =IF(OR(AQ143="",AQ143=0),"",MAX(AR$15:AR142)+1) ->  | AS143: 0
AP144: =MAX(AP$15:AP143)+1 -> 129 | AQ144: =SUMIFS(Periods!$11:$11,Periods!$2:$2,AP144) -> 00:00:00 | AR144: =IF(OR(AQ144="",AQ144=0),"",MAX(AR$15:AR143)+1) ->  | AS144: 0
AP145: =MAX(AP$15:AP144)+1 -> 130 | AQ145: =SUMIFS(Periods!$11:$11,Periods!$2:$2,AP145) -> 00:00:00 | AR145: =IF(OR(AQ145="",AQ145=0),"",MAX(AR$15:AR144)+1) ->  | AS145: 0
AP146: =MAX(AP$15:AP145)+1 -> 131 | AQ146: =SUMIFS(Periods!$11:$11,Periods!$2:$2,AP146) -> 00:00:00 | AR146: =IF(OR(AQ146="",AQ146=0),"",MAX(AR$15:AR145)+1) ->  | AS146: 0
AP147: =MAX(AP$15:AP146)+1 -> 132 | AQ147: =SUMIFS(Periods!$11:$11,Periods!$2:$2,AP147) -> 00:00:00 | AR147: =IF(OR(AQ147="",AQ147=0),"",MAX(AR$15:AR146)+1) ->  | AS147: 0
AP148: =MAX(AP$15:AP147)+1 -> 133 | AQ148: =SUMIFS(Periods!$11:$11,Periods!$2:$2,AP148) -> 00:00:00 | AR148: =IF(OR(AQ148="",AQ148=0),"",MAX(AR$15:AR147)+1) ->  | AS148: 0
AP149: =MAX(AP$15:AP148)+1 -> 134 | AQ149: =SUMIFS(Periods!$11:$11,Periods!$2:$2,AP149) -> 00:00:00 | AR149: =IF(OR(AQ149="",AQ149=0),"",MAX(AR$15:AR148)+1) ->  | AS149: 0
AP150: =MAX(AP$15:AP149)+1 -> 135 | AQ150: =SUMIFS(Periods!$11:$11,Periods!$2:$2,AP150) -> 00:00:00 | AR150: =IF(OR(AQ150="",AQ150=0),"",MAX(AR$15:AR149)+1) ->  | AS150: 0
AP151: =MAX(AP$15:AP150)+1 -> 136 | AQ151: =SUMIFS(Periods!$11:$11,Periods!$2:$2,AP151) -> 00:00:00 | AR151: =IF(OR(AQ151="",AQ151=0),"",MAX(AR$15:AR150)+1) ->  | AS151: 0
AP152: =MAX(AP$15:AP151)+1 -> 137 | AQ152: =SUMIFS(Periods!$11:$11,Periods!$2:$2,AP152) -> 00:00:00 | AR152: =IF(OR(AQ152="",AQ152=0),"",MAX(AR$15:AR151)+1) ->  | AS152: 0
AP153: =MAX(AP$15:AP152)+1 -> 138 | AQ153: =SUMIFS(Periods!$11:$11,Periods!$2:$2,AP153) -> 00:00:00 | AR153: =IF(OR(AQ153="",AQ153=0),"",MAX(AR$15:AR152)+1) ->  | AS153: 0
AP154: =MAX(AP$15:AP153)+1 -> 139 | AQ154: =SUMIFS(Periods!$11:$11,Periods!$2:$2,AP154) -> 00:00:00 | AR154: =IF(OR(AQ154="",AQ154=0),"",MAX(AR$15:AR153)+1) ->  | AS154: 0
AP155: =MAX(AP$15:AP154)+1 -> 140 | AQ155: =SUMIFS(Periods!$11:$11,Periods!$2:$2,AP155) -> 00:00:00 | AR155: =IF(OR(AQ155="",AQ155=0),"",MAX(AR$15:AR154)+1) ->  | AS155: 0
AP156: =MAX(AP$15:AP155)+1 -> 141 | AQ156: =SUMIFS(Periods!$11:$11,Periods!$2:$2,AP156) -> 00:00:00 | AR156: =IF(OR(AQ156="",AQ156=0),"",MAX(AR$15:AR155)+1) ->  | AS156: 0
AP157: =MAX(AP$15:AP156)+1 -> 142 | AQ157: =SUMIFS(Periods!$11:$11,Periods!$2:$2,AP157) -> 00:00:00 | AR157: =IF(OR(AQ157="",AQ157=0),"",MAX(AR$15:AR156)+1) ->  | AS157: 0
AP158: =MAX(AP$15:AP157)+1 -> 143 | AQ158: =SUMIFS(Periods!$11:$11,Periods!$2:$2,AP158) -> 00:00:00 | AR158: =IF(OR(AQ158="",AQ158=0),"",MAX(AR$15:AR157)+1) ->  | AS158: 0
AP159: =MAX(AP$15:AP158)+1 -> 144 | AQ159: =SUMIFS(Periods!$11:$11,Periods!$2:$2,AP159) -> 00:00:00 | AR159: =IF(OR(AQ159="",AQ159=0),"",MAX(AR$15:AR158)+1) ->  | AS159: =IF(OR(AQ159=0,AQ159=""),0,IF(COUNTIF(AQ$15:AQ$100000,AQ159)=1,0,1)) -> 0
AP160: =MAX(AP$15:AP159)+1 -> 145 | AQ160: =SUMIFS(Periods!$11:$11,Periods!$2:$2,AP160) -> 00:00:00 | AR160: =IF(OR(AQ160="",AQ160=0),"",MAX(AR$15:AR159)+1) ->  | AS160: 0
AP161: =MAX(AP$15:AP160)+1 -> 146 | AQ161: =SUMIFS(Periods!$11:$11,Periods!$2:$2,AP161) -> 00:00:00 | AR161: =IF(OR(AQ161="",AQ161=0),"",MAX(AR$15:AR160)+1) ->  | AS161: 0
AP162: =MAX(AP$15:AP161)+1 -> 147 | AQ162: =SUMIFS(Periods!$11:$11,Periods!$2:$2,AP162) -> 00:00:00 | AR162: =IF(OR(AQ162="",AQ162=0),"",MAX(AR$15:AR161)+1) ->  | AS162: 0
AP163: =MAX(AP$15:AP162)+1 -> 148 | AQ163: =SUMIFS(Periods!$11:$11,Periods!$2:$2,AP163) -> 00:00:00 | AR163: =IF(OR(AQ163="",AQ163=0),"",MAX(AR$15:AR162)+1) ->  | AS163: 0
AP164: =MAX(AP$15:AP163)+1 -> 149 | AQ164: =SUMIFS(Periods!$11:$11,Periods!$2:$2,AP164) -> 00:00:00 | AR164: =IF(OR(AQ164="",AQ164=0),"",MAX(AR$15:AR163)+1) ->  | AS164: 0
AP165: =MAX(AP$15:AP164)+1 -> 150 | AQ165: =SUMIFS(Periods!$11:$11,Periods!$2:$2,AP165) -> 00:00:00 | AR165: =IF(OR(AQ165="",AQ165=0),"",MAX(AR$15:AR164)+1) ->  | AS165: 0
AP166: =MAX(AP$15:AP165)+1 -> 151 | AQ166: =SUMIFS(Periods!$11:$11,Periods!$2:$2,AP166) -> 00:00:00 | AR166: =IF(OR(AQ166="",AQ166=0),"",MAX(AR$15:AR165)+1) ->  | AS166: 0
AP167: =MAX(AP$15:AP166)+1 -> 152 | AQ167: =SUMIFS(Periods!$11:$11,Periods!$2:$2,AP167) -> 00:00:00 | AR167: =IF(OR(AQ167="",AQ167=0),"",MAX(AR$15:AR166)+1) ->  | AS167: 0
AP168: =MAX(AP$15:AP167)+1 -> 153 | AQ168: =SUMIFS(Periods!$11:$11,Periods!$2:$2,AP168) -> 00:00:00 | AR168: =IF(OR(AQ168="",AQ168=0),"",MAX(AR$15:AR167)+1) ->  | AS168: 0
AP169: =MAX(AP$15:AP168)+1 -> 154 | AQ169: =SUMIFS(Periods!$11:$11,Periods!$2:$2,AP169) -> 00:00:00 | AR169: =IF(OR(AQ169="",AQ169=0),"",MAX(AR$15:AR168)+1) ->  | AS169: 0
AP170: =MAX(AP$15:AP169)+1 -> 155 | AQ170: =SUMIFS(Periods!$11:$11,Periods!$2:$2,AP170) -> 00:00:00 | AR170: =IF(OR(AQ170="",AQ170=0),"",MAX(AR$15:AR169)+1) ->  | AS170: 0
AP171: =MAX(AP$15:AP170)+1 -> 156 | AQ171: =SUMIFS(Periods!$11:$11,Periods!$2:$2,AP171) -> 00:00:00 | AR171: =IF(OR(AQ171="",AQ171=0),"",MAX(AR$15:AR170)+1) ->  | AS171: 0
AP172: =MAX(AP$15:AP171)+1 -> 157 | AQ172: =SUMIFS(Periods!$11:$11,Periods!$2:$2,AP172) -> 00:00:00 | AR172: =IF(OR(AQ172="",AQ172=0),"",MAX(AR$15:AR171)+1) ->  | AS172: 0
AP173: =MAX(AP$15:AP172)+1 -> 158 | AQ173: =SUMIFS(Periods!$11:$11,Periods!$2:$2,AP173) -> 00:00:00 | AR173: =IF(OR(AQ173="",AQ173=0),"",MAX(AR$15:AR172)+1) ->  | AS173: 0
AP174: =MAX(AP$15:AP173)+1 -> 159 | AQ174: =SUMIFS(Periods!$11:$11,Periods!$2:$2,AP174) -> 00:00:00 | AR174: =IF(OR(AQ174="",AQ174=0),"",MAX(AR$15:AR173)+1) ->  | AS174: 0
AP175: =MAX(AP$15:AP174)+1 -> 160 | AQ175: =SUMIFS(Periods!$11:$11,Periods!$2:$2,AP175) -> 00:00:00 | AR175: =IF(OR(AQ175="",AQ175=0),"",MAX(AR$15:AR174)+1) ->  | AS175: 0
AP176: =MAX(AP$15:AP175)+1 -> 161 | AQ176: =SUMIFS(Periods!$11:$11,Periods!$2:$2,AP176) -> 00:00:00 | AR176: =IF(OR(AQ176="",AQ176=0),"",MAX(AR$15:AR175)+1) ->  | AS176: 0
AP177: =MAX(AP$15:AP176)+1 -> 162 | AQ177: =SUMIFS(Periods!$11:$11,Periods!$2:$2,AP177) -> 00:00:00 | AR177: =IF(OR(AQ177="",AQ177=0),"",MAX(AR$15:AR176)+1) ->  | AS177: 0
AP178: =MAX(AP$15:AP177)+1 -> 163 | AQ178: =SUMIFS(Periods!$11:$11,Periods!$2:$2,AP178) -> 00:00:00 | AR178: =IF(OR(AQ178="",AQ178=0),"",MAX(AR$15:AR177)+1) ->  | AS178: 0
AP179: =MAX(AP$15:AP178)+1 -> 164 | AQ179: =SUMIFS(Periods!$11:$11,Periods!$2:$2,AP179) -> 00:00:00 | AR179: =IF(OR(AQ179="",AQ179=0),"",MAX(AR$15:AR178)+1) ->  | AS179: 0
AP180: =MAX(AP$15:AP179)+1 -> 165 | AQ180: =SUMIFS(Periods!$11:$11,Periods!$2:$2,AP180) -> 00:00:00 | AR180: =IF(OR(AQ180="",AQ180=0),"",MAX(AR$15:AR179)+1) ->  | AS180: 0
AP181: =MAX(AP$15:AP180)+1 -> 166 | AQ181: =SUMIFS(Periods!$11:$11,Periods!$2:$2,AP181) -> 00:00:00 | AR181: =IF(OR(AQ181="",AQ181=0),"",MAX(AR$15:AR180)+1) ->  | AS181: 0
AP182: =MAX(AP$15:AP181)+1 -> 167 | AQ182: =SUMIFS(Periods!$11:$11,Periods!$2:$2,AP182) -> 00:00:00 | AR182: =IF(OR(AQ182="",AQ182=0),"",MAX(AR$15:AR181)+1) ->  | AS182: 0
AP183: =MAX(AP$15:AP182)+1 -> 168 | AQ183: =SUMIFS(Periods!$11:$11,Periods!$2:$2,AP183) -> 00:00:00 | AR183: =IF(OR(AQ183="",AQ183=0),"",MAX(AR$15:AR182)+1) ->  | AS183: 0
AP184: =MAX(AP$15:AP183)+1 -> 169 | AQ184: =SUMIFS(Periods!$11:$11,Periods!$2:$2,AP184) -> 00:00:00 | AR184: =IF(OR(AQ184="",AQ184=0),"",MAX(AR$15:AR183)+1) ->  | AS184: 0
AP185: =MAX(AP$15:AP184)+1 -> 170 | AQ185: =SUMIFS(Periods!$11:$11,Periods!$2:$2,AP185) -> 00:00:00 | AR185: =IF(OR(AQ185="",AQ185=0),"",MAX(AR$15:AR184)+1) ->  | AS185: 0
AP186: =MAX(AP$15:AP185)+1 -> 171 | AQ186: =SUMIFS(Periods!$11:$11,Periods!$2:$2,AP186) -> 00:00:00 | AR186: =IF(OR(AQ186="",AQ186=0),"",MAX(AR$15:AR185)+1) ->  | AS186: 0
AP187: =MAX(AP$15:AP186)+1 -> 172 | AQ187: =SUMIFS(Periods!$11:$11,Periods!$2:$2,AP187) -> 00:00:00 | AR187: =IF(OR(AQ187="",AQ187=0),"",MAX(AR$15:AR186)+1) ->  | AS187: 0
AP188: =MAX(AP$15:AP187)+1 -> 173 | AQ188: =SUMIFS(Periods!$11:$11,Periods!$2:$2,AP188) -> 00:00:00 | AR188: =IF(OR(AQ188="",AQ188=0),"",MAX(AR$15:AR187)+1) ->  | AS188: 0
AP189: =MAX(AP$15:AP188)+1 -> 174 | AQ189: =SUMIFS(Periods!$11:$11,Periods!$2:$2,AP189) -> 00:00:00 | AR189: =IF(OR(AQ189="",AQ189=0),"",MAX(AR$15:AR188)+1) ->  | AS189: 0
AP190: =MAX(AP$15:AP189)+1 -> 175 | AQ190: =SUMIFS(Periods!$11:$11,Periods!$2:$2,AP190) -> 00:00:00 | AR190: =IF(OR(AQ190="",AQ190=0),"",MAX(AR$15:AR189)+1) ->  | AS190: 0
AP191: =MAX(AP$15:AP190)+1 -> 176 | AQ191: =SUMIFS(Periods!$11:$11,Periods!$2:$2,AP191) -> 00:00:00 | AR191: =IF(OR(AQ191="",AQ191=0),"",MAX(AR$15:AR190)+1) ->  | AS191: 0
AP192: =MAX(AP$15:AP191)+1 -> 177 | AQ192: =SUMIFS(Periods!$11:$11,Periods!$2:$2,AP192) -> 00:00:00 | AR192: =IF(OR(AQ192="",AQ192=0),"",MAX(AR$15:AR191)+1) ->  | AS192: 0
AP193: =MAX(AP$15:AP192)+1 -> 178 | AQ193: =SUMIFS(Periods!$11:$11,Periods!$2:$2,AP193) -> 00:00:00 | AR193: =IF(OR(AQ193="",AQ193=0),"",MAX(AR$15:AR192)+1) ->  | AS193: 0
AP194: =MAX(AP$15:AP193)+1 -> 179 | AQ194: =SUMIFS(Periods!$11:$11,Periods!$2:$2,AP194) -> 00:00:00 | AR194: =IF(OR(AQ194="",AQ194=0),"",MAX(AR$15:AR193)+1) ->  | AS194: 0
AP195: =MAX(AP$15:AP194)+1 -> 180 | AQ195: =SUMIFS(Periods!$11:$11,Periods!$2:$2,AP195) -> 00:00:00 | AR195: =IF(OR(AQ195="",AQ195=0),"",MAX(AR$15:AR194)+1) ->  | AS195: 0
AP196: =MAX(AP$15:AP195)+1 -> 181 | AQ196: =SUMIFS(Periods!$11:$11,Periods!$2:$2,AP196) -> 00:00:00 | AR196: =IF(OR(AQ196="",AQ196=0),"",MAX(AR$15:AR195)+1) ->  | AS196: 0
AP197: =MAX(AP$15:AP196)+1 -> 182 | AQ197: =SUMIFS(Periods!$11:$11,Periods!$2:$2,AP197) -> 00:00:00 | AR197: =IF(OR(AQ197="",AQ197=0),"",MAX(AR$15:AR196)+1) ->  | AS197: 0
AP198: =MAX(AP$15:AP197)+1 -> 183 | AQ198: =SUMIFS(Periods!$11:$11,Periods!$2:$2,AP198) -> 00:00:00 | AR198: =IF(OR(AQ198="",AQ198=0),"",MAX(AR$15:AR197)+1) ->  | AS198: 0
AP199: =MAX(AP$15:AP198)+1 -> 184 | AQ199: =SUMIFS(Periods!$11:$11,Periods!$2:$2,AP199) -> 00:00:00 | AR199: =IF(OR(AQ199="",AQ199=0),"",MAX(AR$15:AR198)+1) ->  | AS199: 0
AP200: =MAX(AP$15:AP199)+1 -> 185 | AQ200: =SUMIFS(Periods!$11:$11,Periods!$2:$2,AP200) -> 00:00:00 | AR200: =IF(OR(AQ200="",AQ200=0),"",MAX(AR$15:AR199)+1) ->  | AS200: 0
AP201: =MAX(AP$15:AP200)+1 -> 186 | AQ201: =SUMIFS(Periods!$11:$11,Periods!$2:$2,AP201) -> 00:00:00 | AR201: =IF(OR(AQ201="",AQ201=0),"",MAX(AR$15:AR200)+1) ->  | AS201: 0
AP202: =MAX(AP$15:AP201)+1 -> 187 | AQ202: =SUMIFS(Periods!$11:$11,Periods!$2:$2,AP202) -> 00:00:00 | AR202: =IF(OR(AQ202="",AQ202=0),"",MAX(AR$15:AR201)+1) ->  | AS202: 0
AP203: =MAX(AP$15:AP202)+1 -> 188 | AQ203: =SUMIFS(Periods!$11:$11,Periods!$2:$2,AP203) -> 00:00:00 | AR203: =IF(OR(AQ203="",AQ203=0),"",MAX(AR$15:AR202)+1) ->  | AS203: 0
AP204: =MAX(AP$15:AP203)+1 -> 189 | AQ204: =SUMIFS(Periods!$11:$11,Periods!$2:$2,AP204) -> 00:00:00 | AR204: =IF(OR(AQ204="",AQ204=0),"",MAX(AR$15:AR203)+1) ->  | AS204: 0
AP205: =MAX(AP$15:AP204)+1 -> 190 | AQ205: =SUMIFS(Periods!$11:$11,Periods!$2:$2,AP205) -> 00:00:00 | AR205: =IF(OR(AQ205="",AQ205=0),"",MAX(AR$15:AR204)+1) ->  | AS205: 0
AP206: =MAX(AP$15:AP205)+1 -> 191 | AQ206: =SUMIFS(Periods!$11:$11,Periods!$2:$2,AP206) -> 00:00:00 | AR206: =IF(OR(AQ206="",AQ206=0),"",MAX(AR$15:AR205)+1) ->  | AS206: 0
AP207: =MAX(AP$15:AP206)+1 -> 192 | AQ207: =SUMIFS(Periods!$11:$11,Periods!$2:$2,AP207) -> 00:00:00 | AR207: =IF(OR(AQ207="",AQ207=0),"",MAX(AR$15:AR206)+1) ->  | AS207: 0
AP208: =MAX(AP$15:AP207)+1 -> 193 | AQ208: =SUMIFS(Periods!$11:$11,Periods!$2:$2,AP208) -> 00:00:00 | AR208: =IF(OR(AQ208="",AQ208=0),"",MAX(AR$15:AR207)+1) ->  | AS208: 0
... 207 more rows

Sheet Macro
Y1: номер столбца: | AA1: 27 | AB1: 28 | AC1: 29 | AD1: 30 | AE1: 31 | AF1: 32 | AG1: 33 | AH1: 34 | AI1: 35 | AJ1: 36 | AK1: 37 | AL1: 38 | AM1: 39 | AN1: 40 | AO1: 41 | AP1: 42 | AQ1: 43 | AR1: 44 | AS1: 45 | AT1: 46 | AU1: 47 | AV1: 48 | AW1: 49 | AX1: 50 | AY1: 51 | AZ1: 52 | BA1: 53 | BB1: 54 | BC1: 55 | BD1: 56 | BE1: 57 | BF1: 58 | BG1: 59 | BH1: 60 | BI1: 61 | BJ1: 62 | BK1: 63 | BL1: 64 | BM1: 65 | BN1: 66 | BO1: 67 | BP1: 68 | BQ1: 69 | BR1: 70 | BS1: 71 | BT1: 72 | BU1: 73 | BV1: 74 | BW1: 75 | BX1: 76 | BY1: 77 | BZ1: 78 | CA1: 79 | CB1: 80 | CC1: 81 | CD1: 82 | CE1: 83 | CF1: 84 | CG1: 85 | CH1: 86 | CI1: 87 | CJ1: 88 | CK1: 89 | CL1: 90 | CM1: 91 | CN1: 92 | CO1: 93 | CP1: 94 | CQ1: 95 | CR1: 96 | CS1: 97 | CT1: 98 | CU1: 99 | CV1: 100 | CW1: 101 | CX1: 102 | CY1: 103 | CZ1: 104 | DA1: 105 | DB1: 106 | DC1: 107 | DD1: 108 | DE1: 109 | DF1: 110 | DG1: 111 | DH1: 112 | DI1: 113 | DJ1: 114 | DK1: 115 | DL1: 116 | DM1: 117 | DN1: 118 | DO1: 119 | DP1: 120 | DQ1: 121 | DR1: 122 | DS1: 123 | DT1: 124 | DU1: 125 | DV1: 126 | DW1: 127 | DX1: 128 | DY1: 129 | DZ1: 130 | EA1: 131 | EB1: 132 | EC1: 133 | ED1: 134 | EE1: 135 | EF1: 136 | EG1: 137 | EH1: 138 | EI1: 139 | EJ1: 140 | EK1: 141 | EL1: 142 | EM1: 143 | EN1: 144 | EO1: 145 | EP1: 146 | EQ1: 147 | ER1: 148 | ES1: 149 | ET1: 150 | EU1: 151 | EV1: 152 | EW1: 153 | EX1: 154 | EY1: 155 | EZ1: 156 | FA1: 157 | FB1: 158 | FC1: 159
Y2: номер периода модели: | AA2: 1 | AB2: 2 | AC2: 3 | AD2: 4 | AE2: 5 | AF2: 6 | AG2: 7 | AH2: 8 | AI2: 9 | AJ2: 10 | AK2: 11 | AL2: 12 | AM2: 13 | AN2: 14 | AO2: 15 | AP2: 16 | AQ2: 17 | AR2: 18 | AS2: 19 | AT2: 20 | AU2: 21 | AV2: 22 | AW2: 23 | AX2: 24 | AY2: 25 | AZ2: 26 | BA2: 27 | BB2: 28 | BC2: 29 | BD2: 30 | BE2: 31 | BF2: 32 | BG2: 33 | BH2: 34 | BI2: 35 | BJ2: 36 | BK2: 37 | BL2: 38 | BM2: 39 | BN2: 40 | BO2: 41 | BP2: 42 | BQ2: 43 | BR2: 44 | BS2: 45 | BT2: 46 | BU2: 47 | BV2: 48 | BW2: 49 | BX2: 50 | BY2: 51 | BZ2: 52 | CA2: 53 | CB2: 54 | CC2: 55 | CD2: 56 | CE2: 57 | CF2: 58 | CG2: 59 | CH2: 60 | CI2: 61 | CJ2: 62 | CK2: 63 | CL2: 64 | CM2: 65 | CN2: 66 | CO2: 67 | CP2: 68 | CQ2: 69 | CR2: 70 | CS2: 71 | CT2: 72 | CU2: 73 | CV2: 74 | CW2: 75 | CX2: 76 | CY2: 77 | CZ2: 78 | DA2: 79 | DB2: 80 | DC2: 81 | DD2: 82 | DE2: 83 | DF2: 84 | DG2: 85 | DH2: 86 | DI2: 87 | DJ2: 88 | DK2: 89 | DL2: 90 | DM2: 91 | DN2: 92 | DO2: 93 | DP2: 94 | DQ2: 95 | DR2: 96 | DS2: 97 | DT2: 98 | DU2: 99 | DV2: 100 | DW2: 101 | DX2: 102 | DY2: 103 | DZ2: 104 | EA2: 105 | EB2: 106 | EC2: 107 | ED2: 108 | EE2: 109 | EF2: 110 | EG2: 111 | EH2: 112 | EI2: 113 | EJ2: 114 | EK2: 115 | EL2: 116 | EM2: 117 | EN2: 118 | EO2: 119 | EP2: 120 | EQ2: 121 | ER2: 122 | ES2: 123 | ET2: 124 | EU2: 125 | EV2: 126 | EW2: 127 | EX2: 128 | EY2: 129 | EZ2: 130 | FA2: 131 | FB2: 132 | FC2: 133
Y3: номер факт-периода:
Y4: номер план-периода: | AA4: 1 | AB4: 2 | AC4: 3 | AD4: 4 | AE4: 5 | AF4: 6 | AG4: 7 | AH4: 8 | AI4: 9 | AJ4: 10 | AK4: 11 | AL4: 12 | AM4: 13 | AN4: 14 | AO4: 15 | AP4: 16 | AQ4: 17 | AR4: 18 | AS4: 19 | AT4: 20 | AU4: 21 | AV4: 22 | AW4: 23 | AX4: 24 | AY4: 25 | AZ4: 26 | BA4: 27 | BB4: 28 | BC4: 29 | BD4: 30 | BE4: 31 | BF4: 32 | BG4: 33 | BH4: 34 | BI4: 35 | BJ4: 36 | BK4: 37 | BL4: 38 | BM4: 39 | BN4: 40 | BO4: 41 | BP4: 42 | BQ4: 43 | BR4: 44 | BS4: 45 | BT4: 46 | BU4: 47 | BV4: 48 | BW4: 49 | BX4: 50 | BY4: 51 | BZ4: 52 | CA4: 53 | CB4: 54 | CC4: 55 | CD4: 56 | CE4: 57 | CF4: 58 | CG4: 59 | CH4: 60 | CI4: 61 | CJ4: 62 | CK4: 63 | CL4: 64 | CM4: 65 | CN4: 66 | CO4: 67 | CP4: 68 | CQ4: 69 | CR4: 70 | CS4: 71 | CT4: 72 | CU4: 73 | CV4: 74 | CW4: 75 | CX4: 76 | CY4: 77 | CZ4: 78 | DA4: 79 | DB4: 80
Y5: число даты начала: | AA5: 1 | AB5: 1 | AC5: 1 | AD5: 1 | AE5: 1 | AF5: 1 | AG5: 1 | AH5: 1 | AI5: 1 | AJ5: 1 | AK5: 1 | AL5: 1 | AM5: 1 | AN5: 1 | AO5: 1 | AP5: 1 | AQ5: 1 | AR5: 1 | AS5: 1 | AT5: 1 | AU5: 1 | AV5: 1 | AW5: 1 | AX5: 1 | AY5: 1 | AZ5: 1 | BA5: 1 | BB5: 1 | BC5: 1 | BD5: 1 | BE5: 1 | BF5: 1 | BG5: 1 | BH5: 1 | BI5: 1 | BJ5: 1 | BK5: 1 | BL5: 1 | BM5: 1 | BN5: 1 | BO5: 1 | BP5: 1 | BQ5: 1 | BR5: 1 | BS5: 1 | BT5: 1 | BU5: 1 | BV5: 1 | BW5: 1 | BX5: 1 | BY5: 1 | BZ5: 1 | CA5: 1 | CB5: 1 | CC5: 1 | CD5: 1 | CE5: 1 | CF5: 1 | CG5: 1 | CH5: 1 | CI5: 1 | CJ5: 1 | CK5: 1 | CL5: 1 | CM5: 1 | CN5: 1 | CO5: 1 | CP5: 1 | CQ5: 1 | CR5: 1 | CS5: 1 | CT5: 1 | CU5: 1 | CV5: 1 | CW5: 1 | CX5: 1 | CY5: 1 | CZ5: 1 | DA5: 1 | DB5: 1
Y6: номер месяца даты начала: | AA6: 7 | AB6: 10 | AC6: 1 | AD6: 4 | AE6: 7 | AF6: 10 | AG6: 1 | AH6: 4 | AI6: 7 | AJ6: 10 | AK6: 1 | AL6: 4 | AM6: 7 | AN6: 10 | AO6: 1 | AP6: 4 | AQ6: 7 | AR6: 10 | AS6: 1 | AT6: 4 | AU6: 7 | AV6: 10 | AW6: 1 | AX6: 4 | AY6: 7 | AZ6: 10 | BA6: 1 | BB6: 4 | BC6: 7 | BD6: 10 | BE6: 1 | BF6: 4 | BG6: 7 | BH6: 10 | BI6: 1 | BJ6: 4 | BK6: 7 | BL6: 10 | BM6: 1 | BN6: 4 | BO6: 7 | BP6: 10 | BQ6: 1 | BR6: 4 | BS6: 7 | BT6: 10 | BU6: 1 | BV6: 4 | BW6: 7 | BX6: 10 | BY6: 1 | BZ6: 4 | CA6: 7 | CB6: 10 | CC6: 1 | CD6: 4 | CE6: 7 | CF6: 10 | CG6: 1 | CH6: 4 | CI6: 7 | CJ6: 10 | CK6: 1 | CL6: 4 | CM6: 7 | CN6: 10 | CO6: 1 | CP6: 4 | CQ6: 7 | CR6: 10 | CS6: 1 | CT6: 4 | CU6: 7 | CV6: 10 | CW6: 1 | CX6: 4 | CY6: 7 | CZ6: 10 | DA6: 1 | DB6: 4
Y7: год даты начала: | AA7: 21 | AB7: 21 | AC7: 22 | AD7: 22 | AE7: 22 | AF7: 22 | AG7: 23 | AH7: 23 | AI7: 23 | AJ7: 23 | AK7: 24 | AL7: 24 | AM7: 24 | AN7: 24 | AO7: 25 | AP7: 25 | AQ7: 25 | AR7: 25 | AS7: 26 | AT7: 26 | AU7: 26 | AV7: 26 | AW7: 27 | AX7: 27 | AY7: 27 | AZ7: 27 | BA7: 28 | BB7: 28 | BC7: 28 | BD7: 28 | BE7: 29 | BF7: 29 | BG7: 29 | BH7: 29 | BI7: 30 | BJ7: 30 | BK7: 30 | BL7: 30 | BM7: 31 | BN7: 31 | BO7: 31 | BP7: 31 | BQ7: 32 | BR7: 32 | BS7: 32 | BT7: 32 | BU7: 33 | BV7: 33 | BW7: 33 | BX7: 33 | BY7: 34 | BZ7: 34 | CA7: 34 | CB7: 34 | CC7: 35 | CD7: 35 | CE7: 35 | CF7: 35 | CG7: 36 | CH7: 36 | CI7: 36 | CJ7: 36 | CK7: 37 | CL7: 37 | CM7: 37 | CN7: 37 | CO7: 38 | CP7: 38 | CQ7: 38 | CR7: 38 | CS7: 39 | CT7: 39 | CU7: 39 | CV7: 39 | CW7: 40 | CX7: 40 | CY7: 40 | CZ7: 40 | DA7: 41 | DB7: 41
Y8: число даты окончания: | AA8: 30 | AB8: 31 | AC8: 31 | AD8: 30 | AE8: 30 | AF8: 31 | AG8: 31 | AH8: 30 | AI8: 30 | AJ8: 31 | AK8: 31 | AL8: 30 | AM8: 30 | AN8: 31 | AO8: 31 | AP8: 30 | AQ8: 30 | AR8: 31 | AS8: 31 | AT8: 30 | AU8: 30 | AV8: 31 | AW8: 31 | AX8: 30 | AY8: 30 | AZ8: 31 | BA8: 31 | BB8: 30 | BC8: 30 | BD8: 31 | BE8: 31 | BF8: 30 | BG8: 30 | BH8: 31 | BI8: 31 | BJ8: 30 | BK8: 30 | BL8: 31 | BM8: 31 | BN8: 30 | BO8: 30 | BP8: 31 | BQ8: 31 | BR8: 30 | BS8: 30 | BT8: 31 | BU8: 31 | BV8: 30 | BW8: 30 | BX8: 31 | BY8: 31 | BZ8: 30 | CA8: 30 | CB8: 31 | CC8: 31 | CD8: 30 | CE8: 30 | CF8: 31 | CG8: 31 | CH8: 30 | CI8: 30 | CJ8: 31 | CK8: 31 | CL8: 30 | CM8: 30 | CN8: 31 | CO8: 31 | CP8: 30 | CQ8: 30 | CR8: 31 | CS8: 31 | CT8: 30 | CU8: 30 | CV8: 31 | CW8: 31 | CX8: 30 | CY8: 30 | CZ8: 31 | DA8: 31 | DB8: 30
Y9: номер месяца даты окончания: | AA9: 9 | AB9: 12 | AC9: 3 | AD9: 6 | AE9: 9 | AF9: 12 | AG9: 3 | AH9: 6 | AI9: 9 | AJ9: 12 | AK9: 3 | AL9: 6 | AM9: 9 | AN9: 12 | AO9: 3 | AP9: 6 | AQ9: 9 | AR9: 12 | AS9: 3 | AT9: 6 | AU9: 9 | AV9: 12 | AW9: 3 | AX9: 6 | AY9: 9 | AZ9: 12 | BA9: 3 | BB9: 6 | BC9: 9 | BD9: 12 | BE9: 3 | BF9: 6 | BG9: 9 | BH9: 12 | BI9: 3 | BJ9: 6 | BK9: 9 | BL9: 12 | BM9: 3 | BN9: 6 | BO9: 9 | BP9: 12 | BQ9: 3 | BR9: 6 | BS9: 9 | BT9: 12 | BU9: 3 | BV9: 6 | BW9: 9 | BX9: 12 | BY9: 3 | BZ9: 6 | CA9: 9 | CB9: 12 | CC9: 3 | CD9: 6 | CE9: 9 | CF9: 12 | CG9: 3 | CH9: 6 | CI9: 9 | CJ9: 12 | CK9: 3 | CL9: 6 | CM9: 9 | CN9: 12 | CO9: 3 | CP9: 6 | CQ9: 9 | CR9: 12 | CS9: 3 | CT9: 6 | CU9: 9 | CV9: 12 | CW9: 3 | CX9: 6 | CY9: 9 | CZ9: 12 | DA9: 3 | DB9: 6
Y10: год даты окончания: | AA10: 21 | AB10: 21 | AC10: 22 | AD10: 22 | AE10: 22 | AF10: 22 | AG10: 23 | AH10: 23 | AI10: 23 | AJ10: 23 | AK10: 24 | AL10: 24 | AM10: 24 | AN10: 24 | AO10: 25 | AP10: 25 | AQ10: 25 | AR10: 25 | AS10: 26 | AT10: 26 | AU10: 26 | AV10: 26 | AW10: 27 | AX10: 27 | AY10: 27 | AZ10: 27 | BA10: 28 | BB10: 28 | BC10: 28 | BD10: 28 | BE10: 29 | BF10: 29 | BG10: 29 | BH10: 29 | BI10: 30 | BJ10: 30 | BK10: 30 | BL10: 30 | BM10: 31 | BN10: 31 | BO10: 31 | BP10: 31 | BQ10: 32 | BR10: 32 | BS10: 32 | BT10: 32 | BU10: 33 | BV10: 33 | BW10: 33 | BX10: 33 | BY10: 34 | BZ10: 34 | CA10: 34 | CB10: 34 | CC10: 35 | CD10: 35 | CE10: 35 | CF10: 35 | CG10: 36 | CH10: 36 | CI10: 36 | CJ10: 36 | CK10: 37 | CL10: 37 | CM10: 37 | CN10: 37 | CO10: 38 | CP10: 38 | CQ10: 38 | CR10: 38 | CS10: 39 | CT10: 39 | CU10: 39 | CV10: 39 | CW10: 40 | CX10: 40 | CY10: 40 | CZ10: 40 | DA10: 41 | DB10: 41
F11: Macro | I11: Макропоказатели внешней среды | X11: 2021-07-01 | AA11: 2021-07-01 | AB11: 2021-10-01 | AC11: 2022-01-01 | AD11: 2022-04-01 | AE11: 2022-07-01 | AF11: 2022-10-01 | AG11: 2023-01-01 | AH11: 2023-04-01 | AI11: 2023-07-01 | AJ11: 2023-10-01 | AK11: 2024-01-01 | AL11: 2024-04-01 | AM11: 2024-07-01 | AN11: 2024-10-01 | AO11: 2025-01-01 | AP11: 2025-04-01 | AQ11: 2025-07-01 | AR11: 2025-10-01 | AS11: 2026-01-01 | AT11: 2026-04-01 | AU11: 2026-07-01 | AV11: 2026-10-01 | AW11: 2027-01-01 | AX11: 2027-04-01 | AY11: 2027-07-01 | AZ11: 2027-10-01 | BA11: 2028-01-01 | BB11: 2028-04-01 | BC11: 2028-07-01 | BD11: 2028-10-01 | BE11: 2029-01-01 | BF11: 2029-04-01 | BG11: 2029-07-01 | BH11: 2029-10-01 | BI11: 2030-01-01 | BJ11: 2030-04-01 | BK11: 2030-07-01 | BL11: 2030-10-01 | BM11: 2031-01-01 | BN11: 2031-04-01 | BO11: 2031-07-01 | BP11: 2031-10-01 | BQ11: 2032-01-01 | BR11: 2032-04-01 | BS11: 2032-07-01 | BT11: 2032-10-01 | BU11: 2033-01-01 | BV11: 2033-04-01 | BW11: 2033-07-01 | BX11: 2033-10-01 | BY11: 2034-01-01 | BZ11: 2034-04-01 | CA11: 2034-07-01 | CB11: 2034-10-01 | CC11: 2035-01-01 | CD11: 2035-04-01 | CE11: 2035-07-01 | CF11: 2035-10-01 | CG11: 2036-01-01 | CH11: 2036-04-01 | CI11: 2036-07-01 | CJ11: 2036-10-01 | CK11: 2037-01-01 | CL11: 2037-04-01 | CM11: 2037-07-01 | CN11: 2037-10-01 | CO11: 2038-01-01 | CP11: 2038-04-01 | CQ11: 2038-07-01 | CR11: 2038-10-01 | CS11: 2039-01-01 | CT11: 2039-04-01 | CU11: 2039-07-01 | CV11: 2039-10-01 | CW11: 2040-01-01 | CX11: 2040-04-01 | CY11: 2040-07-01 | CZ11: 2040-10-01 | DA11: 2041-01-01 | DB11: 2041-04-01
H12: тип листа | Q12: расчетный | X12: 2041-06-30 | AA12: 2021-09-30 | AB12: 2021-12-31 | AC12: 2022-03-31 | AD12: 2022-06-30 | AE12: 2022-09-30 | AF12: 2022-12-31 | AG12: 2023-03-31 | AH12: 2023-06-30 | AI12: 2023-09-30 | AJ12: 2023-12-31 | AK12: 2024-03-31 | AL12: 2024-06-30 | AM12: 2024-09-30 | AN12: 2024-12-31 | AO12: 2025-03-31 | AP12: 2025-06-30 | AQ12: 2025-09-30 | AR12: 2025-12-31 | AS12: 2026-03-31 | AT12: 2026-06-30 | AU12: 2026-09-30 | AV12: 2026-12-31 | AW12: 2027-03-31 | AX12: 2027-06-30 | AY12: 2027-09-30 | AZ12: 2027-12-31 | BA12: 2028-03-31 | BB12: 2028-06-30 | BC12: 2028-09-30 | BD12: 2028-12-31 | BE12: 2029-03-31 | BF12: 2029-06-30 | BG12: 2029-09-30 | BH12: 2029-12-31 | BI12: 2030-03-31 | BJ12: 2030-06-30 | BK12: 2030-09-30 | BL12: 2030-12-31 | BM12: 2031-03-31 | BN12: 2031-06-30 | BO12: 2031-09-30 | BP12: 2031-12-31 | BQ12: 2032-03-31 | BR12: 2032-06-30 | BS12: 2032-09-30 | BT12: 2032-12-31 | BU12: 2033-03-31 | BV12: 2033-06-30 | BW12: 2033-09-30 | BX12: 2033-12-31 | BY12: 2034-03-31 | BZ12: 2034-06-30 | CA12: 2034-09-30 | CB12: 2034-12-31 | CC12: 2035-03-31 | CD12: 2035-06-30 | CE12: 2035-09-30 | CF12: 2035-12-31 | CG12: 2036-03-31 | CH12: 2036-06-30 | CI12: 2036-09-30 | CJ12: 2036-12-31 | CK12: 2037-03-31 | CL12: 2037-06-30 | CM12: 2037-09-30 | CN12: 2037-12-31 | CO12: 2038-03-31 | CP12: 2038-06-30 | CQ12: 2038-09-30 | CR12: 2038-12-31 | CS12: 2039-03-31 | CT12: 2039-06-30 | CU12: 2039-09-30 | CV12: 2039-12-31 | CW12: 2040-03-31 | CX12: 2040-06-30 | CY12: 2040-09-30 | CZ12: 2040-12-31 | DA12: 2041-03-31 | DB12: 2041-06-30
H13: показатель | M13: ед.изм. | Q13: значение | X13: итого | AA13: 3кв21г | AB13: 4кв21г | AC13: 1кв22г | AD13: 2кв22г | AE13: 3кв22г | AF13: 4кв22г | AG13: 1кв23г | AH13: 2кв23г | AI13: 3кв23г | AJ13: 4кв23г | AK13: 1кв24г | AL13: 2кв24г | AM13: 3кв24г | AN13: 4кв24г | AO13: 1кв25г | AP13: 2кв25г | AQ13: 3кв25г | AR13: 4кв25г | AS13: 1кв26г | AT13: 2кв26г | AU13: 3кв26г | AV13: 4кв26г | AW13: 1кв27г | AX13: 2кв27г | AY13: 3кв27г | AZ13: 4кв27г | BA13: 1кв28г | BB13: 2кв28г | BC13: 3кв28г | BD13: 4кв28г | BE13: 1кв29г | BF13: 2кв29г | BG13: 3кв29г | BH13: 4кв29г | BI13: 1кв30г | BJ13: 2кв30г | BK13: 3кв30г | BL13: 4кв30г | BM13: 1кв31г | BN13: 2кв31г | BO13: 3кв31г | BP13: 4кв31г | BQ13: 1кв32г | BR13: 2кв32г | BS13: 3кв32г | BT13: 4кв32г | BU13: 1кв33г | BV13: 2кв33г | BW13: 3кв33г | BX13: 4кв33г | BY13: 1кв34г | BZ13: 2кв34г | CA13: 3кв34г | CB13: 4кв34г | CC13: 1кв35г | CD13: 2кв35г | CE13: 3кв35г | CF13: 4кв35г | CG13: 1кв36г | CH13: 2кв36г | CI13: 3кв36г | CJ13: 4кв36г | CK13: 1кв37г | CL13: 2кв37г | CM13: 3кв37г | CN13: 4кв37г | CO13: 1кв38г | CP13: 2кв38г | CQ13: 3кв38г | CR13: 4кв38г | CS13: 1кв39г | CT13: 2кв39г | CU13: 3кв39г | CV13: 4кв39г | CW13: 1кв40г | CX13: 2кв40г | CY13: 3кв40г | CZ13: 4кв40г | DA13: 1кв41г | DB13: 2кв41г
D14: 0 | E14: 0 | F14: 0 | G14: 0 | S14: 0 | T14: 0
A15: 15 | H15: разработка финмоделей: https://mngmnt.ru/
A16: 16 | G16: 0 | H16: Параметры рабочего дня сотрудника
A17: 17 | G17: 0 | H17: Параметры рабочего дня сотрудника | I17: Время одной смены рабочего дня | M17: кол-во часов | P17: * | Q17: 8 | S17: 0
A18: 18 | G18: 0 | H18: Параметры рабочего дня сотрудника | I18: Количество рабочих дней в месяце | M18: р.дней/мес. | P18: * | Q18: 20 | S18: 0
A19: 19 | G19: 0 | H19: Параметры рабочего дня сотрудника | I19: Количество рабочих дней в расчетном периоде | M19: р.дней/расч.пер. | Q19: 60 | S19: 0
A20: 20 | G20: 0 | H20: Параметры рабочего дня сотрудника | I20: Количество рабочих часов в расчетном периоде | M20: р.часов/расч.пер. | Q20: 480 | S20: 0
A21: 21
A22: 22 | G22: 0 | H22: Система налогообложения | AA22: ОСНО | AB22: ОСНО | AC22: ОСНО | AD22: ОСНО | AE22: ОСНО | AF22: ОСНО | AG22: ОСНО | AH22: ОСНО | AI22: ОСНО | AJ22: ОСНО | AK22: ОСНО | AL22: ОСНО | AM22: ОСНО | AN22: ОСНО | AO22: ОСНО | AP22: ОСНО | AQ22: ОСНО | AR22: ОСНО | AS22: ОСНО | AT22: ОСНО | AU22: ОСНО | AV22: ОСНО | AW22: ОСНО | AX22: ОСНО | AY22: ОСНО | AZ22: ОСНО | BA22: ОСНО | BB22: ОСНО | BC22: ОСНО | BD22: ОСНО | BE22: ОСНО | BF22: ОСНО | BG22: ОСНО | BH22: ОСНО | BI22: ОСНО | BJ22: ОСНО | BK22: ОСНО | BL22: ОСНО | BM22: ОСНО | BN22: ОСНО | BO22: ОСНО | BP22: ОСНО | BQ22: ОСНО | BR22: ОСНО | BS22: ОСНО | BT22: ОСНО | BU22: ОСНО | BV22: ОСНО | BW22: ОСНО | BX22: ОСНО | BY22: ОСНО | BZ22: ОСНО | CA22: ОСНО | CB22: ОСНО | CC22: ОСНО | CD22: ОСНО | CE22: ОСНО | CF22: ОСНО | CG22: ОСНО | CH22: ОСНО | CI22: ОСНО | CJ22: ОСНО | CK22: ОСНО | CL22: ОСНО | CM22: ОСНО | CN22: ОСНО | CO22: ОСНО | CP22: ОСНО | CQ22: ОСНО | CR22: ОСНО | CS22: ОСНО | CT22: ОСНО | CU22: ОСНО | CV22: ОСНО | CW22: ОСНО | CX22: ОСНО | CY22: ОСНО | CZ22: ОСНО | DA22: ОСНО | DB22: ОСНО
A23: 23 | G23: 0 | H23: Система налогообложения | I23: Единое значение для всех периодов расчета | M23: вып.список | P23: * | Q23: ОСНО | R23: ^ | S23: 0
A24: 24 | G24: 0 | H24: Система налогообложения | I24: Вручную для каждого периода расчетов | M24: вып.список | Y24: *
A25: 25 | G25: 0 | H25: Система налогообложения | I25: г | J25: 2021 | M25: вып.список | P25: * | R25: ^ | S25: 0
A26: 26 | G26: 0 | H26: Система налогообложения | I26: г | J26: 2022 | M26: вып.список | P26: * | R26: ^ | S26: 0
A27: 27 | G27: 0 | H27: Система налогообложения | I27: г | J27: 2023 | M27: вып.список | P27: * | R27: ^ | S27: 0
A28: 28 | G28: 0 | H28: Система налогообложения | I28: г | J28: 2024 | M28: вып.список | P28: * | R28: ^ | S28: 0
A29: 29 | L29: пустая строка
A30: 30
A31: 31 | G31: 0 | H31: Ставки налога на прибыль
A32: 32 | G32: 0 | H32: Ставки налога на прибыль | I32: ОСНО | M32: % | P32: * | Q32: 0.2 | S32: 0
A33: 33 | G33: 0 | H33: Ставки налога на прибыль | I33: УСН(6%) | M33: % | P33: * | Q33: 0.06 | S33: 0
A34: 34 | G34: 0 | H34: Ставки налога на прибыль | I34: УСН(6%) | J34: ограничения суммы НП на вычет соцсборов | M34: % | P34: * | Q34: 0.5 | S34: 0
A35: 35 | G35: 0 | H35: Ставки налога на прибыль | I35: УСН(15%) | M35: % | P35: * | Q35: 0.15 | S35: 0
A36: 36 | G36: 0 | H36: Ставки налога на прибыль | I36: УСН(15%) | J36: минимальный процент от дохода | M36: % | P36: * | Q36: 0.01 | S36: 0
A37: 37 | G37: 0 | H37: Ставки налога на прибыль | I37: ТОСЭР | M37: %
A38: 38 | G38: 0 | H38: Ставки налога на прибыль | I38: г | J38: 5 | M38: % | P38: * | Q38: 0 | S38: 0
A39: 39 | G39: 0 | H39: Ставки налога на прибыль | I39: г | J39: 10 | M39: % | P39: * | Q39: 0.12 | S39: 0
A40: 40 | L40: пустая строка
A41: 41
A42: 42 | G42: 0 | H42: Ставки НДС
A43: 43 | G43: 0 | H43: Ставки НДС | I43: ОСНО | M43: % | P43: * | Q43: 0.2 | S43: 0
A44: 44 | G44: 0 | H44: Ставки НДС | I44: УСН(6%) | M44: % | P44: * | Q44: 0 | S44: 0
A45: 45 | G45: 0 | H45: Ставки НДС | I45: УСН(15%) | M45: % | P45: * | Q45: 0 | S45: 0
A46: 46 | G46: 0 | H46: Ставки НДС | I46: ТОСЭР | M46: %
A47: 47 | G47: 0 | H47: Ставки НДС | I47: г | J47: 5 | M47: % | P47: * | Q47: 0.2 | S47: 0
A48: 48 | G48: 0 | H48: Ставки НДС | I48: г | J48: 10 | M48: % | P48: * | Q48: 0.2 | S48: 0
A49: 49 | L49: пустая строка
A50: 50
A51: 51 | G51: 0 | H51: Ставки соцсборов
A52: 52 | G52: 0 | H52: Ставки соцсборов | I52: ОСНО | M52: % | P52: * | Q52: 0.3 | S52: 0
A53: 53 | G53: 0 | H53: Ставки соцсборов | I53: УСН(6%) | M53: % | P53: * | Q53: 0.3 | S53: 0
A54: 54 | G54: 0 | H54: Ставки соцсборов | I54: УСН(15%) | M54: % | P54: * | Q54: 0.3 | S54: 0
A55: 55 | G55: 0 | H55: Ставки соцсборов | I55: ТОСЭР | M55: %
A56: 56 | G56: 0 | H56: Ставки соцсборов | I56: г | J56: 5 | M56: % | P56: * | Q56: 0.076 | S56: 0
A57: 57 | G57: 0 | H57: Ставки соцсборов | I57: г | J57: 10 | M57: % | P57: * | Q57: 0.076 | S57: 0
A58: 58 | L58: пустая строка
A59: 59
A60: 60 | G60: 0 | H60: Ставки земельного налога | AA60: 0.015 | AB60: 0.015 | AC60: 0.015 | AD60: 0.015 | AE60: 0.015 | AF60: 0.015 | AG60: 0.015 | AH60: 0.015 | AI60: 0.015 | AJ60: 0.015 | AK60: 0.015 | AL60: 0.015 | AM60: 0.015 | AN60: 0.015 | AO60: 0.015 | AP60: 0.015 | AQ60: 0.015 | AR60: 0.015 | AS60: 0.015 | AT60: 0.015 | AU60: 0.015 | AV60: 0.015 | AW60: 0.015 | AX60: 0.015 | AY60: 0.015 | AZ60: 0.015 | BA60: 0.015 | BB60: 0.015 | BC60: 0.015 | BD60: 0.015 | BE60: 0.015 | BF60: 0.015 | BG60: 0.015 | BH60: 0.015 | BI60: 0.015 | BJ60: 0.015 | BK60: 0.015 | BL60: 0.015 | BM60: 0.015 | BN60: 0.015 | BO60: 0.015 | BP60: 0.015 | BQ60: 0.015 | BR60: 0.015 | BS60: 0.015 | BT60: 0.015 | BU60: 0.015 | BV60: 0.015 | BW60: 0.015 | BX60: 0.015 | BY60: 0.015 | BZ60: 0.015 | CA60: 0.015 | CB60: 0.015 | CC60: 0.015 | CD60: 0.015 | CE60: 0.015 | CF60: 0.015 | CG60: 0.015 | CH60: 0.015 | CI60: 0.015 | CJ60: 0.015 | CK60: 0.015 | CL60: 0.015 | CM60: 0.015 | CN60: 0.015 | CO60: 0.015 | CP60: 0.015 | CQ60: 0.015 | CR60: 0.015 | CS60: 0.015 | CT60: 0.015 | CU60: 0.015 | CV60: 0.015 | CW60: 0.015 | CX60: 0.015 | CY60: 0.015 | CZ60: 0.015 | DA60: 0.015 | DB60: 0.015 | DC60: 0.015 | DD60: 0.015 | DE60: 0.015 | DF60: 0.015 | DG60: 0.015 | DH60: 0.015 | DI60: 0.015 | DJ60: 0.015 | DK60: 0.015 | DL60: 0.015 | DM60: 0.015 | DN60: 0.015 | DO60: 0.015 | DP60: 0.015 | DQ60: 0.015 | DR60: 0.015 | DS60: 0.015 | DT60: 0.015 | DU60: 0.015 | DV60: 0.015 | DW60: 0.015 | DX60: 0.015 | DY60: 0.015 | DZ60: 0.015 | EA60: 0.015 | EB60: 0.015 | EC60: 0.015 | ED60: 0.015 | EE60: 0.015 | EF60: 0.015 | EG60: 0.015 | EH60: 0.015 | EI60: 0.015 | EJ60: 0.015 | EK60: 0.015 | EL60: 0.015 | EM60: 0.015 | EN60: 0.015 | EO60: 0.015 | EP60: 0.015 | EQ60: 0.015 | ER60: 0.015 | ES60: 0.015 | ET60: 0.015 | EU60: 0.015 | EV60: 0.015 | EW60: 0.015 | EX60: 0.015 | EY60: 0.015 | EZ60: 0.015 | FA60: 0.015 | FB60: 0.015 | FC60: 0.015
A61: 61 | G61: 0 | H61: Ставки земельного налога | I61: ОСНО | M61: % | P61: * | Q61: 0.015 | S61: 0
A62: 62 | G62: 0 | H62: Ставки земельного налога | I62: УСН(6%) | M62: % | P62: * | Q62: 0.015 | S62: 0
A63: 63 | G63: 0 | H63: Ставки земельного налога | I63: УСН(15%) | M63: % | P63: * | Q63: 0.015 | S63: 0
A64: 64 | G64: 0 | H64: Ставки земельного налога | I64: ТОСЭР | M64: %
A65: 65 | G65: 0 | H65: Ставки земельного налога | I65: г | J65: 5 | M65: % | P65: * | Q65: 0 | S65: 0
A66: 66 | G66: 0 | H66: Ставки земельного налога | I66: г | J66: 20 | M66: % | P66: * | Q66: 0 | S66: 0
A67: 67 | L67: пустая строка
A68: 68
A69: 69 | G69: 0 | H69: Ставки налога на имущество | AA69: 0.015 | AB69: 0.015 | AC69: 0.015 | AD69: 0.015 | AE69: 0.015 | AF69: 0.015 | AG69: 0.015 | AH69: 0.015 | AI69: 0.015 | AJ69: 0.015 | AK69: 0.015 | AL69: 0.015 | AM69: 0.015 | AN69: 0.015 | AO69: 0.015 | AP69: 0.015 | AQ69: 0.015 | AR69: 0.015 | AS69: 0.015 | AT69: 0.015 | AU69: 0.015 | AV69: 0.015 | AW69: 0.015 | AX69: 0.015 | AY69: 0.015 | AZ69: 0.015 | BA69: 0.015 | BB69: 0.015 | BC69: 0.015 | BD69: 0.015 | BE69: 0.015 | BF69: 0.015 | BG69: 0.015 | BH69: 0.015 | BI69: 0.015 | BJ69: 0.015 | BK69: 0.015 | BL69: 0.015 | BM69: 0.015 | BN69: 0.015 | BO69: 0.015 | BP69: 0.015 | BQ69: 0.015 | BR69: 0.015 | BS69: 0.015 | BT69: 0.015 | BU69: 0.015 | BV69: 0.015 | BW69: 0.015 | BX69: 0.015 | BY69: 0.015 | BZ69: 0.015 | CA69: 0.015 | CB69: 0.015 | CC69: 0.015 | CD69: 0.015 | CE69: 0.015 | CF69: 0.015 | CG69: 0.015 | CH69: 0.015 | CI69: 0.015 | CJ69: 0.015 | CK69: 0.015 | CL69: 0.015 | CM69: 0.015 | CN69: 0.015 | CO69: 0.015 | CP69: 0.015 | CQ69: 0.015 | CR69: 0.015 | CS69: 0.015 | CT69: 0.015 | CU69: 0.015 | CV69: 0.015 | CW69: 0.015 | CX69: 0.015 | CY69: 0.015 | CZ69: 0.015 | DA69: 0.015 | DB69: 0.015 | DC69: 0.015 | DD69: 0.015 | DE69: 0.015 | DF69: 0.015 | DG69: 0.015 | DH69: 0.015 | DI69: 0.015 | DJ69: 0.015 | DK69: 0.015 | DL69: 0.015 | DM69: 0.015 | DN69: 0.015 | DO69: 0.015 | DP69: 0.015 | DQ69: 0.015 | DR69: 0.015 | DS69: 0.015 | DT69: 0.015 | DU69: 0.015 | DV69: 0.015 | DW69: 0.015 | DX69: 0.015 | DY69: 0.015 | DZ69: 0.015 | EA69: 0.015 | EB69: 0.015 | EC69: 0.015 | ED69: 0.015 | EE69: 0.015 | EF69: 0.015 | EG69: 0.015 | EH69: 0.015 | EI69: 0.015 | EJ69: 0.015 | EK69: 0.015 | EL69: 0.015 | EM69: 0.015 | EN69: 0.015 | EO69: 0.015 | EP69: 0.015 | EQ69: 0.015 | ER69: 0.015 | ES69: 0.015 | ET69: 0.015 | EU69: 0.015 | EV69: 0.015 | EW69: 0.015 | EX69: 0.015 | EY69: 0.015 | EZ69: 0.015 | FA69: 0.015 | FB69: 0.015 | FC69: 0.015
A70: 70 | G70: 0 | H70: Ставки налога на имущество | I70: ОСНО | M70: % | P70: * | Q70: 0.015 | S70: 0
A71: 71 | G71: 0 | H71: Ставки налога на имущество | I71: УСН(6%) | M71: % | P71: * | Q71: 0.015 | S71: 0
A72: 72 | G72: 0 | H72: Ставки налога на имущество | I72: УСН(15%) | M72: % | P72: * | Q72: 0.015 | S72: 0
A73: 73 | G73: 0 | H73: Ставки налога на имущество | I73: ТОСЭР | M73: %
A74: 74 | G74: 0 | H74: Ставки налога на имущество | I74: г | J74: 5 | M74: % | P74: * | Q74: 0 | S74: 0
A75: 75 | G75: 0 | H75: Ставки налога на имущество | I75: г | J75: 20 | M75: % | P75: * | Q75: 0 | S75: 0
A76: 76 | L76: пустая строка
A77: 77
A78: 78 | G78: 0 | H78: Ставки транспортного налога | AA78: 0.0045 | AB78: 0.0045 | AC78: 0.0045 | AD78: 0.0045 | AE78: 0.0045 | AF78: 0.0045 | AG78: 0.0045 | AH78: 0.0045 | AI78: 0.0045 | AJ78: 0.0045 | AK78: 0.0045 | AL78: 0.0045 | AM78: 0.0045 | AN78: 0.0045 | AO78: 0.0045 | AP78: 0.0045 | AQ78: 0.0045 | AR78: 0.0045 | AS78: 0.0045 | AT78: 0.0045 | AU78: 0.0045 | AV78: 0.0045 | AW78: 0.0045 | AX78: 0.0045 | AY78: 0.0045 | AZ78: 0.0045 | BA78: 0.0045 | BB78: 0.0045 | BC78: 0.0045 | BD78: 0.0045 | BE78: 0.0045 | BF78: 0.0045 | BG78: 0.0045 | BH78: 0.0045 | BI78: 0.0045 | BJ78: 0.0045 | BK78: 0.0045 | BL78: 0.0045 | BM78: 0.0045 | BN78: 0.0045 | BO78: 0.0045 | BP78: 0.0045 | BQ78: 0.0045 | BR78: 0.0045 | BS78: 0.0045 | BT78: 0.0045 | BU78: 0.0045 | BV78: 0.0045 | BW78: 0.0045 | BX78: 0.0045 | BY78: 0.0045 | BZ78: 0.0045 | CA78: 0.0045 | CB78: 0.0045 | CC78: 0.0045 | CD78: 0.0045 | CE78: 0.0045 | CF78: 0.0045 | CG78: 0.0045 | CH78: 0.0045 | CI78: 0.0045 | CJ78: 0.0045 | CK78: 0.0045 | CL78: 0.0045 | CM78: 0.0045 | CN78: 0.0045 | CO78: 0.0045 | CP78: 0.0045 | CQ78: 0.0045 | CR78: 0.0045 | CS78: 0.0045 | CT78: 0.0045 | CU78: 0.0045 | CV78: 0.0045 | CW78: 0.0045 | CX78: 0.0045 | CY78: 0.0045 | CZ78: 0.0045 | DA78: 0.0045 | DB78: 0.0045 | DC78: 0.0045 | DD78: 0.0045 | DE78: 0.0045 | DF78: 0.0045 | DG78: 0.0045 | DH78: 0.0045 | DI78: 0.0045 | DJ78: 0.0045 | DK78: 0.0045 | DL78: 0.0045 | DM78: 0.0045 | DN78: 0.0045 | DO78: 0.0045 | DP78: 0.0045 | DQ78: 0.0045 | DR78: 0.0045 | DS78: 0.0045 | DT78: 0.0045 | DU78: 0.0045 | DV78: 0.0045 | DW78: 0.0045 | DX78: 0.0045 | DY78: 0.0045 | DZ78: 0.0045 | EA78: 0.0045 | EB78: 0.0045 | EC78: 0.0045 | ED78: 0.0045 | EE78: 0.0045 | EF78: 0.0045 | EG78: 0.0045 | EH78: 0.0045 | EI78: 0.0045 | EJ78: 0.0045 | EK78: 0.0045 | EL78: 0.0045 | EM78: 0.0045 | EN78: 0.0045 | EO78: 0.0045 | EP78: 0.0045 | EQ78: 0.0045 | ER78: 0.0045 | ES78: 0.0045 | ET78: 0.0045 | EU78: 0.0045 | EV78: 0.0045 | EW78: 0.0045 | EX78: 0.0045 | EY78: 0.0045 | EZ78: 0.0045 | FA78: 0.0045 | FB78: 0.0045 | FC78: 0.0045
A79: 79 | G79: 0 | H79: Ставки транспортного налога | I79: ОСНО | M79: % | P79: * | Q79: 0.0045 | S79: 0
A80: 80 | G80: 0 | H80: Ставки транспортного налога | I80: УСН(6%) | M80: % | P80: * | Q80: 0.0045 | S80: 0
A81: 81 | G81: 0 | H81: Ставки транспортного налога | I81: УСН(15%) | M81: % | P81: * | Q81: 0.0045 | S81: 0
A82: 82 | G82: 0 | H82: Ставки транспортного налога | I82: ТОСЭР | M82: %
A83: 83 | G83: 0 | H83: Ставки транспортного налога | I83: г | J83: 5 | M83: % | P83: * | Q83: 0 | S83: 0
A84: 84 | G84: 0 | H84: Ставки транспортного налога | I84: г | J84: 20 | M84: % | P84: * | Q84: 0 | S84: 0
A85: 85 | L85: пустая строка
A86: 86
A87: 87 | G87: 0 | H87: Ставки НДПИ | AA87: 0.15 | AB87: 0.15 | AC87: 0.15 | AD87: 0.15 | AE87: 0.15 | AF87: 0.15 | AG87: 0.15 | AH87: 0.15 | AI87: 0.15 | AJ87: 0.15 | AK87: 0.15 | AL87: 0.15 | AM87: 0.15 | AN87: 0.15 | AO87: 0.15 | AP87: 0.15 | AQ87: 0.15 | AR87: 0.15 | AS87: 0.15 | AT87: 0.15 | AU87: 0.15 | AV87: 0.15 | AW87: 0.15 | AX87: 0.15 | AY87: 0.15 | AZ87: 0.15 | BA87: 0.15 | BB87: 0.15 | BC87: 0.15 | BD87: 0.15 | BE87: 0.15 | BF87: 0.15 | BG87: 0.15 | BH87: 0.15 | BI87: 0.15 | BJ87: 0.15 | BK87: 0.15 | BL87: 0.15 | BM87: 0.15 | BN87: 0.15 | BO87: 0.15 | BP87: 0.15 | BQ87: 0.15 | BR87: 0.15 | BS87: 0.15 | BT87: 0.15 | BU87: 0.15 | BV87: 0.15 | BW87: 0.15 | BX87: 0.15 | BY87: 0.15 | BZ87: 0.15 | CA87: 0.15 | CB87: 0.15 | CC87: 0.15 | CD87: 0.15 | CE87: 0.15 | CF87: 0.15 | CG87: 0.15 | CH87: 0.15 | CI87: 0.15 | CJ87: 0.15 | CK87: 0.15 | CL87: 0.15 | CM87: 0.15 | CN87: 0.15 | CO87: 0.15 | CP87: 0.15 | CQ87: 0.15 | CR87: 0.15 | CS87: 0.15 | CT87: 0.15 | CU87: 0.15 | CV87: 0.15 | CW87: 0.15 | CX87: 0.15 | CY87: 0.15 | CZ87: 0.15 | DA87: 0.15 | DB87: 0.15 | DC87: 0.15 | DD87: 0.15 | DE87: 0.15 | DF87: 0.15 | DG87: 0.15 | DH87: 0.15 | DI87: 0.15 | DJ87: 0.15 | DK87: 0.15 | DL87: 0.15 | DM87: 0.15 | DN87: 0.15 | DO87: 0.15 | DP87: 0.15 | DQ87: 0.15 | DR87: 0.15 | DS87: 0.15 | DT87: 0.15 | DU87: 0.15 | DV87: 0.15 | DW87: 0.15 | DX87: 0.15 | DY87: 0.15 | DZ87: 0.15 | EA87: 0.15 | EB87: 0.15 | EC87: 0.15 | ED87: 0.15 | EE87: 0.15 | EF87: 0.15 | EG87: 0.15 | EH87: 0.15 | EI87: 0.15 | EJ87: 0.15 | EK87: 0.15 | EL87: 0.15 | EM87: 0.15 | EN87: 0.15 | EO87: 0.15 | EP87: 0.15 | EQ87: 0.15 | ER87: 0.15 | ES87: 0.15 | ET87: 0.15 | EU87: 0.15 | EV87: 0.15 | EW87: 0.15 | EX87: 0.15 | EY87: 0.15 | EZ87: 0.15 | FA87: 0.15 | FB87: 0.15 | FC87: 0.15
A88: 88 | G88: 0 | H88: Ставки НДПИ | I88: ОСНО | M88: % | P88: * | Q88: 0.15 | S88: 0
A89: 89 | G89: 0 | H89: Ставки НДПИ | I89: УСН(6%) | M89: % | P89: * | Q89: 0.15 | S89: 0
A90: 90 | G90: 0 | H90: Ставки НДПИ | I90: УСН(15%) | M90: % | P90: * | Q90: 0.15 | S90: 0
A91: 91 | G91: 0 | H91: Ставки НДПИ | I91: ТОСЭР | M91: %
A92: 92 | G92: 0 | H92: Ставки НДПИ | I92: г | J92: 5 | M92: % | P92: * | Q92: 0 | S92: 0
A93: 93 | G93: 0 | H93: Ставки НДПИ | I93: г | J93: 20 | M93: % | P93: * | Q93: 0 | S93: 0
A94: 94 | L94: пустая строка
A95: 95
A96: 96 | G96: 0 | H96: НДС к возмещению по капзатратам
A97: 97 | G97: 0 | H97: НДС к возмещению по капзатратам | I97: кол-во месяцев на возмещение НДС | M97: кол-во мес. | P97: * | Q97: 7 | S97: 0
H100: разработка финмоделей: https://mngmnt.ru/

Sheet Items
I1: =COLUMN() -> 9 | M1: =COLUMN() -> 13 | Q1: =COLUMN() -> 17 | AD1: =COLUMN() -> 30 | AH1: =COLUMN() -> 34 | AL1: =COLUMN() -> 38 | AN1: =COLUMN() -> 40 | AQ1: =COLUMN() -> 43 | AU1: =COLUMN() -> 47 | AY1: =COLUMN() -> 51 | BC1: =COLUMN() -> 55 | BG1: =COLUMN() -> 59 | BK1: =COLUMN() -> 63 | BO1: =COLUMN() -> 67 | BS1: =COLUMN() -> 71
I2: =LEFT(ADDRESS(1,COLUMN(),4),LEN(ADDRESS(1,COLUMN(),4))-1) -> I | M2: =LEFT(ADDRESS(1,COLUMN(),4),LEN(ADDRESS(1,COLUMN(),4))-1) -> M | Q2: =LEFT(ADDRESS(1,COLUMN(),4),LEN(ADDRESS(1,COLUMN(),4))-1) -> Q | AD2: =LEFT(ADDRESS(1,COLUMN(),4),LEN(ADDRESS(1,COLUMN(),4))-1) -> AD | AH2: =LEFT(ADDRESS(1,COLUMN(),4),LEN(ADDRESS(1,COLUMN(),4))-1) -> AH | AL2: =LEFT(ADDRESS(1,COLUMN(),4),LEN(ADDRESS(1,COLUMN(),4))-1) -> AL | AN2: =LEFT(ADDRESS(1,COLUMN(),4),LEN(ADDRESS(1,COLUMN(),4))-1) -> AN | AQ2: =LEFT(ADDRESS(1,COLUMN(),4),LEN(ADDRESS(1,COLUMN(),4))-1) -> AQ | AU2: =LEFT(ADDRESS(1,COLUMN(),4),LEN(ADDRESS(1,COLUMN(),4))-1) -> AU | AY2: =LEFT(ADDRESS(1,COLUMN(),4),LEN(ADDRESS(1,COLUMN(),4))-1) -> AY | BC2: =LEFT(ADDRESS(1,COLUMN(),4),LEN(ADDRESS(1,COLUMN(),4))-1) -> BC | BG2: =LEFT(ADDRESS(1,COLUMN(),4),LEN(ADDRESS(1,COLUMN(),4))-1) -> BG | BK2: =LEFT(ADDRESS(1,COLUMN(),4),LEN(ADDRESS(1,COLUMN(),4))-1) -> BK | BO2: =LEFT(ADDRESS(1,COLUMN(),4),LEN(ADDRESS(1,COLUMN(),4))-1) -> BO | BS2: =LEFT(ADDRESS(1,COLUMN(),4),LEN(ADDRESS(1,COLUMN(),4))-1) -> BS
F11: =INDIRECT("START!I30") -> Items | I11: =INDIRECT("START!K30") -> Справочники статей доходов и расходов и т.д.
I12: =START!$I$32 -> Mrkting | M12: =START!$I$32 -> Mrkting | Q12: =START!$I$32 -> Mrkting | AD12: =START!$I$34 -> Sales | AH12: =START!$I$34 -> Sales | AL12: =START!$I$35 -> Prdction | AN12: =START!$I$35 -> Prdction | AQ12: =START!$I$35 -> Prdction | AU12: =START!$I$33 -> CapEx | AY12: =START!$I$33 -> CapEx | BC12: =START!$I$37 -> Exp | BG12: =START!$I$36 -> HR | BK12: =START!$I$54 -> Calc | BO12: =START!$I$54 -> Calc | BS12: =START!$I$54 -> Calc
I13: Капитальные затраты маркетинга | M13: Прямые переменные расходы маркетинга | Q13: Прямые постоянные расходы маркетинга | AD13: Прямые переменные коммерческие расходы | AH13: Прямые постоянные расходы отдела продаж | AL13: Прямые производственные расходы | AN13: ед.изм. | AQ13: Постоянные производственные расходы | AU13: Капзатраты разовые амортизируемые | AY13: Капзатраты переменные амортизируемые | BC13: Постоянные расходы | BG13: Расходы на персонал | BK13: Статьи Баланса | BO13: Статьи отчета о прибылях и убытках | BS13: Статьи отчета о ДДС
D14: =INDIRECT("Cntrl!M17") -> 0 | E14: =SUM($F14:$PM14) -> 0 | F14: =IFERROR(_xlfn.SHEET($A$1)-SUMIFS(Cntrl!O$15:O$100000,Cntrl!I$15:I$100000,$F$11),1) -> 0 | I14: =IF(OR(I13=0,I13=""),1,IF(COUNTIF(13:13,I13)=1,0,1)) -> 0 | K14: =SUM(K$15:K$100000) -> 0 | M14: =IF(OR(M13=0,M13=""),1,IF(COUNTIF(13:13,M13)=1,0,1)) -> 0 | O14: =SUM(O$15:O$100000) -> 0 | Q14: =IF(OR(Q13=0,Q13=""),1,IF(COUNTIF(13:13,Q13)=1,0,1)) -> 0 | S14: =SUM(S$15:S$100000) -> 0 | AD14: =IF(OR(AD13=0,AD13=""),1,IF(COUNTIF(13:13,AD13)=1,0,1)) -> 0 | AF14: =SUM(AF$15:AF$100000) -> 0 | AH14: =IF(OR(AH13=0,AH13=""),1,IF(COUNTIF(13:13,AH13)=1,0,1)) -> 0 | AJ14: =SUM(AJ$15:AJ$100000) -> 0 | AL14: =IF(OR(AL13=0,AL13=""),1,IF(COUNTIF(13:13,AL13)=1,0,1)) -> 0 | AN14: =IF(OR(AN13=0,AN13=""),1,IF(COUNTIF(13:13,AN13)=1,0,1)) -> 0 | AO14: =SUM(AO$15:AO$100000) -> 0 | AQ14: =IF(OR(AQ13=0,AQ13=""),1,IF(COUNTIF(13:13,AQ13)=1,0,1)) -> 0 | AS14: =SUM(AS$15:AS$100000) -> 0 | AU14: =IF(OR(AU13=0,AU13=""),1,IF(COUNTIF(13:13,AU13)=1,0,1)) -> 0 | AW14: =SUM(AW$15:AW$100000) -> 0 | AY14: =IF(OR(AY13=0,AY13=""),1,IF(COUNTIF(13:13,AY13)=1,0,1)) -> 0 | BA14: =SUM(BA$15:BA$100000) -> 0 | BC14: =IF(OR(BC13=0,BC13=""),1,IF(COUNTIF(13:13,BC13)=1,0,1)) -> 0 | BE14: =SUM(BE$15:BE$100000) -> 0 | BG14: =IF(OR(BG13=0,BG13=""),1,IF(COUNTIF(13:13,BG13)=1,0,1)) -> 0 | BI14: =SUM(BI$15:BI$100000) -> 0 | BK14: =IF(OR(BK13=0,BK13=""),1,IF(COUNTIF(13:13,BK13)=1,0,1)) -> 0 | BM14: =SUM(BM$15:BM$100000) -> 0 | BO14: =IF(OR(BO13=0,BO13=""),1,IF(COUNTIF(13:13,BO13)=1,0,1)) -> 0 | BQ14: =SUM(BQ$15:BQ$100000) -> 0 | BS14: =IF(OR(BS13=0,BS13=""),1,IF(COUNTIF(13:13,BS13)=1,0,1)) -> 0 | BU14: =SUM(BU$15:BU$100000) -> 0
A15: =ROW() -> 15 | I15: =$F$11&"!"&I$2&$A16&":"&I$2&($A15+MAX(J$15:J$100000)) -> Items!I16:I18 | M15: =$F$11&"!"&M$2&$A16&":"&M$2&($A15+MAX(N$15:N$100000)) -> Items!M16:M18 | Q15: =$F$11&"!"&Q$2&$A16&":"&Q$2&($A15+MAX(R$15:R$100000)) -> Items!Q16:Q17 | AD15: =$F$11&"!"&AD$2&$A16&":"&AD$2&($A15+MAX(AE$15:AE$100000)) -> Items!AD16:AD18 | AH15: =$F$11&"!"&AH$2&$A16&":"&AH$2&($A15+MAX(AI$15:AI$100000)) -> Items!AH16:AH17 | AL15: =$F$11&"!"&AL$2&$A16&":"&AL$2&($A15+MAX(AM$15:AM$100000)) -> Items!AL16:AL18 | AN15: =$F$11&"!"&AN$2&$A16&":"&AN$2&($A15+MAX(AO$15:AO$100000)) -> Items!AN16:AN15 | AQ15: =$F$11&"!"&AQ$2&$A16&":"&AQ$2&($A15+MAX(AR$15:AR$100000)) -> Items!AQ16:AQ17 | AU15: =$F$11&"!"&AU$2&$A16&":"&AU$2&($A15+MAX(AV$15:AV$100000)) -> Items!AU16:AU25 | AY15: =$F$11&"!"&AY$2&$A16&":"&AY$2&($A15+MAX(AZ$15:AZ$100000)) -> Items!AY16:AY25 | BC15: =$F$11&"!"&BC$2&$A16&":"&BC$2&($A15+MAX(BD$15:BD$100000)) -> Items!BC16:BC22 | BG15: =$F$11&"!"&BG$2&$A16&":"&BG$2&($A15+MAX(BH$15:BH$100000)) -> Items!BG16:BG20 | BK15: =$F$11&"!"&BK$2&$A16&":"&BK$2&($A15+MAX(BL$15:BL$100000)) -> Items!BK16:BK46 | BO15: =$F$11&"!"&BO$2&$A16&":"&BO$2&($A15+MAX(BP$15:BP$100000)) -> Items!BO16:BO35 | BS15: =$F$11&"!"&BS$2&$A16&":"&BS$2&($A15+MAX(BT$15:BT$100000)) -> Items!BS16:BS42
A16: =ROW() -> 16 | H16: * | I16: Подготовка рекламных материалов | J16: =MAX(J$15:J15)+1 -> 1 | K16: =IF(OR(I16=0,I16=""),0,IF(COUNTIF(I$15:I$100000,I16)=1,0,1)) -> 0 | L16: * | M16: Представительские расходы | N16: =MAX(N$15:N15)+1 -> 1 | O16: =IF(OR(M16=0,M16=""),0,IF(COUNTIF(M$15:M$100000,M16)=1,0,1)) -> 0 | Q16: ФОТ сотрудников маркетинга | R16: =MAX(R$15:R15)+1 -> 1 | S16: =IF(OR(Q16=0,Q16=""),0,IF(COUNTIF(Q$15:Q$100000,Q16)=1,0,1)) -> 0 | AC16: * | AD16: Представительские расходы | AE16: =MAX(AE$15:AE15)+1 -> 1 | AF16: =IF(OR(AD16=0,AD16=""),0,IF(COUNTIF(AD$15:AD$100000,AD16)=1,0,1)) -> 0 | AH16: ФОТ менеджеров по продажам | AI16: =MAX(AI$15:AI15)+1 -> 1 | AJ16: =IF(OR(AH16=0,AH16=""),0,IF(COUNTIF(AH$15:AH$100000,AH16)=1,0,1)) -> 0 | AK16: * | AL16: Сырье и материалы - 1 | AM16: =MAX(AM$15:AM15)+1 -> 1 | AN16: шт | AO16: =IF(OR(AL16=0,AL16=""),0,IF(COUNTIF(AL$15:AL$100000,AL16)=1,0,1)) -> 0 | AQ16: ФОТ производственных рабочих | AR16: =MAX(AR$15:AR15)+1 -> 1 | AS16: =IF(OR(AQ16=0,AQ16=""),0,IF(COUNTIF(AQ$15:AQ$100000,AQ16)=1,0,1)) -> 0 | AT16: * | AU16: Подводный добычной комплекс | AV16: =MAX(AV$15:AV15)+1 -> 1 | AW16: =IF(OR(AU16=0,AU16=""),0,IF(COUNTIF(AU$15:AU$100000,AU16)=1,0,1)) -> 0 | AX16: * | AY16: Бурение скважин | AZ16: =MAX(AZ$15:AZ15)+1 -> 1 | BA16: =IF(OR(AY16=0,AY16=""),0,IF(COUNTIF(AY$15:AY$100000,AY16)=1,0,1)) -> 0 | BB16: * | BC16: Расходы на эксплуатацию и ремонт | BD16: =MAX(BD$15:BD15)+1 -> 1 | BE16: =IF(OR(BC16=0,BC16=""),0,IF(COUNTIF(BC$15:BC$100000,BC16)=1,0,1)) -> 0 | BF16: * | BG16: Обустройство жилой зоны | BH16: =MAX(BH$15:BH15)+1 -> 1 | BI16: =IF(OR(BG16=0,BG16=""),0,IF(COUNTIF(BG$15:BG$100000,BG16)=1,0,1)) -> 0 | BJ16: * | BK16: Дебиторская задолженность | BL16: =MAX(BL$15:BL15)+1 -> 1 | BM16: =IF(OR(BK16=0,BK16=""),0,IF(COUNTIF(BK$15:BK$100000,BK16)=1,0,1)) -> 0 | BN16: * | BO16: Выручка | BP16: =MAX(BP$15:BP15)+1 -> 1 | BQ16: =IF(OR(BO16=0,BO16=""),0,IF(COUNTIF(BO$15:BO$100000,BO16)=1,0,1)) -> 0 | BR16: * | BS16: Финпоток проекта без финансирования (CF) | BT16: =MAX(BT$15:BT15)+1 -> 1 | BU16: =IF(OR(BS16=0,BS16=""),0,IF(COUNTIF(BS$15:BS$100000,BS16)=1,0,1)) -> 0
A17: =ROW() -> 17 | H17: * | I17: Съемка видео-роликов | J17: =MAX(J$15:J16)+1 -> 2 | K17: =IF(OR(I17=0,I17=""),0,IF(COUNTIF(I$15:I$100000,I17)=1,0,1)) -> 0 | L17: * | M17: Командировочные расходы | N17: =MAX(N$15:N16)+1 -> 2 | O17: =IF(OR(M17=0,M17=""),0,IF(COUNTIF(M$15:M$100000,M17)=1,0,1)) -> 0 | P17: * | Q17: Прочие расходы маркетинга | R17: =MAX(R$15:R16)+1 -> 2 | S17: =IF(OR(Q17=0,Q17=""),0,IF(COUNTIF(Q$15:Q$100000,Q17)=1,0,1)) -> 0 | AC17: * | AD17: Консультационные расходы | AE17: =MAX(AE$15:AE16)+1 -> 2 | AF17: =IF(OR(AD17=0,AD17=""),0,IF(COUNTIF(AD$15:AD$100000,AD17)=1,0,1)) -> 0 | AG17: * | AH17: Прочие расходы отдела продаж | AI17: =MAX(AI$15:AI16)+1 -> 2 | AJ17: =IF(OR(AH17=0,AH17=""),0,IF(COUNTIF(AH$15:AH$100000,AH17)=1,0,1)) -> 0 | AK17: * | AL17: Сырье и материалы - 2 | AM17: =MAX(AM$15:AM16)+1 -> 2 | AN17: шт | AO17: =IF(OR(AL17=0,AL17=""),0,IF(COUNTIF(AL$15:AL$100000,AL17)=1,0,1)) -> 0 | AP17: * | AQ17: Прочие производственные расходы | AR17: =MAX(AR$15:AR16)+1 -> 2 | AS17: =IF(OR(AQ17=0,AQ17=""),0,IF(COUNTIF(AQ$15:AQ$100000,AQ17)=1,0,1)) -> 0 | AT17: * | AU17: Строительство нового завода СПГ | AV17: =MAX(AV$15:AV16)+1 -> 2 | AW17: =IF(OR(AU17=0,AU17=""),0,IF(COUNTIF(AU$15:AU$100000,AU17)=1,0,1)) -> 0 | AX17: * | AY17: ="Переменные капзатраты - "&AZ17 -> Переменные капзатраты - 2 | AZ17: =MAX(AZ$15:AZ16)+1 -> 2 | BA17: =IF(OR(AY17=0,AY17=""),0,IF(COUNTIF(AY$15:AY$100000,AY17)=1,0,1)) -> 0 | BB17: * | BC17: Юридические расходы | BD17: =MAX(BD$15:BD16)+1 -> 2 | BE17: 0 | BF17: * | BG17: Расходы на организацию рабочего места | BH17: =MAX(BH$15:BH16)+1 -> 2 | BI17: =IF(OR(BG17=0,BG17=""),0,IF(COUNTIF(BG$15:BG$100000,BG17)=1,0,1)) -> 0 | BJ17: * | BK17: Авансы полученные | BL17: =MAX(BL$15:BL16)+1 -> 2 | BM17: 0 | BN17: * | BO17: Себестоимость | BP17: =MAX(BP$15:BP16)+1 -> 2 | BQ17: 0 | BR17: * | BS17: Финпоток проекта нарастающим итогом | BT17: =MAX(BT$15:BT16)+1 -> 2 | BU17: 0
A18: =ROW() -> 18 | H18: * | I18: Аутсорсинг внешних исполнителей | J18: =MAX(J$15:J17)+1 -> 3 | K18: =IF(OR(I18=0,I18=""),0,IF(COUNTIF(I$15:I$100000,I18)=1,0,1)) -> 0 | L18: * | M18: Расходы на поддержание КПД | N18: =MAX(N$15:N17)+1 -> 3 | O18: =IF(OR(M18=0,M18=""),0,IF(COUNTIF(M$15:M$100000,M18)=1,0,1)) -> 0 | AC18: * | AD18: Прочие расходники | AE18: =MAX(AE$15:AE17)+1 -> 3 | AF18: =IF(OR(AD18=0,AD18=""),0,IF(COUNTIF(AD$15:AD$100000,AD18)=1,0,1)) -> 0 | AK18: * | AL18: Сырье и материалы - 3 | AM18: =MAX(AM$15:AM17)+1 -> 3 | AN18: шт | AO18: =IF(OR(AL18=0,AL18=""),0,IF(COUNTIF(AL$15:AL$100000,AL18)=1,0,1)) -> 0 | AT18: * | AU18: Прокладка трубопровода до Сахалин-2 СПГ | AV18: =MAX(AV$15:AV17)+1 -> 3 | AW18: =IF(OR(AU18=0,AU18=""),0,IF(COUNTIF(AU$15:AU$100000,AU18)=1,0,1)) -> 0 | AX18: * | AY18: Переменные капзатраты - 3 | AZ18: =MAX(AZ$15:AZ17)+1 -> 3 | BA18: =IF(OR(AY18=0,AY18=""),0,IF(COUNTIF(AY$15:AY$100000,AY18)=1,0,1)) -> 0 | BB18: * | BC18: Расходы на оборудование | BD18: =MAX(BD$15:BD17)+1 -> 3 | BE18: 0 | BF18: * | BG18: Расходы на оргтехнику | BH18: =MAX(BH$15:BH17)+1 -> 3 | BI18: =IF(OR(BG18=0,BG18=""),0,IF(COUNTIF(BG$15:BG$100000,BG18)=1,0,1)) -> 0 | BJ18: * | BK18: Поступление запасов | BL18: =MAX(BL$15:BL17)+1 -> 3 | BM18: 0 | BN18: * | BO18: Валовая прибыль | BP18: =MAX(BP$15:BP17)+1 -> 3 | BQ18: 0 | BR18: * | BS18: Свободный положительный финпоток проекта | BT18: =MAX(BT$15:BT17)+1 -> 3 | BU18: 0
A19: =ROW() -> 19 | AT19: * | AU19: ="Разовые капзатраты - "&AV19 -> Разовые капзатраты - 4 | AV19: =MAX(AV$15:AV18)+1 -> 4 | AW19: =IF(OR(AU19=0,AU19=""),0,IF(COUNTIF(AU$15:AU$100000,AU19)=1,0,1)) -> 0 | AX19: * | AY19: Переменные капзатраты - 4 | AZ19: =MAX(AZ$15:AZ18)+1 -> 4 | BA19: =IF(OR(AY19=0,AY19=""),0,IF(COUNTIF(AY$15:AY$100000,AY19)=1,0,1)) -> 0 | BB19: * | BC19: Банковские расходы | BD19: =MAX(BD$15:BD18)+1 -> 4 | BE19: 0 | BF19: * | BG19: Расходы на спецодежду | BH19: =MAX(BH$15:BH18)+1 -> 4 | BI19: =IF(OR(BG19=0,BG19=""),0,IF(COUNTIF(BG$15:BG$100000,BG19)=1,0,1)) -> 0 | BJ19: * | BK19: Списание запасов на незавершенное пр-во | BL19: =MAX(BL$15:BL18)+1 -> 4 | BM19: 0 | BN19: * | BO19: НДС начисленный | BP19: =MAX(BP$15:BP18)+1 -> 4 | BQ19: 0 | BR19: * | BS19: Свободный отрицательный финпоток проекта | BT19: =MAX(BT$15:BT18)+1 -> 4 | BU19: 0
A20: =ROW() -> 20 | AT20: * | AU20: Разовые капзатраты - 5 | AV20: =MAX(AV$15:AV19)+1 -> 5 | AW20: 0 | AX20: * | AY20: Переменные капзатраты - 5 | AZ20: =MAX(AZ$15:AZ19)+1 -> 5 | BA20: 0 | BB20: * | BC20: Расходы на электроэнергию | BD20: =MAX(BD$15:BD19)+1 -> 5 | BE20: 0 | BF20: * | BG20: Прочие расходы на персонал | BH20: =MAX(BH$15:BH19)+1 -> 5 | BI20: =IF(OR(BG20=0,BG20=""),0,IF(COUNTIF(BG$15:BG$100000,BG20)=1,0,1)) -> 0 | BJ20: * | BK20: Запасы | BL20: =MAX(BL$15:BL19)+1 -> 5 | BM20: 0 | BN20: * | BO20: НДС к возмещению | BP20: =MAX(BP$15:BP19)+1 -> 5 | BQ20: 0 | BR20: * | BS20: Свободный финпоток (FCF) | BT20: =MAX(BT$15:BT19)+1 -> 5 | BU20: 0
A21: =ROW() -> 21 | AT21: * | AU21: Разовые капзатраты - 6 | AV21: =MAX(AV$15:AV20)+1 -> 6 | AW21: 0 | AX21: * | AY21: Переменные капзатраты - 6 | AZ21: =MAX(AZ$15:AZ20)+1 -> 6 | BA21: 0 | BB21: * | BC21: Расходы на прочую коммуналку | BD21: =MAX(BD$15:BD20)+1 -> 6 | BE21: 0 | BJ21: * | BK21: Незавершенное производство | BL21: =MAX(BL$15:BL20)+1 -> 6 | BM21: 0 | BN21: * | BO21: Прямые расходы | BP21: =MAX(BP$15:BP20)+1 -> 6 | BQ21: 0 | BR21: * | BS21: Кассовый разрыв | BT21: =MAX(BT$15:BT20)+1 -> 6 | BU21: 0
A22: =ROW() -> 22 | AT22: * | AU22: Разовые капзатраты - 7 | AV22: =MAX(AV$15:AV21)+1 -> 7 | AW22: 0 | AX22: * | AY22: Переменные капзатраты - 7 | AZ22: =MAX(AZ$15:AZ21)+1 -> 7 | BA22: 0 | BB22: * | BC22: НДПИ | BD22: =MAX(BD$15:BD21)+1 -> 7 | BE22: 0 | BJ22: * | BK22: Авансы выданные | BL22: =MAX(BL$15:BL21)+1 -> 7 | BM22: 0 | BN22: * | BO22: Маржинальная прибыль | BP22: =MAX(BP$15:BP21)+1 -> 7 | BQ22: 0 | BR22: * | BS22: Поступление финансирования от Учредителей | BT22: =MAX(BT$15:BT21)+1 -> 7 | BU22: 0
A23: =ROW() -> 23 | AT23: * | AU23: Разовые капзатраты - 8 | AV23: =MAX(AV$15:AV22)+1 -> 8 | AW23: 0 | AX23: * | AY23: ="Переменные капзатраты - "&AZ23 -> Переменные капзатраты - 8 | AZ23: =MAX(AZ$15:AZ22)+1 -> 8 | BA23: 0 | BJ23: * | BK23: Кредиторская задолженность | BL23: =MAX(BL$15:BL22)+1 -> 8 | BM23: 0 | BN23: * | BO23: Управленческие расходы | BP23: =MAX(BP$15:BP22)+1 -> 8 | BQ23: 0 | BR23: * | BS23: Финпоток проекта для кредиторов | BT23: =MAX(BT$15:BT22)+1 -> 8 | BU23: 0
A24: =ROW() -> 24 | AT24: * | AU24: Разовые капзатраты - 9 | AV24: =MAX(AV$15:AV23)+1 -> 9 | AW24: 0 | AX24: * | AY24: ="Переменные капзатраты - "&AZ24 -> Переменные капзатраты - 9 | AZ24: =MAX(AZ$15:AZ23)+1 -> 9 | BA24: 0 | BJ24: * | BK24: Задолженность перед персоналом | BL24: =MAX(BL$15:BL23)+1 -> 9 | BM24: 0 | BN24: * | BO24: ФОТ управленческого персонала | BP24: =MAX(BP$15:BP23)+1 -> 9 | BQ24: 0 | BR24: * | BS24: Финпоток проекта для кредиторов нараст. итогом | BT24: =MAX(BT$15:BT23)+1 -> 9 | BU24: 0
A25: =ROW() -> 25 | AT25: * | AU25: Разовые капзатраты - 10 | AV25: =MAX(AV$15:AV24)+1 -> 10 | AW25: 0 | AX25: * | AY25: ="Переменные капзатраты - "&AZ25 -> Переменные капзатраты - 10 | AZ25: =MAX(AZ$15:AZ24)+1 -> 10 | BA25: 0 | BJ25: * | BK25: Задолженность по соцсборам | BL25: =MAX(BL$15:BL24)+1 -> 10 | BM25: 0 | BN25: * | BO25: EBITDA | BP25: =MAX(BP$15:BP24)+1 -> 10 | BQ25: 0 | BR25: * | BS25: Свободный полож. финпоток для кредиторов | BT25: =MAX(BT$15:BT24)+1 -> 10 | BU25: 0
A26: =ROW() -> 26 | BJ26: * | BK26: АКТИВЫ | BL26: =MAX(BL$15:BL25)+1 -> 11 | BM26: =IF(OR(BK26=0,BK26=""),0,IF(COUNTIF(BK$15:BK$100000,BK26)=1,0,1)) -> 0 | BN26: * | BO26: Капзатраты | BP26: =MAX(BP$15:BP25)+1 -> 11 | BQ26: =IF(OR(BO26=0,BO26=""),0,IF(COUNTIF(BO$15:BO$100000,BO26)=1,0,1)) -> 0 | BR26: * | BS26: Свободный отриц. финпоток для кредиторов | BT26: =MAX(BT$15:BT25)+1 -> 11 | BU26: 0
A27: =ROW() -> 27 | BJ27: * | BK27: ПАССИВЫ | BL27: =MAX(BL$15:BL26)+1 -> 12 | BM27: 0 | BN27: * | BO27: НДС к возмещению по капзатратам | BP27: =MAX(BP$15:BP26)+1 -> 12 | BQ27: 0 | BR27: * | BS27: Свободный финпоток для кредиторов | BT27: =MAX(BT$15:BT26)+1 -> 12 | BU27: 0
A28: =ROW() -> 28 | BJ28: * | BK28: Денежные средства | BL28: =MAX(BL$15:BL27)+1 -> 13 | BM28: 0 | BN28: * | BO28: Амортизация | BP28: =MAX(BP$15:BP27)+1 -> 13 | BQ28: 0 | BR28: * | BS28: Кассовый разрыв проекта для кредиторов | BT28: =MAX(BT$15:BT27)+1 -> 13 | BU28: 0
A29: =ROW() -> 29 | BJ29: * | BK29: Собственный капитал | BL29: =MAX(BL$15:BL28)+1 -> 14 | BM29: 0 | BN29: * | BO29: EBIT | BP29: =MAX(BP$15:BP28)+1 -> 14 | BQ29: 0 | BR29: * | BS29: Поступление кредита | BT29: =MAX(BT$15:BT28)+1 -> 14 | BU29: 0
A30: =ROW() -> 30 | BJ30: * | BK30: Промежуточный баланс-контроль | BL30: =MAX(BL$15:BL29)+1 -> 15 | BM30: 0 | BN30: * | BO30: Прочие доходы | BP30: =MAX(BP$15:BP29)+1 -> 15 | BQ30: 0 | BR30: * | BS30: Возврат кредита | BT30: =MAX(BT$15:BT29)+1 -> 15 | BU30: 0
A31: =ROW() -> 31 | BJ31: * | BK31: Задолженность по прямым расходам | BL31: =MAX(BL$15:BL30)+1 -> 16 | BM31: 0 | BN31: * | BO31: Проценты начисленные | BP31: =MAX(BP$15:BP30)+1 -> 16 | BQ31: 0 | BR31: * | BS31: Оплата процентов по кредиту | BT31: =MAX(BT$15:BT30)+1 -> 16 | BU31: 0
A32: =ROW() -> 32 | BJ32: * | BK32: Задолженность по управленческим расходам | BL32: =MAX(BL$15:BL31)+1 -> 17 | BM32: =IF(OR(BK32=0,BK32=""),0,IF(COUNTIF(BK$15:BK$100000,BK32)=1,0,1)) -> 0 | BN32: * | BO32: Прибыль до налога на прибыль | BP32: =MAX(BP$15:BP31)+1 -> 17 | BQ32: 0 | BR32: * | BS32: Финпоток проекта с учетом финансирования | BT32: =MAX(BT$15:BT31)+1 -> 17 | BU32: 0
A33: =ROW() -> 33 | BJ33: * | BK33: Задолженность по капзатратам | BL33: =MAX(BL$15:BL32)+1 -> 18 | BM33: 0 | BN33: * | BO33: Налог на прибыль | BP33: =MAX(BP$15:BP32)+1 -> 18 | BQ33: 0 | BR33: * | BS33: Финпоток проекта с уч. финансир. нараст. итогом | BT33: =MAX(BT$15:BT32)+1 -> 18 | BU33: 0
A34: =ROW() -> 34 | BJ34: * | BK34: Внеоборотные активы | BL34: =MAX(BL$15:BL33)+1 -> 19 | BM34: 0 | BN34: * | BO34: Чистая прибыль | BP34: =MAX(BP$15:BP33)+1 -> 19 | BQ34: 0 | BR34: * | BS34: Осаточный кассовый разрыв | BT34: =MAX(BT$15:BT33)+1 -> 19 | BU34: 0
A35: =ROW() -> 35 | BJ35: * | BK35: ДЗ по возмещению НДС с капзатрат | BL35: =MAX(BL$15:BL34)+1 -> 20 | BM35: 0 | BN35: * | BO35: Проценты начисленные по кредиту | BP35: =MAX(BP$15:BP34)+1 -> 20 | BQ35: 0 | BR35: * | BS35: Итоговый финпоток | BT35: =MAX(BT$15:BT34)+1 -> 20 | BU35: =IF(OR(BS35=0,BS35=""),0,IF(COUNTIF(BS$15:BS$100000,BS35)=1,0,1)) -> 0
A36: =ROW() -> 36 | BJ36: * | BK36: Задолженность по налогам | BL36: =MAX(BL$15:BL35)+1 -> 21 | BM36: 0 | BR36: * | BS36: Итоговый финпоток нараст. итогом | BT36: =MAX(BT$15:BT35)+1 -> 21 | BU36: 0
A37: =ROW() -> 37 | BJ37: * | BK37: Задолженность по НДС | BL37: =MAX(BL$15:BL36)+1 -> 22 | BM37: 0 | BR37: * | BS37: Итоговый кассовый разрыв | BT37: =MAX(BT$15:BT36)+1 -> 22 | BU37: 0
A38: =ROW() -> 38 | BJ38: * | BK38: Задолженность по НП | BL38: =MAX(BL$15:BL37)+1 -> 23 | BM38: 0 | BR38: * | BS38: Финпоток по операционной деятельности | BT38: =MAX(BT$15:BT37)+1 -> 23 | BU38: 0
A39: =ROW() -> 39 | BJ39: * | BK39: Остаток долга по кредиту | BL39: =MAX(BL$15:BL38)+1 -> 24 | BM39: 0 | BR39: * | BS39: Финпоток по основной деятельности | BT39: =MAX(BT$15:BT38)+1 -> 24 | BU39: 0
A40: =ROW() -> 40 | BJ40: * | BK40: Задолженность по выплате %% по кредиту | BL40: =MAX(BL$15:BL39)+1 -> 25 | BM40: 0 | BR40: * | BS40: Финпоток по финансовой деятельности | BT40: =MAX(BT$15:BT39)+1 -> 25 | BU40: 0
A41: =ROW() -> 41 | BJ41: * | BK41: Вложения Учредителей в капитал | BL41: =MAX(BL$15:BL40)+1 -> 26 | BM41: 0 | BR41: * | BS41: Поступление ДС | BT41: =MAX(BT$15:BT40)+1 -> 26 | BU41: 0
A42: =ROW() -> 42 | BJ42: * | BK42: БАЛАНС | BL42: =MAX(BL$15:BL41)+1 -> 27 | BM42: 0 | BR42: * | BS42: Итоговый свободный финпоток (Total FCF) | BT42: =MAX(BT$15:BT41)+1 -> 27 | BU42: 0
A43: =ROW() -> 43 | BJ43: * | BL43: =MAX(BL$15:BL42)+1 -> 28 | BM43: 0
A44: =ROW() -> 44 | BJ44: * | BL44: =MAX(BL$15:BL43)+1 -> 29 | BM44: 0
A45: =ROW() -> 45 | BJ45: * | BL45: =MAX(BL$15:BL44)+1 -> 30 | BM45: 0
A46: =ROW() -> 46 | BJ46: * | BL46: =MAX(BL$15:BL45)+1 -> 31 | BM46: 0
A47: =ROW() -> 47
A48: =ROW() -> 48
A49: =ROW() -> 49
A50: =ROW() -> 50
A51: =ROW() -> 51
A52: =ROW() -> 52
A53: =ROW() -> 53
A54: =ROW() -> 54
A55: =ROW() -> 55
A56: =ROW() -> 56
A57: =ROW() -> 57
A58: =ROW() -> 58
A59: =ROW() -> 59
A60: =ROW() -> 60
A61: =ROW() -> 61
A62: =ROW() -> 62
A63: =ROW() -> 63
A64: =ROW() -> 64
A65: =ROW() -> 65
A66: =ROW() -> 66
A67: =ROW() -> 67
A68: =ROW() -> 68
A69: =ROW() -> 69
A70: =ROW() -> 70

Sheet KPI
I1: =COLUMN() -> 9
I2: =LEFT(ADDRESS(1,COLUMN(),4),LEN(ADDRESS(1,COLUMN(),4))-1) -> I
F11: =INDIRECT("START!I31") -> KPI | I11: =INDIRECT("START!K31") -> Справочники ключевых показателей эффективности
I13: Список показателей эффективности | Q13: Формулы расчета показателей
D14: =INDIRECT("Cntrl!M17") -> 0 | E14: =SUM($F14:$ML14) -> 0 | F14: =IFERROR(_xlfn.SHEET($A$1)-SUMIFS(Cntrl!O$15:O$100000,Cntrl!I$15:I$100000,$F$11),1) -> 0 | I14: =IF(OR(I13=0,I13=""),1,IF(COUNTIF(13:13,I13)=1,0,1)) -> 0 | K14: =SUM(K$15:K$100000) -> 0
A15: =ROW() -> 15 | I15: =$F$11&"!"&I$2&$A16&":"&I$2&($A15+MAX(J$15:J$100000)) -> KPI!I16:I92
A16: =ROW() -> 16 | I16: Срок окупаемости по чистой прибыли | J16: =MAX(J$15:J15)+1 -> 1 | K16: =IF(OR(I16=0,I16=""),0,IF(COUNTIF(I$15:I$100000,I16)=1,0,1)) -> 0
A17: =ROW() -> 17 | I17: Точка безубыточности по чистой прибыли | J17: =MAX(J$15:J16)+1 -> 2 | K17: =IF(OR(I17=0,I17=""),0,IF(COUNTIF(I$15:I$100000,I17)=1,0,1)) -> 0
A18: =ROW() -> 18 | I18: Срок окупаемости по финпотоку (PBP) | J18: =MAX(J$15:J17)+1 -> 3 | K18: 0
A19: =ROW() -> 19 | I19: Точка безубыточности по финпотоку | J19: =MAX(J$15:J18)+1 -> 4 | K19: 0
A20: =ROW() -> 20 | I20: IRR проекта | J20: =MAX(J$15:J19)+1 -> 5 | K20: 0
A21: =ROW() -> 21 | I21: NPV(Учредителя) | J21: =MAX(J$15:J20)+1 -> 6 | K21: 0
A22: =ROW() -> 22 | I22: IRR для кредиторов | J22: =MAX(J$15:J21)+1 -> 7 | K22: 0
A23: =ROW() -> 23 | I23: NPV(Кредиторов) | J23: =MAX(J$15:J22)+1 -> 8 | K23: =IF(OR(I23=0,I23=""),0,IF(COUNTIF(I$15:I$100000,I23)=1,0,1)) -> 0
A24: =ROW() -> 24 | I24: Рентабельность | J24: =MAX(J$15:J23)+1 -> 9 | K24: 0
A25: =ROW() -> 25 | I25: WACC | J25: =MAX(J$15:J24)+1 -> 10 | K25: 0
A26: =ROW() -> 26 | I26: NPV(WACC) | J26: =MAX(J$15:J25)+1 -> 11 | K26: 0
A27: =ROW() -> 27 | I27: ROI | J27: =MAX(J$15:J26)+1 -> 12 | K27: 0
A28: =ROW() -> 28 | I28: Дисконтированный срок окупаемости (DPBP) | J28: =MAX(J$15:J27)+1 -> 13 | K28: 0
A29: =ROW() -> 29 | I29: Коэффициент текущей ликвидности (L1) | J29: =MAX(J$15:J28)+1 -> 14 | K29: 0 | Q29: Отношение оборотных активов к краткосрочным обязательствам
A30: =ROW() -> 30 | I30: Коэффициент промежуточного покрытия (L2) | J30: =MAX(J$15:J29)+1 -> 15 | K30: 0 | Q30: Отношение суммы активов А1 и А2 к краткосрочным обязательствам
A31: =ROW() -> 31 | I31: Коэффициент абсолютной ликвидности (L3) | J31: =MAX(J$15:J30)+1 -> 16 | K31: =IF(OR(I31=0,I31=""),0,IF(COUNTIF(I$15:I$100000,I31)=1,0,1)) -> 0 | Q31: Отношение суммы активов А1 к краткосрочным обязательствам
A32: =ROW() -> 32 | I32: Коэффициент общей платежеспособности (L4) | J32: =MAX(J$15:J31)+1 -> 17 | K32: 0 | Q32: Отношение всех активов ко всем обязательствам
A33: =ROW() -> 33 | I33: Коэфф. платежеспособности по тек. обяз. (L5) | J33: =MAX(J$15:J32)+1 -> 18 | K33: 0 | Q33: Отношение среднемесячной выручки к краткосрочным обязательствам
A34: =ROW() -> 34 | J34: =MAX(J$15:J33)+1 -> 19 | K34: 0
A35: =ROW() -> 35 | I35: Оценка стоимости бизнеса/компании | J35: =MAX(J$15:J34)+1 -> 20 | K35: 0
A36: =ROW() -> 36 | J36: =MAX(J$15:J35)+1 -> 21 | K36: 0
A37: =ROW() -> 37 | J37: =MAX(J$15:J36)+1 -> 22 | K37: 0
A38: =ROW() -> 38 | J38: =MAX(J$15:J37)+1 -> 23 | K38: 0
A39: =ROW() -> 39 | I39: Терминальная стоимость (TV) | J39: =MAX(J$15:J38)+1 -> 24 | K39: 0
A40: =ROW() -> 40 | I40: NPV(TV) | J40: =MAX(J$15:J39)+1 -> 25 | K40: =IF(OR(I40=0,I40=""),0,IF(COUNTIF(I$15:I$100000,I40)=1,0,1)) -> 0
A41: =ROW() -> 41 | I41: CFADS | J41: =MAX(J$15:J40)+1 -> 26 | K41: 0
A42: =ROW() -> 42 | I42: Выплаты долга [Debt (Principals+Interests)] | J42: =MAX(J$15:J41)+1 -> 27 | K42: 0
A43: =ROW() -> 43 | I43: Выплаты тела кредитов (Principals) | J43: =MAX(J$15:J42)+1 -> 28 | K43: 0
A44: =ROW() -> 44 | I44: Выплаты %% (Interests) | J44: =MAX(J$15:J43)+1 -> 29 | K44: 0
A45: =ROW() -> 45 | I45: Коэф. покрытия выплат долга (DSCR) | J45: =MAX(J$15:J44)+1 -> 30 | K45: 0
A46: =ROW() -> 46 | I46: Коэф. покрытия процентов (ICR) | J46: =MAX(J$15:J45)+1 -> 31 | K46: =IF(OR(I46=0,I46=""),0,IF(COUNTIF(I$15:I$100000,I46)=1,0,1)) -> 0
A47: =ROW() -> 47 | I47: CF(EBIT) | J47: =MAX(J$15:J46)+1 -> 32 | K47: 0
A48: =ROW() -> 48 | I48: Наиболее ликвидные активы (А1) | J48: =MAX(J$15:J47)+1 -> 33 | K48: 0
A49: =ROW() -> 49 | I49: Денежные средства | J49: =MAX(J$15:J48)+1 -> 34 | K49: 0
A50: =ROW() -> 50 | I50: Финансовые вложения | J50: =MAX(J$15:J49)+1 -> 35 | K50: 0
A51: =ROW() -> 51 | I51: Быстро реализуемые активы (А2) | J51: =MAX(J$15:J50)+1 -> 36 | K51: 0
A52: =ROW() -> 52 | I52: Незавершенное производство | J52: =MAX(J$15:J51)+1 -> 37 | K52: 0
A53: =ROW() -> 53 | I53: Дебиторская задолженность | J53: =MAX(J$15:J52)+1 -> 38 | K53: =IF(OR(I53=0,I53=""),0,IF(COUNTIF(I$15:I$100000,I53)=1,0,1)) -> 0
A54: =ROW() -> 54 | I54: Авансы выданные | J54: =MAX(J$15:J53)+1 -> 39 | K54: 0
A55: =ROW() -> 55 | I55: Медленно реализуемые активы (А3) | J55: =MAX(J$15:J54)+1 -> 40 | K55: 0
A56: =ROW() -> 56 | I56: Запасы | J56: =MAX(J$15:J55)+1 -> 41 | K56: 0
A57: =ROW() -> 57 | I57: Трудно реализуемые активы (А4) | J57: =MAX(J$15:J56)+1 -> 42 | K57: 0
A58: =ROW() -> 58 | I58: Внеоборотные активы | J58: =MAX(J$15:J57)+1 -> 43 | K58: 0
A59: =ROW() -> 59 | I59: Наиболее срочные обязательства (П1) | J59: =MAX(J$15:J58)+1 -> 44 | K59: 0
A60: =ROW() -> 60 | I60: Овердрафт | J60: =MAX(J$15:J59)+1 -> 45 | K60: 0
A61: =ROW() -> 61 | I61: Кредиторская задолженность | J61: =MAX(J$15:J60)+1 -> 46 | K61: 0
A62: =ROW() -> 62 | I62: Краткосрочные обязательства (П2) | J62: =MAX(J$15:J61)+1 -> 47 | K62: 0
A63: =ROW() -> 63 | I63: Прочие краткосрочные обязательства | J63: =MAX(J$15:J62)+1 -> 48 | K63: 0
A64: =ROW() -> 64 | I64: Долгосрочные обязательства (П3) | J64: =MAX(J$15:J63)+1 -> 49 | K64: 0
A65: =ROW() -> 65 | I65: Долгосрочные кредиты | J65: =MAX(J$15:J64)+1 -> 50 | K65: 0
A66: =ROW() -> 66 | I66: Постоянные пассивы (П4) | J66: =MAX(J$15:J65)+1 -> 51 | K66: 0
A67: =ROW() -> 67 | I67: Собственный капитал | J67: =MAX(J$15:J66)+1 -> 52 | K67: =IF(OR(I67=0,I67=""),0,IF(COUNTIF(I$15:I$100000,I67)=1,0,1)) -> 0
A68: =ROW() -> 68 | I68: Собственные оборотные средства (СОС) | J68: =MAX(J$15:J67)+1 -> 53 | K68: 0 | Q68: Разность собственного капитала и внеоборотных активов
A69: =ROW() -> 69 | I69: Коэффициент финансовой устойчивости (S1) | J69: =MAX(J$15:J68)+1 -> 54 | K69: 0 | Q69: Отношение суммы собственного капитала и долгосрочных обязательств к активам
A70: =ROW() -> 70 | I70: Коэффициент автономии (независимости) (S2) | J70: =MAX(J$15:J69)+1 -> 55 | K70: 0 | Q70: Отношение собственного капитала к активам
I71: Коэфф. обеспеч-ти собств. об. средствами (S3) | J71: =MAX(J$15:J70)+1 -> 56 | K71: 0 | Q71: Отношение объема СОС к оборотным активам
I72: Коэффициент финансового рычага (S4) | J72: =MAX(J$15:J71)+1 -> 57 | K72: 0 | Q72: Отношение собственного капитала к заемному капиталу
I73: Рентабельность продаж (Return On Sales) (R1) | J73: =MAX(J$15:J72)+1 -> 58 | K73: 0 | Q73: Отношение валовой прибыли к выручке
I74: Рентабельность активов (Return On Assets) (R2) | J74: =MAX(J$15:J73)+1 -> 59 | K74: 0 | Q74: Отношение среднемесячной чистой прибыли за период к уровню активов на конец периода
I75: Рентаб-сть собств. капитала (Return On Equity) (R3) | J75: =MAX(J$15:J74)+1 -> 60 | K75: 0 | Q75: Отношение среднемесячной чистой прибыли за период к уровню собственного капитала на конец периода
I76: Рент. инвестиций (Return On Invested Capital) (R4) | J76: =MAX(J$15:J75)+1 -> 61 | K76: 0 | Q76: Отношение среднемес. EBITDA за период к уровню инвестиций (собств.+долгосроч.) на конец периода
I77: Рент. об. капитала (Return On Working Capital) (R5) | J77: =MAX(J$15:J76)+1 -> 62 | K77: 0 | Q77: Отношение среднемес. марж. прибыли за период к уровню оборотного капитала на конец периода
I78: Оборачиваемость запасов и незавершенки | J78: =MAX(J$15:J77)+1 -> 63 | K78: 0
I79: Период оборач-сти запасов и незавершенки (P1) | J79: =MAX(J$15:J78)+1 -> 64 | K79: =IF(OR(I79=0,I79=""),0,IF(COUNTIF(I$15:I$100000,I79)=1,0,1)) -> 0
I80: Оборачиваемость дебиторской задолженности | J80: =MAX(J$15:J79)+1 -> 65 | K80: =IF(OR(I80=0,I80=""),0,IF(COUNTIF(I$15:I$100000,I80)=1,0,1)) -> 0
I81: Период оборач-ти дебит. задолженности (P2) | J81: =MAX(J$15:J80)+1 -> 66 | K81: =IF(OR(I81=0,I81=""),0,IF(COUNTIF(I$15:I$100000,I81)=1,0,1)) -> 0
I82: Оборачиваемость кредиторской задолженности | J82: =MAX(J$15:J81)+1 -> 67 | K82: =IF(OR(I82=0,I82=""),0,IF(COUNTIF(I$15:I$100000,I82)=1,0,1)) -> 0
I83: Период оборач-ти кредит. задолженности (P3) | J83: =MAX(J$15:J82)+1 -> 68 | K83: =IF(OR(I83=0,I83=""),0,IF(COUNTIF(I$15:I$100000,I83)=1,0,1)) -> 0
I84: Финансовый цикл (P4) | J84: =MAX(J$15:J83)+1 -> 69 | K84: =IF(OR(I84=0,I84=""),0,IF(COUNTIF(I$15:I$100000,I84)=1,0,1)) -> 0
I85: ТЕМПЫ РОСТА АКТИВОВ [T(A)] | J85: =MAX(J$15:J84)+1 -> 70 | K85: 0
I86: ТЕМПЫ РОСТА ВЫРУЧКИ [T(R)] | J86: =MAX(J$15:J85)+1 -> 71 | K86: 0
I87: ТЕМПЫ РОСТА ЧИСТОЙ ПРИБЫЛИ [T(E)] | J87: =MAX(J$15:J86)+1 -> 72 | K87: 0
J88: =MAX(J$15:J87)+1 -> 73 | K88: 0
J89: =MAX(J$15:J88)+1 -> 74 | K89: 0
J90: =MAX(J$15:J89)+1 -> 75 | K90: 0
J91: =MAX(J$15:J90)+1 -> 76 | K91: 0
J92: =MAX(J$15:J91)+1 -> 77 | K92: 0

Sheet Mrkting
Y1: номер столбца: | AA1: 27 | AB1: 28 | AC1: 29 | AD1: 30 | AE1: 31 | AF1: 32 | AG1: 33 | AH1: 34 | AI1: 35 | AJ1: 36 | AK1: 37 | AL1: 38 | AM1: 39 | AN1: 40 | AO1: 41 | AP1: 42 | AQ1: 43 | AR1: 44 | AS1: 45 | AT1: 46 | AU1: 47 | AV1: 48 | AW1: 49 | AX1: 50 | AY1: 51 | AZ1: 52 | BA1: 53 | BB1: 54 | BC1: 55 | BD1: 56 | BE1: 57 | BF1: 58 | BG1: 59 | BH1: 60 | BI1: 61 | BJ1: 62 | BK1: 63 | BL1: 64 | BM1: 65 | BN1: 66 | BO1: 67 | BP1: 68 | BQ1: 69 | BR1: 70 | BS1: 71 | BT1: 72 | BU1: 73 | BV1: 74 | BW1: 75 | BX1: 76 | BY1: 77 | BZ1: 78 | CA1: 79 | CB1: 80 | CC1: 81 | CD1: 82 | CE1: 83 | CF1: 84 | CG1: 85 | CH1: 86 | CI1: 87 | CJ1: 88 | CK1: 89 | CL1: 90 | CM1: 91 | CN1: 92 | CO1: 93 | CP1: 94 | CQ1: 95 | CR1: 96 | CS1: 97 | CT1: 98 | CU1: 99 | CV1: 100 | CW1: 101 | CX1: 102 | CY1: 103 | CZ1: 104 | DA1: 105 | DB1: 106 | DC1: 107 | DD1: 108 | DE1: 109 | DF1: 110 | DG1: 111 | DH1: 112 | DI1: 113 | DJ1: 114 | DK1: 115 | DL1: 116 | DM1: 117 | DN1: 118 | DO1: 119 | DP1: 120 | DQ1: 121 | DR1: 122 | DS1: 123 | DT1: 124 | DU1: 125 | DV1: 126 | DW1: 127 | DX1: 128 | DY1: 129 | DZ1: 130 | EA1: 131 | EB1: 132 | EC1: 133 | ED1: 134 | EE1: 135 | EF1: 136 | EG1: 137 | EH1: 138 | EI1: 139 | EJ1: 140 | EK1: 141 | EL1: 142 | EM1: 143 | EN1: 144 | EO1: 145 | EP1: 146 | EQ1: 147 | ER1: 148 | ES1: 149 | ET1: 150 | EU1: 151 | EV1: 152 | EW1: 153 | EX1: 154 | EY1: 155 | EZ1: 156 | FA1: 157 | FB1: 158 | FC1: 159
Y2: номер периода модели: | AA2: 1 | AB2: 2 | AC2: 3 | AD2: 4 | AE2: 5 | AF2: 6 | AG2: 7 | AH2: 8 | AI2: 9 | AJ2: 10 | AK2: 11 | AL2: 12 | AM2: 13 | AN2: 14 | AO2: 15 | AP2: 16 | AQ2: 17 | AR2: 18 | AS2: 19 | AT2: 20 | AU2: 21 | AV2: 22 | AW2: 23 | AX2: 24 | AY2: 25 | AZ2: 26 | BA2: 27 | BB2: 28 | BC2: 29 | BD2: 30 | BE2: 31 | BF2: 32 | BG2: 33 | BH2: 34 | BI2: 35 | BJ2: 36 | BK2: 37 | BL2: 38 | BM2: 39 | BN2: 40 | BO2: 41 | BP2: 42 | BQ2: 43 | BR2: 44 | BS2: 45 | BT2: 46 | BU2: 47 | BV2: 48 | BW2: 49 | BX2: 50 | BY2: 51 | BZ2: 52 | CA2: 53 | CB2: 54 | CC2: 55 | CD2: 56 | CE2: 57 | CF2: 58 | CG2: 59 | CH2: 60 | CI2: 61 | CJ2: 62 | CK2: 63 | CL2: 64 | CM2: 65 | CN2: 66 | CO2: 67 | CP2: 68 | CQ2: 69 | CR2: 70 | CS2: 71 | CT2: 72 | CU2: 73 | CV2: 74 | CW2: 75 | CX2: 76 | CY2: 77 | CZ2: 78 | DA2: 79 | DB2: 80 | DC2: 81 | DD2: 82 | DE2: 83 | DF2: 84 | DG2: 85 | DH2: 86 | DI2: 87 | DJ2: 88 | DK2: 89 | DL2: 90 | DM2: 91 | DN2: 92 | DO2: 93 | DP2: 94 | DQ2: 95 | DR2: 96 | DS2: 97 | DT2: 98 | DU2: 99 | DV2: 100 | DW2: 101 | DX2: 102 | DY2: 103 | DZ2: 104 | EA2: 105 | EB2: 106 | EC2: 107 | ED2: 108 | EE2: 109 | EF2: 110 | EG2: 111 | EH2: 112 | EI2: 113 | EJ2: 114 | EK2: 115 | EL2: 116 | EM2: 117 | EN2: 118 | EO2: 119 | EP2: 120 | EQ2: 121 | ER2: 122 | ES2: 123 | ET2: 124 | EU2: 125 | EV2: 126 | EW2: 127 | EX2: 128 | EY2: 129 | EZ2: 130 | FA2: 131 | FB2: 132 | FC2: 133
Y3: номер факт-периода:
Y4: номер план-периода: | AA4: 1 | AB4: 2 | AC4: 3 | AD4: 4 | AE4: 5 | AF4: 6 | AG4: 7 | AH4: 8 | AI4: 9 | AJ4: 10 | AK4: 11 | AL4: 12 | AM4: 13 | AN4: 14 | AO4: 15 | AP4: 16 | AQ4: 17 | AR4: 18 | AS4: 19 | AT4: 20 | AU4: 21 | AV4: 22 | AW4: 23 | AX4: 24 | AY4: 25 | AZ4: 26 | BA4: 27 | BB4: 28 | BC4: 29 | BD4: 30 | BE4: 31 | BF4: 32 | BG4: 33 | BH4: 34 | BI4: 35 | BJ4: 36 | BK4: 37 | BL4: 38 | BM4: 39 | BN4: 40 | BO4: 41 | BP4: 42 | BQ4: 43 | BR4: 44 | BS4: 45 | BT4: 46 | BU4: 47 | BV4: 48 | BW4: 49 | BX4: 50 | BY4: 51 | BZ4: 52 | CA4: 53 | CB4: 54 | CC4: 55 | CD4: 56 | CE4: 57 | CF4: 58 | CG4: 59 | CH4: 60 | CI4: 61 | CJ4: 62 | CK4: 63 | CL4: 64 | CM4: 65 | CN4: 66 | CO4: 67 | CP4: 68 | CQ4: 69 | CR4: 70 | CS4: 71 | CT4: 72 | CU4: 73 | CV4: 74 | CW4: 75 | CX4: 76 | CY4: 77 | CZ4: 78 | DA4: 79 | DB4: 80
Y5: число даты начала: | AA5: 1 | AB5: 1 | AC5: 1 | AD5: 1 | AE5: 1 | AF5: 1 | AG5: 1 | AH5: 1 | AI5: 1 | AJ5: 1 | AK5: 1 | AL5: 1 | AM5: 1 | AN5: 1 | AO5: 1 | AP5: 1 | AQ5: 1 | AR5: 1 | AS5: 1 | AT5: 1 | AU5: 1 | AV5: 1 | AW5: 1 | AX5: 1 | AY5: 1 | AZ5: 1 | BA5: 1 | BB5: 1 | BC5: 1 | BD5: 1 | BE5: 1 | BF5: 1 | BG5: 1 | BH5: 1 | BI5: 1 | BJ5: 1 | BK5: 1 | BL5: 1 | BM5: 1 | BN5: 1 | BO5: 1 | BP5: 1 | BQ5: 1 | BR5: 1 | BS5: 1 | BT5: 1 | BU5: 1 | BV5: 1 | BW5: 1 | BX5: 1 | BY5: 1 | BZ5: 1 | CA5: 1 | CB5: 1 | CC5: 1 | CD5: 1 | CE5: 1 | CF5: 1 | CG5: 1 | CH5: 1 | CI5: 1 | CJ5: 1 | CK5: 1 | CL5: 1 | CM5: 1 | CN5: 1 | CO5: 1 | CP5: 1 | CQ5: 1 | CR5: 1 | CS5: 1 | CT5: 1 | CU5: 1 | CV5: 1 | CW5: 1 | CX5: 1 | CY5: 1 | CZ5: 1 | DA5: 1 | DB5: 1
Y6: номер месяца даты начала: | AA6: 7 | AB6: 10 | AC6: 1 | AD6: 4 | AE6: 7 | AF6: 10 | AG6: 1 | AH6: 4 | AI6: 7 | AJ6: 10 | AK6: 1 | AL6: 4 | AM6: 7 | AN6: 10 | AO6: 1 | AP6: 4 | AQ6: 7 | AR6: 10 | AS6: 1 | AT6: 4 | AU6: 7 | AV6: 10 | AW6: 1 | AX6: 4 | AY6: 7 | AZ6: 10 | BA6: 1 | BB6: 4 | BC6: 7 | BD6: 10 | BE6: 1 | BF6: 4 | BG6: 7 | BH6: 10 | BI6: 1 | BJ6: 4 | BK6: 7 | BL6: 10 | BM6: 1 | BN6: 4 | BO6: 7 | BP6: 10 | BQ6: 1 | BR6: 4 | BS6: 7 | BT6: 10 | BU6: 1 | BV6: 4 | BW6: 7 | BX6: 10 | BY6: 1 | BZ6: 4 | CA6: 7 | CB6: 10 | CC6: 1 | CD6: 4 | CE6: 7 | CF6: 10 | CG6: 1 | CH6: 4 | CI6: 7 | CJ6: 10 | CK6: 1 | CL6: 4 | CM6: 7 | CN6: 10 | CO6: 1 | CP6: 4 | CQ6: 7 | CR6: 10 | CS6: 1 | CT6: 4 | CU6: 7 | CV6: 10 | CW6: 1 | CX6: 4 | CY6: 7 | CZ6: 10 | DA6: 1 | DB6: 4
Y7: год даты начала: | AA7: 21 | AB7: 21 | AC7: 22 | AD7: 22 | AE7: 22 | AF7: 22 | AG7: 23 | AH7: 23 | AI7: 23 | AJ7: 23 | AK7: 24 | AL7: 24 | AM7: 24 | AN7: 24 | AO7: 25 | AP7: 25 | AQ7: 25 | AR7: 25 | AS7: 26 | AT7: 26 | AU7: 26 | AV7: 26 | AW7: 27 | AX7: 27 | AY7: 27 | AZ7: 27 | BA7: 28 | BB7: 28 | BC7: 28 | BD7: 28 | BE7: 29 | BF7: 29 | BG7: 29 | BH7: 29 | BI7: 30 | BJ7: 30 | BK7: 30 | BL7: 30 | BM7: 31 | BN7: 31 | BO7: 31 | BP7: 31 | BQ7: 32 | BR7: 32 | BS7: 32 | BT7: 32 | BU7: 33 | BV7: 33 | BW7: 33 | BX7: 33 | BY7: 34 | BZ7: 34 | CA7: 34 | CB7: 34 | CC7: 35 | CD7: 35 | CE7: 35 | CF7: 35 | CG7: 36 | CH7: 36 | CI7: 36 | CJ7: 36 | CK7: 37 | CL7: 37 | CM7: 37 | CN7: 37 | CO7: 38 | CP7: 38 | CQ7: 38 | CR7: 38 | CS7: 39 | CT7: 39 | CU7: 39 | CV7: 39 | CW7: 40 | CX7: 40 | CY7: 40 | CZ7: 40 | DA7: 41 | DB7: 41
Y8: число даты окончания: | AA8: 30 | AB8: 31 | AC8: 31 | AD8: 30 | AE8: 30 | AF8: 31 | AG8: 31 | AH8: 30 | AI8: 30 | AJ8: 31 | AK8: 31 | AL8: 30 | AM8: 30 | AN8: 31 | AO8: 31 | AP8: 30 | AQ8: 30 | AR8: 31 | AS8: 31 | AT8: 30 | AU8: 30 | AV8: 31 | AW8: 31 | AX8: 30 | AY8: 30 | AZ8: 31 | BA8: 31 | BB8: 30 | BC8: 30 | BD8: 31 | BE8: 31 | BF8: 30 | BG8: 30 | BH8: 31 | BI8: 31 | BJ8: 30 | BK8: 30 | BL8: 31 | BM8: 31 | BN8: 30 | BO8: 30 | BP8: 31 | BQ8: 31 | BR8: 30 | BS8: 30 | BT8: 31 | BU8: 31 | BV8: 30 | BW8: 30 | BX8: 31 | BY8: 31 | BZ8: 30 | CA8: 30 | CB8: 31 | CC8: 31 | CD8: 30 | CE8: 30 | CF8: 31 | CG8: 31 | CH8: 30 | CI8: 30 | CJ8: 31 | CK8: 31 | CL8: 30 | CM8: 30 | CN8: 31 | CO8: 31 | CP8: 30 | CQ8: 30 | CR8: 31 | CS8: 31 | CT8: 30 | CU8: 30 | CV8: 31 | CW8: 31 | CX8: 30 | CY8: 30 | CZ8: 31 | DA8: 31 | DB8: 30
Y9: номер месяца даты окончания: | AA9: 9 | AB9: 12 | AC9: 3 | AD9: 6 | AE9: 9 | AF9: 12 | AG9: 3 | AH9: 6 | AI9: 9 | AJ9: 12 | AK9: 3 | AL9: 6 | AM9: 9 | AN9: 12 | AO9: 3 | AP9: 6 | AQ9: 9 | AR9: 12 | AS9: 3 | AT9: 6 | AU9: 9 | AV9: 12 | AW9: 3 | AX9: 6 | AY9: 9 | AZ9: 12 | BA9: 3 | BB9: 6 | BC9: 9 | BD9: 12 | BE9: 3 | BF9: 6 | BG9: 9 | BH9: 12 | BI9: 3 | BJ9: 6 | BK9: 9 | BL9: 12 | BM9: 3 | BN9: 6 | BO9: 9 | BP9: 12 | BQ9: 3 | BR9: 6 | BS9: 9 | BT9: 12 | BU9: 3 | BV9: 6 | BW9: 9 | BX9: 12 | BY9: 3 | BZ9: 6 | CA9: 9 | CB9: 12 | CC9: 3 | CD9: 6 | CE9: 9 | CF9: 12 | CG9: 3 | CH9: 6 | CI9: 9 | CJ9: 12 | CK9: 3 | CL9: 6 | CM9: 9 | CN9: 12 | CO9: 3 | CP9: 6 | CQ9: 9 | CR9: 12 | CS9: 3 | CT9: 6 | CU9: 9 | CV9: 12 | CW9: 3 | CX9: 6 | CY9: 9 | CZ9: 12 | DA9: 3 | DB9: 6
Y10: год даты окончания: | AA10: 21 | AB10: 21 | AC10: 22 | AD10: 22 | AE10: 22 | AF10: 22 | AG10: 23 | AH10: 23 | AI10: 23 | AJ10: 23 | AK10: 24 | AL10: 24 | AM10: 24 | AN10: 24 | AO10: 25 | AP10: 25 | AQ10: 25 | AR10: 25 | AS10: 26 | AT10: 26 | AU10: 26 | AV10: 26 | AW10: 27 | AX10: 27 | AY10: 27 | AZ10: 27 | BA10: 28 | BB10: 28 | BC10: 28 | BD10: 28 | BE10: 29 | BF10: 29 | BG10: 29 | BH10: 29 | BI10: 30 | BJ10: 30 | BK10: 30 | BL10: 30 | BM10: 31 | BN10: 31 | BO10: 31 | BP10: 31 | BQ10: 32 | BR10: 32 | BS10: 32 | BT10: 32 | BU10: 33 | BV10: 33 | BW10: 33 | BX10: 33 | BY10: 34 | BZ10: 34 | CA10: 34 | CB10: 34 | CC10: 35 | CD10: 35 | CE10: 35 | CF10: 35 | CG10: 36 | CH10: 36 | CI10: 36 | CJ10: 36 | CK10: 37 | CL10: 37 | CM10: 37 | CN10: 37 | CO10: 38 | CP10: 38 | CQ10: 38 | CR10: 38 | CS10: 39 | CT10: 39 | CU10: 39 | CV10: 39 | CW10: 40 | CX10: 40 | CY10: 40 | CZ10: 40 | DA10: 41 | DB10: 41
F11: Mrkting | I11: Маркетинг. Параметры рынков сбыта и каналов привлечения клиентов | Q11: все включает НДС | X11: 2021-07-01 | AA11: 2021-07-01 | AB11: 2021-10-01 | AC11: 2022-01-01 | AD11: 2022-04-01 | AE11: 2022-07-01 | AF11: 2022-10-01 | AG11: 2023-01-01 | AH11: 2023-04-01 | AI11: 2023-07-01 | AJ11: 2023-10-01 | AK11: 2024-01-01 | AL11: 2024-04-01 | AM11: 2024-07-01 | AN11: 2024-10-01 | AO11: 2025-01-01 | AP11: 2025-04-01 | AQ11: 2025-07-01 | AR11: 2025-10-01 | AS11: 2026-01-01 | AT11: 2026-04-01 | AU11: 2026-07-01 | AV11: 2026-10-01 | AW11: 2027-01-01 | AX11: 2027-04-01 | AY11: 2027-07-01 | AZ11: 2027-10-01 | BA11: 2028-01-01 | BB11: 2028-04-01 | BC11: 2028-07-01 | BD11: 2028-10-01 | BE11: 2029-01-01 | BF11: 2029-04-01 | BG11: 2029-07-01 | BH11: 2029-10-01 | BI11: 2030-01-01 | BJ11: 2030-04-01 | BK11: 2030-07-01 | BL11: 2030-10-01 | BM11: 2031-01-01 | BN11: 2031-04-01 | BO11: 2031-07-01 | BP11: 2031-10-01 | BQ11: 2032-01-01 | BR11: 2032-04-01 | BS11: 2032-07-01 | BT11: 2032-10-01 | BU11: 2033-01-01 | BV11: 2033-04-01 | BW11: 2033-07-01 | BX11: 2033-10-01 | BY11: 2034-01-01 | BZ11: 2034-04-01 | CA11: 2034-07-01 | CB11: 2034-10-01 | CC11: 2035-01-01 | CD11: 2035-04-01 | CE11: 2035-07-01 | CF11: 2035-10-01 | CG11: 2036-01-01 | CH11: 2036-04-01 | CI11: 2036-07-01 | CJ11: 2036-10-01 | CK11: 2037-01-01 | CL11: 2037-04-01 | CM11: 2037-07-01 | CN11: 2037-10-01 | CO11: 2038-01-01 | CP11: 2038-04-01 | CQ11: 2038-07-01 | CR11: 2038-10-01 | CS11: 2039-01-01 | CT11: 2039-04-01 | CU11: 2039-07-01 | CV11: 2039-10-01 | CW11: 2040-01-01 | CX11: 2040-04-01 | CY11: 2040-07-01 | CZ11: 2040-10-01 | DA11: 2041-01-01 | DB11: 2041-04-01
H12: тип листа | Q12: расчетный | X12: 2041-06-30 | AA12: 2021-09-30 | AB12: 2021-12-31 | AC12: 2022-03-31 | AD12: 2022-06-30 | AE12: 2022-09-30 | AF12: 2022-12-31 | AG12: 2023-03-31 | AH12: 2023-06-30 | AI12: 2023-09-30 | AJ12: 2023-12-31 | AK12: 2024-03-31 | AL12: 2024-06-30 | AM12: 2024-09-30 | AN12: 2024-12-31 | AO12: 2025-03-31 | AP12: 2025-06-30 | AQ12: 2025-09-30 | AR12: 2025-12-31 | AS12: 2026-03-31 | AT12: 2026-06-30 | AU12: 2026-09-30 | AV12: 2026-12-31 | AW12: 2027-03-31 | AX12: 2027-06-30 | AY12: 2027-09-30 | AZ12: 2027-12-31 | BA12: 2028-03-31 | BB12: 2028-06-30 | BC12: 2028-09-30 | BD12: 2028-12-31 | BE12: 2029-03-31 | BF12: 2029-06-30 | BG12: 2029-09-30 | BH12: 2029-12-31 | BI12: 2030-03-31 | BJ12: 2030-06-30 | BK12: 2030-09-30 | BL12: 2030-12-31 | BM12: 2031-03-31 | BN12: 2031-06-30 | BO12: 2031-09-30 | BP12: 2031-12-31 | BQ12: 2032-03-31 | BR12: 2032-06-30 | BS12: 2032-09-30 | BT12: 2032-12-31 | BU12: 2033-03-31 | BV12: 2033-06-30 | BW12: 2033-09-30 | BX12: 2033-12-31 | BY12: 2034-03-31 | BZ12: 2034-06-30 | CA12: 2034-09-30 | CB12: 2034-12-31 | CC12: 2035-03-31 | CD12: 2035-06-30 | CE12: 2035-09-30 | CF12: 2035-12-31 | CG12: 2036-03-31 | CH12: 2036-06-30 | CI12: 2036-09-30 | CJ12: 2036-12-31 | CK12: 2037-03-31 | CL12: 2037-06-30 | CM12: 2037-09-30 | CN12: 2037-12-31 | CO12: 2038-03-31 | CP12: 2038-06-30 | CQ12: 2038-09-30 | CR12: 2038-12-31 | CS12: 2039-03-31 | CT12: 2039-06-30 | CU12: 2039-09-30 | CV12: 2039-12-31 | CW12: 2040-03-31 | CX12: 2040-06-30 | CY12: 2040-09-30 | CZ12: 2040-12-31 | DA12: 2041-03-31 | DB12: 2041-06-30
H13: показатель | M13: ед.изм. | Q13: значение | X13: итого | AA13: 3кв21г | AB13: 4кв21г | AC13: 1кв22г | AD13: 2кв22г | AE13: 3кв22г | AF13: 4кв22г | AG13: 1кв23г | AH13: 2кв23г | AI13: 3кв23г | AJ13: 4кв23г | AK13: 1кв24г | AL13: 2кв24г | AM13: 3кв24г | AN13: 4кв24г | AO13: 1кв25г | AP13: 2кв25г | AQ13: 3кв25г | AR13: 4кв25г | AS13: 1кв26г | AT13: 2кв26г | AU13: 3кв26г | AV13: 4кв26г | AW13: 1кв27г | AX13: 2кв27г | AY13: 3кв27г | AZ13: 4кв27г | BA13: 1кв28г | BB13: 2кв28г | BC13: 3кв28г | BD13: 4кв28г | BE13: 1кв29г | BF13: 2кв29г | BG13: 3кв29г | BH13: 4кв29г | BI13: 1кв30г | BJ13: 2кв30г | BK13: 3кв30г | BL13: 4кв30г | BM13: 1кв31г | BN13: 2кв31г | BO13: 3кв31г | BP13: 4кв31г | BQ13: 1кв32г | BR13: 2кв32г | BS13: 3кв32г | BT13: 4кв32г | BU13: 1кв33г | BV13: 2кв33г | BW13: 3кв33г | BX13: 4кв33г | BY13: 1кв34г | BZ13: 2кв34г | CA13: 3кв34г | CB13: 4кв34г | CC13: 1кв35г | CD13: 2кв35г | CE13: 3кв35г | CF13: 4кв35г | CG13: 1кв36г | CH13: 2кв36г | CI13: 3кв36г | CJ13: 4кв36г | CK13: 1кв37г | CL13: 2кв37г | CM13: 3кв37г | CN13: 4кв37г | CO13: 1кв38г | CP13: 2кв38г | CQ13: 3кв38г | CR13: 4кв38г | CS13: 1кв39г | CT13: 2кв39г | CU13: 3кв39г | CV13: 4кв39г | CW13: 1кв40г | CX13: 2кв40г | CY13: 3кв40г | CZ13: 4кв40г | DA13: 1кв41г | DB13: 2кв41г
D14: 0 | E14: 0 | F14: 0 | G14: 0 | S14: 0 | T14: 0
A15: 15 | H15: разработка финмоделей: https://mngmnt.ru/ | Y15: обратный порядок периодизации | AA15: 133 | AB15: 132 | AC15: 131 | AD15: 130 | AE15: 129 | AF15: 128 | AG15: 127 | AH15: 126 | AI15: 125 | AJ15: 124 | AK15: 123 | AL15: 122 | AM15: 121 | AN15: 120 | AO15: 119 | AP15: 118 | AQ15: 117 | AR15: 116 | AS15: 115 | AT15: 114 | AU15: 113 | AV15: 112 | AW15: 111 | AX15: 110 | AY15: 109 | AZ15: 108 | BA15: 107 | BB15: 106 | BC15: 105 | BD15: 104 | BE15: 103 | BF15: 102 | BG15: 101 | BH15: 100 | BI15: 99 | BJ15: 98 | BK15: 97 | BL15: 96 | BM15: 95 | BN15: 94 | BO15: 93 | BP15: 92 | BQ15: 91 | BR15: 90 | BS15: 89 | BT15: 88 | BU15: 87 | BV15: 86 | BW15: 85 | BX15: 84 | BY15: 83 | BZ15: 82 | CA15: 81 | CB15: 80 | CC15: 79 | CD15: 78 | CE15: 77 | CF15: 76 | CG15: 75 | CH15: 74 | CI15: 73 | CJ15: 72 | CK15: 71 | CL15: 70 | CM15: 69 | CN15: 68 | CO15: 67 | CP15: 66 | CQ15: 65 | CR15: 64 | CS15: 63 | CT15: 62 | CU15: 61 | CV15: 60 | CW15: 59 | CX15: 58 | CY15: 57 | CZ15: 56 | DA15: 55 | DB15: 54 | DC15: 53 | DD15: 52 | DE15: 51 | DF15: 50 | DG15: 49 | DH15: 48 | DI15: 47 | DJ15: 46 | DK15: 45 | DL15: 44 | DM15: 43 | DN15: 42 | DO15: 41 | DP15: 40 | DQ15: 39 | DR15: 38 | DS15: 37 | DT15: 36 | DU15: 35 | DV15: 34 | DW15: 33 | DX15: 32 | DY15: 31 | DZ15: 30 | EA15: 29 | EB15: 28 | EC15: 27 | ED15: 26 | EE15: 25 | EF15: 24 | EG15: 23 | EH15: 22 | EI15: 21 | EJ15: 20 | EK15: 19 | EL15: 18 | EM15: 17 | EN15: 16 | EO15: 15 | EP15: 14 | EQ15: 13 | ER15: 12 | ES15: 11 | ET15: 10 | EU15: 9 | EV15: 8 | EW15: 7 | EX15: 6 | EY15: 5 | EZ15: 4 | FA15: 3 | FB15: 2 | FC15: 1
A16: 16 | G16: 0 | H16: Метод расчета потока добычи-продаж | K16: 1 | L16: Канал добычи и сбыта - 1
A17: 17 | G17: 0 | H17: Метод расчета потока добычи-продаж | I17: Торговые направления (ТН) - Поток продаж | L17: начало 1 маркетингового блока
A18: 18
A19: 19 | G19: 0 | H19: Поток запусков бурения скважин | L19: 1 | M19: кол-во скважин | Q19: запуски процесса | X19: 6 | AA19: 0 | AB19: 0 | AC19: 0 | AD19: 0 | AE19: 1 | AF19: 0 | AG19: 1 | AH19: 0 | AI19: 1 | AJ19: 0 | AK19: 1 | AL19: 0 | AM19: 1 | AN19: 0 | AO19: 1 | AP19: 0 | AQ19: 0 | AR19: 0 | AS19: 0 | AT19: 0 | AU19: 0 | AV19: 0 | AW19: 0 | AX19: 0 | AY19: 0 | AZ19: 0 | BA19: 0 | BB19: 0 | BC19: 0 | BD19: 0 | BE19: 0 | BF19: 0 | BG19: 0 | BH19: 0 | BI19: 0 | BJ19: 0 | BK19: 0 | BL19: 0 | BM19: 0 | BN19: 0 | BO19: 0 | BP19: 0 | BQ19: 0 | BR19: 0 | BS19: 0 | BT19: 0 | BU19: 0 | BV19: 0 | BW19: 0 | BX19: 0 | BY19: 0 | BZ19: 0 | CA19: 0 | CB19: 0 | CC19: 0 | CD19: 0 | CE19: 0 | CF19: 0 | CG19: 0 | CH19: 0 | CI19: 0 | CJ19: 0 | CK19: 0 | CL19: 0 | CM19: 0 | CN19: 0 | CO19: 0 | CP19: 0 | CQ19: 0 | CR19: 0 | CS19: 0 | CT19: 0 | CU19: 0 | CV19: 0 | CW19: 0 | CX19: 0 | CY19: 0 | CZ19: 0 | DA19: 0 | DB19: 0 | DC19: 0 | DD19: 0 | DE19: 0 | DF19: 0 | DG19: 0 | DH19: 0 | DI19: 0 | DJ19: 0 | DK19: 0 | DL19: 0 | DM19: 0 | DN19: 0 | DO19: 0 | DP19: 0 | DQ19: 0 | DR19: 0 | DS19: 0 | DT19: 0 | DU19: 0 | DV19: 0 | DW19: 0 | DX19: 0 | DY19: 0 | DZ19: 0 | EA19: 0 | EB19: 0 | EC19: 0 | ED19: 0 | EE19: 0 | EF19: 0 | EG19: 0 | EH19: 0 | EI19: 0 | EJ19: 0 | EK19: 0 | EL19: 0 | EM19: 0 | EN19: 0 | EO19: 0 | EP19: 0 | EQ19: 0 | ER19: 0 | ES19: 0 | ET19: 0 | EU19: 0 | EV19: 0 | EW19: 0 | EX19: 0 | EY19: 0 | EZ19: 0 | FA19: 0 | FB19: 0 | FC19: 0
A20: 20 | G20: 0 | H20: дата старта | I20: Начальная дата старта запусков бурения | M20: дата из списка | P20: * | Q20: 2022-07-01 | R20: ^ | S20: 0 | Y20: идентификаторы запуска | AA20: 0 | AB20: 0 | AC20: 0 | AD20: 0 | AE20: 1 | AF20: 0 | AG20: 1 | AH20: 0 | AI20: 1 | AJ20: 0 | AK20: 1 | AL20: 0 | AM20: 1 | AN20: 0 | AO20: 1 | AP20: 0 | AQ20: 0 | AR20: 0 | AS20: 0 | AT20: 0 | AU20: 0 | AV20: 0 | AW20: 0 | AX20: 0 | AY20: 0 | AZ20: 0 | BA20: 0 | BB20: 0 | BC20: 0 | BD20: 0 | BE20: 0 | BF20: 0 | BG20: 0 | BH20: 0 | BI20: 0 | BJ20: 0 | BK20: 0 | BL20: 0 | BM20: 0 | BN20: 0 | BO20: 0 | BP20: 0 | BQ20: 0 | BR20: 0 | BS20: 0 | BT20: 0 | BU20: 0 | BV20: 0 | BW20: 0 | BX20: 0 | BY20: 0 | BZ20: 0 | CA20: 0 | CB20: 0 | CC20: 0 | CD20: 0 | CE20: 0 | CF20: 0 | CG20: 0 | CH20: 0 | CI20: 0 | CJ20: 0 | CK20: 0 | CL20: 0 | CM20: 0 | CN20: 0 | CO20: 0 | CP20: 0 | CQ20: 0 | CR20: 0 | CS20: 0 | CT20: 0 | CU20: 0 | CV20: 0 | CW20: 0 | CX20: 0 | CY20: 0 | CZ20: 0 | DA20: 0 | DB20: 0 | DC20: 0 | DD20: 0 | DE20: 0 | DF20: 0 | DG20: 0 | DH20: 0 | DI20: 0 | DJ20: 0 | DK20: 0 | DL20: 0 | DM20: 0 | DN20: 0 | DO20: 0 | DP20: 0 | DQ20: 0 | DR20: 0 | DS20: 0 | DT20: 0 | DU20: 0 | DV20: 0 | DW20: 0 | DX20: 0 | DY20: 0 | DZ20: 0 | EA20: 0 | EB20: 0 | EC20: 0 | ED20: 0 | EE20: 0 | EF20: 0 | EG20: 0 | EH20: 0 | EI20: 0 | EJ20: 0 | EK20: 0 | EL20: 0 | EM20: 0 | EN20: 0 | EO20: 0 | EP20: 0 | EQ20: 0 | ER20: 0 | ES20: 0 | ET20: 0 | EU20: 0 | EV20: 0 | EW20: 0 | EX20: 0 | EY20: 0 | EZ20: 0 | FA20: 0 | FB20: 0 | FC20: 0
A21: 21 | G21: 0 | H21: Поток запусков бурения скважин | I21: номер соответствующего периода расчетов | M21: номер периода | Q21: 5 | S21: 0 | T21: 0
A22: 22 | G22: 0 | H22: дата старта | I22: Конечная дата активности по запуску бурения | M22: дата из списка | P22: * | Q22: 2025-01-01 | R22: ^ | S22: 0
A23: 23 | G23: 0 | H23: Поток запусков бурения скважин | I23: номер соответствующего периода расчетов | M23: номер периода | Q23: 15 | S23: 0 | T23: 0
A24: 24 | G24: 0 | H24: Поток запусков бурения скважин | I24: Задание потока запусков бурения вручную | M24: кол-во скважин | X24: 0 | Y24: *
A25: 25 | G25: 0 | H25: Поток запусков бурения скважин | I25: Задание потока запусков бурения через прогрессии
A26: 26 | G26: 0 | H26: Поток запусков бурения скважин | I26: Задание потока запусков бурения через прогрессии | J26: Начальная частота запусков бурения | M26: кол-во периодов | P26: * | Q26: 2 | S26: 0
A27: 27 | G27: 0 | H27: Поток запусков бурения скважин | I27: Задание потока запусков бурения через прогрессии | J27: Лин. коэфф. изменения частоты бурения | M27: кол-во периодов | P27: * | Q27: 0 | S27: 0
A28: 28 | G28: 0 | H28: дата старта | I28: Задание потока запусков бурения через прогрессии | J28: Кол-во запусков бурения в 1-ый период | M28: кол-во скважин | P28: * | Q28: 1 | S28: 0
A29: 29 | G29: 0 | H29: Поток запусков бурения скважин | I29: Задание потока запусков бурения через прогрессии | J29: Лин. коэфф. изменения кол-ва запусков бурения | M29: кол-во скважин | P29: * | Q29: 0 | S29: 0
A30: 30 | G30: 0 | H30: дата старта | I30: Задание потока запусков бурения через прогрессии | J30: Максимальное кол-во новых запусков за период | M30: кол-во скважин | P30: * | Q30: 1 | S30: 0
A31: 31
A32: 32 | G32: 0 | H32: Расчет среднего дебита на 15-тый год скважины | M32: млн.куб.м./период | Q32: 450 | T32: 0
A33: 33 | G33: 0 | H33: Расчет среднего дебита на 15-тый год скважины | I33: Кол-во рабочих дней в периоде | M33: кол-во дней | P33: * | Q33: 90 | S33: 0
A34: 34 | G34: 0 | H34: Расчет среднего дебита на 15-тый год скважины | I34: Поправка на фактор-1 | M34: % | P34: * | Q34: 1 | S34: 0
A35: 35 | G35: 0 | H35: Расчет среднего дебита на 15-тый год скважины | I35: Поправка на фактор-2 | M35: % | P35: * | Q35: 1 | S35: 0
A36: 36 | G36: 0 | H36: Расчет среднего дебита на 15-тый год скважины | I36: Поправка на фактор-3 | M36: % | P36: * | Q36: 1 | S36: 0
A37: 37 | G37: 0 | H37: Расчет среднего дебита на 15-тый год скважины | I37: Ежедневный дебит | M37: млн.куб.м./сут. | P37: M | Q37: 5 | S37: 0
A38: 38
A39: 39 | G39: 0 | H39: Динамика выхода 1-ой скважины на средний дебит | M39: млн.куб.м./скваж. | Q39: процесс | X39: 35550 | AA39: 0 | AB39: 450 | AC39: 450 | AD39: 450 | AE39: 450 | AF39: 450 | AG39: 450 | AH39: 450 | AI39: 450 | AJ39: 450 | AK39: 450 | AL39: 450 | AM39: 450 | AN39: 450 | AO39: 450 | AP39: 450 | AQ39: 450 | AR39: 450 | AS39: 450 | AT39: 450 | AU39: 450 | AV39: 450 | AW39: 450 | AX39: 450 | AY39: 450 | AZ39: 450 | BA39: 450 | BB39: 450 | BC39: 450 | BD39: 450 | BE39: 450 | BF39: 450 | BG39: 450 | BH39: 450 | BI39: 450 | BJ39: 450 | BK39: 450 | BL39: 450 | BM39: 450 | BN39: 450 | BO39: 450 | BP39: 450 | BQ39: 450 | BR39: 450 | BS39: 450 | BT39: 450 | BU39: 450 | BV39: 450 | BW39: 450 | BX39: 450 | BY39: 450 | BZ39: 450 | CA39: 450 | CB39: 450 | CC39: 450 | CD39: 450 | CE39: 450 | CF39: 450 | CG39: 450 | CH39: 450 | CI39: 450 | CJ39: 450 | CK39: 450 | CL39: 450 | CM39: 450 | CN39: 450 | CO39: 450 | CP39: 450 | CQ39: 450 | CR39: 450 | CS39: 450 | CT39: 450 | CU39: 450 | CV39: 450 | CW39: 450 | CX39: 450 | CY39: 450 | CZ39: 450 | DA39: 450 | DB39: 450 | DC39: 0 | DD39: 0 | DE39: 0 | DF39: 0 | DG39: 0 | DH39: 0 | DI39: 0 | DJ39: 0 | DK39: 0 | DL39: 0 | DM39: 0 | DN39: 0 | DO39: 0 | DP39: 0 | DQ39: 0 | DR39: 0 | DS39: 0 | DT39: 0 | DU39: 0 | DV39: 0 | DW39: 0 | DX39: 0 | DY39: 0 | DZ39: 0 | EA39: 0 | EB39: 0 | EC39: 0 | ED39: 0 | EE39: 0 | EF39: 0 | EG39: 0 | EH39: 0 | EI39: 0 | EJ39: 0 | EK39: 0 | EL39: 0 | EM39: 0 | EN39: 0 | EO39: 0 | EP39: 0 | EQ39: 0 | ER39: 0 | ES39: 0 | ET39: 0 | EU39: 0 | EV39: 0 | EW39: 0 | EX39: 0 | EY39: 0 | EZ39: 0 | FA39: 0 | FB39: 0 | FC39: 0
A40: 40 | G40: 0 | H40: Динамика выхода 1-ой скважины на средний дебит | I40: Стартовый период с запуска бурения | M40: номер периода | P40: * | Q40: 2 | S40: 0
A41: 41 | G41: 0 | H41: Динамика выхода 1-ой скважины на средний дебит | I41: Финишный период с запуска бурения | M41: номер периода | P41: * | S41: 0
A42: 42 | G42: 0 | H42: Динамика выхода 1-ой скважины на средний дебит | I42: Вручную для каждого периода расчетов | M42: млн.куб.м./скваж. | X42: 0 | Y42: *
A43: 43 | G43: 0 | H43: тип прогрессии | I43: Через прогрессию | P43: * | Q43: линейная | R43: ^ | S43: 0
A44: 44 | G44: 0 | H44: Динамика выхода 1-ой скважины на средний дебит | I44: Значение в стартовый период | M44: млн.куб.м./скваж. | P44: M | Q44: 450 | S44: 0
A45: 45 | G45: 0 | H45: Динамика выхода 1-ой скважины на средний дебит | I45: Коэффициент прироста | M45: млн.куб.м./скваж. | P45: M | Q45: 0 | S45: 0
A46: 46 | G46: 0 | H46: Динамика выхода 1-ой скважины на средний дебит | I46: Частота приростов | M46: кол-во периодов | P46: M | Q46: 1 | S46: 0
A47: 47 | G47: 0 | H47: Динамика выхода 1-ой скважины на средний дебит | I47: Обратное распределение дебита | M47: млн.куб.м./скваж. | X47: 35550 | AA47: 0 | AB47: 0 | AC47: 0 | AD47: 0 | AE47: 0 | AF47: 0 | AG47: 0 | AH47: 0 | AI47: 0 | AJ47: 0 | AK47: 0 | AL47: 0 | AM47: 0 | AN47: 0 | AO47: 0 | AP47: 0 | AQ47: 0 | AR47: 0 | AS47: 0 | AT47: 0 | AU47: 0 | AV47: 0 | AW47: 0 | AX47: 0 | AY47: 0 | AZ47: 0 | BA47: 0 | BB47: 0 | BC47: 0 | BD47: 0 | BE47: 0 | BF47: 0 | BG47: 0 | BH47: 0 | BI47: 0 | BJ47: 0 | BK47: 0 | BL47: 0 | BM47: 0 | BN47: 0 | BO47: 0 | BP47: 0 | BQ47: 0 | BR47: 0 | BS47: 0 | BT47: 0 | BU47: 0 | BV47: 0 | BW47: 0 | BX47: 0 | BY47: 0 | BZ47: 0 | CA47: 0 | CB47: 450 | CC47: 450 | CD47: 450 | CE47: 450 | CF47: 450 | CG47: 450 | CH47: 450 | CI47: 450 | CJ47: 450 | CK47: 450 | CL47: 450 | CM47: 450 | CN47: 450 | CO47: 450 | CP47: 450 | CQ47: 450 | CR47: 450 | CS47: 450 | CT47: 450 | CU47: 450 | CV47: 450 | CW47: 450 | CX47: 450 | CY47: 450 | CZ47: 450 | DA47: 450 | DB47: 450 | DC47: 450 | DD47: 450 | DE47: 450 | DF47: 450 | DG47: 450 | DH47: 450 | DI47: 450 | DJ47: 450 | DK47: 450 | DL47: 450 | DM47: 450 | DN47: 450 | DO47: 450 | DP47: 450 | DQ47: 450 | DR47: 450 | DS47: 450 | DT47: 450 | DU47: 450 | DV47: 450 | DW47: 450 | DX47: 450 | DY47: 450 | DZ47: 450 | EA47: 450 | EB47: 450 | EC47: 450 | ED47: 450 | EE47: 450 | EF47: 450 | EG47: 450 | EH47: 450 | EI47: 450 | EJ47: 450 | EK47: 450 | EL47: 450 | EM47: 450 | EN47: 450 | EO47: 450 | EP47: 450 | EQ47: 450 | ER47: 450 | ES47: 450 | ET47: 450 | EU47: 450 | EV47: 450 | EW47: 450 | EX47: 450 | EY47: 450 | EZ47: 450 | FA47: 450 | FB47: 450 | FC47: 0
A48: 48 | G48: 0 | H48: Динамика выхода 1-ой скважины на средний дебит | I48: Процентное распределние дебита | M48: % | T48: 0 | X48: 1 | AA48: 0 | AB48: 0.01265822785 | AC48: 0.01265822785 | AD48: 0.01265822785 | AE48: 0.01265822785 | AF48: 0.01265822785 | AG48: 0.01265822785 | AH48: 0.01265822785 | AI48: 0.01265822785 | AJ48: 0.01265822785 | AK48: 0.01265822785 | AL48: 0.01265822785 | AM48: 0.01265822785 | AN48: 0.01265822785 | AO48: 0.01265822785 | AP48: 0.01265822785 | AQ48: 0.01265822785 | AR48: 0.01265822785 | AS48: 0.01265822785 | AT48: 0.01265822785 | AU48: 0.01265822785 | AV48: 0.01265822785 | AW48: 0.01265822785 | AX48: 0.01265822785 | AY48: 0.01265822785 | AZ48: 0.01265822785 | BA48: 0.01265822785 | BB48: 0.01265822785 | BC48: 0.01265822785 | BD48: 0.01265822785 | BE48: 0.01265822785 | BF48: 0.01265822785 | BG48: 0.01265822785 | BH48: 0.01265822785 | BI48: 0.01265822785 | BJ48: 0.01265822785 | BK48: 0.01265822785 | BL48: 0.01265822785 | BM48: 0.01265822785 | BN48: 0.01265822785 | BO48: 0.01265822785 | BP48: 0.01265822785 | BQ48: 0.01265822785 | BR48: 0.01265822785 | BS48: 0.01265822785 | BT48: 0.01265822785 | BU48: 0.01265822785 | BV48: 0.01265822785 | BW48: 0.01265822785 | BX48: 0.01265822785 | BY48: 0.01265822785 | BZ48: 0.01265822785 | CA48: 0.01265822785 | CB48: 0.01265822785 | CC48: 0.01265822785 | CD48: 0.01265822785 | CE48: 0.01265822785 | CF48: 0.01265822785 | CG48: 0.01265822785 | CH48: 0.01265822785 | CI48: 0.01265822785 | CJ48: 0.01265822785 | CK48: 0.01265822785 | CL48: 0.01265822785 | CM48: 0.01265822785 | CN48: 0.01265822785 | CO48: 0.01265822785 | CP48: 0.01265822785 | CQ48: 0.01265822785 | CR48: 0.01265822785 | CS48: 0.01265822785 | CT48: 0.01265822785 | CU48: 0.01265822785 | CV48: 0.01265822785 | CW48: 0.01265822785 | CX48: 0.01265822785 | CY48: 0.01265822785 | CZ48: 0.01265822785 | DA48: 0.01265822785 | DB48: 0.01265822785 | DC48: 0 | DD48: 0 | DE48: 0 | DF48: 0 | DG48: 0 | DH48: 0 | DI48: 0 | DJ48: 0 | DK48: 0 | DL48: 0 | DM48: 0 | DN48: 0 | DO48: 0 | DP48: 0 | DQ48: 0 | DR48: 0 | DS48: 0 | DT48: 0 | DU48: 0 | DV48: 0 | DW48: 0 | DX48: 0 | DY48: 0 | DZ48: 0 | EA48: 0 | EB48: 0 | EC48: 0 | ED48: 0 | EE48: 0 | EF48: 0 | EG48: 0 | EH48: 0 | EI48: 0 | EJ48: 0 | EK48: 0 | EL48: 0 | EM48: 0 | EN48: 0 | EO48: 0 | EP48: 0 | EQ48: 0 | ER48: 0 | ES48: 0 | ET48: 0 | EU48: 0 | EV48: 0 | EW48: 0 | EX48: 0 | EY48: 0 | EZ48: 0 | FA48: 0 | FB48: 0 | FC48: 0
A49: 49
A50: 50 | G50: 0 | H50: Учет влияния сезонности | M50: за 100% берется максимальный дебит за период
A51: 51 | G51: 0 | H51: Учет влияния сезонности | I51: Номера месяцев года
A52: 52 | G52: 0 | H52: Учет влияния сезонности | I52: Номера месяцев года | J52: 1 | M52: % | P52: * | Q52: 1 | S52: 0
A53: 53 | G53: 0 | H53: Учет влияния сезонности | I53: Номера месяцев года | J53: 2 | M53: % | P53: * | Q53: 1 | S53: 0
A54: 54 | G54: 0 | H54: Учет влияния сезонности | I54: Номера месяцев года | J54: 3 | M54: % | P54: * | Q54: 1 | S54: 0
A55: 55 | G55: 0 | H55: Учет влияния сезонности | I55: Номера месяцев года | J55: 4 | M55: % | P55: * | Q55: 1 | S55: 0
A56: 56 | G56: 0 | H56: Учет влияния сезонности | I56: Номера месяцев года | J56: 5 | M56: % | P56: * | Q56: 1 | S56: 0
A57: 57 | G57: 0 | H57: Учет влияния сезонности | I57: Номера месяцев года | J57: 6 | M57: % | P57: * | Q57: 1 | S57: 0
A58: 58 | G58: 0 | H58: Учет влияния сезонности | I58: Номера месяцев года | J58: 7 | M58: % | P58: * | Q58: 1 | S58: 0
A59: 59 | G59: 0 | H59: Учет влияния сезонности | I59: Номера месяцев года | J59: 8 | M59: % | P59: * | Q59: 1 | S59: 0
A60: 60 | G60: 0 | H60: Учет влияния сезонности | I60: Номера месяцев года | J60: 9 | M60: % | P60: * | Q60: 1 | S60: 0
A61: 61 | G61: 0 | H61: Учет влияния сезонности | I61: Номера месяцев года | J61: 10 | M61: % | P61: * | Q61: 1 | S61: 0
A62: 62 | G62: 0 | H62: Учет влияния сезонности | I62: Номера месяцев года | J62: 11 | M62: % | P62: * | Q62: 1 | S62: 0
A63: 63 | G63: 0 | H63: Учет влияния сезонности | I63: Номера месяцев года | J63: 12 | M63: % | P63: * | Q63: 1 | S63: 0
A64: 64
A65: 65 | G65: 0 | H65: Итоговый дебит газа | L65: 1 | M65: млн.куб.м. | X65: 189000 | AA65: 0 | AB65: 0 | AC65: 0 | AD65: 0 | AE65: 0 | AF65: 450 | AG65: 450 | AH65: 900 | AI65: 900 | AJ65: 1350 | AK65: 1350 | AL65: 1800 | AM65: 1800 | AN65: 2250 | AO65: 2250 | AP65: 2700 | AQ65: 2700 | AR65: 2700 | AS65: 2700 | AT65: 2700 | AU65: 2700 | AV65: 2700 | AW65: 2700 | AX65: 2700 | AY65: 2700 | AZ65: 2700 | BA65: 2700 | BB65: 2700 | BC65: 2700 | BD65: 2700 | BE65: 2700 | BF65: 2700 | BG65: 2700 | BH65: 2700 | BI65: 2700 | BJ65: 2700 | BK65: 2700 | BL65: 2700 | BM65: 2700 | BN65: 2700 | BO65: 2700 | BP65: 2700 | BQ65: 2700 | BR65: 2700 | BS65: 2700 | BT65: 2700 | BU65: 2700 | BV65: 2700 | BW65: 2700 | BX65: 2700 | BY65: 2700 | BZ65: 2700 | CA65: 2700 | CB65: 2700 | CC65: 2700 | CD65: 2700 | CE65: 2700 | CF65: 2700 | CG65: 2700 | CH65: 2700 | CI65: 2700 | CJ65: 2700 | CK65: 2700 | CL65: 2700 | CM65: 2700 | CN65: 2700 | CO65: 2700 | CP65: 2700 | CQ65: 2700 | CR65: 2700 | CS65: 2700 | CT65: 2700 | CU65: 2700 | CV65: 2700 | CW65: 2700 | CX65: 2700 | CY65: 2700 | CZ65: 2700 | DA65: 2700 | DB65: 2700 | DC65: 0 | DD65: 0 | DE65: 0 | DF65: 0 | DG65: 0 | DH65: 0 | DI65: 0 | DJ65: 0 | DK65: 0 | DL65: 0 | DM65: 0 | DN65: 0 | DO65: 0 | DP65: 0 | DQ65: 0 | DR65: 0 | DS65: 0 | DT65: 0 | DU65: 0 | DV65: 0 | DW65: 0 | DX65: 0 | DY65: 0 | DZ65: 0 | EA65: 0 | EB65: 0 | EC65: 0 | ED65: 0 | EE65: 0 | EF65: 0 | EG65: 0 | EH65: 0 | EI65: 0 | EJ65: 0 | EK65: 0 | EL65: 0 | EM65: 0 | EN65: 0 | EO65: 0 | EP65: 0 | EQ65: 0 | ER65: 0 | ES65: 0 | ET65: 0 | EU65: 0 | EV65: 0 | EW65: 0 | EX65: 0 | EY65: 0 | EZ65: 0 | FA65: 0 | FB65: 0 | FC65: 0
A66: 66
A67: 67 | G67: 0 | H67: КПД | L67: 1 | M67: % | X67: 1 | AA67: 0 | AB67: 0 | AC67: 0 | AD67: 0 | AE67: 1 | AF67: 1 | AG67: 1 | AH67: 1 | AI67: 1 | AJ67: 1 | AK67: 1 | AL67: 1 | AM67: 1 | AN67: 1 | AO67: 1 | AP67: 1 | AQ67: 1 | AR67: 1 | AS67: 1 | AT67: 1 | AU67: 1 | AV67: 1 | AW67: 1 | AX67: 1 | AY67: 1 | AZ67: 1 | BA67: 1 | BB67: 1 | BC67: 1 | BD67: 1 | BE67: 1 | BF67: 1 | BG67: 1 | BH67: 1 | BI67: 1 | BJ67: 1 | BK67: 1 | BL67: 1 | BM67: 1 | BN67: 1 | BO67: 1 | BP67: 1 | BQ67: 1 | BR67: 1 | BS67: 1 | BT67: 1 | BU67: 1 | BV67: 1 | BW67: 1 | BX67: 1 | BY67: 1 | BZ67: 1 | CA67: 1 | CB67: 1 | CC67: 1 | CD67: 1 | CE67: 1 | CF67: 1 | CG67: 1 | CH67: 1 | CI67: 1 | CJ67: 1 | CK67: 1 | CL67: 1 | CM67: 1 | CN67: 1 | CO67: 1 | CP67: 1 | CQ67: 1 | CR67: 1 | CS67: 1 | CT67: 1 | CU67: 1 | CV67: 1 | CW67: 1 | CX67: 1 | CY67: 1 | CZ67: 1 | DA67: 1 | DB67: 1 | DC67: 0 | DD67: 0 | DE67: 0 | DF67: 0 | DG67: 0 | DH67: 0 | DI67: 0 | DJ67: 0 | DK67: 0 | DL67: 0 | DM67: 0 | DN67: 0 | DO67: 0 | DP67: 0 | DQ67: 0 | DR67: 0 | DS67: 0 | DT67: 0 | DU67: 0 | DV67: 0 | DW67: 0 | DX67: 0 | DY67: 0 | DZ67: 0 | EA67: 0 | EB67: 0 | EC67: 0 | ED67: 0 | EE67: 0 | EF67: 0 | EG67: 0 | EH67: 0 | EI67: 0 | EJ67: 0 | EK67: 0 | EL67: 0 | EM67: 0 | EN67: 0 | EO67: 0 | EP67: 0 | EQ67: 0 | ER67: 0 | ES67: 0 | ET67: 0 | EU67: 0 | EV67: 0 | EW67: 0 | EX67: 0 | EY67: 0 | EZ67: 0 | FA67: 0 | FB67: 0 | FC67: 0
A68: 68 | G68: 0 | H68: КПД | I68: Единое значение для всех периодов расчета | M68: % | P68: * | S68: 0
A69: 69 | G69: 0 | H69: КПД | I69: Вручную для каждого периода расчетов | M69: % | X69: 0 | Y69: *
A70: 70 | G70: 0 | H70: тип прогрессии | I70: Через прогрессию | P70: * | Q70: линейная | R70: ^ | S70: 0
A71: 71 | G71: 0 | H71: КПД | I71: Значение в стартовый период | M71: % | P71: * | Q71: 1 | S71: 0
A72: 72 | G72: 0 | H72: КПД | I72: Коэффициент прироста | M72: % | P72: * | Q72: 0 | S72: 0
A73: 73 | G73: 0 | H73: КПД | I73: Частота приростов | M73: кол-во периодов | P73: * | Q73: 1 | S73: 0
A74: 74 | G74: 0 | H74: КПД | I74: Максимальное значение | M74: % | P74: * | Q74: 1 | S74: 0
A75: 75
A76: 76 | G76: 0 | H76: Валовый объем добычи газа | L76: 1 | M76: млн.куб.м. | T76: 0 | X76: 189000 | AA76: 0 | AB76: 0 | AC76: 0 | AD76: 0 | AE76: 0 | AF76: 450 | AG76: 450 | AH76: 900 | AI76: 900 | AJ76: 1350 | AK76: 1350 | AL76: 1800 | AM76: 1800 | AN76: 2250 | AO76: 2250 | AP76: 2700 | AQ76: 2700 | AR76: 2700 | AS76: 2700 | AT76: 2700 | AU76: 2700 | AV76: 2700 | AW76: 2700 | AX76: 2700 | AY76: 2700 | AZ76: 2700 | BA76: 2700 | BB76: 2700 | BC76: 2700 | BD76: 2700 | BE76: 2700 | BF76: 2700 | BG76: 2700 | BH76: 2700 | BI76: 2700 | BJ76: 2700 | BK76: 2700 | BL76: 2700 | BM76: 2700 | BN76: 2700 | BO76: 2700 | BP76: 2700 | BQ76: 2700 | BR76: 2700 | BS76: 2700 | BT76: 2700 | BU76: 2700 | BV76: 2700 | BW76: 2700 | BX76: 2700 | BY76: 2700 | BZ76: 2700 | CA76: 2700 | CB76: 2700 | CC76: 2700 | CD76: 2700 | CE76: 2700 | CF76: 2700 | CG76: 2700 | CH76: 2700 | CI76: 2700 | CJ76: 2700 | CK76: 2700 | CL76: 2700 | CM76: 2700 | CN76: 2700 | CO76: 2700 | CP76: 2700 | CQ76: 2700 | CR76: 2700 | CS76: 2700 | CT76: 2700 | CU76: 2700 | CV76: 2700 | CW76: 2700 | CX76: 2700 | CY76: 2700 | CZ76: 2700 | DA76: 2700 | DB76: 2700 | DC76: 0 | DD76: 0 | DE76: 0 | DF76: 0 | DG76: 0 | DH76: 0 | DI76: 0 | DJ76: 0 | DK76: 0 | DL76: 0 | DM76: 0 | DN76: 0 | DO76: 0 | DP76: 0 | DQ76: 0 | DR76: 0 | DS76: 0 | DT76: 0 | DU76: 0 | DV76: 0 | DW76: 0 | DX76: 0 | DY76: 0 | DZ76: 0 | EA76: 0 | EB76: 0 | EC76: 0 | ED76: 0 | EE76: 0 | EF76: 0 | EG76: 0 | EH76: 0 | EI76: 0 | EJ76: 0 | EK76: 0 | EL76: 0 | EM76: 0 | EN76: 0 | EO76: 0 | EP76: 0 | EQ76: 0 | ER76: 0 | ES76: 0 | ET76: 0 | EU76: 0 | EV76: 0 | EW76: 0 | EX76: 0 | EY76: 0 | EZ76: 0 | FA76: 0 | FB76: 0 | FC76: 0
A77: 77 | G77: 0 | H77: Валовый объем добычи газа | I77: Природный газ | L77: 1 | M77: млн.куб.м. | T77: 0 | X77: 189000 | AA77: 0 | AB77: 0 | AC77: 0 | AD77: 0 | AE77: 0 | AF77: 450 | AG77: 450 | AH77: 900 | AI77: 900 | AJ77: 1350 | AK77: 1350 | AL77: 1800 | AM77: 1800 | AN77: 2250 | AO77: 2250 | AP77: 2700 | AQ77: 2700 | AR77: 2700 | AS77: 2700 | AT77: 2700 | AU77: 2700 | AV77: 2700 | AW77: 2700 | AX77: 2700 | AY77: 2700 | AZ77: 2700 | BA77: 2700 | BB77: 2700 | BC77: 2700 | BD77: 2700 | BE77: 2700 | BF77: 2700 | BG77: 2700 | BH77: 2700 | BI77: 2700 | BJ77: 2700 | BK77: 2700 | BL77: 2700 | BM77: 2700 | BN77: 2700 | BO77: 2700 | BP77: 2700 | BQ77: 2700 | BR77: 2700 | BS77: 2700 | BT77: 2700 | BU77: 2700 | BV77: 2700 | BW77: 2700 | BX77: 2700 | BY77: 2700 | BZ77: 2700 | CA77: 2700 | CB77: 2700 | CC77: 2700 | CD77: 2700 | CE77: 2700 | CF77: 2700 | CG77: 2700 | CH77: 2700 | CI77: 2700 | CJ77: 2700 | CK77: 2700 | CL77: 2700 | CM77: 2700 | CN77: 2700 | CO77: 2700 | CP77: 2700 | CQ77: 2700 | CR77: 2700 | CS77: 2700 | CT77: 2700 | CU77: 2700 | CV77: 2700 | CW77: 2700 | CX77: 2700 | CY77: 2700 | CZ77: 2700 | DA77: 2700 | DB77: 2700 | DC77: 0 | DD77: 0 | DE77: 0 | DF77: 0 | DG77: 0 | DH77: 0 | DI77: 0 | DJ77: 0 | DK77: 0 | DL77: 0 | DM77: 0 | DN77: 0 | DO77: 0 | DP77: 0 | DQ77: 0 | DR77: 0 | DS77: 0 | DT77: 0 | DU77: 0 | DV77: 0 | DW77: 0 | DX77: 0 | DY77: 0 | DZ77: 0 | EA77: 0 | EB77: 0 | EC77: 0 | ED77: 0 | EE77: 0 | EF77: 0 | EG77: 0 | EH77: 0 | EI77: 0 | EJ77: 0 | EK77: 0 | EL77: 0 | EM77: 0 | EN77: 0 | EO77: 0 | EP77: 0 | EQ77: 0 | ER77: 0 | ES77: 0 | ET77: 0 | EU77: 0 | EV77: 0 | EW77: 0 | EX77: 0 | EY77: 0 | EZ77: 0 | FA77: 0 | FB77: 0 | FC77: 0
A78: 78 | G78: 0 | H78: Валовый объем добычи газа | I78: Продукт - 2 | L78: 1 | M78: млн.куб.м. | T78: 0 | X78: 0 | AA78: 0 | AB78: 0 | AC78: 0 | AD78: 0 | AE78: 0 | AF78: 0 | AG78: 0 | AH78: 0 | AI78: 0 | AJ78: 0 | AK78: 0 | AL78: 0 | AM78: 0 | AN78: 0 | AO78: 0 | AP78: 0 | AQ78: 0 | AR78: 0 | AS78: 0 | AT78: 0 | AU78: 0 | AV78: 0 | AW78: 0 | AX78: 0 | AY78: 0 | AZ78: 0 | BA78: 0 | BB78: 0 | BC78: 0 | BD78: 0 | BE78: 0 | BF78: 0 | BG78: 0 | BH78: 0 | BI78: 0 | BJ78: 0 | BK78: 0 | BL78: 0 | BM78: 0 | BN78: 0 | BO78: 0 | BP78: 0 | BQ78: 0 | BR78: 0 | BS78: 0 | BT78: 0 | BU78: 0 | BV78: 0 | BW78: 0 | BX78: 0 | BY78: 0 | BZ78: 0 | CA78: 0 | CB78: 0 | CC78: 0 | CD78: 0 | CE78: 0 | CF78: 0 | CG78: 0 | CH78: 0 | CI78: 0 | CJ78: 0 | CK78: 0 | CL78: 0 | CM78: 0 | CN78: 0 | CO78: 0 | CP78: 0 | CQ78: 0 | CR78: 0 | CS78: 0 | CT78: 0 | CU78: 0 | CV78: 0 | CW78: 0 | CX78: 0 | CY78: 0 | CZ78: 0 | DA78: 0 | DB78: 0 | DC78: 0 | DD78: 0 | DE78: 0 | DF78: 0 | DG78: 0 | DH78: 0 | DI78: 0 | DJ78: 0 | DK78: 0 | DL78: 0 | DM78: 0 | DN78: 0 | DO78: 0 | DP78: 0 | DQ78: 0 | DR78: 0 | DS78: 0 | DT78: 0 | DU78: 0 | DV78: 0 | DW78: 0 | DX78: 0 | DY78: 0 | DZ78: 0 | EA78: 0 | EB78: 0 | EC78: 0 | ED78: 0 | EE78: 0 | EF78: 0 | EG78: 0 | EH78: 0 | EI78: 0 | EJ78: 0 | EK78: 0 | EL78: 0 | EM78: 0 | EN78: 0 | EO78: 0 | EP78: 0 | EQ78: 0 | ER78: 0 | ES78: 0 | ET78: 0 | EU78: 0 | EV78: 0 | EW78: 0 | EX78: 0 | EY78: 0 | EZ78: 0 | FA78: 0 | FB78: 0 | FC78: 0
A79: 79 | G79: 0 | H79: Валовый объем добычи газа | I79: Продукт - 3 | L79: 1 | M79: млн.куб.м. | T79: 0 | X79: 0 | AA79: 0 | AB79: 0 | AC79: 0 | AD79: 0 | AE79: 0 | AF79: 0 | AG79: 0 | AH79: 0 | AI79: 0 | AJ79: 0 | AK79: 0 | AL79: 0 | AM79: 0 | AN79: 0 | AO79: 0 | AP79: 0 | AQ79: 0 | AR79: 0 | AS79: 0 | AT79: 0 | AU79: 0 | AV79: 0 | AW79: 0 | AX79: 0 | AY79: 0 | AZ79: 0 | BA79: 0 | BB79: 0 | BC79: 0 | BD79: 0 | BE79: 0 | BF79: 0 | BG79: 0 | BH79: 0 | BI79: 0 | BJ79: 0 | BK79: 0 | BL79: 0 | BM79: 0 | BN79: 0 | BO79: 0 | BP79: 0 | BQ79: 0 | BR79: 0 | BS79: 0 | BT79: 0 | BU79: 0 | BV79: 0 | BW79: 0 | BX79: 0 | BY79: 0 | BZ79: 0 | CA79: 0 | CB79: 0 | CC79: 0 | CD79: 0 | CE79: 0 | CF79: 0 | CG79: 0 | CH79: 0 | CI79: 0 | CJ79: 0 | CK79: 0 | CL79: 0 | CM79: 0 | CN79: 0 | CO79: 0 | CP79: 0 | CQ79: 0 | CR79: 0 | CS79: 0 | CT79: 0 | CU79: 0 | CV79: 0 | CW79: 0 | CX79: 0 | CY79: 0 | CZ79: 0 | DA79: 0 | DB79: 0 | DC79: 0 | DD79: 0 | DE79: 0 | DF79: 0 | DG79: 0 | DH79: 0 | DI79: 0 | DJ79: 0 | DK79: 0 | DL79: 0 | DM79: 0 | DN79: 0 | DO79: 0 | DP79: 0 | DQ79: 0 | DR79: 0 | DS79: 0 | DT79: 0 | DU79: 0 | DV79: 0 | DW79: 0 | DX79: 0 | DY79: 0 | DZ79: 0 | EA79: 0 | EB79: 0 | EC79: 0 | ED79: 0 | EE79: 0 | EF79: 0 | EG79: 0 | EH79: 0 | EI79: 0 | EJ79: 0 | EK79: 0 | EL79: 0 | EM79: 0 | EN79: 0 | EO79: 0 | EP79: 0 | EQ79: 0 | ER79: 0 | ES79: 0 | ET79: 0 | EU79: 0 | EV79: 0 | EW79: 0 | EX79: 0 | EY79: 0 | EZ79: 0 | FA79: 0 | FB79: 0 | FC79: 0
A80: 80 | L80: пустая строка
A81: 81
A82: 82 | G82: 0 | H82: Долевое распределние объема по типам газов | T82: 0
A83: 83 | G83: 0 | H83: продукция | I83: Расчет формулой разности: 100%-сумму() | M83: % | P83: * | Q83: Природный газ | R83: ^ | S83: 0 | T83: 0 | X83: 1 | AA83: 1 | AB83: 1 | AC83: 1 | AD83: 1 | AE83: 1 | AF83: 1 | AG83: 1 | AH83: 1 | AI83: 1 | AJ83: 1 | AK83: 1 | AL83: 1 | AM83: 1 | AN83: 1 | AO83: 1 | AP83: 1 | AQ83: 1 | AR83: 1 | AS83: 1 | AT83: 1 | AU83: 1 | AV83: 1 | AW83: 1 | AX83: 1 | AY83: 1 | AZ83: 1 | BA83: 1 | BB83: 1 | BC83: 1 | BD83: 1 | BE83: 1 | BF83: 1 | BG83: 1 | BH83: 1 | BI83: 1 | BJ83: 1 | BK83: 1 | BL83: 1 | BM83: 1 | BN83: 1 | BO83: 1 | BP83: 1 | BQ83: 1 | BR83: 1 | BS83: 1 | BT83: 1 | BU83: 1 | BV83: 1 | BW83: 1 | BX83: 1 | BY83: 1 | BZ83: 1 | CA83: 1 | CB83: 1 | CC83: 1 | CD83: 1 | CE83: 1 | CF83: 1 | CG83: 1 | CH83: 1 | CI83: 1 | CJ83: 1 | CK83: 1 | CL83: 1 | CM83: 1 | CN83: 1 | CO83: 1 | CP83: 1 | CQ83: 1 | CR83: 1 | CS83: 1 | CT83: 1 | CU83: 1 | CV83: 1 | CW83: 1 | CX83: 1 | CY83: 1 | CZ83: 1 | DA83: 1 | DB83: 1 | DC83: 1 | DD83: 1 | DE83: 1 | DF83: 1 | DG83: 1 | DH83: 1 | DI83: 1 | DJ83: 1 | DK83: 1 | DL83: 1 | DM83: 1 | DN83: 1 | DO83: 1 | DP83: 1 | DQ83: 1 | DR83: 1 | DS83: 1 | DT83: 1 | DU83: 1 | DV83: 1 | DW83: 1 | DX83: 1 | DY83: 1 | DZ83: 1 | EA83: 1 | EB83: 1 | EC83: 1 | ED83: 1 | EE83: 1 | EF83: 1 | EG83: 1 | EH83: 1 | EI83: 1 | EJ83: 1 | EK83: 1 | EL83: 1 | EM83: 1 | EN83: 1 | EO83: 1 | EP83: 1 | EQ83: 1 | ER83: 1 | ES83: 1 | ET83: 1 | EU83: 1 | EV83: 1 | EW83: 1 | EX83: 1 | EY83: 1 | EZ83: 1 | FA83: 1 | FB83: 1 | FC83: 1
A84: 84 | G84: 0 | H84: продукция | I84: Вручную для каждого периода расчетов | M84: % | P84: * | Q84: Продукт - 2 | R84: ^ | S84: 0 | T84: 0 | X84: 0 | Y84: * | AA84: 0 | AB84: 0 | AC84: 0 | AD84: 0 | AE84: 0 | AF84: 0 | AG84: 0 | AH84: 0 | AI84: 0 | AJ84: 0 | AK84: 0 | AL84: 0 | AM84: 0 | AN84: 0 | AO84: 0 | AP84: 0 | AQ84: 0 | AR84: 0 | AS84: 0 | AT84: 0 | AU84: 0 | AV84: 0 | AW84: 0 | AX84: 0 | AY84: 0 | AZ84: 0 | BA84: 0 | BB84: 0 | BC84: 0 | BD84: 0 | BE84: 0 | BF84: 0 | BG84: 0 | BH84: 0 | BI84: 0 | BJ84: 0 | BK84: 0 | BL84: 0 | BM84: 0 | BN84: 0 | BO84: 0 | BP84: 0 | BQ84: 0 | BR84: 0 | BS84: 0 | BT84: 0 | BU84: 0 | BV84: 0 | BW84: 0 | BX84: 0 | BY84: 0 | BZ84: 0 | CA84: 0 | CB84: 0 | CC84: 0 | CD84: 0 | CE84: 0 | CF84: 0 | CG84: 0 | CH84: 0 | CI84: 0 | CJ84: 0 | CK84: 0 | CL84: 0 | CM84: 0 | CN84: 0 | CO84: 0 | CP84: 0 | CQ84: 0 | CR84: 0 | CS84: 0 | CT84: 0 | CU84: 0 | CV84: 0 | CW84: 0 | CX84: 0 | CY84: 0 | CZ84: 0 | DA84: 0 | DB84: 0 | DC84: 0 | DD84: 0 | DE84: 0 | DF84: 0 | DG84: 0 | DH84: 0 | DI84: 0 | DJ84: 0 | DK84: 0 | DL84: 0 | DM84: 0 | DN84: 0 | DO84: 0 | DP84: 0 | DQ84: 0 | DR84: 0 | DS84: 0 | DT84: 0 | DU84: 0 | DV84: 0 | DW84: 0 | DX84: 0 | DY84: 0 | DZ84: 0 | EA84: 0 | EB84: 0 | EC84: 0 | ED84: 0 | EE84: 0 | EF84: 0 | EG84: 0 | EH84: 0 | EI84: 0 | EJ84: 0 | EK84: 0 | EL84: 0 | EM84: 0 | EN84: 0 | EO84: 0 | EP84: 0 | EQ84: 0 | ER84: 0 | ES84: 0 | ET84: 0 | EU84: 0 | EV84: 0 | EW84: 0 | EX84: 0 | EY84: 0 | EZ84: 0 | FA84: 0 | FB84: 0 | FC84: 0
A85: 85 | G85: 0 | H85: продукция | I85: Вручную для каждого периода расчетов | M85: % | P85: * | Q85: Продукт - 3 | R85: ^ | S85: 0 | T85: 0 | X85: 0 | Y85: * | AA85: 0 | AB85: 0 | AC85: 0 | AD85: 0 | AE85: 0 | AF85: 0 | AG85: 0 | AH85: 0 | AI85: 0 | AJ85: 0 | AK85: 0 | AL85: 0 | AM85: 0 | AN85: 0 | AO85: 0 | AP85: 0 | AQ85: 0 | AR85: 0 | AS85: 0 | AT85: 0 | AU85: 0 | AV85: 0 | AW85: 0 | AX85: 0 | AY85: 0 | AZ85: 0 | BA85: 0 | BB85: 0 | BC85: 0 | BD85: 0 | BE85: 0 | BF85: 0 | BG85: 0 | BH85: 0 | BI85: 0 | BJ85: 0 | BK85: 0 | BL85: 0 | BM85: 0 | BN85: 0 | BO85: 0 | BP85: 0 | BQ85: 0 | BR85: 0 | BS85: 0 | BT85: 0 | BU85: 0 | BV85: 0 | BW85: 0 | BX85: 0 | BY85: 0 | BZ85: 0 | CA85: 0 | CB85: 0 | CC85: 0 | CD85: 0 | CE85: 0 | CF85: 0 | CG85: 0 | CH85: 0 | CI85: 0 | CJ85: 0 | CK85: 0 | CL85: 0 | CM85: 0 | CN85: 0 | CO85: 0 | CP85: 0 | CQ85: 0 | CR85: 0 | CS85: 0 | CT85: 0 | CU85: 0 | CV85: 0 | CW85: 0 | CX85: 0 | CY85: 0 | CZ85: 0 | DA85: 0 | DB85: 0 | DC85: 0 | DD85: 0 | DE85: 0 | DF85: 0 | DG85: 0 | DH85: 0 | DI85: 0 | DJ85: 0 | DK85: 0 | DL85: 0 | DM85: 0 | DN85: 0 | DO85: 0 | DP85: 0 | DQ85: 0 | DR85: 0 | DS85: 0 | DT85: 0 | DU85: 0 | DV85: 0 | DW85: 0 | DX85: 0 | DY85: 0 | DZ85: 0 | EA85: 0 | EB85: 0 | EC85: 0 | ED85: 0 | EE85: 0 | EF85: 0 | EG85: 0 | EH85: 0 | EI85: 0 | EJ85: 0 | EK85: 0 | EL85: 0 | EM85: 0 | EN85: 0 | EO85: 0 | EP85: 0 | EQ85: 0 | ER85: 0 | ES85: 0 | ET85: 0 | EU85: 0 | EV85: 0 | EW85: 0 | EX85: 0 | EY85: 0 | EZ85: 0 | FA85: 0 | FB85: 0 | FC85: 0
A86: 86 | L86: пустая строка
A87: 87
A88: 88 | G88: 0 | H88: Базовый прайс-лист на природный газ | M88: руб./млн.куб.м. | X88: 8000000 | AA88: 8000000 | AB88: 8000000 | AC88: 8000000 | AD88: 8000000 | AE88: 8000000 | AF88: 8000000 | AG88: 8000000 | AH88: 8000000 | AI88: 8000000 | AJ88: 8000000 | AK88: 8000000 | AL88: 8000000 | AM88: 8000000 | AN88: 8000000 | AO88: 8000000 | AP88: 8000000 | AQ88: 8000000 | AR88: 8000000 | AS88: 8000000 | AT88: 8000000 | AU88: 8000000 | AV88: 8000000 | AW88: 8000000 | AX88: 8000000 | AY88: 8000000 | AZ88: 8000000 | BA88: 8000000 | BB88: 8000000 | BC88: 8000000 | BD88: 8000000 | BE88: 8000000 | BF88: 8000000 | BG88: 8000000 | BH88: 8000000 | BI88: 8000000 | BJ88: 8000000 | BK88: 8000000 | BL88: 8000000 | BM88: 8000000 | BN88: 8000000 | BO88: 8000000 | BP88: 8000000 | BQ88: 8000000 | BR88: 8000000 | BS88: 8000000 | BT88: 8000000 | BU88: 8000000 | BV88: 8000000 | BW88: 8000000 | BX88: 8000000 | BY88: 8000000 | BZ88: 8000000 | CA88: 8000000 | CB88: 8000000 | CC88: 8000000 | CD88: 8000000 | CE88: 8000000 | CF88: 8000000 | CG88: 8000000 | CH88: 8000000 | CI88: 8000000 | CJ88: 8000000 | CK88: 8000000 | CL88: 8000000 | CM88: 8000000 | CN88: 8000000 | CO88: 8000000 | CP88: 8000000 | CQ88: 8000000 | CR88: 8000000 | CS88: 8000000 | CT88: 8000000 | CU88: 8000000 | CV88: 8000000 | CW88: 8000000 | CX88: 8000000 | CY88: 8000000 | CZ88: 8000000 | DA88: 8000000 | DB88: 8000000 | DC88: 0 | DD88: 0 | DE88: 0 | DF88: 0 | DG88: 0 | DH88: 0 | DI88: 0 | DJ88: 0 | DK88: 0 | DL88: 0 | DM88: 0 | DN88: 0 | DO88: 0 | DP88: 0 | DQ88: 0 | DR88: 0 | DS88: 0 | DT88: 0 | DU88: 0 | DV88: 0 | DW88: 0 | DX88: 0 | DY88: 0 | DZ88: 0 | EA88: 0 | EB88: 0 | EC88: 0 | ED88: 0 | EE88: 0 | EF88: 0 | EG88: 0 | EH88: 0 | EI88: 0 | EJ88: 0 | EK88: 0 | EL88: 0 | EM88: 0 | EN88: 0 | EO88: 0 | EP88: 0 | EQ88: 0 | ER88: 0 | ES88: 0 | ET88: 0 | EU88: 0 | EV88: 0 | EW88: 0 | EX88: 0 | EY88: 0 | EZ88: 0 | FA88: 0 | FB88: 0 | FC88: 0
A89: 89 | G89: 0 | H89: Базовый прайс-лист на природный газ | I89: Природный газ | M89: руб./млн.куб.м. | P89: M | Q89: 8000000 | S89: 0 | X89: 8000000 | AA89: 8000000 | AB89: 8000000 | AC89: 8000000 | AD89: 8000000 | AE89: 8000000 | AF89: 8000000 | AG89: 8000000 | AH89: 8000000 | AI89: 8000000 | AJ89: 8000000 | AK89: 8000000 | AL89: 8000000 | AM89: 8000000 | AN89: 8000000 | AO89: 8000000 | AP89: 8000000 | AQ89: 8000000 | AR89: 8000000 | AS89: 8000000 | AT89: 8000000 | AU89: 8000000 | AV89: 8000000 | AW89: 8000000 | AX89: 8000000 | AY89: 8000000 | AZ89: 8000000 | BA89: 8000000 | BB89: 8000000 | BC89: 8000000 | BD89: 8000000 | BE89: 8000000 | BF89: 8000000 | BG89: 8000000 | BH89: 8000000 | BI89: 8000000 | BJ89: 8000000 | BK89: 8000000 | BL89: 8000000 | BM89: 8000000 | BN89: 8000000 | BO89: 8000000 | BP89: 8000000 | BQ89: 8000000 | BR89: 8000000 | BS89: 8000000 | BT89: 8000000 | BU89: 8000000 | BV89: 8000000 | BW89: 8000000 | BX89: 8000000 | BY89: 8000000 | BZ89: 8000000 | CA89: 8000000 | CB89: 8000000 | CC89: 8000000 | CD89: 8000000 | CE89: 8000000 | CF89: 8000000 | CG89: 8000000 | CH89: 8000000 | CI89: 8000000 | CJ89: 8000000 | CK89: 8000000 | CL89: 8000000 | CM89: 8000000 | CN89: 8000000 | CO89: 8000000 | CP89: 8000000 | CQ89: 8000000 | CR89: 8000000 | CS89: 8000000 | CT89: 8000000 | CU89: 8000000 | CV89: 8000000 | CW89: 8000000 | CX89: 8000000 | CY89: 8000000 | CZ89: 8000000 | DA89: 8000000 | DB89: 8000000 | DC89: 0 | DD89: 0 | DE89: 0 | DF89: 0 | DG89: 0 | DH89: 0 | DI89: 0 | DJ89: 0 | DK89: 0 | DL89: 0 | DM89: 0 | DN89: 0 | DO89: 0 | DP89: 0 | DQ89: 0 | DR89: 0 | DS89: 0 | DT89: 0 | DU89: 0 | DV89: 0 | DW89: 0 | DX89: 0 | DY89: 0 | DZ89: 0 | EA89: 0 | EB89: 0 | EC89: 0 | ED89: 0 | EE89: 0 | EF89: 0 | EG89: 0 | EH89: 0 | EI89: 0 | EJ89: 0 | EK89: 0 | EL89: 0 | EM89: 0 | EN89: 0 | EO89: 0 | EP89: 0 | EQ89: 0 | ER89: 0 | ES89: 0 | ET89: 0 | EU89: 0 | EV89: 0 | EW89: 0 | EX89: 0 | EY89: 0 | EZ89: 0 | FA89: 0 | FB89: 0 | FC89: 0
A90: 90 | G90: 0 | H90: Базовый прайс-лист на природный газ | I90: Продукт - 2 | M90: руб./млн.куб.м. | P90: M | Q90: 0 | S90: 0 | X90: 0 | AA90: 0 | AB90: 0 | AC90: 0 | AD90: 0 | AE90: 0 | AF90: 0 | AG90: 0 | AH90: 0 | AI90: 0 | AJ90: 0 | AK90: 0 | AL90: 0 | AM90: 0 | AN90: 0 | AO90: 0 | AP90: 0 | AQ90: 0 | AR90: 0 | AS90: 0 | AT90: 0 | AU90: 0 | AV90: 0 | AW90: 0 | AX90: 0 | AY90: 0 | AZ90: 0 | BA90: 0 | BB90: 0 | BC90: 0 | BD90: 0 | BE90: 0 | BF90: 0 | BG90: 0 | BH90: 0 | BI90: 0 | BJ90: 0 | BK90: 0 | BL90: 0 | BM90: 0 | BN90: 0 | BO90: 0 | BP90: 0 | BQ90: 0 | BR90: 0 | BS90: 0 | BT90: 0 | BU90: 0 | BV90: 0 | BW90: 0 | BX90: 0 | BY90: 0 | BZ90: 0 | CA90: 0 | CB90: 0 | CC90: 0 | CD90: 0 | CE90: 0 | CF90: 0 | CG90: 0 | CH90: 0 | CI90: 0 | CJ90: 0 | CK90: 0 | CL90: 0 | CM90: 0 | CN90: 0 | CO90: 0 | CP90: 0 | CQ90: 0 | CR90: 0 | CS90: 0 | CT90: 0 | CU90: 0 | CV90: 0 | CW90: 0 | CX90: 0 | CY90: 0 | CZ90: 0 | DA90: 0 | DB90: 0 | DC90: 0 | DD90: 0 | DE90: 0 | DF90: 0 | DG90: 0 | DH90: 0 | DI90: 0 | DJ90: 0 | DK90: 0 | DL90: 0 | DM90: 0 | DN90: 0 | DO90: 0 | DP90: 0 | DQ90: 0 | DR90: 0 | DS90: 0 | DT90: 0 | DU90: 0 | DV90: 0 | DW90: 0 | DX90: 0 | DY90: 0 | DZ90: 0 | EA90: 0 | EB90: 0 | EC90: 0 | ED90: 0 | EE90: 0 | EF90: 0 | EG90: 0 | EH90: 0 | EI90: 0 | EJ90: 0 | EK90: 0 | EL90: 0 | EM90: 0 | EN90: 0 | EO90: 0 | EP90: 0 | EQ90: 0 | ER90: 0 | ES90: 0 | ET90: 0 | EU90: 0 | EV90: 0 | EW90: 0 | EX90: 0 | EY90: 0 | EZ90: 0 | FA90: 0 | FB90: 0 | FC90: 0
A91: 91 | G91: 0 | H91: Базовый прайс-лист на природный газ | I91: Продукт - 3 | M91: руб./млн.куб.м. | P91: M | Q91: 0 | S91: 0 | X91: 0 | AA91: 0 | AB91: 0 | AC91: 0 | AD91: 0 | AE91: 0 | AF91: 0 | AG91: 0 | AH91: 0 | AI91: 0 | AJ91: 0 | AK91: 0 | AL91: 0 | AM91: 0 | AN91: 0 | AO91: 0 | AP91: 0 | AQ91: 0 | AR91: 0 | AS91: 0 | AT91: 0 | AU91: 0 | AV91: 0 | AW91: 0 | AX91: 0 | AY91: 0 | AZ91: 0 | BA91: 0 | BB91: 0 | BC91: 0 | BD91: 0 | BE91: 0 | BF91: 0 | BG91: 0 | BH91: 0 | BI91: 0 | BJ91: 0 | BK91: 0 | BL91: 0 | BM91: 0 | BN91: 0 | BO91: 0 | BP91: 0 | BQ91: 0 | BR91: 0 | BS91: 0 | BT91: 0 | BU91: 0 | BV91: 0 | BW91: 0 | BX91: 0 | BY91: 0 | BZ91: 0 | CA91: 0 | CB91: 0 | CC91: 0 | CD91: 0 | CE91: 0 | CF91: 0 | CG91: 0 | CH91: 0 | CI91: 0 | CJ91: 0 | CK91: 0 | CL91: 0 | CM91: 0 | CN91: 0 | CO91: 0 | CP91: 0 | CQ91: 0 | CR91: 0 | CS91: 0 | CT91: 0 | CU91: 0 | CV91: 0 | CW91: 0 | CX91: 0 | CY91: 0 | CZ91: 0 | DA91: 0 | DB91: 0 | DC91: 0 | DD91: 0 | DE91: 0 | DF91: 0 | DG91: 0 | DH91: 0 | DI91: 0 | DJ91: 0 | DK91: 0 | DL91: 0 | DM91: 0 | DN91: 0 | DO91: 0 | DP91: 0 | DQ91: 0 | DR91: 0 | DS91: 0 | DT91: 0 | DU91: 0 | DV91: 0 | DW91: 0 | DX91: 0 | DY91: 0 | DZ91: 0 | EA91: 0 | EB91: 0 | EC91: 0 | ED91: 0 | EE91: 0 | EF91: 0 | EG91: 0 | EH91: 0 | EI91: 0 | EJ91: 0 | EK91: 0 | EL91: 0 | EM91: 0 | EN91: 0 | EO91: 0 | EP91: 0 | EQ91: 0 | ER91: 0 | ES91: 0 | ET91: 0 | EU91: 0 | EV91: 0 | EW91: 0 | EX91: 0 | EY91: 0 | EZ91: 0 | FA91: 0 | FB91: 0 | FC91: 0
A92: 92 | L92: пустая строка
A93: 93 | G93: 0 | H93: Индексация прайс-листа
A94: 94 | G94: 0 | H94: Индексация прайс-листа | I94: Процент индексации/прироста | M94: % | P94: M | Q94: 0 | S94: 0
A95: 95 | G95: 0 | H95: Индексация прайс-листа | I95: Частота индексации | M95: кол-во периодов | P95: * | Q95: 6 | S95: 0
A96: 96
A97: 97 | G97: 0 | H97: Общий оборот (GMV) | L97: 1 | M97: руб. | T97: 0 | X97: 1512000000000 | AA97: 0 | AB97: 0 | AC97: 0 | AD97: 0 | AE97: 0 | AF97: 3600000000 | AG97: 3600000000 | AH97: 7200000000 | AI97: 7200000000 | AJ97: 10800000000 | AK97: 10800000000 | AL97: 14400000000 | AM97: 14400000000 | AN97: 18000000000 | AO97: 18000000000 | AP97: 21600000000 | AQ97: 21600000000 | AR97: 21600000000 | AS97: 21600000000 | AT97: 21600000000 | AU97: 21600000000 | AV97: 21600000000 | AW97: 21600000000 | AX97: 21600000000 | AY97: 21600000000 | AZ97: 21600000000 | BA97: 21600000000 | BB97: 21600000000 | BC97: 21600000000 | BD97: 21600000000 | BE97: 21600000000 | BF97: 21600000000 | BG97: 21600000000 | BH97: 21600000000 | BI97: 21600000000 | BJ97: 21600000000 | BK97: 21600000000 | BL97: 21600000000 | BM97: 21600000000 | BN97: 21600000000 | BO97: 21600000000 | BP97: 21600000000 | BQ97: 21600000000 | BR97: 21600000000 | BS97: 21600000000 | BT97: 21600000000 | BU97: 21600000000 | BV97: 21600000000 | BW97: 21600000000 | BX97: 21600000000 | BY97: 21600000000 | BZ97: 21600000000 | CA97: 21600000000 | CB97: 21600000000 | CC97: 21600000000 | CD97: 21600000000 | CE97: 21600000000 | CF97: 21600000000 | CG97: 21600000000 | CH97: 21600000000 | CI97: 21600000000 | CJ97: 21600000000 | CK97: 21600000000 | CL97: 21600000000 | CM97: 21600000000 | CN97: 21600000000 | CO97: 21600000000 | CP97: 21600000000 | CQ97: 21600000000 | CR97: 21600000000 | CS97: 21600000000 | CT97: 21600000000 | CU97: 21600000000 | CV97: 21600000000 | CW97: 21600000000 | CX97: 21600000000 | CY97: 21600000000 | CZ97: 21600000000 | DA97: 21600000000 | DB97: 21600000000 | DC97: 0 | DD97: 0 | DE97: 0 | DF97: 0 | DG97: 0 | DH97: 0 | DI97: 0 | DJ97: 0 | DK97: 0 | DL97: 0 | DM97: 0 | DN97: 0 | DO97: 0 | DP97: 0 | DQ97: 0 | DR97: 0 | DS97: 0 | DT97: 0 | DU97: 0 | DV97: 0 | DW97: 0 | DX97: 0 | DY97: 0 | DZ97: 0 | EA97: 0 | EB97: 0 | EC97: 0 | ED97: 0 | EE97: 0 | EF97: 0 | EG97: 0 | EH97: 0 | EI97: 0 | EJ97: 0 | EK97: 0 | EL97: 0 | EM97: 0 | EN97: 0 | EO97: 0 | EP97: 0 | EQ97: 0 | ER97: 0 | ES97: 0 | ET97: 0 | EU97: 0 | EV97: 0 | EW97: 0 | EX97: 0 | EY97: 0 | EZ97: 0 | FA97: 0 | FB97: 0 | FC97: 0
A98: 98 | G98: 0 | H98: Общий оборот (GMV) | I98: Природный газ | L98: 1 | M98: руб. | X98: 1512000000000 | AA98: 0 | AB98: 0 | AC98: 0 | AD98: 0 | AE98: 0 | AF98: 3600000000 | AG98: 3600000000 | AH98: 7200000000 | AI98: 7200000000 | AJ98: 10800000000 | AK98: 10800000000 | AL98: 14400000000 | AM98: 14400000000 | AN98: 18000000000 | AO98: 18000000000 | AP98: 21600000000 | AQ98: 21600000000 | AR98: 21600000000 | AS98: 21600000000 | AT98: 21600000000 | AU98: 21600000000 | AV98: 21600000000 | AW98: 21600000000 | AX98: 21600000000 | AY98: 21600000000 | AZ98: 21600000000 | BA98: 21600000000 | BB98: 21600000000 | BC98: 21600000000 | BD98: 21600000000 | BE98: 21600000000 | BF98: 21600000000 | BG98: 21600000000 | BH98: 21600000000 | BI98: 21600000000 | BJ98: 21600000000 | BK98: 21600000000 | BL98: 21600000000 | BM98: 21600000000 | BN98: 21600000000 | BO98: 21600000000 | BP98: 21600000000 | BQ98: 21600000000 | BR98: 21600000000 | BS98: 21600000000 | BT98: 21600000000 | BU98: 21600000000 | BV98: 21600000000 | BW98: 21600000000 | BX98: 21600000000 | BY98: 21600000000 | BZ98: 21600000000 | CA98: 21600000000 | CB98: 21600000000 | CC98: 21600000000 | CD98: 21600000000 | CE98: 21600000000 | CF98: 21600000000 | CG98: 21600000000 | CH98: 21600000000 | CI98: 21600000000 | CJ98: 21600000000 | CK98: 21600000000 | CL98: 21600000000 | CM98: 21600000000 | CN98: 21600000000 | CO98: 21600000000 | CP98: 21600000000 | CQ98: 21600000000 | CR98: 21600000000 | CS98: 21600000000 | CT98: 21600000000 | CU98: 21600000000 | CV98: 21600000000 | CW98: 21600000000 | CX98: 21600000000 | CY98: 21600000000 | CZ98: 21600000000 | DA98: 21600000000 | DB98: 21600000000 | DC98: 0 | DD98: 0 | DE98: 0 | DF98: 0 | DG98: 0 | DH98: 0 | DI98: 0 | DJ98: 0 | DK98: 0 | DL98: 0 | DM98: 0 | DN98: 0 | DO98: 0 | DP98: 0 | DQ98: 0 | DR98: 0 | DS98: 0 | DT98: 0 | DU98: 0 | DV98: 0 | DW98: 0 | DX98: 0 | DY98: 0 | DZ98: 0 | EA98: 0 | EB98: 0 | EC98: 0 | ED98: 0 | EE98: 0 | EF98: 0 | EG98: 0 | EH98: 0 | EI98: 0 | EJ98: 0 | EK98: 0 | EL98: 0 | EM98: 0 | EN98: 0 | EO98: 0 | EP98: 0 | EQ98: 0 | ER98: 0 | ES98: 0 | ET98: 0 | EU98: 0 | EV98: 0 | EW98: 0 | EX98: 0 | EY98: 0 | EZ98: 0 | FA98: 0 | FB98: 0 | FC98: 0
A99: 99 | G99: 0 | H99: Общий оборот (GMV) | I99: Продукт - 2 | L99: 1 | M99: руб. | X99: 0 | AA99: 0 | AB99: 0 | AC99: 0 | AD99: 0 | AE99: 0 | AF99: 0 | AG99: 0 | AH99: 0 | AI99: 0 | AJ99: 0 | AK99: 0 | AL99: 0 | AM99: 0 | AN99: 0 | AO99: 0 | AP99: 0 | AQ99: 0 | AR99: 0 | AS99: 0 | AT99: 0 | AU99: 0 | AV99: 0 | AW99: 0 | AX99: 0 | AY99: 0 | AZ99: 0 | BA99: 0 | BB99: 0 | BC99: 0 | BD99: 0 | BE99: 0 | BF99: 0 | BG99: 0 | BH99: 0 | BI99: 0 | BJ99: 0 | BK99: 0 | BL99: 0 | BM99: 0 | BN99: 0 | BO99: 0 | BP99: 0 | BQ99: 0 | BR99: 0 | BS99: 0 | BT99: 0 | BU99: 0 | BV99: 0 | BW99: 0 | BX99: 0 | BY99: 0 | BZ99: 0 | CA99: 0 | CB99: 0 | CC99: 0 | CD99: 0 | CE99: 0 | CF99: 0 | CG99: 0 | CH99: 0 | CI99: 0 | CJ99: 0 | CK99: 0 | CL99: 0 | CM99: 0 | CN99: 0 | CO99: 0 | CP99: 0 | CQ99: 0 | CR99: 0 | CS99: 0 | CT99: 0 | CU99: 0 | CV99: 0 | CW99: 0 | CX99: 0 | CY99: 0 | CZ99: 0 | DA99: 0 | DB99: 0 | DC99: 0 | DD99: 0 | DE99: 0 | DF99: 0 | DG99: 0 | DH99: 0 | DI99: 0 | DJ99: 0 | DK99: 0 | DL99: 0 | DM99: 0 | DN99: 0 | DO99: 0 | DP99: 0 | DQ99: 0 | DR99: 0 | DS99: 0 | DT99: 0 | DU99: 0 | DV99: 0 | DW99: 0 | DX99: 0 | DY99: 0 | DZ99: 0 | EA99: 0 | EB99: 0 | EC99: 0 | ED99: 0 | EE99: 0 | EF99: 0 | EG99: 0 | EH99: 0 | EI99: 0 | EJ99: 0 | EK99: 0 | EL99: 0 | EM99: 0 | EN99: 0 | EO99: 0 | EP99: 0 | EQ99: 0 | ER99: 0 | ES99: 0 | ET99: 0 | EU99: 0 | EV99: 0 | EW99: 0 | EX99: 0 | EY99: 0 | EZ99: 0 | FA99: 0 | FB99: 0 | FC99: 0
A100: 100 | G100: 0 | H100: Общий оборот (GMV) | I100: Продукт - 3 | L100: 1 | M100: руб. | X100: 0 | AA100: 0 | AB100: 0 | AC100: 0 | AD100: 0 | AE100: 0 | AF100: 0 | AG100: 0 | AH100: 0 | AI100: 0 | AJ100: 0 | AK100: 0 | AL100: 0 | AM100: 0 | AN100: 0 | AO100: 0 | AP100: 0 | AQ100: 0 | AR100: 0 | AS100: 0 | AT100: 0 | AU100: 0 | AV100: 0 | AW100: 0 | AX100: 0 | AY100: 0 | AZ100: 0 | BA100: 0 | BB100: 0 | BC100: 0 | BD100: 0 | BE100: 0 | BF100: 0 | BG100: 0 | BH100: 0 | BI100: 0 | BJ100: 0 | BK100: 0 | BL100: 0 | BM100: 0 | BN100: 0 | BO100: 0 | BP100: 0 | BQ100: 0 | BR100: 0 | BS100: 0 | BT100: 0 | BU100: 0 | BV100: 0 | BW100: 0 | BX100: 0 | BY100: 0 | BZ100: 0 | CA100: 0 | CB100: 0 | CC100: 0 | CD100: 0 | CE100: 0 | CF100: 0 | CG100: 0 | CH100: 0 | CI100: 0 | CJ100: 0 | CK100: 0 | CL100: 0 | CM100: 0 | CN100: 0 | CO100: 0 | CP100: 0 | CQ100: 0 | CR100: 0 | CS100: 0 | CT100: 0 | CU100: 0 | CV100: 0 | CW100: 0 | CX100: 0 | CY100: 0 | CZ100: 0 | DA100: 0 | DB100: 0 | DC100: 0 | DD100: 0 | DE100: 0 | DF100: 0 | DG100: 0 | DH100: 0 | DI100: 0 | DJ100: 0 | DK100: 0 | DL100: 0 | DM100: 0 | DN100: 0 | DO100: 0 | DP100: 0 | DQ100: 0 | DR100: 0 | DS100: 0 | DT100: 0 | DU100: 0 | DV100: 0 | DW100: 0 | DX100: 0 | DY100: 0 | DZ100: 0 | EA100: 0 | EB100: 0 | EC100: 0 | ED100: 0 | EE100: 0 | EF100: 0 | EG100: 0 | EH100: 0 | EI100: 0 | EJ100: 0 | EK100: 0 | EL100: 0 | EM100: 0 | EN100: 0 | EO100: 0 | EP100: 0 | EQ100: 0 | ER100: 0 | ES100: 0 | ET100: 0 | EU100: 0 | EV100: 0 | EW100: 0 | EX100: 0 | EY100: 0 | EZ100: 0 | FA100: 0 | FB100: 0 | FC100: 0
A101: 101 | L101: пустая строка
A102: 102
A103: 103 | G103: 0 | H103: Доля продаж со скидками
A104: 104 | G104: 0 | H104: продукция | I104: Вручную для каждого периода расчетов | M104: % | Q104: Природный газ | S104: 0 | T104: 0 | X104: 0 | Y104: * | AA104: 0 | AB104: 0 | AC104: 0 | AD104: 0 | AE104: 0 | AF104: 0 | AG104: 0 | AH104: 0 | AI104: 0 | AJ104: 0 | AK104: 0 | AL104: 0 | AM104: 0 | AN104: 0 | AO104: 0 | AP104: 0 | AQ104: 0 | AR104: 0 | AS104: 0 | AT104: 0 | AU104: 0 | AV104: 0 | AW104: 0 | AX104: 0 | AY104: 0 | AZ104: 0 | BA104: 0 | BB104: 0 | BC104: 0 | BD104: 0 | BE104: 0 | BF104: 0 | BG104: 0 | BH104: 0 | BI104: 0 | BJ104: 0 | BK104: 0 | BL104: 0 | BM104: 0 | BN104: 0 | BO104: 0 | BP104: 0 | BQ104: 0 | BR104: 0 | BS104: 0 | BT104: 0 | BU104: 0 | BV104: 0 | BW104: 0 | BX104: 0 | BY104: 0 | BZ104: 0 | CA104: 0 | CB104: 0 | CC104: 0 | CD104: 0 | CE104: 0 | CF104: 0 | CG104: 0 | CH104: 0 | CI104: 0 | CJ104: 0 | CK104: 0 | CL104: 0 | CM104: 0 | CN104: 0 | CO104: 0 | CP104: 0 | CQ104: 0 | CR104: 0 | CS104: 0 | CT104: 0 | CU104: 0 | CV104: 0 | CW104: 0 | CX104: 0 | CY104: 0 | CZ104: 0 | DA104: 0 | DB104: 0 | DC104: 0 | DD104: 0 | DE104: 0 | DF104: 0 | DG104: 0 | DH104: 0 | DI104: 0 | DJ104: 0 | DK104: 0 | DL104: 0 | DM104: 0 | DN104: 0 | DO104: 0 | DP104: 0 | DQ104: 0 | DR104: 0 | DS104: 0 | DT104: 0 | DU104: 0 | DV104: 0 | DW104: 0 | DX104: 0 | DY104: 0 | DZ104: 0 | EA104: 0 | EB104: 0 | EC104: 0 | ED104: 0 | EE104: 0 | EF104: 0 | EG104: 0 | EH104: 0 | EI104: 0 | EJ104: 0 | EK104: 0 | EL104: 0 | EM104: 0 | EN104: 0 | EO104: 0 | EP104: 0 | EQ104: 0 | ER104: 0 | ES104: 0 | ET104: 0 | EU104: 0 | EV104: 0 | EW104: 0 | EX104: 0 | EY104: 0 | EZ104: 0 | FA104: 0 | FB104: 0 | FC104: 0
A105: 105 | G105: 0 | H105: продукция | I105: Вручную для каждого периода расчетов | M105: % | Q105: Продукт - 2 | S105: 0 | T105: 0 | X105: 0 | Y105: * | AA105: 0 | AB105: 0 | AC105: 0 | AD105: 0 | AE105: 0 | AF105: 0 | AG105: 0 | AH105: 0 | AI105: 0 | AJ105: 0 | AK105: 0 | AL105: 0 | AM105: 0 | AN105: 0 | AO105: 0 | AP105: 0 | AQ105: 0 | AR105: 0 | AS105: 0 | AT105: 0 | AU105: 0 | AV105: 0 | AW105: 0 | AX105: 0 | AY105: 0 | AZ105: 0 | BA105: 0 | BB105: 0 | BC105: 0 | BD105: 0 | BE105: 0 | BF105: 0 | BG105: 0 | BH105: 0 | BI105: 0 | BJ105: 0 | BK105: 0 | BL105: 0 | BM105: 0 | BN105: 0 | BO105: 0 | BP105: 0 | BQ105: 0 | BR105: 0 | BS105: 0 | BT105: 0 | BU105: 0 | BV105: 0 | BW105: 0 | BX105: 0 | BY105: 0 | BZ105: 0 | CA105: 0 | CB105: 0 | CC105: 0 | CD105: 0 | CE105: 0 | CF105: 0 | CG105: 0 | CH105: 0 | CI105: 0 | CJ105: 0 | CK105: 0 | CL105: 0 | CM105: 0 | CN105: 0 | CO105: 0 | CP105: 0 | CQ105: 0 | CR105: 0 | CS105: 0 | CT105: 0 | CU105: 0 | CV105: 0 | CW105: 0 | CX105: 0 | CY105: 0 | CZ105: 0 | DA105: 0 | DB105: 0 | DC105: 0 | DD105: 0 | DE105: 0 | DF105: 0 | DG105: 0 | DH105: 0 | DI105: 0 | DJ105: 0 | DK105: 0 | DL105: 0 | DM105: 0 | DN105: 0 | DO105: 0 | DP105: 0 | DQ105: 0 | DR105: 0 | DS105: 0 | DT105: 0 | DU105: 0 | DV105: 0 | DW105: 0 | DX105: 0 | DY105: 0 | DZ105: 0 | EA105: 0 | EB105: 0 | EC105: 0 | ED105: 0 | EE105: 0 | EF105: 0 | EG105: 0 | EH105: 0 | EI105: 0 | EJ105: 0 | EK105: 0 | EL105: 0 | EM105: 0 | EN105: 0 | EO105: 0 | EP105: 0 | EQ105: 0 | ER105: 0 | ES105: 0 | ET105: 0 | EU105: 0 | EV105: 0 | EW105: 0 | EX105: 0 | EY105: 0 | EZ105: 0 | FA105: 0 | FB105: 0 | FC105: 0
A106: 106 | G106: 0 | H106: продукция | I106: Вручную для каждого периода расчетов | M106: % | Q106: Продукт - 3 | S106: 0 | T106: 0 | X106: 0 | Y106: * | AA106: 0 | AB106: 0 | AC106: 0 | AD106: 0 | AE106: 0 | AF106: 0 | AG106: 0 | AH106: 0 | AI106: 0 | AJ106: 0 | AK106: 0 | AL106: 0 | AM106: 0 | AN106: 0 | AO106: 0 | AP106: 0 | AQ106: 0 | AR106: 0 | AS106: 0 | AT106: 0 | AU106: 0 | AV106: 0 | AW106: 0 | AX106: 0 | AY106: 0 | AZ106: 0 | BA106: 0 | BB106: 0 | BC106: 0 | BD106: 0 | BE106: 0 | BF106: 0 | BG106: 0 | BH106: 0 | BI106: 0 | BJ106: 0 | BK106: 0 | BL106: 0 | BM106: 0 | BN106: 0 | BO106: 0 | BP106: 0 | BQ106: 0 | BR106: 0 | BS106: 0 | BT106: 0 | BU106: 0 | BV106: 0 | BW106: 0 | BX106: 0 | BY106: 0 | BZ106: 0 | CA106: 0 | CB106: 0 | CC106: 0 | CD106: 0 | CE106: 0 | CF106: 0 | CG106: 0 | CH106: 0 | CI106: 0 | CJ106: 0 | CK106: 0 | CL106: 0 | CM106: 0 | CN106: 0 | CO106: 0 | CP106: 0 | CQ106: 0 | CR106: 0 | CS106: 0 | CT106: 0 | CU106: 0 | CV106: 0 | CW106: 0 | CX106: 0 | CY106: 0 | CZ106: 0 | DA106: 0 | DB106: 0 | DC106: 0 | DD106: 0 | DE106: 0 | DF106: 0 | DG106: 0 | DH106: 0 | DI106: 0 | DJ106: 0 | DK106: 0 | DL106: 0 | DM106: 0 | DN106: 0 | DO106: 0 | DP106: 0 | DQ106: 0 | DR106: 0 | DS106: 0 | DT106: 0 | DU106: 0 | DV106: 0 | DW106: 0 | DX106: 0 | DY106: 0 | DZ106: 0 | EA106: 0 | EB106: 0 | EC106: 0 | ED106: 0 | EE106: 0 | EF106: 0 | EG106: 0 | EH106: 0 | EI106: 0 | EJ106: 0 | EK106: 0 | EL106: 0 | EM106: 0 | EN106: 0 | EO106: 0 | EP106: 0 | EQ106: 0 | ER106: 0 | ES106: 0 | ET106: 0 | EU106: 0 | EV106: 0 | EW106: 0 | EX106: 0 | EY106: 0 | EZ106: 0 | FA106: 0 | FB106: 0 | FC106: 0
A107: 107 | L107: пустая строка
A108: 108
A109: 109 | G109: 0 | H109: Средний размер скидок
A110: 110 | G110: 0 | H110: Средний размер скидок | I110: Природный газ | M110: % | P110: * | Q110: 0 | S110: 0 | X110: 0 | AA110: 0 | AB110: 0 | AC110: 0 | AD110: 0 | AE110: 0 | AF110: 0 | AG110: 0 | AH110: 0 | AI110: 0 | AJ110: 0 | AK110: 0 | AL110: 0 | AM110: 0 | AN110: 0 | AO110: 0 | AP110: 0 | AQ110: 0 | AR110: 0 | AS110: 0 | AT110: 0 | AU110: 0 | AV110: 0 | AW110: 0 | AX110: 0 | AY110: 0 | AZ110: 0 | BA110: 0 | BB110: 0 | BC110: 0 | BD110: 0 | BE110: 0 | BF110: 0 | BG110: 0 | BH110: 0 | BI110: 0 | BJ110: 0 | BK110: 0 | BL110: 0 | BM110: 0 | BN110: 0 | BO110: 0 | BP110: 0 | BQ110: 0 | BR110: 0 | BS110: 0 | BT110: 0 | BU110: 0 | BV110: 0 | BW110: 0 | BX110: 0 | BY110: 0 | BZ110: 0 | CA110: 0 | CB110: 0 | CC110: 0 | CD110: 0 | CE110: 0 | CF110: 0 | CG110: 0 | CH110: 0 | CI110: 0 | CJ110: 0 | CK110: 0 | CL110: 0 | CM110: 0 | CN110: 0 | CO110: 0 | CP110: 0 | CQ110: 0 | CR110: 0 | CS110: 0 | CT110: 0 | CU110: 0 | CV110: 0 | CW110: 0 | CX110: 0 | CY110: 0 | CZ110: 0 | DA110: 0 | DB110: 0 | DC110: 0 | DD110: 0 | DE110: 0 | DF110: 0 | DG110: 0 | DH110: 0 | DI110: 0 | DJ110: 0 | DK110: 0 | DL110: 0 | DM110: 0 | DN110: 0 | DO110: 0 | DP110: 0 | DQ110: 0 | DR110: 0 | DS110: 0 | DT110: 0 | DU110: 0 | DV110: 0 | DW110: 0 | DX110: 0 | DY110: 0 | DZ110: 0 | EA110: 0 | EB110: 0 | EC110: 0 | ED110: 0 | EE110: 0 | EF110: 0 | EG110: 0 | EH110: 0 | EI110: 0 | EJ110: 0 | EK110: 0 | EL110: 0 | EM110: 0 | EN110: 0 | EO110: 0 | EP110: 0 | EQ110: 0 | ER110: 0 | ES110: 0 | ET110: 0 | EU110: 0 | EV110: 0 | EW110: 0 | EX110: 0 | EY110: 0 | EZ110: 0 | FA110: 0 | FB110: 0 | FC110: 0
A111: 111 | G111: 0 | H111: Средний размер скидок | I111: Продукт - 2 | M111: % | P111: * | Q111: 0 | S111: 0 | X111: 0 | AA111: 0 | AB111: 0 | AC111: 0 | AD111: 0 | AE111: 0 | AF111: 0 | AG111: 0 | AH111: 0 | AI111: 0 | AJ111: 0 | AK111: 0 | AL111: 0 | AM111: 0 | AN111: 0 | AO111: 0 | AP111: 0 | AQ111: 0 | AR111: 0 | AS111: 0 | AT111: 0 | AU111: 0 | AV111: 0 | AW111: 0 | AX111: 0 | AY111: 0 | AZ111: 0 | BA111: 0 | BB111: 0 | BC111: 0 | BD111: 0 | BE111: 0 | BF111: 0 | BG111: 0 | BH111: 0 | BI111: 0 | BJ111: 0 | BK111: 0 | BL111: 0 | BM111: 0 | BN111: 0 | BO111: 0 | BP111: 0 | BQ111: 0 | BR111: 0 | BS111: 0 | BT111: 0 | BU111: 0 | BV111: 0 | BW111: 0 | BX111: 0 | BY111: 0 | BZ111: 0 | CA111: 0 | CB111: 0 | CC111: 0 | CD111: 0 | CE111: 0 | CF111: 0 | CG111: 0 | CH111: 0 | CI111: 0 | CJ111: 0 | CK111: 0 | CL111: 0 | CM111: 0 | CN111: 0 | CO111: 0 | CP111: 0 | CQ111: 0 | CR111: 0 | CS111: 0 | CT111: 0 | CU111: 0 | CV111: 0 | CW111: 0 | CX111: 0 | CY111: 0 | CZ111: 0 | DA111: 0 | DB111: 0 | DC111: 0 | DD111: 0 | DE111: 0 | DF111: 0 | DG111: 0 | DH111: 0 | DI111: 0 | DJ111: 0 | DK111: 0 | DL111: 0 | DM111: 0 | DN111: 0 | DO111: 0 | DP111: 0 | DQ111: 0 | DR111: 0 | DS111: 0 | DT111: 0 | DU111: 0 | DV111: 0 | DW111: 0 | DX111: 0 | DY111: 0 | DZ111: 0 | EA111: 0 | EB111: 0 | EC111: 0 | ED111: 0 | EE111: 0 | EF111: 0 | EG111: 0 | EH111: 0 | EI111: 0 | EJ111: 0 | EK111: 0 | EL111: 0 | EM111: 0 | EN111: 0 | EO111: 0 | EP111: 0 | EQ111: 0 | ER111: 0 | ES111: 0 | ET111: 0 | EU111: 0 | EV111: 0 | EW111: 0 | EX111: 0 | EY111: 0 | EZ111: 0 | FA111: 0 | FB111: 0 | FC111: 0
A112: 112 | G112: 0 | H112: Средний размер скидок | I112: Продукт - 3 | M112: % | P112: * | Q112: 0 | S112: 0 | X112: 0 | AA112: 0 | AB112: 0 | AC112: 0 | AD112: 0 | AE112: 0 | AF112: 0 | AG112: 0 | AH112: 0 | AI112: 0 | AJ112: 0 | AK112: 0 | AL112: 0 | AM112: 0 | AN112: 0 | AO112: 0 | AP112: 0 | AQ112: 0 | AR112: 0 | AS112: 0 | AT112: 0 | AU112: 0 | AV112: 0 | AW112: 0 | AX112: 0 | AY112: 0 | AZ112: 0 | BA112: 0 | BB112: 0 | BC112: 0 | BD112: 0 | BE112: 0 | BF112: 0 | BG112: 0 | BH112: 0 | BI112: 0 | BJ112: 0 | BK112: 0 | BL112: 0 | BM112: 0 | BN112: 0 | BO112: 0 | BP112: 0 | BQ112: 0 | BR112: 0 | BS112: 0 | BT112: 0 | BU112: 0 | BV112: 0 | BW112: 0 | BX112: 0 | BY112: 0 | BZ112: 0 | CA112: 0 | CB112: 0 | CC112: 0 | CD112: 0 | CE112: 0 | CF112: 0 | CG112: 0 | CH112: 0 | CI112: 0 | CJ112: 0 | CK112: 0 | CL112: 0 | CM112: 0 | CN112: 0 | CO112: 0 | CP112: 0 | CQ112: 0 | CR112: 0 | CS112: 0 | CT112: 0 | CU112: 0 | CV112: 0 | CW112: 0 | CX112: 0 | CY112: 0 | CZ112: 0 | DA112: 0 | DB112: 0 | DC112: 0 | DD112: 0 | DE112: 0 | DF112: 0 | DG112: 0 | DH112: 0 | DI112: 0 | DJ112: 0 | DK112: 0 | DL112: 0 | DM112: 0 | DN112: 0 | DO112: 0 | DP112: 0 | DQ112: 0 | DR112: 0 | DS112: 0 | DT112: 0 | DU112: 0 | DV112: 0 | DW112: 0 | DX112: 0 | DY112: 0 | DZ112: 0 | EA112: 0 | EB112: 0 | EC112: 0 | ED112: 0 | EE112: 0 | EF112: 0 | EG112: 0 | EH112: 0 | EI112: 0 | EJ112: 0 | EK112: 0 | EL112: 0 | EM112: 0 | EN112: 0 | EO112: 0 | EP112: 0 | EQ112: 0 | ER112: 0 | ES112: 0 | ET112: 0 | EU112: 0 | EV112: 0 | EW112: 0 | EX112: 0 | EY112: 0 | EZ112: 0 | FA112: 0 | FB112: 0 | FC112: 0
A113: 113 | L113: пустая строка
A114: 114 | G114: 0 | H114: Линейные изменения размеров скидок
A115: 115 | G115: 0 | H115: Линейные изменения размеров скидок | I115: Коэффициент прироста | M115: % | P115: * | Q115: -0.01 | S115: 0
A116: 116 | G116: 0 | H116: Линейные изменения размеров скидок | I116: Частота приростов | M116: кол-во периодов | P116: * | Q116: 2 | S116: 0
A117: 117 | G117: 0 | H117: Линейные изменения размеров скидок | I117: Максимальное значение | M117: % | P117: * | Q117: 0.5 | S117: 0
A118: 118
A119: 119 | G119: 0 | H119: Маркетинговые скидки | L119: 1 | M119: руб. | T119: 0 | X119: 0 | AA119: 0 | AB119: 0 | AC119: 0 | AD119: 0 | AE119: 0 | AF119: 0 | AG119: 0 | AH119: 0 | AI119: 0 | AJ119: 0 | AK119: 0 | AL119: 0 | AM119: 0 | AN119: 0 | AO119: 0 | AP119: 0 | AQ119: 0 | AR119: 0 | AS119: 0 | AT119: 0 | AU119: 0 | AV119: 0 | AW119: 0 | AX119: 0 | AY119: 0 | AZ119: 0 | BA119: 0 | BB119: 0 | BC119: 0 | BD119: 0 | BE119: 0 | BF119: 0 | BG119: 0 | BH119: 0 | BI119: 0 | BJ119: 0 | BK119: 0 | BL119: 0 | BM119: 0 | BN119: 0 | BO119: 0 | BP119: 0 | BQ119: 0 | BR119: 0 | BS119: 0 | BT119: 0 | BU119: 0 | BV119: 0 | BW119: 0 | BX119: 0 | BY119: 0 | BZ119: 0 | CA119: 0 | CB119: 0 | CC119: 0 | CD119: 0 | CE119: 0 | CF119: 0 | CG119: 0 | CH119: 0 | CI119: 0 | CJ119: 0 | CK119: 0 | CL119: 0 | CM119: 0 | CN119: 0 | CO119: 0 | CP119: 0 | CQ119: 0 | CR119: 0 | CS119: 0 | CT119: 0 | CU119: 0 | CV119: 0 | CW119: 0 | CX119: 0 | CY119: 0 | CZ119: 0 | DA119: 0 | DB119: 0 | DC119: 0 | DD119: 0 | DE119: 0 | DF119: 0 | DG119: 0 | DH119: 0 | DI119: 0 | DJ119: 0 | DK119: 0 | DL119: 0 | DM119: 0 | DN119: 0 | DO119: 0 | DP119: 0 | DQ119: 0 | DR119: 0 | DS119: 0 | DT119: 0 | DU119: 0 | DV119: 0 | DW119: 0 | DX119: 0 | DY119: 0 | DZ119: 0 | EA119: 0 | EB119: 0 | EC119: 0 | ED119: 0 | EE119: 0 | EF119: 0 | EG119: 0 | EH119: 0 | EI119: 0 | EJ119: 0 | EK119: 0 | EL119: 0 | EM119: 0 | EN119: 0 | EO119: 0 | EP119: 0 | EQ119: 0 | ER119: 0 | ES119: 0 | ET119: 0 | EU119: 0 | EV119: 0 | EW119: 0 | EX119: 0 | EY119: 0 | EZ119: 0 | FA119: 0 | FB119: 0 | FC119: 0
A120: 120 | G120: 0 | H120: Маркетинговые скидки | I120: Природный газ | L120: 1 | M120: руб. | X120: 0 | AA120: 0 | AB120: 0 | AC120: 0 | AD120: 0 | AE120: 0 | AF120: 0 | AG120: 0 | AH120: 0 | AI120: 0 | AJ120: 0 | AK120: 0 | AL120: 0 | AM120: 0 | AN120: 0 | AO120: 0 | AP120: 0 | AQ120: 0 | AR120: 0 | AS120: 0 | AT120: 0 | AU120: 0 | AV120: 0 | AW120: 0 | AX120: 0 | AY120: 0 | AZ120: 0 | BA120: 0 | BB120: 0 | BC120: 0 | BD120: 0 | BE120: 0 | BF120: 0 | BG120: 0 | BH120: 0 | BI120: 0 | BJ120: 0 | BK120: 0 | BL120: 0 | BM120: 0 | BN120: 0 | BO120: 0 | BP120: 0 | BQ120: 0 | BR120: 0 | BS120: 0 | BT120: 0 | BU120: 0 | BV120: 0 | BW120: 0 | BX120: 0 | BY120: 0 | BZ120: 0 | CA120: 0 | CB120: 0 | CC120: 0 | CD120: 0 | CE120: 0 | CF120: 0 | CG120: 0 | CH120: 0 | CI120: 0 | CJ120: 0 | CK120: 0 | CL120: 0 | CM120: 0 | CN120: 0 | CO120: 0 | CP120: 0 | CQ120: 0 | CR120: 0 | CS120: 0 | CT120: 0 | CU120: 0 | CV120: 0 | CW120: 0 | CX120: 0 | CY120: 0 | CZ120: 0 | DA120: 0 | DB120: 0 | DC120: 0 | DD120: 0 | DE120: 0 | DF120: 0 | DG120: 0 | DH120: 0 | DI120: 0 | DJ120: 0 | DK120: 0 | DL120: 0 | DM120: 0 | DN120: 0 | DO120: 0 | DP120: 0 | DQ120: 0 | DR120: 0 | DS120: 0 | DT120: 0 | DU120: 0 | DV120: 0 | DW120: 0 | DX120: 0 | DY120: 0 | DZ120: 0 | EA120: 0 | EB120: 0 | EC120: 0 | ED120: 0 | EE120: 0 | EF120: 0 | EG120: 0 | EH120: 0 | EI120: 0 | EJ120: 0 | EK120: 0 | EL120: 0 | EM120: 0 | EN120: 0 | EO120: 0 | EP120: 0 | EQ120: 0 | ER120: 0 | ES120: 0 | ET120: 0 | EU120: 0 | EV120: 0 | EW120: 0 | EX120: 0 | EY120: 0 | EZ120: 0 | FA120: 0 | FB120: 0 | FC120: 0
A121: 121 | G121: 0 | H121: Маркетинговые скидки | I121: Продукт - 2 | L121: 1 | M121: руб. | X121: 0 | AA121: 0 | AB121: 0 | AC121: 0 | AD121: 0 | AE121: 0 | AF121: 0 | AG121: 0 | AH121: 0 | AI121: 0 | AJ121: 0 | AK121: 0 | AL121: 0 | AM121: 0 | AN121: 0 | AO121: 0 | AP121: 0 | AQ121: 0 | AR121: 0 | AS121: 0 | AT121: 0 | AU121: 0 | AV121: 0 | AW121: 0 | AX121: 0 | AY121: 0 | AZ121: 0 | BA121: 0 | BB121: 0 | BC121: 0 | BD121: 0 | BE121: 0 | BF121: 0 | BG121: 0 | BH121: 0 | BI121: 0 | BJ121: 0 | BK121: 0 | BL121: 0 | BM121: 0 | BN121: 0 | BO121: 0 | BP121: 0 | BQ121: 0 | BR121: 0 | BS121: 0 | BT121: 0 | BU121: 0 | BV121: 0 | BW121: 0 | BX121: 0 | BY121: 0 | BZ121: 0 | CA121: 0 | CB121: 0 | CC121: 0 | CD121: 0 | CE121: 0 | CF121: 0 | CG121: 0 | CH121: 0 | CI121: 0 | CJ121: 0 | CK121: 0 | CL121: 0 | CM121: 0 | CN121: 0 | CO121: 0 | CP121: 0 | CQ121: 0 | CR121: 0 | CS121: 0 | CT121: 0 | CU121: 0 | CV121: 0 | CW121: 0 | CX121: 0 | CY121: 0 | CZ121: 0 | DA121: 0 | DB121: 0 | DC121: 0 | DD121: 0 | DE121: 0 | DF121: 0 | DG121: 0 | DH121: 0 | DI121: 0 | DJ121: 0 | DK121: 0 | DL121: 0 | DM121: 0 | DN121: 0 | DO121: 0 | DP121: 0 | DQ121: 0 | DR121: 0 | DS121: 0 | DT121: 0 | DU121: 0 | DV121: 0 | DW121: 0 | DX121: 0 | DY121: 0 | DZ121: 0 | EA121: 0 | EB121: 0 | EC121: 0 | ED121: 0 | EE121: 0 | EF121: 0 | EG121: 0 | EH121: 0 | EI121: 0 | EJ121: 0 | EK121: 0 | EL121: 0 | EM121: 0 | EN121: 0 | EO121: 0 | EP121: 0 | EQ121: 0 | ER121: 0 | ES121: 0 | ET121: 0 | EU121: 0 | EV121: 0 | EW121: 0 | EX121: 0 | EY121: 0 | EZ121: 0 | FA121: 0 | FB121: 0 | FC121: 0
A122: 122 | G122: 0 | H122: Маркетинговые скидки | I122: Продукт - 3 | L122: 1 | M122: руб. | X122: 0 | AA122: 0 | AB122: 0 | AC122: 0 | AD122: 0 | AE122: 0 | AF122: 0 | AG122: 0 | AH122: 0 | AI122: 0 | AJ122: 0 | AK122: 0 | AL122: 0 | AM122: 0 | AN122: 0 | AO122: 0 | AP122: 0 | AQ122: 0 | AR122: 0 | AS122: 0 | AT122: 0 | AU122: 0 | AV122: 0 | AW122: 0 | AX122: 0 | AY122: 0 | AZ122: 0 | BA122: 0 | BB122: 0 | BC122: 0 | BD122: 0 | BE122: 0 | BF122: 0 | BG122: 0 | BH122: 0 | BI122: 0 | BJ122: 0 | BK122: 0 | BL122: 0 | BM122: 0 | BN122: 0 | BO122: 0 | BP122: 0 | BQ122: 0 | BR122: 0 | BS122: 0 | BT122: 0 | BU122: 0 | BV122: 0 | BW122: 0 | BX122: 0 | BY122: 0 | BZ122: 0 | CA122: 0 | CB122: 0 | CC122: 0 | CD122: 0 | CE122: 0 | CF122: 0 | CG122: 0 | CH122: 0 | CI122: 0 | CJ122: 0 | CK122: 0 | CL122: 0 | CM122: 0 | CN122: 0 | CO122: 0 | CP122: 0 | CQ122: 0 | CR122: 0 | CS122: 0 | CT122: 0 | CU122: 0 | CV122: 0 | CW122: 0 | CX122: 0 | CY122: 0 | CZ122: 0 | DA122: 0 | DB122: 0 | DC122: 0 | DD122: 0 | DE122: 0 | DF122: 0 | DG122: 0 | DH122: 0 | DI122: 0 | DJ122: 0 | DK122: 0 | DL122: 0 | DM122: 0 | DN122: 0 | DO122: 0 | DP122: 0 | DQ122: 0 | DR122: 0 | DS122: 0 | DT122: 0 | DU122: 0 | DV122: 0 | DW122: 0 | DX122: 0 | DY122: 0 | DZ122: 0 | EA122: 0 | EB122: 0 | EC122: 0 | ED122: 0 | EE122: 0 | EF122: 0 | EG122: 0 | EH122: 0 | EI122: 0 | EJ122: 0 | EK122: 0 | EL122: 0 | EM122: 0 | EN122: 0 | EO122: 0 | EP122: 0 | EQ122: 0 | ER122: 0 | ES122: 0 | ET122: 0 | EU122: 0 | EV122: 0 | EW122: 0 | EX122: 0 | EY122: 0 | EZ122: 0 | FA122: 0 | FB122: 0 | FC122: 0
A123: 123 | L123: пустая строка
A124: 124
A125: 125 | G125: 0 | H125: Доля скидок в общем обороте | L125: 1 | M125: % | X125: 0 | AA125: 0 | AB125: 0 | AC125: 0 | AD125: 0 | AE125: 0 | AF125: 0 | AG125: 0 | AH125: 0 | AI125: 0 | AJ125: 0 | AK125: 0 | AL125: 0 | AM125: 0 | AN125: 0 | AO125: 0 | AP125: 0 | AQ125: 0 | AR125: 0 | AS125: 0 | AT125: 0 | AU125: 0 | AV125: 0 | AW125: 0 | AX125: 0 | AY125: 0 | AZ125: 0 | BA125: 0 | BB125: 0 | BC125: 0 | BD125: 0 | BE125: 0 | BF125: 0 | BG125: 0 | BH125: 0 | BI125: 0 | BJ125: 0 | BK125: 0 | BL125: 0 | BM125: 0 | BN125: 0 | BO125: 0 | BP125: 0 | BQ125: 0 | BR125: 0 | BS125: 0 | BT125: 0 | BU125: 0 | BV125: 0 | BW125: 0 | BX125: 0 | BY125: 0 | BZ125: 0 | CA125: 0 | CB125: 0 | CC125: 0 | CD125: 0 | CE125: 0 | CF125: 0 | CG125: 0 | CH125: 0 | CI125: 0 | CJ125: 0 | CK125: 0 | CL125: 0 | CM125: 0 | CN125: 0 | CO125: 0 | CP125: 0 | CQ125: 0 | CR125: 0 | CS125: 0 | CT125: 0 | CU125: 0 | CV125: 0 | CW125: 0 | CX125: 0 | CY125: 0 | CZ125: 0 | DA125: 0 | DB125: 0 | DC125: 0 | DD125: 0 | DE125: 0 | DF125: 0 | DG125: 0 | DH125: 0 | DI125: 0 | DJ125: 0 | DK125: 0 | DL125: 0 | DM125: 0 | DN125: 0 | DO125: 0 | DP125: 0 | DQ125: 0 | DR125: 0 | DS125: 0 | DT125: 0 | DU125: 0 | DV125: 0 | DW125: 0 | DX125: 0 | DY125: 0 | DZ125: 0 | EA125: 0 | EB125: 0 | EC125: 0 | ED125: 0 | EE125: 0 | EF125: 0 | EG125: 0 | EH125: 0 | EI125: 0 | EJ125: 0 | EK125: 0 | EL125: 0 | EM125: 0 | EN125: 0 | EO125: 0 | EP125: 0 | EQ125: 0 | ER125: 0 | ES125: 0 | ET125: 0 | EU125: 0 | EV125: 0 | EW125: 0 | EX125: 0 | EY125: 0 | EZ125: 0 | FA125: 0 | FB125: 0 | FC125: 0
A126: 126 | G126: 0 | H126: Доля скидок в общем обороте | I126: Природный газ | L126: 1 | M126: % | X126: 0 | AA126: 0 | AB126: 0 | AC126: 0 | AD126: 0 | AE126: 0 | AF126: 0 | AG126: 0 | AH126: 0 | AI126: 0 | AJ126: 0 | AK126: 0 | AL126: 0 | AM126: 0 | AN126: 0 | AO126: 0 | AP126: 0 | AQ126: 0 | AR126: 0 | AS126: 0 | AT126: 0 | AU126: 0 | AV126: 0 | AW126: 0 | AX126: 0 | AY126: 0 | AZ126: 0 | BA126: 0 | BB126: 0 | BC126: 0 | BD126: 0 | BE126: 0 | BF126: 0 | BG126: 0 | BH126: 0 | BI126: 0 | BJ126: 0 | BK126: 0 | BL126: 0 | BM126: 0 | BN126: 0 | BO126: 0 | BP126: 0 | BQ126: 0 | BR126: 0 | BS126: 0 | BT126: 0 | BU126: 0 | BV126: 0 | BW126: 0 | BX126: 0 | BY126: 0 | BZ126: 0 | CA126: 0 | CB126: 0 | CC126: 0 | CD126: 0 | CE126: 0 | CF126: 0 | CG126: 0 | CH126: 0 | CI126: 0 | CJ126: 0 | CK126: 0 | CL126: 0 | CM126: 0 | CN126: 0 | CO126: 0 | CP126: 0 | CQ126: 0 | CR126: 0 | CS126: 0 | CT126: 0 | CU126: 0 | CV126: 0 | CW126: 0 | CX126: 0 | CY126: 0 | CZ126: 0 | DA126: 0 | DB126: 0 | DC126: 0 | DD126: 0 | DE126: 0 | DF126: 0 | DG126: 0 | DH126: 0 | DI126: 0 | DJ126: 0 | DK126: 0 | DL126: 0 | DM126: 0 | DN126: 0 | DO126: 0 | DP126: 0 | DQ126: 0 | DR126: 0 | DS126: 0 | DT126: 0 | DU126: 0 | DV126: 0 | DW126: 0 | DX126: 0 | DY126: 0 | DZ126: 0 | EA126: 0 | EB126: 0 | EC126: 0 | ED126: 0 | EE126: 0 | EF126: 0 | EG126: 0 | EH126: 0 | EI126: 0 | EJ126: 0 | EK126: 0 | EL126: 0 | EM126: 0 | EN126: 0 | EO126: 0 | EP126: 0 | EQ126: 0 | ER126: 0 | ES126: 0 | ET126: 0 | EU126: 0 | EV126: 0 | EW126: 0 | EX126: 0 | EY126: 0 | EZ126: 0 | FA126: 0 | FB126: 0 | FC126: 0
A127: 127 | G127: 0 | H127: Доля скидок в общем обороте | I127: Продукт - 2 | L127: 1 | M127: % | X127: 0 | AA127: 0 | AB127: 0 | AC127: 0 | AD127: 0 | AE127: 0 | AF127: 0 | AG127: 0 | AH127: 0 | AI127: 0 | AJ127: 0 | AK127: 0 | AL127: 0 | AM127: 0 | AN127: 0 | AO127: 0 | AP127: 0 | AQ127: 0 | AR127: 0 | AS127: 0 | AT127: 0 | AU127: 0 | AV127: 0 | AW127: 0 | AX127: 0 | AY127: 0 | AZ127: 0 | BA127: 0 | BB127: 0 | BC127: 0 | BD127: 0 | BE127: 0 | BF127: 0 | BG127: 0 | BH127: 0 | BI127: 0 | BJ127: 0 | BK127: 0 | BL127: 0 | BM127: 0 | BN127: 0 | BO127: 0 | BP127: 0 | BQ127: 0 | BR127: 0 | BS127: 0 | BT127: 0 | BU127: 0 | BV127: 0 | BW127: 0 | BX127: 0 | BY127: 0 | BZ127: 0 | CA127: 0 | CB127: 0 | CC127: 0 | CD127: 0 | CE127: 0 | CF127: 0 | CG127: 0 | CH127: 0 | CI127: 0 | CJ127: 0 | CK127: 0 | CL127: 0 | CM127: 0 | CN127: 0 | CO127: 0 | CP127: 0 | CQ127: 0 | CR127: 0 | CS127: 0 | CT127: 0 | CU127: 0 | CV127: 0 | CW127: 0 | CX127: 0 | CY127: 0 | CZ127: 0 | DA127: 0 | DB127: 0 | DC127: 0 | DD127: 0 | DE127: 0 | DF127: 0 | DG127: 0 | DH127: 0 | DI127: 0 | DJ127: 0 | DK127: 0 | DL127: 0 | DM127: 0 | DN127: 0 | DO127: 0 | DP127: 0 | DQ127: 0 | DR127: 0 | DS127: 0 | DT127: 0 | DU127: 0 | DV127: 0 | DW127: 0 | DX127: 0 | DY127: 0 | DZ127: 0 | EA127: 0 | EB127: 0 | EC127: 0 | ED127: 0 | EE127: 0 | EF127: 0 | EG127: 0 | EH127: 0 | EI127: 0 | EJ127: 0 | EK127: 0 | EL127: 0 | EM127: 0 | EN127: 0 | EO127: 0 | EP127: 0 | EQ127: 0 | ER127: 0 | ES127: 0 | ET127: 0 | EU127: 0 | EV127: 0 | EW127: 0 | EX127: 0 | EY127: 0 | EZ127: 0 | FA127: 0 | FB127: 0 | FC127: 0
A128: 128 | G128: 0 | H128: Доля скидок в общем обороте | I128: Продукт - 3 | L128: 1 | M128: % | X128: 0 | AA128: 0 | AB128: 0 | AC128: 0 | AD128: 0 | AE128: 0 | AF128: 0 | AG128: 0 | AH128: 0 | AI128: 0 | AJ128: 0 | AK128: 0 | AL128: 0 | AM128: 0 | AN128: 0 | AO128: 0 | AP128: 0 | AQ128: 0 | AR128: 0 | AS128: 0 | AT128: 0 | AU128: 0 | AV128: 0 | AW128: 0 | AX128: 0 | AY128: 0 | AZ128: 0 | BA128: 0 | BB128: 0 | BC128: 0 | BD128: 0 | BE128: 0 | BF128: 0 | BG128: 0 | BH128: 0 | BI128: 0 | BJ128: 0 | BK128: 0 | BL128: 0 | BM128: 0 | BN128: 0 | BO128: 0 | BP128: 0 | BQ128: 0 | BR128: 0 | BS128: 0 | BT128: 0 | BU128: 0 | BV128: 0 | BW128: 0 | BX128: 0 | BY128: 0 | BZ128: 0 | CA128: 0 | CB128: 0 | CC128: 0 | CD128: 0 | CE128: 0 | CF128: 0 | CG128: 0 | CH128: 0 | CI128: 0 | CJ128: 0 | CK128: 0 | CL128: 0 | CM128: 0 | CN128: 0 | CO128: 0 | CP128: 0 | CQ128: 0 | CR128: 0 | CS128: 0 | CT128: 0 | CU128: 0 | CV128: 0 | CW128: 0 | CX128: 0 | CY128: 0 | CZ128: 0 | DA128: 0 | DB128: 0 | DC128: 0 | DD128: 0 | DE128: 0 | DF128: 0 | DG128: 0 | DH128: 0 | DI128: 0 | DJ128: 0 | DK128: 0 | DL128: 0 | DM128: 0 | DN128: 0 | DO128: 0 | DP128: 0 | DQ128: 0 | DR128: 0 | DS128: 0 | DT128: 0 | DU128: 0 | DV128: 0 | DW128: 0 | DX128: 0 | DY128: 0 | DZ128: 0 | EA128: 0 | EB128: 0 | EC128: 0 | ED128: 0 | EE128: 0 | EF128: 0 | EG128: 0 | EH128: 0 | EI128: 0 | EJ128: 0 | EK128: 0 | EL128: 0 | EM128: 0 | EN128: 0 | EO128: 0 | EP128: 0 | EQ128: 0 | ER128: 0 | ES128: 0 | ET128: 0 | EU128: 0 | EV128: 0 | EW128: 0 | EX128: 0 | EY128: 0 | EZ128: 0 | FA128: 0 | FB128: 0 | FC128: 0
A129: 129 | L129: пустая строка
A130: 130
A131: 131 | G131: 0 | H131: Общий оборот (GMV) с учетом скидок | L131: 1 | M131: руб. | T131: 0 | X131: 1512000000000 | AA131: 0 | AB131: 0 | AC131: 0 | AD131: 0 | AE131: 0 | AF131: 3600000000 | AG131: 3600000000 | AH131: 7200000000 | AI131: 7200000000 | AJ131: 10800000000 | AK131: 10800000000 | AL131: 14400000000 | AM131: 14400000000 | AN131: 18000000000 | AO131: 18000000000 | AP131: 21600000000 | AQ131: 21600000000 | AR131: 21600000000 | AS131: 21600000000 | AT131: 21600000000 | AU131: 21600000000 | AV131: 21600000000 | AW131: 21600000000 | AX131: 21600000000 | AY131: 21600000000 | AZ131: 21600000000 | BA131: 21600000000 | BB131: 21600000000 | BC131: 21600000000 | BD131: 21600000000 | BE131: 21600000000 | BF131: 21600000000 | BG131: 21600000000 | BH131: 21600000000 | BI131: 21600000000 | BJ131: 21600000000 | BK131: 21600000000 | BL131: 21600000000 | BM131: 21600000000 | BN131: 21600000000 | BO131: 21600000000 | BP131: 21600000000 | BQ131: 21600000000 | BR131: 21600000000 | BS131: 21600000000 | BT131: 21600000000 | BU131: 21600000000 | BV131: 21600000000 | BW131: 21600000000 | BX131: 21600000000 | BY131: 21600000000 | BZ131: 21600000000 | CA131: 21600000000 | CB131: 21600000000 | CC131: 21600000000 | CD131: 21600000000 | CE131: 21600000000 | CF131: 21600000000 | CG131: 21600000000 | CH131: 21600000000 | CI131: 21600000000 | CJ131: 21600000000 | CK131: 21600000000 | CL131: 21600000000 | CM131: 21600000000 | CN131: 21600000000 | CO131: 21600000000 | CP131: 21600000000 | CQ131: 21600000000 | CR131: 21600000000 | CS131: 21600000000 | CT131: 21600000000 | CU131: 21600000000 | CV131: 21600000000 | CW131: 21600000000 | CX131: 21600000000 | CY131: 21600000000 | CZ131: 21600000000 | DA131: 21600000000 | DB131: 21600000000 | DC131: 0 | DD131: 0 | DE131: 0 | DF131: 0 | DG131: 0 | DH131: 0 | DI131: 0 | DJ131: 0 | DK131: 0 | DL131: 0 | DM131: 0 | DN131: 0 | DO131: 0 | DP131: 0 | DQ131: 0 | DR131: 0 | DS131: 0 | DT131: 0 | DU131: 0 | DV131: 0 | DW131: 0 | DX131: 0 | DY131: 0 | DZ131: 0 | EA131: 0 | EB131: 0 | EC131: 0 | ED131: 0 | EE131: 0 | EF131: 0 | EG131: 0 | EH131: 0 | EI131: 0 | EJ131: 0 | EK131: 0 | EL131: 0 | EM131: 0 | EN131: 0 | EO131: 0 | EP131: 0 | EQ131: 0 | ER131: 0 | ES131: 0 | ET131: 0 | EU131: 0 | EV131: 0 | EW131: 0 | EX131: 0 | EY131: 0 | EZ131: 0 | FA131: 0 | FB131: 0 | FC131: 0
A132: 132 | G132: 0 | H132: Общий оборот (GMV) с учетом скидок | I132: Природный газ | L132: 1 | M132: руб. | X132: 1512000000000 | AA132: 0 | AB132: 0 | AC132: 0 | AD132: 0 | AE132: 0 | AF132: 3600000000 | AG132: 3600000000 | AH132: 7200000000 | AI132: 7200000000 | AJ132: 10800000000 | AK132: 10800000000 | AL132: 14400000000 | AM132: 14400000000 | AN132: 18000000000 | AO132: 18000000000 | AP132: 21600000000 | AQ132: 21600000000 | AR132: 21600000000 | AS132: 21600000000 | AT132: 21600000000 | AU132: 21600000000 | AV132: 21600000000 | AW132: 21600000000 | AX132: 21600000000 | AY132: 21600000000 | AZ132: 21600000000 | BA132: 21600000000 | BB132: 21600000000 | BC132: 21600000000 | BD132: 21600000000 | BE132: 21600000000 | BF132: 21600000000 | BG132: 21600000000 | BH132: 21600000000 | BI132: 21600000000 | BJ132: 21600000000 | BK132: 21600000000 | BL132: 21600000000 | BM132: 21600000000 | BN132: 21600000000 | BO132: 21600000000 | BP132: 21600000000 | BQ132: 21600000000 | BR132: 21600000000 | BS132: 21600000000 | BT132: 21600000000 | BU132: 21600000000 | BV132: 21600000000 | BW132: 21600000000 | BX132: 21600000000 | BY132: 21600000000 | BZ132: 21600000000 | CA132: 21600000000 | CB132: 21600000000 | CC132: 21600000000 | CD132: 21600000000 | CE132: 21600000000 | CF132: 21600000000 | CG132: 21600000000 | CH132: 21600000000 | CI132: 21600000000 | CJ132: 21600000000 | CK132: 21600000000 | CL132: 21600000000 | CM132: 21600000000 | CN132: 21600000000 | CO132: 21600000000 | CP132: 21600000000 | CQ132: 21600000000 | CR132: 21600000000 | CS132: 21600000000 | CT132: 21600000000 | CU132: 21600000000 | CV132: 21600000000 | CW132: 21600000000 | CX132: 21600000000 | CY132: 21600000000 | CZ132: 21600000000 | DA132: 21600000000 | DB132: 21600000000 | DC132: 0 | DD132: 0 | DE132: 0 | DF132: 0 | DG132: 0 | DH132: 0 | DI132: 0 | DJ132: 0 | DK132: 0 | DL132: 0 | DM132: 0 | DN132: 0 | DO132: 0 | DP132: 0 | DQ132: 0 | DR132: 0 | DS132: 0 | DT132: 0 | DU132: 0 | DV132: 0 | DW132: 0 | DX132: 0 | DY132: 0 | DZ132: 0 | EA132: 0 | EB132: 0 | EC132: 0 | ED132: 0 | EE132: 0 | EF132: 0 | EG132: 0 | EH132: 0 | EI132: 0 | EJ132: 0 | EK132: 0 | EL132: 0 | EM132: 0 | EN132: 0 | EO132: 0 | EP132: 0 | EQ132: 0 | ER132: 0 | ES132: 0 | ET132: 0 | EU132: 0 | EV132: 0 | EW132: 0 | EX132: 0 | EY132: 0 | EZ132: 0 | FA132: 0 | FB132: 0 | FC132: 0
A133: 133 | G133: 0 | H133: Общий оборот (GMV) с учетом скидок | I133: Продукт - 2 | L133: 1 | M133: руб. | X133: 0 | AA133: 0 | AB133: 0 | AC133: 0 | AD133: 0 | AE133: 0 | AF133: 0 | AG133: 0 | AH133: 0 | AI133: 0 | AJ133: 0 | AK133: 0 | AL133: 0 | AM133: 0 | AN133: 0 | AO133: 0 | AP133: 0 | AQ133: 0 | AR133: 0 | AS133: 0 | AT133: 0 | AU133: 0 | AV133: 0 | AW133: 0 | AX133: 0 | AY133: 0 | AZ133: 0 | BA133: 0 | BB133: 0 | BC133: 0 | BD133: 0 | BE133: 0 | BF133: 0 | BG133: 0 | BH133: 0 | BI133: 0 | BJ133: 0 | BK133: 0 | BL133: 0 | BM133: 0 | BN133: 0 | BO133: 0 | BP133: 0 | BQ133: 0 | BR133: 0 | BS133: 0 | BT133: 0 | BU133: 0 | BV133: 0 | BW133: 0 | BX133: 0 | BY133: 0 | BZ133: 0 | CA133: 0 | CB133: 0 | CC133: 0 | CD133: 0 | CE133: 0 | CF133: 0 | CG133: 0 | CH133: 0 | CI133: 0 | CJ133: 0 | CK133: 0 | CL133: 0 | CM133: 0 | CN133: 0 | CO133: 0 | CP133: 0 | CQ133: 0 | CR133: 0 | CS133: 0 | CT133: 0 | CU133: 0 | CV133: 0 | CW133: 0 | CX133: 0 | CY133: 0 | CZ133: 0 | DA133: 0 | DB133: 0 | DC133: 0 | DD133: 0 | DE133: 0 | DF133: 0 | DG133: 0 | DH133: 0 | DI133: 0 | DJ133: 0 | DK133: 0 | DL133: 0 | DM133: 0 | DN133: 0 | DO133: 0 | DP133: 0 | DQ133: 0 | DR133: 0 | DS133: 0 | DT133: 0 | DU133: 0 | DV133: 0 | DW133: 0 | DX133: 0 | DY133: 0 | DZ133: 0 | EA133: 0 | EB133: 0 | EC133: 0 | ED133: 0 | EE133: 0 | EF133: 0 | EG133: 0 | EH133: 0 | EI133: 0 | EJ133: 0 | EK133: 0 | EL133: 0 | EM133: 0 | EN133: 0 | EO133: 0 | EP133: 0 | EQ133: 0 | ER133: 0 | ES133: 0 | ET133: 0 | EU133: 0 | EV133: 0 | EW133: 0 | EX133: 0 | EY133: 0 | EZ133: 0 | FA133: 0 | FB133: 0 | FC133: 0
A134: 134 | G134: 0 | H134: Общий оборот (GMV) с учетом скидок | I134: Продукт - 3 | L134: 1 | M134: руб. | X134: 0 | AA134: 0 | AB134: 0 | AC134: 0 | AD134: 0 | AE134: 0 | AF134: 0 | AG134: 0 | AH134: 0 | AI134: 0 | AJ134: 0 | AK134: 0 | AL134: 0 | AM134: 0 | AN134: 0 | AO134: 0 | AP134: 0 | AQ134: 0 | AR134: 0 | AS134: 0 | AT134: 0 | AU134: 0 | AV134: 0 | AW134: 0 | AX134: 0 | AY134: 0 | AZ134: 0 | BA134: 0 | BB134: 0 | BC134: 0 | BD134: 0 | BE134: 0 | BF134: 0 | BG134: 0 | BH134: 0 | BI134: 0 | BJ134: 0 | BK134: 0 | BL134: 0 | BM134: 0 | BN134: 0 | BO134: 0 | BP134: 0 | BQ134: 0 | BR134: 0 | BS134: 0 | BT134: 0 | BU134: 0 | BV134: 0 | BW134: 0 | BX134: 0 | BY134: 0 | BZ134: 0 | CA134: 0 | CB134: 0 | CC134: 0 | CD134: 0 | CE134: 0 | CF134: 0 | CG134: 0 | CH134: 0 | CI134: 0 | CJ134: 0 | CK134: 0 | CL134: 0 | CM134: 0 | CN134: 0 | CO134: 0 | CP134: 0 | CQ134: 0 | CR134: 0 | CS134: 0 | CT134: 0 | CU134: 0 | CV134: 0 | CW134: 0 | CX134: 0 | CY134: 0 | CZ134: 0 | DA134: 0 | DB134: 0 | DC134: 0 | DD134: 0 | DE134: 0 | DF134: 0 | DG134: 0 | DH134: 0 | DI134: 0 | DJ134: 0 | DK134: 0 | DL134: 0 | DM134: 0 | DN134: 0 | DO134: 0 | DP134: 0 | DQ134: 0 | DR134: 0 | DS134: 0 | DT134: 0 | DU134: 0 | DV134: 0 | DW134: 0 | DX134: 0 | DY134: 0 | DZ134: 0 | EA134: 0 | EB134: 0 | EC134: 0 | ED134: 0 | EE134: 0 | EF134: 0 | EG134: 0 | EH134: 0 | EI134: 0 | EJ134: 0 | EK134: 0 | EL134: 0 | EM134: 0 | EN134: 0 | EO134: 0 | EP134: 0 | EQ134: 0 | ER134: 0 | ES134: 0 | ET134: 0 | EU134: 0 | EV134: 0 | EW134: 0 | EX134: 0 | EY134: 0 | EZ134: 0 | FA134: 0 | FB134: 0 | FC134: 0
A135: 135 | L135: пустая строка
A136: 136
A137: 137 | G137: 0 | H137: Подготовка рекламных материалов | L137: 1 | M137: руб. | Q137: начисление | X137: 0 | AA137: 0 | AB137: 0 | AC137: 0 | AD137: 0 | AE137: 0 | AF137: 0 | AG137: 0 | AH137: 0 | AI137: 0 | AJ137: 0 | AK137: 0 | AL137: 0 | AM137: 0 | AN137: 0 | AO137: 0 | AP137: 0 | AQ137: 0 | AR137: 0 | AS137: 0 | AT137: 0 | AU137: 0 | AV137: 0 | AW137: 0 | AX137: 0 | AY137: 0 | AZ137: 0 | BA137: 0 | BB137: 0 | BC137: 0 | BD137: 0 | BE137: 0 | BF137: 0 | BG137: 0 | BH137: 0 | BI137: 0 | BJ137: 0 | BK137: 0 | BL137: 0 | BM137: 0 | BN137: 0 | BO137: 0 | BP137: 0 | BQ137: 0 | BR137: 0 | BS137: 0 | BT137: 0 | BU137: 0 | BV137: 0 | BW137: 0 | BX137: 0 | BY137: 0 | BZ137: 0 | CA137: 0 | CB137: 0 | CC137: 0 | CD137: 0 | CE137: 0 | CF137: 0 | CG137: 0 | CH137: 0 | CI137: 0 | CJ137: 0 | CK137: 0 | CL137: 0 | CM137: 0 | CN137: 0 | CO137: 0 | CP137: 0 | CQ137: 0 | CR137: 0 | CS137: 0 | CT137: 0 | CU137: 0 | CV137: 0 | CW137: 0 | CX137: 0 | CY137: 0 | CZ137: 0 | DA137: 0 | DB137: 0 | DC137: 0 | DD137: 0 | DE137: 0 | DF137: 0 | DG137: 0 | DH137: 0 | DI137: 0 | DJ137: 0 | DK137: 0 | DL137: 0 | DM137: 0 | DN137: 0 | DO137: 0 | DP137: 0 | DQ137: 0 | DR137: 0 | DS137: 0 | DT137: 0 | DU137: 0 | DV137: 0 | DW137: 0 | DX137: 0 | DY137: 0 | DZ137: 0 | EA137: 0 | EB137: 0 | EC137: 0 | ED137: 0 | EE137: 0 | EF137: 0 | EG137: 0 | EH137: 0 | EI137: 0 | EJ137: 0 | EK137: 0 | EL137: 0 | EM137: 0 | EN137: 0 | EO137: 0 | EP137: 0 | EQ137: 0 | ER137: 0 | ES137: 0 | ET137: 0 | EU137: 0 | EV137: 0 | EW137: 0 | EX137: 0 | EY137: 0 | EZ137: 0 | FA137: 0 | FB137: 0 | FC137: 0
A138: 138 | G138: 0 | H138: Подготовка рекламных материалов | I138: Распределение расхода для одного запуска | M138: руб. | Q138: процесс | T138: 0 | U138: 0 | X138: 0 | AA138: 0 | AB138: 0 | AC138: 0 | AD138: 0 | AE138: 0 | AF138: 0 | AG138: 0 | AH138: 0 | AI138: 0 | AJ138: 0 | AK138: 0 | AL138: 0 | AM138: 0 | AN138: 0 | AO138: 0 | AP138: 0 | AQ138: 0 | AR138: 0 | AS138: 0 | AT138: 0 | AU138: 0 | AV138: 0 | AW138: 0 | AX138: 0 | AY138: 0 | AZ138: 0 | BA138: 0 | BB138: 0 | BC138: 0 | BD138: 0 | BE138: 0 | BF138: 0 | BG138: 0 | BH138: 0 | BI138: 0 | BJ138: 0 | BK138: 0 | BL138: 0 | BM138: 0 | BN138: 0 | BO138: 0 | BP138: 0 | BQ138: 0 | BR138: 0 | BS138: 0 | BT138: 0 | BU138: 0 | BV138: 0 | BW138: 0 | BX138: 0 | BY138: 0 | BZ138: 0 | CA138: 0 | CB138: 0 | CC138: 0 | CD138: 0 | CE138: 0 | CF138: 0 | CG138: 0 | CH138: 0 | CI138: 0 | CJ138: 0 | CK138: 0 | CL138: 0 | CM138: 0 | CN138: 0 | CO138: 0 | CP138: 0 | CQ138: 0 | CR138: 0 | CS138: 0 | CT138: 0 | CU138: 0 | CV138: 0 | CW138: 0 | CX138: 0 | CY138: 0 | CZ138: 0 | DA138: 0 | DB138: 0 | DC138: 0 | DD138: 0 | DE138: 0 | DF138: 0 | DG138: 0 | DH138: 0 | DI138: 0 | DJ138: 0 | DK138: 0 | DL138: 0 | DM138: 0 | DN138: 0 | DO138: 0 | DP138: 0 | DQ138: 0 | DR138: 0 | DS138: 0 | DT138: 0 | DU138: 0 | DV138: 0 | DW138: 0 | DX138: 0 | DY138: 0 | DZ138: 0 | EA138: 0 | EB138: 0 | EC138: 0 | ED138: 0 | EE138: 0 | EF138: 0 | EG138: 0 | EH138: 0 | EI138: 0 | EJ138: 0 | EK138: 0 | EL138: 0 | EM138: 0 | EN138: 0 | EO138: 0 | EP138: 0 | EQ138: 0 | ER138: 0 | ES138: 0 | ET138: 0 | EU138: 0 | EV138: 0 | EW138: 0 | EX138: 0 | EY138: 0 | EZ138: 0 | FA138: 0 | FB138: 0 | FC138: 0
A139: 139 | G139: 0 | H139: Подготовка рекламных материалов | I139: Распределение расхода для одного запуска | J139: Сумма расхода для одного запуска по этой статье | M139: руб. | P139: * | Q139: 0 | S139: 0 | Y139: обратное распределение расхода | AA139: 0 | AB139: 0 | AC139: 0 | AD139: 0 | AE139: 0 | AF139: 0 | AG139: 0 | AH139: 0 | AI139: 0 | AJ139: 0 | AK139: 0 | AL139: 0 | AM139: 0 | AN139: 0 | AO139: 0 | AP139: 0 | AQ139: 0 | AR139: 0 | AS139: 0 | AT139: 0 | AU139: 0 | AV139: 0 | AW139: 0 | AX139: 0 | AY139: 0 | AZ139: 0 | BA139: 0 | BB139: 0 | BC139: 0 | BD139: 0 | BE139: 0 | BF139: 0 | BG139: 0 | BH139: 0 | BI139: 0 | BJ139: 0 | BK139: 0 | BL139: 0 | BM139: 0 | BN139: 0 | BO139: 0 | BP139: 0 | BQ139: 0 | BR139: 0 | BS139: 0 | BT139: 0 | BU139: 0 | BV139: 0 | BW139: 0 | BX139: 0 | BY139: 0 | BZ139: 0 | CA139: 0 | CB139: 0 | CC139: 0 | CD139: 0 | CE139: 0 | CF139: 0 | CG139: 0 | CH139: 0 | CI139: 0 | CJ139: 0 | CK139: 0 | CL139: 0 | CM139: 0 | CN139: 0 | CO139: 0 | CP139: 0 | CQ139: 0 | CR139: 0 | CS139: 0 | CT139: 0 | CU139: 0 | CV139: 0 | CW139: 0 | CX139: 0 | CY139: 0 | CZ139: 0 | DA139: 0 | DB139: 0 | DC139: 0 | DD139: 0 | DE139: 0 | DF139: 0 | DG139: 0 | DH139: 0 | DI139: 0 | DJ139: 0 | DK139: 0 | DL139: 0 | DM139: 0 | DN139: 0 | DO139: 0 | DP139: 0 | DQ139: 0 | DR139: 0 | DS139: 0 | DT139: 0 | DU139: 0 | DV139: 0 | DW139: 0 | DX139: 0 | DY139: 0 | DZ139: 0 | EA139: 0 | EB139: 0 | EC139: 0 | ED139: 0 | EE139: 0 | EF139: 0 | EG139: 0 | EH139: 0 | EI139: 0 | EJ139: 0 | EK139: 0 | EL139: 0 | EM139: 0 | EN139: 0 | EO139: 0 | EP139: 0 | EQ139: 0 | ER139: 0 | ES139: 0 | ET139: 0 | EU139: 0 | EV139: 0 | EW139: 0 | EX139: 0 | EY139: 0 | EZ139: 0 | FA139: 0 | FB139: 0 | FC139: 0
A140: 140 | G140: 0 | H140: Подготовка рекламных материалов | I140: Распределение расхода для одного запуска | J140: Процентное распределение расхода по периодам | M140: % | T140: 0 | X140: 1 | Y140: * | AB140: 0.8 | AC140: 0.2
A141: 141
A142: 142 | G142: 0 | H142: Подготовка рекламных материалов | L142: 1 | M142: руб. | Q142: оплата | X142: 0 | AA142: 0 | AB142: 0 | AC142: 0 | AD142: 0 | AE142: 0 | AF142: 0 | AG142: 0 | AH142: 0 | AI142: 0 | AJ142: 0 | AK142: 0 | AL142: 0 | AM142: 0 | AN142: 0 | AO142: 0 | AP142: 0 | AQ142: 0 | AR142: 0 | AS142: 0 | AT142: 0 | AU142: 0 | AV142: 0 | AW142: 0 | AX142: 0 | AY142: 0 | AZ142: 0 | BA142: 0 | BB142: 0 | BC142: 0 | BD142: 0 | BE142: 0 | BF142: 0 | BG142: 0 | BH142: 0 | BI142: 0 | BJ142: 0 | BK142: 0 | BL142: 0 | BM142: 0 | BN142: 0 | BO142: 0 | BP142: 0 | BQ142: 0 | BR142: 0 | BS142: 0 | BT142: 0 | BU142: 0 | BV142: 0 | BW142: 0 | BX142: 0 | BY142: 0 | BZ142: 0 | CA142: 0 | CB142: 0 | CC142: 0 | CD142: 0 | CE142: 0 | CF142: 0 | CG142: 0 | CH142: 0 | CI142: 0 | CJ142: 0 | CK142: 0 | CL142: 0 | CM142: 0 | CN142: 0 | CO142: 0 | CP142: 0 | CQ142: 0 | CR142: 0 | CS142: 0 | CT142: 0 | CU142: 0 | CV142: 0 | CW142: 0 | CX142: 0 | CY142: 0 | CZ142: 0 | DA142: 0 | DB142: 0 | DC142: 0 | DD142: 0 | DE142: 0 | DF142: 0 | DG142: 0 | DH142: 0 | DI142: 0 | DJ142: 0 | DK142: 0 | DL142: 0 | DM142: 0 | DN142: 0 | DO142: 0 | DP142: 0 | DQ142: 0 | DR142: 0 | DS142: 0 | DT142: 0 | DU142: 0 | DV142: 0 | DW142: 0 | DX142: 0 | DY142: 0 | DZ142: 0 | EA142: 0 | EB142: 0 | EC142: 0 | ED142: 0 | EE142: 0 | EF142: 0 | EG142: 0 | EH142: 0 | EI142: 0 | EJ142: 0 | EK142: 0 | EL142: 0 | EM142: 0 | EN142: 0 | EO142: 0 | EP142: 0 | EQ142: 0 | ER142: 0 | ES142: 0 | ET142: 0 | EU142: 0 | EV142: 0 | EW142: 0 | EX142: 0 | EY142: 0 | EZ142: 0 | FA142: 0 | FB142: 0 | FC142: 0
A143: 143 | G143: 0 | H143: Подготовка рекламных материалов | I143: Задаем через указание % предоплаты и сроков
A144: 144 | G144: 0 | H144: Подготовка рекламных материалов | I144: Задаем через указание % предоплаты и сроков | J144: Размер предоплаты | M144: % | P144: * | Q144: 0.3 | S144: 0
A145: 145 | G145: 0 | H145: Подготовка рекламных материалов | I145: Задаем через указание % предоплаты и сроков | J145: Период оборачиваемости предоплаты (срок) | M145: кол-во дней | P145: * | Q145: 10 | S145: 0
A146: 146 | G146: 0 | H146: Подготовка рекламных материалов | I146: Задаем через указание % предоплаты и сроков | J146: расчет в количестве периодов | M146: кол-во периодов | Q146: 0.1111111111 | S146: 0 | T146: 0
A147: 147 | G147: 0 | H147: Подготовка рекламных материалов | I147: Задаем через указание % предоплаты и сроков | J147: Размер доплаты | M147: % | Q147: 0.7 | S147: 0 | T147: 0
A148: 148 | G148: 0 | H148: Подготовка рекламных материалов | I148: Задаем через указание % предоплаты и сроков | J148: Период оборачиваемости доплат (срок) | M148: кол-во дней | P148: * | Q148: 30 | S148: 0
A149: 149 | G149: 0 | H149: Подготовка рекламных материалов | I149: Задаем через указание % предоплаты и сроков | J149: расчет в количестве периодов | M149: кол-во периодов | Q149: 0.3333333333 | S149: 0 | T149: 0
A150: 150
A151: 151 | G151: 0 | H151: Подготовка рекламных материалов | L151: 1 | M151: руб. | Q151: учет | X151: 0 | AA151: 0 | AB151: 0 | AC151: 0 | AD151: 0 | AE151: 0 | AF151: 0 | AG151: 0 | AH151: 0 | AI151: 0 | AJ151: 0 | AK151: 0 | AL151: 0 | AM151: 0 | AN151: 0 | AO151: 0 | AP151: 0 | AQ151: 0 | AR151: 0 | AS151: 0 | AT151: 0 | AU151: 0 | AV151: 0 | AW151: 0 | AX151: 0 | AY151: 0 | AZ151: 0 | BA151: 0 | BB151: 0 | BC151: 0 | BD151: 0 | BE151: 0 | BF151: 0 | BG151: 0 | BH151: 0 | BI151: 0 | BJ151: 0 | BK151: 0 | BL151: 0 | BM151: 0 | BN151: 0 | BO151: 0 | BP151: 0 | BQ151: 0 | BR151: 0 | BS151: 0 | BT151: 0 | BU151: 0 | BV151: 0 | BW151: 0 | BX151: 0 | BY151: 0 | BZ151: 0 | CA151: 0 | CB151: 0 | CC151: 0 | CD151: 0 | CE151: 0 | CF151: 0 | CG151: 0 | CH151: 0 | CI151: 0 | CJ151: 0 | CK151: 0 | CL151: 0 | CM151: 0 | CN151: 0 | CO151: 0 | CP151: 0 | CQ151: 0 | CR151: 0 | CS151: 0 | CT151: 0 | CU151: 0 | CV151: 0 | CW151: 0 | CX151: 0 | CY151: 0 | CZ151: 0 | DA151: 0 | DB151: 0 | DC151: 0 | DD151: 0 | DE151: 0 | DF151: 0 | DG151: 0 | DH151: 0 | DI151: 0 | DJ151: 0 | DK151: 0 | DL151: 0 | DM151: 0 | DN151: 0 | DO151: 0 | DP151: 0 | DQ151: 0 | DR151: 0 | DS151: 0 | DT151: 0 | DU151: 0 | DV151: 0 | DW151: 0 | DX151: 0 | DY151: 0 | DZ151: 0 | EA151: 0 | EB151: 0 | EC151: 0 | ED151: 0 | EE151: 0 | EF151: 0 | EG151: 0 | EH151: 0 | EI151: 0 | EJ151: 0 | EK151: 0 | EL151: 0 | EM151: 0 | EN151: 0 | EO151: 0 | EP151: 0 | EQ151: 0 | ER151: 0 | ES151: 0 | ET151: 0 | EU151: 0 | EV151: 0 | EW151: 0 | EX151: 0 | EY151: 0 | EZ151: 0 | FA151: 0 | FB151: 0 | FC151: 0
A152: 152 | G152: 0 | H152: Подготовка рекламных материалов | I152: Применяется процентное распределение дебита
A153: 153 | G153: 0 | H153: Подготовка рекламных материалов | I153: Применяется процентное распределение дебита | J153: %-ное распределение учета расходов | M153: % | Q153: процесс | T153: 0 | X153: 1 | AA153: 0 | AB153: 0.01265822785 | AC153: 0.01265822785 | AD153: 0.01265822785 | AE153: 0.01265822785 | AF153: 0.01265822785 | AG153: 0.01265822785 | AH153: 0.01265822785 | AI153: 0.01265822785 | AJ153: 0.01265822785 | AK153: 0.01265822785 | AL153: 0.01265822785 | AM153: 0.01265822785 | AN153: 0.01265822785 | AO153: 0.01265822785 | AP153: 0.01265822785 | AQ153: 0.01265822785 | AR153: 0.01265822785 | AS153: 0.01265822785 | AT153: 0.01265822785 | AU153: 0.01265822785 | AV153: 0.01265822785 | AW153: 0.01265822785 | AX153: 0.01265822785 | AY153: 0.01265822785 | AZ153: 0.01265822785 | BA153: 0.01265822785 | BB153: 0.01265822785 | BC153: 0.01265822785 | BD153: 0.01265822785 | BE153: 0.01265822785 | BF153: 0.01265822785 | BG153: 0.01265822785 | BH153: 0.01265822785 | BI153: 0.01265822785 | BJ153: 0.01265822785 | BK153: 0.01265822785 | BL153: 0.01265822785 | BM153: 0.01265822785 | BN153: 0.01265822785 | BO153: 0.01265822785 | BP153: 0.01265822785 | BQ153: 0.01265822785 | BR153: 0.01265822785 | BS153: 0.01265822785 | BT153: 0.01265822785 | BU153: 0.01265822785 | BV153: 0.01265822785 | BW153: 0.01265822785 | BX153: 0.01265822785 | BY153: 0.01265822785 | BZ153: 0.01265822785 | CA153: 0.01265822785 | CB153: 0.01265822785 | CC153: 0.01265822785 | CD153: 0.01265822785 | CE153: 0.01265822785 | CF153: 0.01265822785 | CG153: 0.01265822785 | CH153: 0.01265822785 | CI153: 0.01265822785 | CJ153: 0.01265822785 | CK153: 0.01265822785 | CL153: 0.01265822785 | CM153: 0.01265822785 | CN153: 0.01265822785 | CO153: 0.01265822785 | CP153: 0.01265822785 | CQ153: 0.01265822785 | CR153: 0.01265822785 | CS153: 0.01265822785 | CT153: 0.01265822785 | CU153: 0.01265822785 | CV153: 0.01265822785 | CW153: 0.01265822785 | CX153: 0.01265822785 | CY153: 0.01265822785 | CZ153: 0.01265822785 | DA153: 0.01265822785 | DB153: 0.01265822785 | DC153: 0 | DD153: 0 | DE153: 0 | DF153: 0 | DG153: 0 | DH153: 0 | DI153: 0 | DJ153: 0 | DK153: 0 | DL153: 0 | DM153: 0 | DN153: 0 | DO153: 0 | DP153: 0 | DQ153: 0 | DR153: 0 | DS153: 0 | DT153: 0 | DU153: 0 | DV153: 0 | DW153: 0 | DX153: 0 | DY153: 0 | DZ153: 0 | EA153: 0 | EB153: 0 | EC153: 0 | ED153: 0 | EE153: 0 | EF153: 0 | EG153: 0 | EH153: 0 | EI153: 0 | EJ153: 0 | EK153: 0 | EL153: 0 | EM153: 0 | EN153: 0 | EO153: 0 | EP153: 0 | EQ153: 0 | ER153: 0 | ES153: 0 | ET153: 0 | EU153: 0 | EV153: 0 | EW153: 0 | EX153: 0 | EY153: 0 | EZ153: 0 | FA153: 0 | FB153: 0 | FC153: 0
A154: 154 | G154: 0 | H154: Подготовка рекламных материалов | I154: Применяется процентное распределение дебита | J154: обратный порядок распределения учета расхода | M154: руб. | T154: 0 | Y154: обратный порядок процесса | AA154: 0 | AB154: 0 | AC154: 0 | AD154: 0 | AE154: 0 | AF154: 0 | AG154: 0 | AH154: 0 | AI154: 0 | AJ154: 0 | AK154: 0 | AL154: 0 | AM154: 0 | AN154: 0 | AO154: 0 | AP154: 0 | AQ154: 0 | AR154: 0 | AS154: 0 | AT154: 0 | AU154: 0 | AV154: 0 | AW154: 0 | AX154: 0 | AY154: 0 | AZ154: 0 | BA154: 0 | BB154: 0 | BC154: 0 | BD154: 0 | BE154: 0 | BF154: 0 | BG154: 0 | BH154: 0 | BI154: 0 | BJ154: 0 | BK154: 0 | BL154: 0 | BM154: 0 | BN154: 0 | BO154: 0 | BP154: 0 | BQ154: 0 | BR154: 0 | BS154: 0 | BT154: 0 | BU154: 0 | BV154: 0 | BW154: 0 | BX154: 0 | BY154: 0 | BZ154: 0 | CA154: 0 | CB154: 0 | CC154: 0 | CD154: 0 | CE154: 0 | CF154: 0 | CG154: 0 | CH154: 0 | CI154: 0 | CJ154: 0 | CK154: 0 | CL154: 0 | CM154: 0 | CN154: 0 | CO154: 0 | CP154: 0 | CQ154: 0 | CR154: 0 | CS154: 0 | CT154: 0 | CU154: 0 | CV154: 0 | CW154: 0 | CX154: 0 | CY154: 0 | CZ154: 0 | DA154: 0 | DB154: 0 | DC154: 0 | DD154: 0 | DE154: 0 | DF154: 0 | DG154: 0 | DH154: 0 | DI154: 0 | DJ154: 0 | DK154: 0 | DL154: 0 | DM154: 0 | DN154: 0 | DO154: 0 | DP154: 0 | DQ154: 0 | DR154: 0 | DS154: 0 | DT154: 0 | DU154: 0 | DV154: 0 | DW154: 0 | DX154: 0 | DY154: 0 | DZ154: 0 | EA154: 0 | EB154: 0 | EC154: 0 | ED154: 0 | EE154: 0 | EF154: 0 | EG154: 0 | EH154: 0 | EI154: 0 | EJ154: 0 | EK154: 0 | EL154: 0 | EM154: 0 | EN154: 0 | EO154: 0 | EP154: 0 | EQ154: 0 | ER154: 0 | ES154: 0 | ET154: 0 | EU154: 0 | EV154: 0 | EW154: 0 | EX154: 0 | EY154: 0 | EZ154: 0 | FA154: 0 | FB154: 0 | FC154: 0
A155: 155 | L155: пустая строка
A156: 156
A157: 157 | G157: 0 | H157: Съемка видео-роликов | L157: 1 | M157: руб. | Q157: начисление | X157: 0 | AA157: 0 | AB157: 0 | AC157: 0 | AD157: 0 | AE157: 0 | AF157: 0 | AG157: 0 | AH157: 0 | AI157: 0 | AJ157: 0 | AK157: 0 | AL157: 0 | AM157: 0 | AN157: 0 | AO157: 0 | AP157: 0 | AQ157: 0 | AR157: 0 | AS157: 0 | AT157: 0 | AU157: 0 | AV157: 0 | AW157: 0 | AX157: 0 | AY157: 0 | AZ157: 0 | BA157: 0 | BB157: 0 | BC157: 0 | BD157: 0 | BE157: 0 | BF157: 0 | BG157: 0 | BH157: 0 | BI157: 0 | BJ157: 0 | BK157: 0 | BL157: 0 | BM157: 0 | BN157: 0 | BO157: 0 | BP157: 0 | BQ157: 0 | BR157: 0 | BS157: 0 | BT157: 0 | BU157: 0 | BV157: 0 | BW157: 0 | BX157: 0 | BY157: 0 | BZ157: 0 | CA157: 0 | CB157: 0 | CC157: 0 | CD157: 0 | CE157: 0 | CF157: 0 | CG157: 0 | CH157: 0 | CI157: 0 | CJ157: 0 | CK157: 0 | CL157: 0 | CM157: 0 | CN157: 0 | CO157: 0 | CP157: 0 | CQ157: 0 | CR157: 0 | CS157: 0 | CT157: 0 | CU157: 0 | CV157: 0 | CW157: 0 | CX157: 0 | CY157: 0 | CZ157: 0 | DA157: 0 | DB157: 0 | DC157: 0 | DD157: 0 | DE157: 0 | DF157: 0 | DG157: 0 | DH157: 0 | DI157: 0 | DJ157: 0 | DK157: 0 | DL157: 0 | DM157: 0 | DN157: 0 | DO157: 0 | DP157: 0 | DQ157: 0 | DR157: 0 | DS157: 0 | DT157: 0 | DU157: 0 | DV157: 0 | DW157: 0 | DX157: 0 | DY157: 0 | DZ157: 0 | EA157: 0 | EB157: 0 | EC157: 0 | ED157: 0 | EE157: 0 | EF157: 0 | EG157: 0 | EH157: 0 | EI157: 0 | EJ157: 0 | EK157: 0 | EL157: 0 | EM157: 0 | EN157: 0 | EO157: 0 | EP157: 0 | EQ157: 0 | ER157: 0 | ES157: 0 | ET157: 0 | EU157: 0 | EV157: 0 | EW157: 0 | EX157: 0 | EY157: 0 | EZ157: 0 | FA157: 0 | FB157: 0 | FC157: 0
A158: 158 | G158: 0 | H158: Съемка видео-роликов | I158: Распределение расхода для одного запуска | M158: руб. | Q158: процесс | T158: 0 | U158: 0 | X158: 0 | AA158: 0 | AB158: 0 | AC158: 0 | AD158: 0 | AE158: 0 | AF158: 0 | AG158: 0 | AH158: 0 | AI158: 0 | AJ158: 0 | AK158: 0 | AL158: 0 | AM158: 0 | AN158: 0 | AO158: 0 | AP158: 0 | AQ158: 0 | AR158: 0 | AS158: 0 | AT158: 0 | AU158: 0 | AV158: 0 | AW158: 0 | AX158: 0 | AY158: 0 | AZ158: 0 | BA158: 0 | BB158: 0 | BC158: 0 | BD158: 0 | BE158: 0 | BF158: 0 | BG158: 0 | BH158: 0 | BI158: 0 | BJ158: 0 | BK158: 0 | BL158: 0 | BM158: 0 | BN158: 0 | BO158: 0 | BP158: 0 | BQ158: 0 | BR158: 0 | BS158: 0 | BT158: 0 | BU158: 0 | BV158: 0 | BW158: 0 | BX158: 0 | BY158: 0 | BZ158: 0 | CA158: 0 | CB158: 0 | CC158: 0 | CD158: 0 | CE158: 0 | CF158: 0 | CG158: 0 | CH158: 0 | CI158: 0 | CJ158: 0 | CK158: 0 | CL158: 0 | CM158: 0 | CN158: 0 | CO158: 0 | CP158: 0 | CQ158: 0 | CR158: 0 | CS158: 0 | CT158: 0 | CU158: 0 | CV158: 0 | CW158: 0 | CX158: 0 | CY158: 0 | CZ158: 0 | DA158: 0 | DB158: 0 | DC158: 0 | DD158: 0 | DE158: 0 | DF158: 0 | DG158: 0 | DH158: 0 | DI158: 0 | DJ158: 0 | DK158: 0 | DL158: 0 | DM158: 0 | DN158: 0 | DO158: 0 | DP158: 0 | DQ158: 0 | DR158: 0 | DS158: 0 | DT158: 0 | DU158: 0 | DV158: 0 | DW158: 0 | DX158: 0 | DY158: 0 | DZ158: 0 | EA158: 0 | EB158: 0 | EC158: 0 | ED158: 0 | EE158: 0 | EF158: 0 | EG158: 0 | EH158: 0 | EI158: 0 | EJ158: 0 | EK158: 0 | EL158: 0 | EM158: 0 | EN158: 0 | EO158: 0 | EP158: 0 | EQ158: 0 | ER158: 0 | ES158: 0 | ET158: 0 | EU158: 0 | EV158: 0 | EW158: 0 | EX158: 0 | EY158: 0 | EZ158: 0 | FA158: 0 | FB158: 0 | FC158: 0
A159: 159 | G159: 0 | H159: Съемка видео-роликов | I159: Распределение расхода для одного запуска | J159: Сумма расхода для одного запуска по этой статье | M159: руб. | P159: * | Q159: 0 | S159: 0 | Y159: обратное распределение расхода | AA159: 0 | AB159: 0 | AC159: 0 | AD159: 0 | AE159: 0 | AF159: 0 | AG159: 0 | AH159: 0 | AI159: 0 | AJ159: 0 | AK159: 0 | AL159: 0 | AM159: 0 | AN159: 0 | AO159: 0 | AP159: 0 | AQ159: 0 | AR159: 0 | AS159: 0 | AT159: 0 | AU159: 0 | AV159: 0 | AW159: 0 | AX159: 0 | AY159: 0 | AZ159: 0 | BA159: 0 | BB159: 0 | BC159: 0 | BD159: 0 | BE159: 0 | BF159: 0 | BG159: 0 | BH159: 0 | BI159: 0 | BJ159: 0 | BK159: 0 | BL159: 0 | BM159: 0 | BN159: 0 | BO159: 0 | BP159: 0 | BQ159: 0 | BR159: 0 | BS159: 0 | BT159: 0 | BU159: 0 | BV159: 0 | BW159: 0 | BX159: 0 | BY159: 0 | BZ159: 0 | CA159: 0 | CB159: 0 | CC159: 0 | CD159: 0 | CE159: 0 | CF159: 0 | CG159: 0 | CH159: 0 | CI159: 0 | CJ159: 0 | CK159: 0 | CL159: 0 | CM159: 0 | CN159: 0 | CO159: 0 | CP159: 0 | CQ159: 0 | CR159: 0 | CS159: 0 | CT159: 0 | CU159: 0 | CV159: 0 | CW159: 0 | CX159: 0 | CY159: 0 | CZ159: 0 | DA159: 0 | DB159: 0 | DC159: 0 | DD159: 0 | DE159: 0 | DF159: 0 | DG159: 0 | DH159: 0 | DI159: 0 | DJ159: 0 | DK159: 0 | DL159: 0 | DM159: 0 | DN159: 0 | DO159: 0 | DP159: 0 | DQ159: 0 | DR159: 0 | DS159: 0 | DT159: 0 | DU159: 0 | DV159: 0 | DW159: 0 | DX159: 0 | DY159: 0 | DZ159: 0 | EA159: 0 | EB159: 0 | EC159: 0 | ED159: 0 | EE159: 0 | EF159: 0 | EG159: 0 | EH159: 0 | EI159: 0 | EJ159: 0 | EK159: 0 | EL159: 0 | EM159: 0 | EN159: 0 | EO159: 0 | EP159: 0 | EQ159: 0 | ER159: 0 | ES159: 0 | ET159: 0 | EU159: 0 | EV159: 0 | EW159: 0 | EX159: 0 | EY159: 0 | EZ159: 0 | FA159: 0 | FB159: 0 | FC159: 0
A160: 160 | G160: 0 | H160: Съемка видео-роликов | I160: Распределение расхода для одного запуска | J160: Процентное распределение расхода по периодам | M160: % | T160: 0 | X160: 1 | Y160: * | AA160: 0 | AB160: 1
A161: 161
A162: 162 | G162: 0 | H162: Съемка видео-роликов | L162: 1 | M162: руб. | Q162: оплата | X162: 0 | AA162: 0 | AB162: 0 | AC162: 0 | AD162: 0 | AE162: 0 | AF162: 0 | AG162: 0 | AH162: 0 | AI162: 0 | AJ162: 0 | AK162: 0 | AL162: 0 | AM162: 0 | AN162: 0 | AO162: 0 | AP162: 0 | AQ162: 0 | AR162: 0 | AS162: 0 | AT162: 0 | AU162: 0 | AV162: 0 | AW162: 0 | AX162: 0 | AY162: 0 | AZ162: 0 | BA162: 0 | BB162: 0 | BC162: 0 | BD162: 0 | BE162: 0 | BF162: 0 | BG162: 0 | BH162: 0 | BI162: 0 | BJ162: 0 | BK162: 0 | BL162: 0 | BM162: 0 | BN162: 0 | BO162: 0 | BP162: 0 | BQ162: 0 | BR162: 0 | BS162: 0 | BT162: 0 | BU162: 0 | BV162: 0 | BW162: 0 | BX162: 0 | BY162: 0 | BZ162: 0 | CA162: 0 | CB162: 0 | CC162: 0 | CD162: 0 | CE162: 0 | CF162: 0 | CG162: 0 | CH162: 0 | CI162: 0 | CJ162: 0 | CK162: 0 | CL162: 0 | CM162: 0 | CN162: 0 | CO162: 0 | CP162: 0 | CQ162: 0 | CR162: 0 | CS162: 0 | CT162: 0 | CU162: 0 | CV162: 0 | CW162: 0 | CX162: 0 | CY162: 0 | CZ162: 0 | DA162: 0 | DB162: 0 | DC162: 0 | DD162: 0 | DE162: 0 | DF162: 0 | DG162: 0 | DH162: 0 | DI162: 0 | DJ162: 0 | DK162: 0 | DL162: 0 | DM162: 0 | DN162: 0 | DO162: 0 | DP162: 0 | DQ162: 0 | DR162: 0 | DS162: 0 | DT162: 0 | DU162: 0 | DV162: 0 | DW162: 0 | DX162: 0 | DY162: 0 | DZ162: 0 | EA162: 0 | EB162: 0 | EC162: 0 | ED162: 0 | EE162: 0 | EF162: 0 | EG162: 0 | EH162: 0 | EI162: 0 | EJ162: 0 | EK162: 0 | EL162: 0 | EM162: 0 | EN162: 0 | EO162: 0 | EP162: 0 | EQ162: 0 | ER162: 0 | ES162: 0 | ET162: 0 | EU162: 0 | EV162: 0 | EW162: 0 | EX162: 0 | EY162: 0 | EZ162: 0 | FA162: 0 | FB162: 0 | FC162: 0
A163: 163 | G163: 0 | H163: Съемка видео-роликов | I163: Задаем через указание % предоплаты и сроков
A164: 164 | G164: 0 | H164: Съемка видео-роликов | I164: Задаем через указание % предоплаты и сроков | J164: Размер предоплаты | M164: % | P164: * | Q164: 0.3 | S164: 0
A165: 165 | G165: 0 | H165: Съемка видео-роликов | I165: Задаем через указание % предоплаты и сроков | J165: Период оборачиваемости предоплаты (срок) | M165: кол-во дней | P165: * | Q165: 10 | S165: 0
A166: 166 | G166: 0 | H166: Съемка видео-роликов | I166: Задаем через указание % предоплаты и сроков | J166: расчет в количестве периодов | M166: кол-во периодов | Q166: 0.1111111111 | S166: 0 | T166: 0
A167: 167 | G167: 0 | H167: Съемка видео-роликов | I167: Задаем через указание % предоплаты и сроков | J167: Размер доплаты | M167: % | Q167: 0.7 | S167: 0 | T167: 0
A168: 168 | G168: 0 | H168: Съемка видео-роликов | I168: Задаем через указание % предоплаты и сроков | J168: Период оборачиваемости доплат (срок) | M168: кол-во дней | P168: * | Q168: 30 | S168: 0
A169: 169 | G169: 0 | H169: Съемка видео-роликов | I169: Задаем через указание % предоплаты и сроков | J169: расчет в количестве периодов | M169: кол-во периодов | Q169: 0.3333333333 | S169: 0 | T169: 0
A170: 170
A171: 171 | G171: 0 | H171: Съемка видео-роликов | L171: 1 | M171: руб. | Q171: учет | X171: 0 | AA171: 0 | AB171: 0 | AC171: 0 | AD171: 0 | AE171: 0 | AF171: 0 | AG171: 0 | AH171: 0 | AI171: 0 | AJ171: 0 | AK171: 0 | AL171: 0 | AM171: 0 | AN171: 0 | AO171: 0 | AP171: 0 | AQ171: 0 | AR171: 0 | AS171: 0 | AT171: 0 | AU171: 0 | AV171: 0 | AW171: 0 | AX171: 0 | AY171: 0 | AZ171: 0 | BA171: 0 | BB171: 0 | BC171: 0 | BD171: 0 | BE171: 0 | BF171: 0 | BG171: 0 | BH171: 0 | BI171: 0 | BJ171: 0 | BK171: 0 | BL171: 0 | BM171: 0 | BN171: 0 | BO171: 0 | BP171: 0 | BQ171: 0 | BR171: 0 | BS171: 0 | BT171: 0 | BU171: 0 | BV171: 0 | BW171: 0 | BX171: 0 | BY171: 0 | BZ171: 0 | CA171: 0 | CB171: 0 | CC171: 0 | CD171: 0 | CE171: 0 | CF171: 0 | CG171: 0 | CH171: 0 | CI171: 0 | CJ171: 0 | CK171: 0 | CL171: 0 | CM171: 0 | CN171: 0 | CO171: 0 | CP171: 0 | CQ171: 0 | CR171: 0 | CS171: 0 | CT171: 0 | CU171: 0 | CV171: 0 | CW171: 0 | CX171: 0 | CY171: 0 | CZ171: 0 | DA171: 0 | DB171: 0 | DC171: 0 | DD171: 0 | DE171: 0 | DF171: 0 | DG171: 0 | DH171: 0 | DI171: 0 | DJ171: 0 | DK171: 0 | DL171: 0 | DM171: 0 | DN171: 0 | DO171: 0 | DP171: 0 | DQ171: 0 | DR171: 0 | DS171: 0 | DT171: 0 | DU171: 0 | DV171: 0 | DW171: 0 | DX171: 0 | DY171: 0 | DZ171: 0 | EA171: 0 | EB171: 0 | EC171: 0 | ED171: 0 | EE171: 0 | EF171: 0 | EG171: 0 | EH171: 0 | EI171: 0 | EJ171: 0 | EK171: 0 | EL171: 0 | EM171: 0 | EN171: 0 | EO171: 0 | EP171: 0 | EQ171: 0 | ER171: 0 | ES171: 0 | ET171: 0 | EU171: 0 | EV171: 0 | EW171: 0 | EX171: 0 | EY171: 0 | EZ171: 0 | FA171: 0 | FB171: 0 | FC171: 0
A172: 172 | G172: 0 | H172: Съемка видео-роликов | I172: Применяется процентное распределение дебита
A173: 173 | G173: 0 | H173: Съемка видео-роликов | I173: Применяется процентное распределение дебита | J173: %-ное распределение учета расходов | M173: % | Q173: процесс | T173: 0 | X173: 1 | AA173: 0 | AB173: 0.01265822785 | AC173: 0.01265822785 | AD173: 0.01265822785 | AE173: 0.01265822785 | AF173: 0.01265822785 | AG173: 0.01265822785 | AH173: 0.01265822785 | AI173: 0.01265822785 | AJ173: 0.01265822785 | AK173: 0.01265822785 | AL173: 0.01265822785 | AM173: 0.01265822785 | AN173: 0.01265822785 | AO173: 0.01265822785 | AP173: 0.01265822785 | AQ173: 0.01265822785 | AR173: 0.01265822785 | AS173: 0.01265822785 | AT173: 0.01265822785 | AU173: 0.01265822785 | AV173: 0.01265822785 | AW173: 0.01265822785 | AX173: 0.01265822785 | AY173: 0.01265822785 | AZ173: 0.01265822785 | BA173: 0.01265822785 | BB173: 0.01265822785 | BC173: 0.01265822785 | BD173: 0.01265822785 | BE173: 0.01265822785 | BF173: 0.01265822785 | BG173: 0.01265822785 | BH173: 0.01265822785 | BI173: 0.01265822785 | BJ173: 0.01265822785 | BK173: 0.01265822785 | BL173: 0.01265822785 | BM173: 0.01265822785 | BN173: 0.01265822785 | BO173: 0.01265822785 | BP173: 0.01265822785 | BQ173: 0.01265822785 | BR173: 0.01265822785 | BS173: 0.01265822785 | BT173: 0.01265822785 | BU173: 0.01265822785 | BV173: 0.01265822785 | BW173: 0.01265822785 | BX173: 0.01265822785 | BY173: 0.01265822785 | BZ173: 0.01265822785 | CA173: 0.01265822785 | CB173: 0.01265822785 | CC173: 0.01265822785 | CD173: 0.01265822785 | CE173: 0.01265822785 | CF173: 0.01265822785 | CG173: 0.01265822785 | CH173: 0.01265822785 | CI173: 0.01265822785 | CJ173: 0.01265822785 | CK173: 0.01265822785 | CL173: 0.01265822785 | CM173: 0.01265822785 | CN173: 0.01265822785 | CO173: 0.01265822785 | CP173: 0.01265822785 | CQ173: 0.01265822785 | CR173: 0.01265822785 | CS173: 0.01265822785 | CT173: 0.01265822785 | CU173: 0.01265822785 | CV173: 0.01265822785 | CW173: 0.01265822785 | CX173: 0.01265822785 | CY173: 0.01265822785 | CZ173: 0.01265822785 | DA173: 0.01265822785 | DB173: 0.01265822785 | DC173: 0 | DD173: 0 | DE173: 0 | DF173: 0 | DG173: 0 | DH173: 0 | DI173: 0 | DJ173: 0 | DK173: 0 | DL173: 0 | DM173: 0 | DN173: 0 | DO173: 0 | DP173: 0 | DQ173: 0 | DR173: 0 | DS173: 0 | DT173: 0 | DU173: 0 | DV173: 0 | DW173: 0 | DX173: 0 | DY173: 0 | DZ173: 0 | EA173: 0 | EB173: 0 | EC173: 0 | ED173: 0 | EE173: 0 | EF173: 0 | EG173: 0 | EH173: 0 | EI173: 0 | EJ173: 0 | EK173: 0 | EL173: 0 | EM173: 0 | EN173: 0 | EO173: 0 | EP173: 0 | EQ173: 0 | ER173: 0 | ES173: 0 | ET173: 0 | EU173: 0 | EV173: 0 | EW173: 0 | EX173: 0 | EY173: 0 | EZ173: 0 | FA173: 0 | FB173: 0 | FC173: 0
A174: 174 | G174: 0 | H174: Съемка видео-роликов | I174: Применяется процентное распределение дебита | J174: обратный порядок распределения учета расхода | M174: руб. | T174: 0 | Y174: обратный порядок процесса | AA174: 0 | AB174: 0 | AC174: 0 | AD174: 0 | AE174: 0 | AF174: 0 | AG174: 0 | AH174: 0 | AI174: 0 | AJ174: 0 | AK174: 0 | AL174: 0 | AM174: 0 | AN174: 0 | AO174: 0 | AP174: 0 | AQ174: 0 | AR174: 0 | AS174: 0 | AT174: 0 | AU174: 0 | AV174: 0 | AW174: 0 | AX174: 0 | AY174: 0 | AZ174: 0 | BA174: 0 | BB174: 0 | BC174: 0 | BD174: 0 | BE174: 0 | BF174: 0 | BG174: 0 | BH174: 0 | BI174: 0 | BJ174: 0 | BK174: 0 | BL174: 0 | BM174: 0 | BN174: 0 | BO174: 0 | BP174: 0 | BQ174: 0 | BR174: 0 | BS174: 0 | BT174: 0 | BU174: 0 | BV174: 0 | BW174: 0 | BX174: 0 | BY174: 0 | BZ174: 0 | CA174: 0 | CB174: 0 | CC174: 0 | CD174: 0 | CE174: 0 | CF174: 0 | CG174: 0 | CH174: 0 | CI174: 0 | CJ174: 0 | CK174: 0 | CL174: 0 | CM174: 0 | CN174: 0 | CO174: 0 | CP174: 0 | CQ174: 0 | CR174: 0 | CS174: 0 | CT174: 0 | CU174: 0 | CV174: 0 | CW174: 0 | CX174: 0 | CY174: 0 | CZ174: 0 | DA174: 0 | DB174: 0 | DC174: 0 | DD174: 0 | DE174: 0 | DF174: 0 | DG174: 0 | DH174: 0 | DI174: 0 | DJ174: 0 | DK174: 0 | DL174: 0 | DM174: 0 | DN174: 0 | DO174: 0 | DP174: 0 | DQ174: 0 | DR174: 0 | DS174: 0 | DT174: 0 | DU174: 0 | DV174: 0 | DW174: 0 | DX174: 0 | DY174: 0 | DZ174: 0 | EA174: 0 | EB174: 0 | EC174: 0 | ED174: 0 | EE174: 0 | EF174: 0 | EG174: 0 | EH174: 0 | EI174: 0 | EJ174: 0 | EK174: 0 | EL174: 0 | EM174: 0 | EN174: 0 | EO174: 0 | EP174: 0 | EQ174: 0 | ER174: 0 | ES174: 0 | ET174: 0 | EU174: 0 | EV174: 0 | EW174: 0 | EX174: 0 | EY174: 0 | EZ174: 0 | FA174: 0 | FB174: 0 | FC174: 0
A175: 175 | L175: пустая строка
A176: 176
A177: 177 | G177: 0 | H177: Аутсорсинг внешних исполнителей | L177: 1 | M177: руб. | Q177: начисление | X177: 0 | AA177: 0 | AB177: 0 | AC177: 0 | AD177: 0 | AE177: 0 | AF177: 0 | AG177: 0 | AH177: 0 | AI177: 0 | AJ177: 0 | AK177: 0 | AL177: 0 | AM177: 0 | AN177: 0 | AO177: 0 | AP177: 0 | AQ177: 0 | AR177: 0 | AS177: 0 | AT177: 0 | AU177: 0 | AV177: 0 | AW177: 0 | AX177: 0 | AY177: 0 | AZ177: 0 | BA177: 0 | BB177: 0 | BC177: 0 | BD177: 0 | BE177: 0 | BF177: 0 | BG177: 0 | BH177: 0 | BI177: 0 | BJ177: 0 | BK177: 0 | BL177: 0 | BM177: 0 | BN177: 0 | BO177: 0 | BP177: 0 | BQ177: 0 | BR177: 0 | BS177: 0 | BT177: 0 | BU177: 0 | BV177: 0 | BW177: 0 | BX177: 0 | BY177: 0 | BZ177: 0 | CA177: 0 | CB177: 0 | CC177: 0 | CD177: 0 | CE177: 0 | CF177: 0 | CG177: 0 | CH177: 0 | CI177: 0 | CJ177: 0 | CK177: 0 | CL177: 0 | CM177: 0 | CN177: 0 | CO177: 0 | CP177: 0 | CQ177: 0 | CR177: 0 | CS177: 0 | CT177: 0 | CU177: 0 | CV177: 0 | CW177: 0 | CX177: 0 | CY177: 0 | CZ177: 0 | DA177: 0 | DB177: 0 | DC177: 0 | DD177: 0 | DE177: 0 | DF177: 0 | DG177: 0 | DH177: 0 | DI177: 0 | DJ177: 0 | DK177: 0 | DL177: 0 | DM177: 0 | DN177: 0 | DO177: 0 | DP177: 0 | DQ177: 0 | DR177: 0 | DS177: 0 | DT177: 0 | DU177: 0 | DV177: 0 | DW177: 0 | DX177: 0 | DY177: 0 | DZ177: 0 | EA177: 0 | EB177: 0 | EC177: 0 | ED177: 0 | EE177: 0 | EF177: 0 | EG177: 0 | EH177: 0 | EI177: 0 | EJ177: 0 | EK177: 0 | EL177: 0 | EM177: 0 | EN177: 0 | EO177: 0 | EP177: 0 | EQ177: 0 | ER177: 0 | ES177: 0 | ET177: 0 | EU177: 0 | EV177: 0 | EW177: 0 | EX177: 0 | EY177: 0 | EZ177: 0 | FA177: 0 | FB177: 0 | FC177: 0
A178: 178 | G178: 0 | H178: Аутсорсинг внешних исполнителей | I178: Распределение расхода для одного запуска | M178: руб. | Q178: процесс | T178: 0 | U178: 0 | X178: 0 | AA178: 0 | AB178: 0 | AC178: 0 | AD178: 0 | AE178: 0 | AF178: 0 | AG178: 0 | AH178: 0 | AI178: 0 | AJ178: 0 | AK178: 0 | AL178: 0 | AM178: 0 | AN178: 0 | AO178: 0 | AP178: 0 | AQ178: 0 | AR178: 0 | AS178: 0 | AT178: 0 | AU178: 0 | AV178: 0 | AW178: 0 | AX178: 0 | AY178: 0 | AZ178: 0 | BA178: 0 | BB178: 0 | BC178: 0 | BD178: 0 | BE178: 0 | BF178: 0 | BG178: 0 | BH178: 0 | BI178: 0 | BJ178: 0 | BK178: 0 | BL178: 0 | BM178: 0 | BN178: 0 | BO178: 0 | BP178: 0 | BQ178: 0 | BR178: 0 | BS178: 0 | BT178: 0 | BU178: 0 | BV178: 0 | BW178: 0 | BX178: 0 | BY178: 0 | BZ178: 0 | CA178: 0 | CB178: 0 | CC178: 0 | CD178: 0 | CE178: 0 | CF178: 0 | CG178: 0 | CH178: 0 | CI178: 0 | CJ178: 0 | CK178: 0 | CL178: 0 | CM178: 0 | CN178: 0 | CO178: 0 | CP178: 0 | CQ178: 0 | CR178: 0 | CS178: 0 | CT178: 0 | CU178: 0 | CV178: 0 | CW178: 0 | CX178: 0 | CY178: 0 | CZ178: 0 | DA178: 0 | DB178: 0 | DC178: 0 | DD178: 0 | DE178: 0 | DF178: 0 | DG178: 0 | DH178: 0 | DI178: 0 | DJ178: 0 | DK178: 0 | DL178: 0 | DM178: 0 | DN178: 0 | DO178: 0 | DP178: 0 | DQ178: 0 | DR178: 0 | DS178: 0 | DT178: 0 | DU178: 0 | DV178: 0 | DW178: 0 | DX178: 0 | DY178: 0 | DZ178: 0 | EA178: 0 | EB178: 0 | EC178: 0 | ED178: 0 | EE178: 0 | EF178: 0 | EG178: 0 | EH178: 0 | EI178: 0 | EJ178: 0 | EK178: 0 | EL178: 0 | EM178: 0 | EN178: 0 | EO178: 0 | EP178: 0 | EQ178: 0 | ER178: 0 | ES178: 0 | ET178: 0 | EU178: 0 | EV178: 0 | EW178: 0 | EX178: 0 | EY178: 0 | EZ178: 0 | FA178: 0 | FB178: 0 | FC178: 0
A179: 179 | G179: 0 | H179: Аутсорсинг внешних исполнителей | I179: Распределение расхода для одного запуска | J179: Сумма расхода для одного запуска по этой статье | M179: руб. | P179: * | Q179: 0 | S179: 0 | Y179: обратное распределение расхода | AA179: 0 | AB179: 0 | AC179: 0 | AD179: 0 | AE179: 0 | AF179: 0 | AG179: 0 | AH179: 0 | AI179: 0 | AJ179: 0 | AK179: 0 | AL179: 0 | AM179: 0 | AN179: 0 | AO179: 0 | AP179: 0 | AQ179: 0 | AR179: 0 | AS179: 0 | AT179: 0 | AU179: 0 | AV179: 0 | AW179: 0 | AX179: 0 | AY179: 0 | AZ179: 0 | BA179: 0 | BB179: 0 | BC179: 0 | BD179: 0 | BE179: 0 | BF179: 0 | BG179: 0 | BH179: 0 | BI179: 0 | BJ179: 0 | BK179: 0 | BL179: 0 | BM179: 0 | BN179: 0 | BO179: 0 | BP179: 0 | BQ179: 0 | BR179: 0 | BS179: 0 | BT179: 0 | BU179: 0 | BV179: 0 | BW179: 0 | BX179: 0 | BY179: 0 | BZ179: 0 | CA179: 0 | CB179: 0 | CC179: 0 | CD179: 0 | CE179: 0 | CF179: 0 | CG179: 0 | CH179: 0 | CI179: 0 | CJ179: 0 | CK179: 0 | CL179: 0 | CM179: 0 | CN179: 0 | CO179: 0 | CP179: 0 | CQ179: 0 | CR179: 0 | CS179: 0 | CT179: 0 | CU179: 0 | CV179: 0 | CW179: 0 | CX179: 0 | CY179: 0 | CZ179: 0 | DA179: 0 | DB179: 0 | DC179: 0 | DD179: 0 | DE179: 0 | DF179: 0 | DG179: 0 | DH179: 0 | DI179: 0 | DJ179: 0 | DK179: 0 | DL179: 0 | DM179: 0 | DN179: 0 | DO179: 0 | DP179: 0 | DQ179: 0 | DR179: 0 | DS179: 0 | DT179: 0 | DU179: 0 | DV179: 0 | DW179: 0 | DX179: 0 | DY179: 0 | DZ179: 0 | EA179: 0 | EB179: 0 | EC179: 0 | ED179: 0 | EE179: 0 | EF179: 0 | EG179: 0 | EH179: 0 | EI179: 0 | EJ179: 0 | EK179: 0 | EL179: 0 | EM179: 0 | EN179: 0 | EO179: 0 | EP179: 0 | EQ179: 0 | ER179: 0 | ES179: 0 | ET179: 0 | EU179: 0 | EV179: 0 | EW179: 0 | EX179: 0 | EY179: 0 | EZ179: 0 | FA179: 0 | FB179: 0 | FC179: 0
A180: 180 | G180: 0 | H180: Аутсорсинг внешних исполнителей | I180: Распределение расхода для одного запуска | J180: Процентное распределение расхода по периодам | M180: % | T180: 0 | X180: 1 | Y180: * | AA180: 0.3 | AB180: 0.6 | AC180: 0.1
A181: 181
A182: 182 | G182: 0 | H182: Аутсорсинг внешних исполнителей | L182: 1 | M182: руб. | Q182: оплата | X182: 0 | AA182: 0 | AB182: 0 | AC182: 0 | AD182: 0 | AE182: 0 | AF182: 0 | AG182: 0 | AH182: 0 | AI182: 0 | AJ182: 0 | AK182: 0 | AL182: 0 | AM182: 0 | AN182: 0 | AO182: 0 | AP182: 0 | AQ182: 0 | AR182: 0 | AS182: 0 | AT182: 0 | AU182: 0 | AV182: 0 | AW182: 0 | AX182: 0 | AY182: 0 | AZ182: 0 | BA182: 0 | BB182: 0 | BC182: 0 | BD182: 0 | BE182: 0 | BF182: 0 | BG182: 0 | BH182: 0 | BI182: 0 | BJ182: 0 | BK182: 0 | BL182: 0 | BM182: 0 | BN182: 0 | BO182: 0 | BP182: 0 | BQ182: 0 | BR182: 0 | BS182: 0 | BT182: 0 | BU182: 0 | BV182: 0 | BW182: 0 | BX182: 0 | BY182: 0 | BZ182: 0 | CA182: 0 | CB182: 0 | CC182: 0 | CD182: 0 | CE182: 0 | CF182: 0 | CG182: 0 | CH182: 0 | CI182: 0 | CJ182: 0 | CK182: 0 | CL182: 0 | CM182: 0 | CN182: 0 | CO182: 0 | CP182: 0 | CQ182: 0 | CR182: 0 | CS182: 0 | CT182: 0 | CU182: 0 | CV182: 0 | CW182: 0 | CX182: 0 | CY182: 0 | CZ182: 0 | DA182: 0 | DB182: 0 | DC182: 0 | DD182: 0 | DE182: 0 | DF182: 0 | DG182: 0 | DH182: 0 | DI182: 0 | DJ182: 0 | DK182: 0 | DL182: 0 | DM182: 0 | DN182: 0 | DO182: 0 | DP182: 0 | DQ182: 0 | DR182: 0 | DS182: 0 | DT182: 0 | DU182: 0 | DV182: 0 | DW182: 0 | DX182: 0 | DY182: 0 | DZ182: 0 | EA182: 0 | EB182: 0 | EC182: 0 | ED182: 0 | EE182: 0 | EF182: 0 | EG182: 0 | EH182: 0 | EI182: 0 | EJ182: 0 | EK182: 0 | EL182: 0 | EM182: 0 | EN182: 0 | EO182: 0 | EP182: 0 | EQ182: 0 | ER182: 0 | ES182: 0 | ET182: 0 | EU182: 0 | EV182: 0 | EW182: 0 | EX182: 0 | EY182: 0 | EZ182: 0 | FA182: 0 | FB182: 0 | FC182: 0
A183: 183 | G183: 0 | H183: Аутсорсинг внешних исполнителей | I183: Задаем через указание % предоплаты и сроков
A184: 184 | G184: 0 | H184: Аутсорсинг внешних исполнителей | I184: Задаем через указание % предоплаты и сроков | J184: Размер предоплаты | M184: % | P184: * | Q184: 0.3 | S184: 0
A185: 185 | G185: 0 | H185: Аутсорсинг внешних исполнителей | I185: Задаем через указание % предоплаты и сроков | J185: Период оборачиваемости предоплаты (срок) | M185: кол-во дней | P185: * | Q185: 10 | S185: 0
A186: 186 | G186: 0 | H186: Аутсорсинг внешних исполнителей | I186: Задаем через указание % предоплаты и сроков | J186: расчет в количестве периодов | M186: кол-во периодов | Q186: 0.1111111111 | S186: 0 | T186: 0
A187: 187 | G187: 0 | H187: Аутсорсинг внешних исполнителей | I187: Задаем через указание % предоплаты и сроков | J187: Размер доплаты | M187: % | Q187: 0.7 | S187: 0 | T187: 0
A188: 188 | G188: 0 | H188: Аутсорсинг внешних исполнителей | I188: Задаем через указание % предоплаты и сроков | J188: Период оборачиваемости доплат (срок) | M188: кол-во дней | P188: * | Q188: 30 | S188: 0
A189: 189 | G189: 0 | H189: Аутсорсинг внешних исполнителей | I189: Задаем через указание % предоплаты и сроков | J189: расчет в количестве периодов | M189: кол-во периодов | Q189: 0.3333333333 | S189: 0 | T189: 0
A190: 190
A191: 191 | G191: 0 | H191: Аутсорсинг внешних исполнителей | L191: 1 | M191: руб. | Q191: учет | X191: 0 | AA191: 0 | AB191: 0 | AC191: 0 | AD191: 0 | AE191: 0 | AF191: 0 | AG191: 0 | AH191: 0 | AI191: 0 | AJ191: 0 | AK191: 0 | AL191: 0 | AM191: 0 | AN191: 0 | AO191: 0 | AP191: 0 | AQ191: 0 | AR191: 0 | AS191: 0 | AT191: 0 | AU191: 0 | AV191: 0 | AW191: 0 | AX191: 0 | AY191: 0 | AZ191: 0 | BA191: 0 | BB191: 0 | BC191: 0 | BD191: 0 | BE191: 0 | BF191: 0 | BG191: 0 | BH191: 0 | BI191: 0 | BJ191: 0 | BK191: 0 | BL191: 0 | BM191: 0 | BN191: 0 | BO191: 0 | BP191: 0 | BQ191: 0 | BR191: 0 | BS191: 0 | BT191: 0 | BU191: 0 | BV191: 0 | BW191: 0 | BX191: 0 | BY191: 0 | BZ191: 0 | CA191: 0 | CB191: 0 | CC191: 0 | CD191: 0 | CE191: 0 | CF191: 0 | CG191: 0 | CH191: 0 | CI191: 0 | CJ191: 0 | CK191: 0 | CL191: 0 | CM191: 0 | CN191: 0 | CO191: 0 | CP191: 0 | CQ191: 0 | CR191: 0 | CS191: 0 | CT191: 0 | CU191: 0 | CV191: 0 | CW191: 0 | CX191: 0 | CY191: 0 | CZ191: 0 | DA191: 0 | DB191: 0 | DC191: 0 | DD191: 0 | DE191: 0 | DF191: 0 | DG191: 0 | DH191: 0 | DI191: 0 | DJ191: 0 | DK191: 0 | DL191: 0 | DM191: 0 | DN191: 0 | DO191: 0 | DP191: 0 | DQ191: 0 | DR191: 0 | DS191: 0 | DT191: 0 | DU191: 0 | DV191: 0 | DW191: 0 | DX191: 0 | DY191: 0 | DZ191: 0 | EA191: 0 | EB191: 0 | EC191: 0 | ED191: 0 | EE191: 0 | EF191: 0 | EG191: 0 | EH191: 0 | EI191: 0 | EJ191: 0 | EK191: 0 | EL191: 0 | EM191: 0 | EN191: 0 | EO191: 0 | EP191: 0 | EQ191: 0 | ER191: 0 | ES191: 0 | ET191: 0 | EU191: 0 | EV191: 0 | EW191: 0 | EX191: 0 | EY191: 0 | EZ191: 0 | FA191: 0 | FB191: 0 | FC191: 0
A192: 192 | G192: 0 | H192: Аутсорсинг внешних исполнителей | I192: Применяется процентное распределение дебита
A193: 193 | G193: 0 | H193: Аутсорсинг внешних исполнителей | I193: Применяется процентное распределение дебита | J193: %-ное распределение учета расходов | M193: % | Q193: процесс | T193: 0 | X193: 1 | AA193: 0 | AB193: 0.01265822785 | AC193: 0.01265822785 | AD193: 0.01265822785 | AE193: 0.01265822785 | AF193: 0.01265822785 | AG193: 0.01265822785 | AH193: 0.01265822785 | AI193: 0.01265822785 | AJ193: 0.01265822785 | AK193: 0.01265822785 | AL193: 0.01265822785 | AM193: 0.01265822785 | AN193: 0.01265822785 | AO193: 0.01265822785 | AP193: 0.01265822785 | AQ193: 0.01265822785 | AR193: 0.01265822785 | AS193: 0.01265822785 | AT193: 0.01265822785 | AU193: 0.01265822785 | AV193: 0.01265822785 | AW193: 0.01265822785 | AX193: 0.01265822785 | AY193: 0.01265822785 | AZ193: 0.01265822785 | BA193: 0.01265822785 | BB193: 0.01265822785 | BC193: 0.01265822785 | BD193: 0.01265822785 | BE193: 0.01265822785 | BF193: 0.01265822785 | BG193: 0.01265822785 | BH193: 0.01265822785 | BI193: 0.01265822785 | BJ193: 0.01265822785 | BK193: 0.01265822785 | BL193: 0.01265822785 | BM193: 0.01265822785 | BN193: 0.01265822785 | BO193: 0.01265822785 | BP193: 0.01265822785 | BQ193: 0.01265822785 | BR193: 0.01265822785 | BS193: 0.01265822785 | BT193: 0.01265822785 | BU193: 0.01265822785 | BV193: 0.01265822785 | BW193: 0.01265822785 | BX193: 0.01265822785 | BY193: 0.01265822785 | BZ193: 0.01265822785 | CA193: 0.01265822785 | CB193: 0.01265822785 | CC193: 0.01265822785 | CD193: 0.01265822785 | CE193: 0.01265822785 | CF193: 0.01265822785 | CG193: 0.01265822785 | CH193: 0.01265822785 | CI193: 0.01265822785 | CJ193: 0.01265822785 | CK193: 0.01265822785 | CL193: 0.01265822785 | CM193: 0.01265822785 | CN193: 0.01265822785 | CO193: 0.01265822785 | CP193: 0.01265822785 | CQ193: 0.01265822785 | CR193: 0.01265822785 | CS193: 0.01265822785 | CT193: 0.01265822785 | CU193: 0.01265822785 | CV193: 0.01265822785 | CW193: 0.01265822785 | CX193: 0.01265822785 | CY193: 0.01265822785 | CZ193: 0.01265822785 | DA193: 0.01265822785 | DB193: 0.01265822785 | DC193: 0 | DD193: 0 | DE193: 0 | DF193: 0 | DG193: 0 | DH193: 0 | DI193: 0 | DJ193: 0 | DK193: 0 | DL193: 0 | DM193: 0 | DN193: 0 | DO193: 0 | DP193: 0 | DQ193: 0 | DR193: 0 | DS193: 0 | DT193: 0 | DU193: 0 | DV193: 0 | DW193: 0 | DX193: 0 | DY193: 0 | DZ193: 0 | EA193: 0 | EB193: 0 | EC193: 0 | ED193: 0 | EE193: 0 | EF193: 0 | EG193: 0 | EH193: 0 | EI193: 0 | EJ193: 0 | EK193: 0 | EL193: 0 | EM193: 0 | EN193: 0 | EO193: 0 | EP193: 0 | EQ193: 0 | ER193: 0 | ES193: 0 | ET193: 0 | EU193: 0 | EV193: 0 | EW193: 0 | EX193: 0 | EY193: 0 | EZ193: 0 | FA193: 0 | FB193: 0 | FC193: 0
A194: 194 | G194: 0 | H194: Аутсорсинг внешних исполнителей | I194: Применяется процентное распределение дебита | J194: обратный порядок распределения учета расхода | M194: руб. | T194: 0 | Y194: обратный порядок процесса | AA194: 0 | AB194: 0 | AC194: 0 | AD194: 0 | AE194: 0 | AF194: 0 | AG194: 0 | AH194: 0 | AI194: 0 | AJ194: 0 | AK194: 0 | AL194: 0 | AM194: 0 | AN194: 0 | AO194: 0 | AP194: 0 | AQ194: 0 | AR194: 0 | AS194: 0 | AT194: 0 | AU194: 0 | AV194: 0 | AW194: 0 | AX194: 0 | AY194: 0 | AZ194: 0 | BA194: 0 | BB194: 0 | BC194: 0 | BD194: 0 | BE194: 0 | BF194: 0 | BG194: 0 | BH194: 0 | BI194: 0 | BJ194: 0 | BK194: 0 | BL194: 0 | BM194: 0 | BN194: 0 | BO194: 0 | BP194: 0 | BQ194: 0 | BR194: 0 | BS194: 0 | BT194: 0 | BU194: 0 | BV194: 0 | BW194: 0 | BX194: 0 | BY194: 0 | BZ194: 0 | CA194: 0 | CB194: 0 | CC194: 0 | CD194: 0 | CE194: 0 | CF194: 0 | CG194: 0 | CH194: 0 | CI194: 0 | CJ194: 0 | CK194: 0 | CL194: 0 | CM194: 0 | CN194: 0 | CO194: 0 | CP194: 0 | CQ194: 0 | CR194: 0 | CS194: 0 | CT194: 0 | CU194: 0 | CV194: 0 | CW194: 0 | CX194: 0 | CY194: 0 | CZ194: 0 | DA194: 0 | DB194: 0 | DC194: 0 | DD194: 0 | DE194: 0 | DF194: 0 | DG194: 0 | DH194: 0 | DI194: 0 | DJ194: 0 | DK194: 0 | DL194: 0 | DM194: 0 | DN194: 0 | DO194: 0 | DP194: 0 | DQ194: 0 | DR194: 0 | DS194: 0 | DT194: 0 | DU194: 0 | DV194: 0 | DW194: 0 | DX194: 0 | DY194: 0 | DZ194: 0 | EA194: 0 | EB194: 0 | EC194: 0 | ED194: 0 | EE194: 0 | EF194: 0 | EG194: 0 | EH194: 0 | EI194: 0 | EJ194: 0 | EK194: 0 | EL194: 0 | EM194: 0 | EN194: 0 | EO194: 0 | EP194: 0 | EQ194: 0 | ER194: 0 | ES194: 0 | ET194: 0 | EU194: 0 | EV194: 0 | EW194: 0 | EX194: 0 | EY194: 0 | EZ194: 0 | FA194: 0 | FB194: 0 | FC194: 0
A195: 195 | L195: пустая строка
A196: 196
A197: 197 | G197: 0 | H197: Представительские расходы | L197: 1 | M197: руб. | Q197: начисление | X197: 0 | AA197: 0 | AB197: 0 | AC197: 0 | AD197: 0 | AE197: 0 | AF197: 0 | AG197: 0 | AH197: 0 | AI197: 0 | AJ197: 0 | AK197: 0 | AL197: 0 | AM197: 0 | AN197: 0 | AO197: 0 | AP197: 0 | AQ197: 0 | AR197: 0 | AS197: 0 | AT197: 0 | AU197: 0 | AV197: 0 | AW197: 0 | AX197: 0 | AY197: 0 | AZ197: 0 | BA197: 0 | BB197: 0 | BC197: 0 | BD197: 0 | BE197: 0 | BF197: 0 | BG197: 0 | BH197: 0 | BI197: 0 | BJ197: 0 | BK197: 0 | BL197: 0 | BM197: 0 | BN197: 0 | BO197: 0 | BP197: 0 | BQ197: 0 | BR197: 0 | BS197: 0 | BT197: 0 | BU197: 0 | BV197: 0 | BW197: 0 | BX197: 0 | BY197: 0 | BZ197: 0 | CA197: 0 | CB197: 0 | CC197: 0 | CD197: 0 | CE197: 0 | CF197: 0 | CG197: 0 | CH197: 0 | CI197: 0 | CJ197: 0 | CK197: 0 | CL197: 0 | CM197: 0 | CN197: 0 | CO197: 0 | CP197: 0 | CQ197: 0 | CR197: 0 | CS197: 0 | CT197: 0 | CU197: 0 | CV197: 0 | CW197: 0 | CX197: 0 | CY197: 0 | CZ197: 0 | DA197: 0 | DB197: 0 | DC197: 0 | DD197: 0 | DE197: 0 | DF197: 0 | DG197: 0 | DH197: 0 | DI197: 0 | DJ197: 0 | DK197: 0 | DL197: 0 | DM197: 0 | DN197: 0 | DO197: 0 | DP197: 0 | DQ197: 0 | DR197: 0 | DS197: 0 | DT197: 0 | DU197: 0 | DV197: 0 | DW197: 0 | DX197: 0 | DY197: 0 | DZ197: 0 | EA197: 0 | EB197: 0 | EC197: 0 | ED197: 0 | EE197: 0 | EF197: 0 | EG197: 0 | EH197: 0 | EI197: 0 | EJ197: 0 | EK197: 0 | EL197: 0 | EM197: 0 | EN197: 0 | EO197: 0 | EP197: 0 | EQ197: 0 | ER197: 0 | ES197: 0 | ET197: 0 | EU197: 0 | EV197: 0 | EW197: 0 | EX197: 0 | EY197: 0 | EZ197: 0 | FA197: 0 | FB197: 0 | FC197: 0
A198: 198 | G198: 0 | H198: тип зависимости переменных расходов | I198: Выбираем тип зависимости переменных расходов | P198: * | Q198: денежные факторы | R198: ^ | S198: 0
A199: 199 | G199: 0 | H199: денежные факторы переменных расходов маркетинга | I199: Выбираем показатель (фактор) зависимости | P199: * | Q199: Общий оборот (GMV) | R199: ^ | S199: 0
A200: 200 | G200: 0 | H200: Представительские расходы | I200: Доля расхода в денежном показателе | M200: руб. | P200: * | Q200: 0 | S200: 0
... 389 more rows

Sheet CapEx
Y1: номер столбца: | AA1: 27 | AB1: 28 | AC1: 29 | AD1: 30 | AE1: 31 | AF1: 32 | AG1: 33 | AH1: 34 | AI1: 35 | AJ1: 36 | AK1: 37 | AL1: 38 | AM1: 39 | AN1: 40 | AO1: 41 | AP1: 42 | AQ1: 43 | AR1: 44 | AS1: 45 | AT1: 46 | AU1: 47 | AV1: 48 | AW1: 49 | AX1: 50 | AY1: 51 | AZ1: 52 | BA1: 53 | BB1: 54 | BC1: 55 | BD1: 56 | BE1: 57 | BF1: 58 | BG1: 59 | BH1: 60 | BI1: 61 | BJ1: 62 | BK1: 63 | BL1: 64 | BM1: 65 | BN1: 66 | BO1: 67 | BP1: 68 | BQ1: 69 | BR1: 70 | BS1: 71 | BT1: 72 | BU1: 73 | BV1: 74 | BW1: 75 | BX1: 76 | BY1: 77 | BZ1: 78 | CA1: 79 | CB1: 80 | CC1: 81 | CD1: 82 | CE1: 83 | CF1: 84 | CG1: 85 | CH1: 86 | CI1: 87 | CJ1: 88 | CK1: 89 | CL1: 90 | CM1: 91 | CN1: 92 | CO1: 93 | CP1: 94 | CQ1: 95 | CR1: 96 | CS1: 97 | CT1: 98 | CU1: 99 | CV1: 100 | CW1: 101 | CX1: 102 | CY1: 103 | CZ1: 104 | DA1: 105 | DB1: 106 | DC1: 107 | DD1: 108 | DE1: 109 | DF1: 110 | DG1: 111 | DH1: 112 | DI1: 113 | DJ1: 114 | DK1: 115 | DL1: 116 | DM1: 117 | DN1: 118 | DO1: 119 | DP1: 120 | DQ1: 121 | DR1: 122 | DS1: 123 | DT1: 124 | DU1: 125 | DV1: 126 | DW1: 127 | DX1: 128 | DY1: 129 | DZ1: 130 | EA1: 131 | EB1: 132 | EC1: 133 | ED1: 134 | EE1: 135 | EF1: 136 | EG1: 137 | EH1: 138 | EI1: 139 | EJ1: 140 | EK1: 141 | EL1: 142 | EM1: 143 | EN1: 144 | EO1: 145 | EP1: 146 | EQ1: 147 | ER1: 148 | ES1: 149 | ET1: 150 | EU1: 151 | EV1: 152 | EW1: 153 | EX1: 154 | EY1: 155 | EZ1: 156 | FA1: 157 | FB1: 158 | FC1: 159
Y2: номер периода модели: | AA2: 1 | AB2: 2 | AC2: 3 | AD2: 4 | AE2: 5 | AF2: 6 | AG2: 7 | AH2: 8 | AI2: 9 | AJ2: 10 | AK2: 11 | AL2: 12 | AM2: 13 | AN2: 14 | AO2: 15 | AP2: 16 | AQ2: 17 | AR2: 18 | AS2: 19 | AT2: 20 | AU2: 21 | AV2: 22 | AW2: 23 | AX2: 24 | AY2: 25 | AZ2: 26 | BA2: 27 | BB2: 28 | BC2: 29 | BD2: 30 | BE2: 31 | BF2: 32 | BG2: 33 | BH2: 34 | BI2: 35 | BJ2: 36 | BK2: 37 | BL2: 38 | BM2: 39 | BN2: 40 | BO2: 41 | BP2: 42 | BQ2: 43 | BR2: 44 | BS2: 45 | BT2: 46 | BU2: 47 | BV2: 48 | BW2: 49 | BX2: 50 | BY2: 51 | BZ2: 52 | CA2: 53 | CB2: 54 | CC2: 55 | CD2: 56 | CE2: 57 | CF2: 58 | CG2: 59 | CH2: 60 | CI2: 61 | CJ2: 62 | CK2: 63 | CL2: 64 | CM2: 65 | CN2: 66 | CO2: 67 | CP2: 68 | CQ2: 69 | CR2: 70 | CS2: 71 | CT2: 72 | CU2: 73 | CV2: 74 | CW2: 75 | CX2: 76 | CY2: 77 | CZ2: 78 | DA2: 79 | DB2: 80 | DC2: 81 | DD2: 82 | DE2: 83 | DF2: 84 | DG2: 85 | DH2: 86 | DI2: 87 | DJ2: 88 | DK2: 89 | DL2: 90 | DM2: 91 | DN2: 92 | DO2: 93 | DP2: 94 | DQ2: 95 | DR2: 96 | DS2: 97 | DT2: 98 | DU2: 99 | DV2: 100 | DW2: 101 | DX2: 102 | DY2: 103 | DZ2: 104 | EA2: 105 | EB2: 106 | EC2: 107 | ED2: 108 | EE2: 109 | EF2: 110 | EG2: 111 | EH2: 112 | EI2: 113 | EJ2: 114 | EK2: 115 | EL2: 116 | EM2: 117 | EN2: 118 | EO2: 119 | EP2: 120 | EQ2: 121 | ER2: 122 | ES2: 123 | ET2: 124 | EU2: 125 | EV2: 126 | EW2: 127 | EX2: 128 | EY2: 129 | EZ2: 130 | FA2: 131 | FB2: 132 | FC2: 133
Y3: номер факт-периода:
Y4: номер план-периода: | AA4: 1 | AB4: 2 | AC4: 3 | AD4: 4 | AE4: 5 | AF4: 6 | AG4: 7 | AH4: 8 | AI4: 9 | AJ4: 10 | AK4: 11 | AL4: 12 | AM4: 13 | AN4: 14 | AO4: 15 | AP4: 16 | AQ4: 17 | AR4: 18 | AS4: 19 | AT4: 20 | AU4: 21 | AV4: 22 | AW4: 23 | AX4: 24 | AY4: 25 | AZ4: 26 | BA4: 27 | BB4: 28 | BC4: 29 | BD4: 30 | BE4: 31 | BF4: 32 | BG4: 33 | BH4: 34 | BI4: 35 | BJ4: 36 | BK4: 37 | BL4: 38 | BM4: 39 | BN4: 40 | BO4: 41 | BP4: 42 | BQ4: 43 | BR4: 44 | BS4: 45 | BT4: 46 | BU4: 47 | BV4: 48 | BW4: 49 | BX4: 50 | BY4: 51 | BZ4: 52 | CA4: 53 | CB4: 54 | CC4: 55 | CD4: 56 | CE4: 57 | CF4: 58 | CG4: 59 | CH4: 60 | CI4: 61 | CJ4: 62 | CK4: 63 | CL4: 64 | CM4: 65 | CN4: 66 | CO4: 67 | CP4: 68 | CQ4: 69 | CR4: 70 | CS4: 71 | CT4: 72 | CU4: 73 | CV4: 74 | CW4: 75 | CX4: 76 | CY4: 77 | CZ4: 78 | DA4: 79 | DB4: 80
Y5: число даты начала: | AA5: 1 | AB5: 1 | AC5: 1 | AD5: 1 | AE5: 1 | AF5: 1 | AG5: 1 | AH5: 1 | AI5: 1 | AJ5: 1 | AK5: 1 | AL5: 1 | AM5: 1 | AN5: 1 | AO5: 1 | AP5: 1 | AQ5: 1 | AR5: 1 | AS5: 1 | AT5: 1 | AU5: 1 | AV5: 1 | AW5: 1 | AX5: 1 | AY5: 1 | AZ5: 1 | BA5: 1 | BB5: 1 | BC5: 1 | BD5: 1 | BE5: 1 | BF5: 1 | BG5: 1 | BH5: 1 | BI5: 1 | BJ5: 1 | BK5: 1 | BL5: 1 | BM5: 1 | BN5: 1 | BO5: 1 | BP5: 1 | BQ5: 1 | BR5: 1 | BS5: 1 | BT5: 1 | BU5: 1 | BV5: 1 | BW5: 1 | BX5: 1 | BY5: 1 | BZ5: 1 | CA5: 1 | CB5: 1 | CC5: 1 | CD5: 1 | CE5: 1 | CF5: 1 | CG5: 1 | CH5: 1 | CI5: 1 | CJ5: 1 | CK5: 1 | CL5: 1 | CM5: 1 | CN5: 1 | CO5: 1 | CP5: 1 | CQ5: 1 | CR5: 1 | CS5: 1 | CT5: 1 | CU5: 1 | CV5: 1 | CW5: 1 | CX5: 1 | CY5: 1 | CZ5: 1 | DA5: 1 | DB5: 1
Y6: номер месяца даты начала: | AA6: 7 | AB6: 10 | AC6: 1 | AD6: 4 | AE6: 7 | AF6: 10 | AG6: 1 | AH6: 4 | AI6: 7 | AJ6: 10 | AK6: 1 | AL6: 4 | AM6: 7 | AN6: 10 | AO6: 1 | AP6: 4 | AQ6: 7 | AR6: 10 | AS6: 1 | AT6: 4 | AU6: 7 | AV6: 10 | AW6: 1 | AX6: 4 | AY6: 7 | AZ6: 10 | BA6: 1 | BB6: 4 | BC6: 7 | BD6: 10 | BE6: 1 | BF6: 4 | BG6: 7 | BH6: 10 | BI6: 1 | BJ6: 4 | BK6: 7 | BL6: 10 | BM6: 1 | BN6: 4 | BO6: 7 | BP6: 10 | BQ6: 1 | BR6: 4 | BS6: 7 | BT6: 10 | BU6: 1 | BV6: 4 | BW6: 7 | BX6: 10 | BY6: 1 | BZ6: 4 | CA6: 7 | CB6: 10 | CC6: 1 | CD6: 4 | CE6: 7 | CF6: 10 | CG6: 1 | CH6: 4 | CI6: 7 | CJ6: 10 | CK6: 1 | CL6: 4 | CM6: 7 | CN6: 10 | CO6: 1 | CP6: 4 | CQ6: 7 | CR6: 10 | CS6: 1 | CT6: 4 | CU6: 7 | CV6: 10 | CW6: 1 | CX6: 4 | CY6: 7 | CZ6: 10 | DA6: 1 | DB6: 4
Y7: год даты начала: | AA7: 21 | AB7: 21 | AC7: 22 | AD7: 22 | AE7: 22 | AF7: 22 | AG7: 23 | AH7: 23 | AI7: 23 | AJ7: 23 | AK7: 24 | AL7: 24 | AM7: 24 | AN7: 24 | AO7: 25 | AP7: 25 | AQ7: 25 | AR7: 25 | AS7: 26 | AT7: 26 | AU7: 26 | AV7: 26 | AW7: 27 | AX7: 27 | AY7: 27 | AZ7: 27 | BA7: 28 | BB7: 28 | BC7: 28 | BD7: 28 | BE7: 29 | BF7: 29 | BG7: 29 | BH7: 29 | BI7: 30 | BJ7: 30 | BK7: 30 | BL7: 30 | BM7: 31 | BN7: 31 | BO7: 31 | BP7: 31 | BQ7: 32 | BR7: 32 | BS7: 32 | BT7: 32 | BU7: 33 | BV7: 33 | BW7: 33 | BX7: 33 | BY7: 34 | BZ7: 34 | CA7: 34 | CB7: 34 | CC7: 35 | CD7: 35 | CE7: 35 | CF7: 35 | CG7: 36 | CH7: 36 | CI7: 36 | CJ7: 36 | CK7: 37 | CL7: 37 | CM7: 37 | CN7: 37 | CO7: 38 | CP7: 38 | CQ7: 38 | CR7: 38 | CS7: 39 | CT7: 39 | CU7: 39 | CV7: 39 | CW7: 40 | CX7: 40 | CY7: 40 | CZ7: 40 | DA7: 41 | DB7: 41
Y8: число даты окончания: | AA8: 30 | AB8: 31 | AC8: 31 | AD8: 30 | AE8: 30 | AF8: 31 | AG8: 31 | AH8: 30 | AI8: 30 | AJ8: 31 | AK8: 31 | AL8: 30 | AM8: 30 | AN8: 31 | AO8: 31 | AP8: 30 | AQ8: 30 | AR8: 31 | AS8: 31 | AT8: 30 | AU8: 30 | AV8: 31 | AW8: 31 | AX8: 30 | AY8: 30 | AZ8: 31 | BA8: 31 | BB8: 30 | BC8: 30 | BD8: 31 | BE8: 31 | BF8: 30 | BG8: 30 | BH8: 31 | BI8: 31 | BJ8: 30 | BK8: 30 | BL8: 31 | BM8: 31 | BN8: 30 | BO8: 30 | BP8: 31 | BQ8: 31 | BR8: 30 | BS8: 30 | BT8: 31 | BU8: 31 | BV8: 30 | BW8: 30 | BX8: 31 | BY8: 31 | BZ8: 30 | CA8: 30 | CB8: 31 | CC8: 31 | CD8: 30 | CE8: 30 | CF8: 31 | CG8: 31 | CH8: 30 | CI8: 30 | CJ8: 31 | CK8: 31 | CL8: 30 | CM8: 30 | CN8: 31 | CO8: 31 | CP8: 30 | CQ8: 30 | CR8: 31 | CS8: 31 | CT8: 30 | CU8: 30 | CV8: 31 | CW8: 31 | CX8: 30 | CY8: 30 | CZ8: 31 | DA8: 31 | DB8: 30
Y9: номер месяца даты окончания: | AA9: 9 | AB9: 12 | AC9: 3 | AD9: 6 | AE9: 9 | AF9: 12 | AG9: 3 | AH9: 6 | AI9: 9 | AJ9: 12 | AK9: 3 | AL9: 6 | AM9: 9 | AN9: 12 | AO9: 3 | AP9: 6 | AQ9: 9 | AR9: 12 | AS9: 3 | AT9: 6 | AU9: 9 | AV9: 12 | AW9: 3 | AX9: 6 | AY9: 9 | AZ9: 12 | BA9: 3 | BB9: 6 | BC9: 9 | BD9: 12 | BE9: 3 | BF9: 6 | BG9: 9 | BH9: 12 | BI9: 3 | BJ9: 6 | BK9: 9 | BL9: 12 | BM9: 3 | BN9: 6 | BO9: 9 | BP9: 12 | BQ9: 3 | BR9: 6 | BS9: 9 | BT9: 12 | BU9: 3 | BV9: 6 | BW9: 9 | BX9: 12 | BY9: 3 | BZ9: 6 | CA9: 9 | CB9: 12 | CC9: 3 | CD9: 6 | CE9: 9 | CF9: 12 | CG9: 3 | CH9: 6 | CI9: 9 | CJ9: 12 | CK9: 3 | CL9: 6 | CM9: 9 | CN9: 12 | CO9: 3 | CP9: 6 | CQ9: 9 | CR9: 12 | CS9: 3 | CT9: 6 | CU9: 9 | CV9: 12 | CW9: 3 | CX9: 6 | CY9: 9 | CZ9: 12 | DA9: 3 | DB9: 6
Y10: год даты окончания: | AA10: 21 | AB10: 21 | AC10: 22 | AD10: 22 | AE10: 22 | AF10: 22 | AG10: 23 | AH10: 23 | AI10: 23 | AJ10: 23 | AK10: 24 | AL10: 24 | AM10: 24 | AN10: 24 | AO10: 25 | AP10: 25 | AQ10: 25 | AR10: 25 | AS10: 26 | AT10: 26 | AU10: 26 | AV10: 26 | AW10: 27 | AX10: 27 | AY10: 27 | AZ10: 27 | BA10: 28 | BB10: 28 | BC10: 28 | BD10: 28 | BE10: 29 | BF10: 29 | BG10: 29 | BH10: 29 | BI10: 30 | BJ10: 30 | BK10: 30 | BL10: 30 | BM10: 31 | BN10: 31 | BO10: 31 | BP10: 31 | BQ10: 32 | BR10: 32 | BS10: 32 | BT10: 32 | BU10: 33 | BV10: 33 | BW10: 33 | BX10: 33 | BY10: 34 | BZ10: 34 | CA10: 34 | CB10: 34 | CC10: 35 | CD10: 35 | CE10: 35 | CF10: 35 | CG10: 36 | CH10: 36 | CI10: 36 | CJ10: 36 | CK10: 37 | CL10: 37 | CM10: 37 | CN10: 37 | CO10: 38 | CP10: 38 | CQ10: 38 | CR10: 38 | CS10: 39 | CT10: 39 | CU10: 39 | CV10: 39 | CW10: 40 | CX10: 40 | CY10: 40 | CZ10: 40 | DA10: 41 | DB10: 41
F11: CapEx | I11: Календарный план-график капитальных затрат | Q11: все включает НДС | X11: 2021-07-01 | AA11: 2021-07-01 | AB11: 2021-10-01 | AC11: 2022-01-01 | AD11: 2022-04-01 | AE11: 2022-07-01 | AF11: 2022-10-01 | AG11: 2023-01-01 | AH11: 2023-04-01 | AI11: 2023-07-01 | AJ11: 2023-10-01 | AK11: 2024-01-01 | AL11: 2024-04-01 | AM11: 2024-07-01 | AN11: 2024-10-01 | AO11: 2025-01-01 | AP11: 2025-04-01 | AQ11: 2025-07-01 | AR11: 2025-10-01 | AS11: 2026-01-01 | AT11: 2026-04-01 | AU11: 2026-07-01 | AV11: 2026-10-01 | AW11: 2027-01-01 | AX11: 2027-04-01 | AY11: 2027-07-01 | AZ11: 2027-10-01 | BA11: 2028-01-01 | BB11: 2028-04-01 | BC11: 2028-07-01 | BD11: 2028-10-01 | BE11: 2029-01-01 | BF11: 2029-04-01 | BG11: 2029-07-01 | BH11: 2029-10-01 | BI11: 2030-01-01 | BJ11: 2030-04-01 | BK11: 2030-07-01 | BL11: 2030-10-01 | BM11: 2031-01-01 | BN11: 2031-04-01 | BO11: 2031-07-01 | BP11: 2031-10-01 | BQ11: 2032-01-01 | BR11: 2032-04-01 | BS11: 2032-07-01 | BT11: 2032-10-01 | BU11: 2033-01-01 | BV11: 2033-04-01 | BW11: 2033-07-01 | BX11: 2033-10-01 | BY11: 2034-01-01 | BZ11: 2034-04-01 | CA11: 2034-07-01 | CB11: 2034-10-01 | CC11: 2035-01-01 | CD11: 2035-04-01 | CE11: 2035-07-01 | CF11: 2035-10-01 | CG11: 2036-01-01 | CH11: 2036-04-01 | CI11: 2036-07-01 | CJ11: 2036-10-01 | CK11: 2037-01-01 | CL11: 2037-04-01 | CM11: 2037-07-01 | CN11: 2037-10-01 | CO11: 2038-01-01 | CP11: 2038-04-01 | CQ11: 2038-07-01 | CR11: 2038-10-01 | CS11: 2039-01-01 | CT11: 2039-04-01 | CU11: 2039-07-01 | CV11: 2039-10-01 | CW11: 2040-01-01 | CX11: 2040-04-01 | CY11: 2040-07-01 | CZ11: 2040-10-01 | DA11: 2041-01-01 | DB11: 2041-04-01
